Workbook

Sheet At a glance
B3: THE ECONOMY
B5: Tamara Dimant
B7: At a glance
C8: 2023
B9: Gross Domestic Product (GDP) (at current prices) | C9: R7 024.0bn
B10: Real GDP growth at market prices | C10: 0.007
B11: Primary sector (10.0% of GVA) | C11: -0.022
B12: — Agriculture, forestry, and fishing (2.9% of GVA) | C12: -0.048
B13: — Mining and quarrying (7.0% of GVA) | C13: -0.005
B14: Secondary sector (20.4% of GVA) | C14: -0.004
B15: — Manufacturing (14.4% of GVA) | C15: 0.003
B16: Tertiary sector (69.7% of GVA) | C16: 0.012
B17: Growth in real GDP per head | C17: -0.003
B18: Final consumption expenditure by households | C18: up 0.7%
B19: Final consumption expenditure by government | C19: up 1.9%
B20: Gross domestic saving as a proportion of GDP | C20: 0.139
B21: Saving as a proportion of disposable income of households | C21: -0.007
B22: Household debt as a proportion of disposable income | C22: 0.623
B23: GFCF as a proportion of GDP | C23: 0.149
B24: GFCF by general government (constant prices) | C24: up 3.9%
B25: — by public corporations | C25: up 9.9%
B26: — by private business | C26: up 3.0%
B27: Inflation rate | C27: 0.06
B28: Administered price rise | C28: 0.048
B29: Food inflation rate | C29: 0.109
B30: Producer price rise | C30: 0.067
B31: Value of merchandise exports (including gold) | C31: R2 038bn
B32: Value of merchandise imports (including oil and arms) | C32: R1 934bn
B33: Current account surplus/deficit as a proportion of GDP | C33: -0.016
B34: Prime overdraft rate (average) | C34: 0.114
B35: Average gold price | C35: $1 943
B36: Average exchange rate (R/€) | C36: 19.95
B37: Average exchange rate (R/$) | C37: 18.45

Sheet LEADING INDICATORS

Sheet Major indicators 1973-23
A1: LEADING INDICATORS
A3: Local indicators
A5: Major indicators, 1973-2023
A7: Year | B7: Real GDP growthab | C7: GDP per head b R | D7: GFCFcas a % of GDP | E7: Headline inflationd | F7: Prime overdraft rate (average) | G7: Current account surplus/deficit as a % of GDP | H7: R/$e
A8: 1973 | B8: 0.046 | C8: 66880 | D8: 0.235 | E8: 0.095 | F8: — | G8: -0.007 | H8: 0.694
A9: 1974 | B9: 0.061 | C9: 69340 | D9: 0.236 | E9: 0.116 | F9: 0.102 | G9: -0.035 | H9: 0.68
A10: 1975 | B10: 0.017 | C10: 68935 | D10: 0.281 | E10: 0.135 | F10: 0.118 | G10: -0.056 | H10: 0.74
A11: 1976 | B11: 0.022 | C11: 68893 | D11: 0.291 | E11: 0.111 | F11: 0.123 | G11: -0.046 | H11: 0.87
A12: 1977 | B12: -0.001 | C12: 67206 | D12: 0.282 | E12: 0.113 | F12: 0.125 | G12: 0.005 | H12: 0.87
A13: 1978 | B13: 0.03 | C13: 67570 | D13: 0.258 | E13: 0.109 | F13: 0.121 | G13: 0.021 | H13: 0.87
A14: 1979 | B14: 0.038 | C14: 68530 | D14: 0.257 | E14: 0.132 | F14: 0.1 | G14: 0.047 | H14: 0.842
A15: 1980 | B15: 0.066 | C15: 71428 | D15: 0.263 | E15: 0.138 | F15: 0.095 | G15: 0.037 | H15: 0.779
A16: 1981 | B16: 0.054 | C16: 73509 | D16: 0.272 | E16: 0.152 | F16: 0.14 | G16: -0.055 | H16: 0.878
A17: 1982 | B17: -0.004 | C17: 71555 | D17: 0.27 | E17: 0.147 | F17: 0.193 | G17: -0.04 | H17: 1.086
A18: 1983 | B18: -0.018 | C18: 68649 | D18: 0.259 | E18: 0.124 | F18: 0.167 | G18: -0.004 | H18: 1.114
A19: 1984 | B19: 0.051 | C19: 70547 | D19: 0.235 | E19: 0.116 | F19: 0.223 | G19: -0.022 | H19: 1.476
A20: 1985 | B20: -0.012 | C20: 68171 | D20: 0.23 | E20: 0.161 | F20: 0.215 | G20: 0.036 | H20: 2.228
A21: 1986 | B21: 0 | C21: 66705 | D21: 0.204 | E21: 0.187 | F21: 0.143 | G21: 0.038 | H21: 2.284
A22: 1987 | B22: 0.021 | C22: 66662 | D22: 0.183 | E22: 0.161 | F22: 0.125 | G22: 0.053 | H22: 2.036
A23: 1988 | B23: 0.042 | C23: 68020 | D23: 0.195 | E23: 0.129 | F23: 0.153 | G23: 0.025 | H23: 2.273
A24: 1989 | B24: 0.024 | C24: 68198 | D24: 0.209 | E24: 0.147 | F24: 0.198 | G24: 0.014 | H24: 2.622
A25: 1990 | B25: -0.003 | C25: 66572 | D25: 0.196 | E25: 0.144 | F25: 0.21 | G25: 0.012 | H25: 2.588
A26: 1991 | B26: -0.01 | C26: 64532 | D26: 0.178 | E26: 0.153 | F26: 0.203 | G26: 0.01 | H26: 2.761
A27: 1992 | B27: -0.021 | C27: 61848 | D27: 0.163 | E27: 0.139 | F27: 0.188 | G27: 0.013 | H27: 2.852
A28: 1993 | B28: 0.012 | C28: 61314 | D28: 0.147 | E28: 0.097 | F28: 0.162 | G28: 0.019 | H28: 3.267
A29: 1994 | B29: 0.032 | C29: 61965 | D29: 0.15 | E29: 0.09 | F29: 0.158 | G29: 0 | H29: 3.55
A30: 1995 | B30: 0.031 | C30: 62560 | D30: 0.157 | E30: 0.087 | F30: 0.179 | G30: -0.015 | H30: 3.627
A31: 1996 | B31: 0.043 | C31: 63894 | D31: 0.158 | E31: 0.074 | F31: 0.195 | G31: -0.01 | H31: 4.296
A32: 1997 | B32: 0.026 | C32: 64193 | D32: 0.162 | E32: 0.086 | F32: 0.2 | G32: -0.013 | H32: 4.607
A33: 1998 | B33: 0.005 | C33: 63171 | D33: 0.165 | E33: 0.069 | F33: 0.218 | G33: -0.015 | H33: 5.532
A34: 1999 | B34: 0.024 | C34: 63350 | D34: 0.148 | E34: 0.051 | F34: 0.18 | G34: -0.004 | H34: 6.113
A35: 2000 | B35: 0.042 | C35: 64696 | D35: 0.144 | E35: 0.053 | F35: 0.145 | G35: -0.001 | H35: 6.935
A36: 2001 | B36: 0.027 | C36: 64984 | D36: 0.144 | E36: 0.057 | F36: 0.138 | G36: 0.002 | H36: 8.603
A37: 2002 | B37: 0.037 | C37: 65118 | D37: 0.14 | E37: 0.092 | F37: 0.158 | G37: 0.008 | H37: 10.517
A38: 2003 | B38: 0.029 | C38: 66121 | D38: 0.147 | E38: 0.058 | F38: 0.15 | G38: -0.007 | H38: 7.565
A39: 2004 | B39: 0.046 | C39: 68391 | D39: 0.152 | E39: 0.014 | F39: 0.113 | G39: -0.025 | H39: 6.45
A40: 2005 | B40: 0.053 | C40: 71186 | D40: 0.159 | E40: 0.034 | F40: 0.106 | G40: -0.028 | H40: 6.362
A41: 2006 | B41: 0.056 | C41: 74292 | D41: 0.174 | E41: 0.047 | F41: 0.111 | G41: -0.04 | H41: 6.767
A42: 2007 | B42: 0.054 | C42: 77299 | D42: 0.19 | E42: 0.071 | F42: 0.131 | G42: -0.048 | H42: 7.054
A43: 2008 | B43: 0.032 | C43: 78709 | D43: 0.216 | E43: 0.115 | F43: 0.151 | G43: -0.05 | H43: 8.252
A44: 2009 | B44: -0.015 | C44: 76407 | D44: 0.195 | E44: 0.071 | F44: 0.119 | G44: -0.024 | H44: 8.437
A45: 2010 | B45: 0.03 | C45: 77568 | D45: 0.176 | E45: 0.043 | F45: 0.099 | G45: -0.013 | H45: 7.322
A46: 2011 | B46: 0.032 | C46: 78811 | D46: 0.178 | E46: 0.05 | F46: 0.09 | G46: -0.02 | H46: 7.253
A47: 2012 | B47: 0.024 | C47: 79464 | D47: 0.179 | E47: 0.056 | F47: 0.088 | G47: -0.047 | H47: 8.21
A48: 2013 | B48: 0.025 | C48: 80191 | D48: 0.186 | E48: 0.057 | F48: 0.085 | G48: -0.053 | H48: 9.65
A49: 2014 | B49: 0.014 | C49: 80077 | D49: 0.183 | E49: 0.061 | F49: 0.091 | G49: -0.048 | H49: 10.844
A50: 2015 | B50: 0.013 | C50: 79917 | D50: 0.18 | E50: 0.046 | F50: 0.094 | G50: -0.043 | H50: 12.7507
A51: 2016 | B51: 0.007 | C51: 79264 | D51: 0.174 | E51: 0.064 | F51: 0.104 | G51: -0.027 | H51: 14.7088
A52: 2017 | B52: 0.012 | C52: 78988 | D52: 0.164 | E52: 0.053 | F52: 0.104 | G52: -0.024 | H52: 13.313
A53: 2018 | B53: 0.016 | C53: 79017 | D53: 0.159 | E53: 0.047 | F53: 0.101 | G53: -0.029 | H53: 13.2339
A54: 2019 | B54: 0.003 | C54: 78061 | D54: 0.155 | E54: 0.041 | F54: 0.101 | G54: -0.026 | H54: 14.448
A55: 2020 | B55: -0.062 | C55: 72269 | D55: 0.138 | E55: 0.033 | F55: 0.077 | G55: 0.02 | H55: 16.46
A56: 2021 | B56: 0.05 | C56: 75069 | D56: 0.131 | E56: 0.045 | F56: 0.0703 | G56: 0.037 | H56: 14.78
A57: 2022 | B57: 0.019 | C57: 75743 | D57: 0.141 | E57: 0.069 | F57: 0.088 | G57: -0.005 | H57: 16.36
A58: 2023 | B58: 0.007 | C58: 75548 | D58: 0.149 | E58: 0.06 | F58: 0.115 | G58: -0.016 | H58: 18.45
A59: Source: South African Reserve Bank (SARB), www.resbank.co.za, time series data, accessed 3 July 2024
A60: a GDP = Gross Domestic Product. At market prices.
A61: b At constant 2015 prices.
A62: c GFCF = Gross Fixed Capital Formation (also known as Gross Domestic Fixed Investment).
A63: d Consumer Price Index. Base year December 2021 = 100.
A64: e Between 1950 and 1969 R/$ middle rate was 0.7143.

Sheet LG Curr account % of GDP
A1: LG
A2: Current account surplus/deficit as proportion of GDP, 1960–2023
C3: Current account surplus/deficit as proportion of GDP, 1960–2022
B4: 1960 | C4: 0.006
B5: 1961 | C5: 0.029
B6: 1962 | C6: 0.044
B7: 1963 | C7: 0.018
B8: 1964 | C8: -0.013
B9: 1965 | C9: -0.039
B10: 1966 | C10: -0.01
B11: 1967 | C11: -0.024
B12: 1968 | C12: -0.001
B13: 1969 | C13: -0.025
B14: 1970 | C14: -0.061
B15: 1971 | C15: -0.063
B16: 1972 | C16: -0.008
B17: 1973 | C17: -0.007
B18: 1974 | C18: -0.035
B19: 1975 | C19: -0.056
B20: 1976 | C20: -0.046
B21: 1977 | C21: 0.005
B22: 1978 | C22: 0.021
B23: 1979 | C23: 0.047
B24: 1980 | C24: 0.037
B25: 1981 | C25: -0.055
B26: 1982 | C26: -0.04
B27: 1983 | C27: -0.004
B28: 1984 | C28: -0.022
B29: 1985 | C29: 0.036
B30: 1986 | C30: 0.038
B31: 1987 | C31: 0.053
B32: 1988 | C32: 0.025
B33: 1989 | C33: 0.014
B34: 1990 | C34: 0.012
B35: 1991 | C35: 0.01
B36: 1992 | C36: 0.013
B37: 1993 | C37: 0.019
B38: 1994 | C38: 0
B39: 1995 | C39: -0.015
B40: 1996 | C40: -0.01
B41: 1997 | C41: -0.013
B42: 1998 | C42: -0.015
B43: 1999 | C43: -0.004
B44: 2000 | C44: -0.001
B45: 2001 | C45: 0.002
B46: 2002 | C46: 0.008
B47: 2003 | C47: -0.007
B48: 2004 | C48: -0.025
B49: 2005 | C49: -0.028
B50: 2006 | C50: -0.04
B51: 2007 | C51: -0.048
B52: 2008 | C52: -0.05
B53: 2009 | C53: -0.024
B54: 2010 | C54: -0.013
B55: 2011 | C55: -0.02
B56: 2012 | C56: -0.047
B57: 2013 | C57: -0.053
B58: 2014 | C58: -0.048
B59: 2015 | C59: -0.043
B60: 2016 | C60: -0.027
B61: 2017 | C61: -0.024
B62: 2018 | C62: -0.029
B63: 2019 | C63: -0.026
B64: 2020 | C64: 0.02
B65: 2021 | C65: 0.037
B66: 2022 | C66: -0.005
B67: 2023 | C67: -0.016

Sheet Further major indicators 94-23
A2: Further major indicators, 1994-2023
A4: Year | B4: Gold $/oz | C4: Gold R/oz | D4: Unemploymentac – official (number) | E4: Unemploymentac – official (rate) | F4: Unemploymentbc – expanded (number) | G4: Unemploymentbc – expanded (rate)
A5: 1994 | B5: 384 | C5: 1363 | D5: 1988000 | E5: 0.2 | F5: 3672000 | G5: 0.315
A6: 1995 | B6: 384 | C6: 1393 | D6: 1644000 | E6: 0.169 | F6: 3321000 | G6: 0.292
A7: 2000 | B7: 279 | C7: 1933 | D7: 4162000 | E7: 0.254 | F7: 6379000 | G7: 0.343
A8: 2005 | B8: 445 | C8: 2825 | D8: 3993000 | E8: 0.265 | F8: 7673000 | G8: 0.38
A9: 2006 | B9: 604 | C9: 4085 | D9: 3984000 | E9: 0.256 | F9: 7474000 | G9: 0.361
A10: 2007 | B10: 697 | C10: 4891 | D10: 4119000 | E10: 0.255 | F10: 7504000 | G10: 0.36
A11: 2008 | B11: 872 | C11: 7136 | D11: 4267000 | E11: 0.226 | F11: 6109000 | G11: 0.295
A12: 2009 | B12: 971 | C12: 8107 | D12: 4341000 | E12: 0.232 | F12: 6678000 | G12: 0.317
A13: 2010 | B13: 1225 | C13: 8908 | D13: 4622000 | E13: 0.251 | F13: 7509000 | G13: 0.352
A14: 2011 | B14: 1569 | C14: 11445 | D14: 4782000 | E14: 0.256 | F14: 7921000 | G14: 0.363
A15: 2012 | B15: 1668 | C15: 13709 | D15: 4721000 | E15: 0.248 | F15: 7922000 | G15: 0.356
A16: 2013 | B16: 1411 | C16: 13550 | D16: 4972000 | E16: 0.253 | F16: 8289000 | G16: 0.361
A17: 2014 | B17: 1266 | C17: 13725 | D17: 5154000 | E17: 0.255 | F17: 8332000 | G17: 0.356
A18: 2015 | B18: 1160 | C18: 14764 | D18: 5230000 | E18: 0.25 | F18: 8378000 | G18: 0.39
A19: 2016 | B19: 1248 | C19: 18326 | D19: 5634000 | E19: 0.266 | F19: 8880000 | G19: 0.364
A20: 2017 | B20: 1258 | C20: 16754 | D20: 6177000 | E20: 0.277 | F20: 9304000 | G20: 0.366
A21: 2018 | B21: 1269 | C21: 16779 | D21: 6083000 | E21: 0.272 | F21: 9634000 | G21: 0.372
A22: 2019 | B22: 1392 | C22: 20154 | D22: 6655000 | E22: 0.29 | F22: 10226000 | G22: 0.385
A23: 2020 | B23: 1771 | C23: 29177 | D23: 4295000 | E23: 0.233 | F23: 10259000 | G23: 0.42
A24: 2021 | B24: 1800 | C24: 26605 | D24: 7826000 | E24: 0.344 | F24: 11923000 | G24: 0.444
A25: 2022 | B25: 1801 | C25: 29384 | D25: 7994000 | E25: 0.339 | F25: 12282000 | G25: 0.441
A26: 2023 | B26: 1943 | C26: 35845 | D26: 7921000 | E26: 0.326 | F26: 11872000 | G26: 0.421
A27: Source: SARB, time series data, accessed 3 July 2024; Stats SA, Quarterly Labour Force Survey, Quarter 2 2023, Statistical release P0211, 15 August 2023
A28: a Comparable unemployment figures from earlier years were never kept. Stats SA defined the unemployed as follows:
A29: • they had not worked in the survey reference week of the Quarterly Labour Force Survey;
A30: • they had actively looked for work or tried to start a business in the four weeks prior to the reference week;
A31: • they were available for work in the reference week of the survey; and
A32: • they had not actively looked for work in the four weeks prior to the survey, but were starting at a definite date in the future.
A33: b Everybody who wanted to work and was available to take up employment during the reference week of the survey is included, regardless of whether they actively looked for a job in the four weeks prior to the reference week.
A34: c Data from 1994 to 2000 is based on Household Survey data. Data from 2005 to 2023 is based on the Quarterly Labour Force Survey.

Sheet Key indicators and forecasts
A2: Key indicators and forecasts, 2020-26
A5: Real growth: | B5: 2020 | C5: 2021 | D5: 2022 | E5: 2023 | F5: 2024 | G5: 2025 | H5: 2026
B6: —Actual— | E6: Estimate | F6: —Forecast—
A7: Final household consumption | B7: -0.061 | C7: 0.058 | D7: 0.025 | E7: 0.007 | F7: 0.013 | G7: 0.018 | H7: 0.017
A8: Final government consumption | B8: 0.009 | C8: 0.005 | D8: 0.01 | E8: 0.018 | F8: -0.007 | G8: -0.002 | H8: -0.002
A9: Gross fixed capital formation | B9: -0.146 | C9: 0.006 | D9: 0.048 | E9: 0.042 | F9: 0.037 | G9: 0.04 | H9: 0.036
A10: Gross domestic expenditure | B10: -0.076 | C10: 0.048 | D10: 0.039 | E10: 0.011 | F10: 0.012 | G10: 0.017 | H10: 0.017
A11: Exports of goods and services | B11: -0.12 | C11: 0.091 | D11: 0.074 | E11: 0.032 | F11: 0.021 | G11: 0.025 | H11: 0.032
A12: Imports of goods and services | B12: -0.176 | C12: 0.096 | D12: 0.149 | E12: 0.048 | F12: 0.019 | G12: 0.026 | H12: 0.026
A13: Real GDP growth | B13: -0.06 | C13: 0.047 | D13: 0.019 | E13: 0.006 | F13: 0.013 | G13: 0.016 | H13: 0.018
A14: GDP at current prices (Rbn) | B14: 5568 | C14: 6208.8 | D14: 6628.6 | E14: 6972 | F14: 7346 | G14: 7801 | H14: 8298
A15: Headline inflation (CPI) | B15: 0.033 | C15: 0.046 | D15: 0.069 | E15: 0.06 | F15: 0.049 | G15: 0.046 | H15: 0.046
A16: Current account balance (as a proportion of GDP) | B16: 0.019 | C16: 0.037 | D16: -0.005 | E16: -0.018 | F16: -0.028 | G16: -0.03 | H16: -0.03
A17: Source: National Treasury, Budget Review 2024, 21 February 2024, Table 2.2, p18

Sheet Economist data 2024
A2: International comparisons
A5: Key economic indicators and forecasts, selected countries
A7: Country | B7: GDP growth 2024a | C7: CPIb 2024a | D7: Unemployment rate latest | E7: Current account balance as a % of GDP 2024a | F7: Budget balance as a proportion of GDPa | G7: 10-year government bonds interest rate latest
A8: Argentina | B8: -0.031 | C8: 2.21 | D8: 0.077 | E8: 0.003 | F8: -0.005 | G8: N/A
A9: Australia | B9: 0.013 | C9: 0.035 | D9: 0.042 | E9: -0.006 | F9: -0.015 | G9: 0.039
A10: Belgium | B10: 0.012 | C10: 0.038 | D10: 0.054 | E10: -0.006 | F10: -0.046 | G10: 0.028
A11: Brazil | B11: 0.025 | C11: 0.043 | D11: 0.068 | E11: -0.015 | F11: -0.076 | G11: 0.119
A12: Canada | B12: 0.013 | C12: 0.024 | D12: 0.066 | E12: -0.012 | F12: -0.013 | G12: 0.029
A13: Chile | B13: 0.023 | C13: 0.039 | D13: 0.087 | E13: -0.028 | F13: -0.024 | G13: 0.053
A14: China | B14: 0.047 | C14: 0.004 | D14: 0.053 | E14: 0.012 | F14: -0.044 | G14: 0.017
A15: Colombia | B15: 0.014 | C15: 0.067 | D15: 0.099 | E15: -0.026 | F15: -0.057 | G15: 0.096
A16: Czech Republic | B16: 0.011 | C16: 0.02 | D16: 0.027 | E16: 0.002 | F16: -0.024 | G16: 0.037
A17: Denmark | B17: 0.016 | C17: 0.016 | D17: 0.029 | E17: 0.105 | F17: 0.018 | G17: 0.021
A18: Egypt | B18: 0.024 | C18: 0.284 | D18: 0.065 | E18: -0.047 | F18: -0.052 | G18: N/A
A19: Euro area | B19: 0.01 | C19: 0.025 | D19: 0.064 | E19: 0.031 | F19: -0.031 | G19: 0.022
A20: France | B20: 0.012 | C20: 0.026 | D20: 0.075 | E20: -0.004 | F20: -0.052 | G20: 0.033
A21: Germany | B21: 0.002 | C21: 0.026 | D21: 0.034 | E21: 0.062 | F21: -0.016 | G21: 0.022
A22: Greece | B22: 0.024 | C22: 0.028 | D22: 0.099 | E22: -0.058 | F22: -0.013 | G22: 0.032
A23: Hong Kong | B23: 0.03 | C23: 0.015 | D23: 0.03 | E23: 0.119 | F23: -0.029 | G23: 0.027
A24: India | B24: 0.069 | C24: 0.047 | D24: 0.085 | E24: -0.005 | F24: -0.049 | G24: 0.068
A25: Indonesia | B25: 0.051 | C25: 0.026 | D25: 0.048 | E25: -0.001 | F25: -0.024 | G25: 0.065
A26: Israel | B26: 0.007 | C26: 0.03 | D26: 0.026 | E26: 0.057 | F26: -0.073 | G26: 0.05
A27: Italy | B27: 0.009 | C27: 0.012 | D27: 0.065 | E27: 0.015 | F27: -0.052 | G27: 0.036
A28: Japan | B28: 0.005 | C28: 0.025 | D28: 0.027 | E28: 0.038 | F28: -0.047 | G28: 0.009
A29: Malaysia | B29: 0.051 | C29: 0.023 | D29: 0.033 | E29: 0.026 | F29: -0.044 | G29: 0.037
A30: Mexico | B30: 0.016 | C30: 0.049 | D30: 0.027 | E30: -0.003 | F30: -0.05 | G30: 0.092
A31: Netherlands | B31: 0.006 | C31: 0.035 | D31: 0.036 | E31: 0.087 | F31: -0.014 | G31: 0.025
A32: Norway | B32: 0.01 | C32: 0.033 | D32: 0.04 | E32: 0.159 | F32: 0.12 | G32: 0.032
A33: Pakistan | B33: 0.028 | C33: 0.155 | D33: 0.063 | E33: -0.017 | F33: -0.074 | G33: 0.131
A34: Philippines | B34: 0.054 | C34: 0.033 | D34: 0.047 | E34: -0.028 | F34: -0.059 | G34: 0.06
A35: Poland | B35: 0.032 | C35: 0.038 | D35: 0.05 | E35: 0.01 | F35: -0.057 | G35: 0.053
A36: Russia | B36: 0.036 | C36: 0.075 | D36: 0.024 | E36: 0.029 | F36: -0.012 | G36: 0.158
A37: Saudi Arabia | B37: 0.015 | C37: 0.018 | D37: 0.035 | E37: -0.005 | F37: -0.022 | G37: N/A
A38: Singapore | B38: 0.027 | C38: 0.026 | D38: 0.02 | E38: 0.198 | F38: 0.001 | G38: 0.024
A39: South Africa | B39: 0.011 | C39: 0.048 | D39: 0.335 | E39: -0.02 | F39: -0.053 | G39: 0.088
A40: South Korea | B40: 0.025 | C40: 0.025 | D40: 0.019 | E40: 0.034 | F40: -0.018 | G40: 0.029
A41: Spain | B41: 0.027 | C41: 0.03 | D41: 0.115 | E41: 0.025 | F41: -0.032 | G41: 0.029
A42: Sweden | B42: 0.006 | C42: 0.02 | D42: 0.079 | E42: 0.06 | F42: -0.009 | G42: 0.019
A43: Switzerland | B43: 0.011 | C43: 0.012 | D43: 0.025 | E43: 0.067 | F43: 0.006 | G43: 0.004
A44: Taiwan | B44: 0.042 | C44: 0.02 | D44: 0.033 | E44: 0.14 | F44: 0.002 | G44: 0.015
A45: Thailand | B45: 0.025 | C45: 0.009 | D45: 0.011 | E45: 0.027 | F45: -0.037 | G45: 0.028
A46: Turkey | B46: 0.031 | C46: 0.577 | D46: 0.093 | E46: -0.027 | F46: -0.052 | G46: 0.271
A47: United Kingdom | B47: 0.011 | C47: 0.029 | D47: 0.041 | E47: -0.03 | F47: -0.041 | G47: 0.038
A48: United States | B48: 0.024 | C48: 0.03 | D48: 0.042 | E48: -0.033 | F48: -0.069 | G48: 0.037
A49: Source: The Economist, 19 September 2024, accessed 25 September 2024
A50: a Forecast.
A51: b Consumer Price Index.
A52: N/A — Not available.

Sheet Intern. Spending, saving % GDP
A2: Spending, investment, trade and saving as a proportion of GDP, selected countries, 2023a
A4: Country | B4: Households final consumption expenditure | C4: General government final consumption expenditure | D4: Gross capital formation | E4: Exports of goods and services | F4: Imports of goods and services | G4: Gross savings
A5: Australia | B5: 0.5 | C5: 0.21 | D5: 0.23 | E5: 0.27 | F5: 0.21 | G5: 0.292
A6: Botswana | B6: 0.43 | C6: 0.29 | D6: 0.26 | E6: 0.32 | F6: 0.36 | G6: 0.28
A7: Brazil | B7: 0.63 | C7: 0.18 | D7: 0.17 | E7: 0.18 | F7: 0.16 | G7: 0.18
A8: Chile | B8: 0.61 | C8: 0.15 | D8: 0.24 | E8: 0.31 | F8: 0.3 | G8: 0.24
A9: China | B9: 0.37 | C9: 0.16 | D9: 0.42 | E9: 0.2 | F9: 0.175 | G9: 0.47
A10: Denmark | B10: 0.46 | C10: 0.23 | D10: 0.22 | E10: 0.69 | F10: 0.59 | G10: 0.32
A11: Egypt | B11: 0.825 | C11: 0.07 | D11: 0.15 | E11: 0.19 | F11: 0.21 | G11: 0.11
A12: France | B12: 0.54 | C12: 0.23 | D12: 0.25 | E12: 0.33 | F12: 0.35 | G12: 0.23
A13: Germany | B13: 0.51 | C13: 0.22 | D13: 0.22 | E13: 0.47 | F13: 0.43 | G13: 0.28
A14: Ghana | B14: 0.84 | C14: 0.06 | D14: 0.11 | E14: 0.34 | F14: 0.35 | G14: 0.1
A15: Greece | B15: 0.68 | C15: 0.2 | D15: 0.14 | E15: 0.45 | F15: 0.5 | G15: 0.12
A16: Hong Kong | B16: 0.7 | C16: 0.13 | D16: 0.17 | E16: 1.76 | F16: 1.75 | G16: 0.17
A17: India | B17: 0.6 | C17: 0.1 | D17: 0.31 | E17: 0.22 | F17: 0.24 | G17: 0.29
A18: Indonesia | B18: 0.54 | C18: 0.07 | D18: 0.29 | E18: 0.22 | F18: 0.2 | G18: 0.38
A19: Ireland | B19: 0.27 | C19: 0.12 | D19: 0.23 | E19: 1.34 | F19: 1.01 | G19: 0.61
A20: Israel | B20: 0.48 | C20: 0.22 | D20: 0.24 | E20: 0.31 | F20: 0.27 | G20: 0.29
A21: Italy | B21: 0.6 | C21: 0.18 | D21: 0.21 | E21: 0.35 | F21: 0.34 | G21: 0.22
A22: Japan | B22: 0.56 | C22: 0.22 | D22: 0.26 | E22: 0.22 | F22: 0.25 | G22: 0.23
A23: Kazakhstan | B23: 0.49 | C23: 0.11 | D23: 0.21 | E23: 0.42 | F23: 0.26 | G23: 0.4
A24: Lithuania | B24: 0.59 | C24: 0.18 | D24: 0.23 | E24: 0.78 | F24: 0.75 | G24: 0.24
A25: Mexico | B25: 0.7 | C25: 0.11 | D25: 0.24 | E25: 0.36 | F25: 0.38 | G25: 0.19
A26: Mozambique | B26: 0.75 | C26: 0.17 | D26: N/A | E26: 0.53 | F26: 0.83 | G26: 0.08
A27: Netherlands | B27: 0.44 | C27: 0.25 | D27: 0.2 | E27: 0.85 | F27: 0.74 | G27: 0.31
A28: Nigeria | B28: N/A | C28: N/A | D28: N/A | E28: N/A | F28: N/A | G28: N/A
A29: Pakistan | B29: 0.83 | C29: 0.1 | D29: 0.12 | E29: 0.1 | F29: 0.18 | G29: 0.06
A30: Philippines | B30: 0.77 | C30: 0.14 | D30: 0.24 | E30: 0.27 | F30: 0.41 | G30: 0.09
A31: Poland | B31: 0.57 | C31: 0.19 | D31: 0.18 | E31: 0.58 | F31: 0.52 | G31: 0.24
A32: Russia | B32: 0.5 | C32: 0.18 | D32: 0.22 | E32: 0.23 | F32: 0.19 | G32: 0.32
A33: Saudi Arabia | B33: 0.4 | C33: 0.23 | D33: 0.28 | E33: 0.35 | F33: 0.27 | G33: 0.37
A34: South Africa | B34: 0.65 | C34: 0.2 | D34: 0.15 | E34: 0.33 | F34: 0.33 | G34: 0.16
A35: Spain | B35: 0.56 | C35: 0.2 | D35: 0.19 | E35: 0.39 | F35: 0.35 | G35: 0.24
A36: Switzerland | B36: 0.52 | C36: 0.11 | D36: 0.26 | E36: 0.75 | F36: 0.63 | G36: 0.37
A37: Thailand | B37: 0.58 | C37: 0.17 | D37: 0.23 | E37: 0.65 | F37: 0.64 | G37: 0.26
A38: Turkey | B38: 0.59 | C38: 0.14 | D38: 0.32 | E38: 0.32 | F38: 0.35 | G38: 0.27
A39: Uganda | B39: 0.71 | C39: 0.09 | D39: 0.23 | E39: 0.13 | F39: 0.24 | G39: 0.19
A40: United Kingdom | B40: 0.62 | C40: 0.21 | D40: 0.18 | E40: 0.32 | F40: 0.33 | G40: 0.17
A41: United States | B41: 0.68 | C41: 0.14 | D41: 0.21 | E41: 0.12 | F41: 0.15 | G41: 0.18
A42: Source: The World Bank, World Development Indicators database, www.worldbank.org, accessed 7 October 2024
A44: a In some instances, the data is for 2022.
A45: N/A — Not available.

Sheet Intern.Spending,saving Emerging
A2: Spending, investment, trade and saving as a proportion of GDP, emerging marketsa, 2023b
A4: Country | B4: Household final consumption expenditure | C4: General government final consumption expenditure | D4: Gross capital formation | E4: Exports of goods and services | F4: Imports of goods and services | G4: Gross savings
A5: Brazil | B5: 0.63 | C5: 0.18 | D5: 0.17 | E5: 0.18 | F5: 0.16 | G5: 0.18
A6: Bulgaria | B6: 0.6 | C6: 0.18 | D6: 0.17 | E6: 0.61 | F6: 0.58 | G6: 0.22
A7: Chile | B7: 0.61 | C7: 0.15 | D7: 0.24 | E7: 0.31 | F7: 0.3 | G7: 0.24
A8: China | B8: 0.37 | C8: 0.16 | D8: 0.42 | E8: 0.2 | F8: 0.175 | G8: 0.47
A9: Colombia | B9: 0.78 | C9: 0.15 | D9: 0.18 | E9: 0.18 | F9: 0.23 | G9: 0.08
A10: Czech Republic | B10: 0.46 | C10: 0.2 | D10: 0.27 | E10: 0.72 | F10: 0.67 | G10: 0.34
A11: Egypt | B11: 0.825 | C11: 0.07 | D11: 0.15 | E11: 0.19 | F11: 0.21 | G11: 0.11
A12: Estonia | B12: 0.53 | C12: 0.21 | D12: 0.27 | E12: 0.78 | F12: 0.78 | G12: 0.26
A13: Greece | B13: 0.68 | C13: 0.2 | D13: 0.14 | E13: 0.45 | F13: 0.5 | G13: 0.12
A14: Hungary | B14: 0.5 | C14: 0.2 | D14: 0.26 | E14: 0.81 | F14: 0.76 | G14: 0.3
A15: India | B15: 0.6 | C15: 0.1 | D15: 0.31 | E15: 0.22 | F15: 0.24 | G15: 0.29
A16: Indonesia | B16: 0.54 | C16: 0.07 | D16: 0.29 | E16: 0.22 | F16: 0.2 | G16: 0.38
A17: Jordan | B17: 0.79 | C17: 0.16 | D17: 0.22 | E17: 0.3 | F17: 0.5 | G17: 0.05
A18: Kuwait | B18: N/A | C18: N/A | D18: N/A | E18: N/A | F18: N/A | G18: N/A
A19: Latvia | B19: 0.61 | C19: 0.2 | D19: 0.24 | E19: 0.64 | F19: 0.68 | G19: 0.19
A20: Lithuania | B20: 0.59 | C20: 0.18 | D20: 0.23 | E20: 0.78 | F20: 0.75 | G20: 0.24
A21: Malaysia | B21: 0.6 | C21: 0.12 | D21: 0.19 | E21: 0.68 | F21: 0.63 | G21: 0.28
A22: Mauritius | B22: 0.68 | C22: 0.14 | D22: 0.24 | E22: 0.53 | F22: 0.55 | G22: 0.18
A23: Mexico | B23: 0.7 | C23: 0.11 | D23: 0.24 | E23: 0.36 | F23: 0.38 | G23: 0.19
A24: Morocco | B24: 0.62 | C24: 0.19 | D24: 0.27 | E24: 0.44 | F24: 0.52 | G24: 0.2
A25: Oman | B25: 0.44 | C25: 0.22 | D25: 0.26 | E25: 0.53 | F25: 0.41 | G25: 0.34
A26: Pakistan | B26: 0.83 | C26: 0.1 | D26: 0.12 | E26: 0.1 | F26: 0.18 | G26: 0.06
A27: Peru | B27: 0.64 | C27: 0.14 | D27: 0.21 | E27: 0.27 | F27: 0.24 | G27: 0.22
A28: Philippines | B28: 0.77 | C28: 0.14 | D28: 0.24 | E28: 0.27 | F28: 0.41 | G28: 0.09
A29: Poland | B29: 0.57 | C29: 0.19 | D29: 0.18 | E29: 0.58 | F29: 0.52 | G29: 0.24
A30: Qatar | B30: 0.19 | C30: 0.13 | D30: N/A | E30: 0.69 | F30: 0.32 | G30: 0.68
A31: Romania | B31: 0.62 | C31: 0.17 | D31: 0.27 | E31: 0.39 | F31: 0.44 | G31: 0.21
A32: Russia | B32: 0.5 | C32: 0.18 | D32: 0.22 | E32: 0.23 | F32: 0.19 | G32: 0.32
A33: Slovakia | B33: 0.59 | C33: 0.2 | D33: 0.21 | E33: 0.91 | F33: 0.9 | G33: 0.21
A34: South Africa | B34: 0.65 | C34: 0.2 | D34: 0.15 | E34: 0.33 | F34: 0.33 | G34: 0.16
A35: Sri Lanka | B35: 0.69 | C35: 0.07 | D35: 0.18 | E35: 0.2 | F35: 0.22 | G35: 0.24
A36: Thailand | B36: 0.58 | C36: 0.17 | D36: 0.23 | E36: 0.65 | F36: 0.64 | G36: 0.26
A37: Turkey | B37: 0.59 | C37: 0.14 | D37: 0.32 | E37: 0.32 | F37: 0.35 | G37: 0.27
A38: United Arab Emirates | B38: 0.4 | C38: 0.14 | D38: 0.2 | E38: 0.96 | F38: 0.71 | G38: 0.45
A39: Source: The World Bank, World Development Indicators database, www.worldbank.org, accessed 7 October 2024
A40: a An emerging market is a country in the process of rapid growth and development with lower per capita incomes and less mature capital markets than developed countries.
A41: b In some instances, the data is for 2022.
A42: N/A — Not available.

Sheet Intern.Spending, savings Africa
A2: Spending, investment, trade and saving as a proportion of GDP, selected African countries, 2023a
A4: Country | B4: Household final consumption expenditure | C4: General government final consumption expenditure | D4: Gross capital formation | E4: Exports of goods and services | F4: Imports of goods and services | G4: Gross savings
A5: Algeria | B5: 0.41 | C5: 0.17 | D5: 0.33 | E5: 0.25 | F5: 0.21 | G5: 0.42
A6: Angola | B6: 0.54 | C6: 0.06 | D6: 0.27 | E6: 0.4 | F6: 0.27 | G6: 0.4
A7: Botswana | B7: 0.43 | C7: 0.29 | D7: 0.26 | E7: 0.32 | F7: 0.36 | G7: 0.28
A8: Burundi | B8: 0.76 | C8: 0.31 | D8: 0.13 | E8: 0.05 | F8: 0.24 | G8: -0.06
A9: Cameroon | B9: 0.73 | C9: 0.11 | D9: 0.18 | E9: 0.18 | F9: 0.2 | G9: 0.15
A10: Central African Republic | B10: 0.97 | C10: 0.08 | D10: 0.15 | E10: 0.14 | F10: 0.29 | G10: -0.06
A11: Congo (DRC) | B11: 0.63 | C11: 0.08 | D11: 0.32 | E11: 0.44 | F11: 0.47 | G11: 0.29
A12: Congo (Republic) | B12: 0.44 | C12: 0.13 | D12: 0.25 | E12: 0.57 | F12: 0.39 | G12: 0.43
A13: Egypt | B13: 0.825 | C13: 0.07 | D13: 0.15 | E13: 0.19 | F13: 0.21 | G13: 0.11
A14: Eritrea | B14: N/A | C14: N/A | D14: N/A | E14: N/A | F14: N/A | G14: N/A
A15: Eswatini | B15: 0.62 | C15: 0.18 | D15: 0.12 | E15: 0.44 | F15: 0.48 | G15: 0.21
A16: Ethiopia | B16: 0.79 | C16: 0.06 | D16: 0.22 | E16: 0.07 | F16: 0.14 | G16: 0.15
A17: Ivory Coast | B17: 0.68 | C17: 0.1 | D17: 0.25 | E17: 0.23 | F17: 0.27 | G17: 0.22
A18: Ghana | B18: 0.84 | C18: 0.06 | D18: 0.11 | E18: 0.34 | F18: 0.35 | G18: 0.1
A19: Kenya | B19: 0.77 | C19: 0.12 | D19: 0.18 | E19: 0.12 | F19: 0.21 | G19: 0.11
A20: Lesotho | B20: 0.89 | C20: 0.34 | D20: 0.28 | E20: 0.47 | F20: 0.99 | G20: -0.23
A21: Liberia | B21: N/A | C21: N/A | D21: N/A | E21: N/A | F21: N/A | G21: N/A
A22: Libya | B22: 0.26 | C22: 0.32 | D22: N/A | E22: 0.69 | F22: 0.41 | G22: 0.42
A23: Madagascar | B23: 0.67 | C23: 0.19 | D23: 0.2 | E23: 0.33 | F23: 0.39 | G23: 0.15
A24: Malawi | B24: N/A | C24: N/A | D24: N/A | E24: N/A | F24: N/A | G24: N/A
A25: Mauritius | B25: 0.68 | C25: 0.14 | D25: 0.24 | E25: 0.53 | F25: 0.55 | G25: 0.18
A26: Morocco | B26: 0.62 | C26: 0.19 | D26: 0.27 | E26: 0.44 | F26: 0.52 | G26: 0.2
A27: Mozambique | B27: 0.75 | C27: 0.17 | D27: N/A | E27: 0.53 | F27: 0.83 | G27: 0.08
A28: Namibia | B28: 0.73 | C28: 0.22 | D28: 0.26 | E28: 0.43 | F28: 0.66 | G28: 0.05
A29: Nigeria | B29: N/A | C29: N/A | D29: N/A | E29: N/A | F29: N/A | G29: N/A
A30: Rwanda | B30: 0.75 | C30: 0.17 | D30: 0.27 | E30: 0.25 | F30: 0.41 | G30: 0.08
A31: Senegal | B31: 0.56 | C31: 0.15 | D31: 0.38 | E31: 0.26 | F31: 0.44 | G31: 0.29
A32: Somalia | B32: 1.26 | C32: 0.07 | D32: 0.25 | E32: 0.18 | F32: 0.77 | G32: -0.33
A33: South Africa | B33: 0.65 | C33: 0.2 | D33: 0.15 | E33: 0.33 | F33: 0.33 | G33: 0.16
A34: Sudan | B34: 0.82 | C34: 0.16 | D34: 0.02 | E34: 0.01 | F34: 0.01 | G34: 0.02
A35: Tanzania | B35: 0.54 | C35: 0.08 | D35: 0.42 | E35: 0.18 | F35: 0.2 | G35: 0.38
A36: Tunisia | B36: 0.78 | C36: 0.21 | D36: 0.17 | E36: 0.51 | F36: 0.58 | G36: 0.01
A37: Uganda | B37: 0.71 | C37: 0.09 | D37: 0.23 | E37: 0.13 | F37: 0.24 | G37: 0.19
A38: Zambia | B38: 0.36 | C38: 0.14 | D38: 0.25 | E38: 0.41 | F38: 0.39 | G38: 0.5
A39: Zimbabwe | B39: 0.78 | C39: 0.17 | D39: 0.11 | E39: 0.28 | F39: 0.37 | G39: 0.06
A40: Source: The World Bank, World Development Indicators database, www.worldbank.org, accessed 7 October 2024
A42: a In some instances, the data is for 2021 or 2022.
A43: N/A — Not available.

Sheet ECONOMIC PROFILE

Sheet Gross domestic product

Sheet Real growth & income 1963-2023
A2: ECONOMIC PROFILE
A4: Gross domestic product (GDP)a
A6: Real growth and income levels and trendsb, 1963-2023
A8: Year | B8: Real total GDP Rbn | C8: Year-on- year change | D8: Real GDP per headc R | E8: Year-on- year change | F8: Real disposable income per capita of households d R | G8: Year-on- year change
A9: 1963 | B9: 991 | C9: 0.074 | D9: 53406 | E9: 0.045 | F9: 27919 | G9: 0.009
A10: 1964 | B10: 1070 | C10: 0.079 | D10: 56087 | E10: 0.05 | F10: 28219 | G10: 0.011
A11: 1965 | B11: 1135 | C11: 0.061 | D11: 57897 | E11: 0.032 | F11: 28520 | G11: 0.011
A12: 1966 | B12: 1186 | C12: 0.044 | D12: 58806 | E12: 0.016 | F12: 29635 | G12: 0.039
A13: 1967 | B13: 1271 | C13: 0.072 | D13: 61327 | E13: 0.043 | F13: 30208 | G13: 0.019
A14: 1968 | B14: 1324 | C14: 0.042 | D14: 62167 | E14: 0.014 | F14: 31950 | G14: 0.058
A15: 1969 | B15: 1386 | C15: 0.047 | D15: 63349 | E15: 0.019 | F15: 32079 | G15: 0.004
A16: 1970 | B16: 1459 | C16: 0.052 | D16: 64906 | E16: 0.025 | F16: 32772 | G16: 0.022
A17: 1971 | B17: 1521 | C17: 0.043 | D17: 66033 | E17: 0.017 | F17: 35055 | G17: 0.07
A18: 1972 | B18: 1547 | C18: 0.017 | D18: 65513 | E18: -0.008 | F18: 35902 | G18: 0.024
A19: 1973 | B19: 1617 | C19: 0.046 | D19: 66880 | E19: 0.021 | F19: 35745 | G19: -0.004
A20: 1974 | B20: 1716 | C20: 0.061 | D20: 69340 | E20: 0.037 | F20: 36881 | G20: 0.032
A21: 1975 | B21: 1745 | C21: 0.017 | D21: 68935 | E21: -0.006 | F21: 37718 | G21: 0.023
A22: 1976 | B22: 1784 | C22: 0.022 | D22: 68893 | E22: -0.001 | F22: 36288 | G22: -0.038
A23: 1977 | B23: 1783 | C23: -0.001 | D23: 67206 | E23: -0.024 | F23: 37532 | G23: 0.034
A24: 1978 | B24: 1837 | C24: 0.03 | D24: 67570 | E24: 0.005 | F24: 35745 | G24: -0.048
A25: 1979 | B25: 1906 | C25: 0.038 | D25: 68530 | E25: 0.014 | F25: 37090 | G25: 0.038
A26: 1980 | B26: 2032 | C26: 0.066 | D26: 71428 | E26: 0.042 | F26: 39422 | G26: 0.063
A27: 1981 | B27: 2141 | C27: 0.054 | D27: 73509 | E27: 0.029 | F27: 37515 | G27: -0.048
A28: 1982 | B28: 2133 | C28: -0.004 | D28: 71555 | E28: -0.027 | F28: 37426 | G28: -0.002
A29: 1983 | B29: 2094 | C29: -0.018 | D29: 68649 | E29: -0.041 | F29: 37939 | G29: 0.014
A30: 1984 | B30: 2200 | C30: 0.051 | D30: 70547 | E30: 0.028 | F30: 39359 | G30: 0.037
A31: 1985 | B31: 2174 | C31: -0.012 | D31: 68171 | E31: -0.034 | F31: 38306 | G31: -0.027
A32: 1986 | B32: 2174 | C32: 0 | D32: 66705 | E32: -0.022 | F32: 36512 | G32: -0.047
A33: 1987 | B33: 2220 | C33: 0.021 | D33: 66662 | E33: -0.001 | F33: 37870 | G33: 0.037
A34: 1988 | B34: 2313 | C34: 0.042 | D34: 68020 | E34: 0.02 | F34: 38779 | G34: 0.024
A35: 1989 | B35: 2368 | C35: 0.024 | D35: 68198 | E35: 0.003 | F35: 38866 | G35: 0.002
A36: 1990 | B36: 2361 | C36: -0.003 | D36: 66572 | E36: -0.024 | F36: 38098 | G36: -0.02
A37: 1991 | B37: 2337 | C37: -0.01 | D37: 64532 | E37: -0.031 | F37: 37124 | G37: -0.026
A38: 1992 | B38: 2287 | C38: -0.021 | D38: 61848 | E38: -0.042 | F38: 37156 | G38: 0.001
A39: 1993 | B39: 2315 | C39: 0.012 | D39: 61314 | E39: -0.009 | F39: 36496 | G39: -0.018
A40: 1994 | B40: 2389 | C40: 0.032 | D40: 61965 | E40: 0.011 | F40: 36579 | G40: 0.002
A41: 1995 | B41: 2463 | C41: 0.031 | D41: 62560 | E41: 0.01 | F41: 37540 | G41: 0.026
A42: 1996 | B42: 2569 | C42: 0.043 | D42: 63894 | E42: 0.021 | F42: 38531 | G42: 0.026
A43: 1997 | B43: 2636 | C43: 0.026 | D43: 64193 | E43: 0.005 | F43: 38976 | G43: 0.012
A44: 1998 | B44: 2649 | C44: 0.005 | D44: 63171 | E44: -0.016 | F44: 38620 | G44: -0.009
A45: 1999 | B45: 2713 | C45: 0.024 | D45: 63350 | E45: 0.003 | F45: 38394 | G45: -0.006
A46: 2000 | B46: 2827 | C46: 0.042 | D46: 64696 | E46: 0.021 | F46: 39098 | G46: 0.018
A47: 2001 | B47: 2903 | C47: 0.027 | D47: 64984 | E47: 0.004 | F47: 39324 | G47: 0.006
A48: 2002 | B48: 3010 | C48: 0.037 | D48: 65118 | E48: 0.002 | F48: 39374 | G48: 0.001
A49: 2003 | B49: 3099 | C49: 0.029 | D49: 66121 | E49: 0.015 | F49: 39859 | G49: 0.012
A50: 2004 | B50: 3240 | C50: 0.046 | D50: 68391 | E50: 0.034 | F50: 41789 | G50: 0.048
A51: 2005 | B51: 3411 | C51: 0.053 | D51: 71186 | E51: 0.041 | F51: 43714 | G51: 0.046
A52: 2006 | B52: 3603 | C52: 0.056 | D52: 74292 | E52: 0.044 | F52: 46528 | G52: 0.064
A53: 2007 | B53: 3796 | C53: 0.054 | D53: 77299 | E53: 0.04 | F53: 48694 | G53: 0.047
A54: 2008 | B54: 3917 | C54: 0.032 | D54: 78709 | E54: 0.018 | F54: 49163 | G54: 0.01
A55: 2009 | B55: 3857 | C55: -0.015 | D55: 76407 | E55: -0.029 | F55: 47457 | G55: -0.035
A56: 2010 | B56: 3974 | C56: 0.03 | D56: 77568 | E56: 0.015 | F56: 48289 | G56: 0.018
A57: 2011 | B57: 4100 | C57: 0.032 | D57: 78811 | E57: 0.016 | F57: 49365 | G57: 0.022
A58: 2012 | B58: 4198 | C58: 0.024 | D58: 79464 | E58: 0.008 | F58: 49895 | G58: 0.011
A59: 2013 | B59: 4302 | C59: 0.025 | D59: 80191 | E59: 0.009 | F59: 49800 | G59: -0.002
A60: 2014 | B60: 4363 | C60: 0.014 | D60: 80077 | E60: -0.001 | F60: 49622 | G60: -0.004
A61: 2015 | B61: 4421 | C61: 0.013 | D61: 79917 | E61: -0.002 | F61: 50353 | G61: 0.015
A62: 2016 | B62: 4450 | C62: 0.007 | D62: 79264 | E62: -0.008 | F62: 50008 | G62: -0.007
A63: 2017 | B63: 4502 | C63: 0.012 | D63: 78988 | E63: -0.003 | F63: 50527 | G63: 0.01
A64: 2018 | B64: 4572 | C64: 0.016 | D64: 79017 | E64: 0 | F64: 51236 | G64: 0.014
A65: 2019 | B65: 4584 | C65: 0.003 | D65: 78061 | E65: -0.012 | F65: 50999 | G65: -0.005
A66: 2020 | B66: 4301 | C66: -0.062 | D66: 72269 | E66: -0.074 | F66: 47917 | G66: -0.06
A67: 2021 | B67: 4514 | C67: 0.05 | D67: 75069 | E67: 0.039 | F67: 50505 | G67: 0.054
A68: 2022 | B68: 4600 | C68: 0.019 | D68: 75743 | E68: 0.009 | F68: 50696 | G68: 0.004
A69: 2023 | B69: 4632 | C69: 0.007 | D69: 75548 | E69: -0.003 | F69: 50152 | G69: -0.011
A70: Source: SARB, time series data, www.resbank.co.za, accessed 3 July 2024
A71: a The gross domestic product (GDP) is the total value of all ‘final’ goods and services, that were produced within the borders of the country, during a year.
A72: b At constant 2015 prices.
A73: c GDP per head is total GDP divided by the total population.
A74: d Real disposable income per capita is total personal income minus direct personal tax plus subsidies.

Sheet LG Real total GDP Rbn
A1: LG
B2: Real total GDP, 1961–2023
A3: 1961 | B3: 869
A4: 1962 | B4: 923
A5: 1963 | B5: 991
A6: 1964 | B6: 1070
A7: 1965 | B7: 1135
A8: 1966 | B8: 1186
A9: 1967 | B9: 1271
A10: 1968 | B10: 1324
A11: 1969 | B11: 1386
A12: 1970 | B12: 1459
A13: 1971 | B13: 1521
A14: 1972 | B14: 1547
A15: 1973 | B15: 1617
A16: 1974 | B16: 1716
A17: 1975 | B17: 1745
A18: 1976 | B18: 1784
A19: 1977 | B19: 1783
A20: 1978 | B20: 1837
A21: 1979 | B21: 1906
A22: 1980 | B22: 2032
A23: 1981 | B23: 2141
A24: 1982 | B24: 2133
A25: 1983 | B25: 2094
A26: 1984 | B26: 2200
A27: 1985 | B27: 2174
A28: 1986 | B28: 2174
A29: 1987 | B29: 2220
A30: 1988 | B30: 2313
A31: 1989 | B31: 2368
A32: 1990 | B32: 2361
A33: 1991 | B33: 2337
A34: 1992 | B34: 2287
A35: 1993 | B35: 2315
A36: 1994 | B36: 2389
A37: 1995 | B37: 2463
A38: 1996 | B38: 2569
A39: 1997 | B39: 2636
A40: 1998 | B40: 2649
A41: 1999 | B41: 2713
A42: 2000 | B42: 2827
A43: 2001 | B43: 2903
A44: 2002 | B44: 3010
A45: 2003 | B45: 3099
A46: 2004 | B46: 3240
A47: 2005 | B47: 3411
A48: 2006 | B48: 3603
A49: 2007 | B49: 3796
A50: 2008 | B50: 3917
A51: 2009 | B51: 3857
A52: 2010 | B52: 3974
A53: 2011 | B53: 4100
A54: 2012 | B54: 4198
A55: 2013 | B55: 4302
A56: 2014 | B56: 4363
A57: 2015 | B57: 4421
A58: 2016 | B58: 4450
A59: 2017 | B59: 4502
A60: 2018 | B60: 4572
A61: 2019 | B61: 4584
A62: 2020 | B62: 4301
A63: 2021 | B63: 4514
A64: 2022 | B64: 4600
A65: 2023 | B65: 4632

Sheet LG real economic growth 61-2026
A1: LG
B2: Real annual economic growth, 1961–2026a
A3: 1961 | B3: 0.038
A4: 1962 | B4: 0.062
A5: 1963 | B5: 0.074
A6: 1964 | B6: 0.079
A7: 1965 | B7: 0.061
A8: 1966 | B8: 0.044
A9: 1967 | B9: 0.072
A10: 1968 | B10: 0.042
A11: 1969 | B11: 0.047
A12: 1970 | B12: 0.052
A13: 1971 | B13: 0.043
A14: 1972 | B14: 0.017
A15: 1973 | B15: 0.046
A16: 1974 | B16: 0.061
A17: 1975 | B17: 0.017
A18: 1976 | B18: 0.022
A19: 1977 | B19: -0.001
A20: 1978 | B20: 0.03
A21: 1979 | B21: 0.038
A22: 1980 | B22: 0.066
A23: 1981 | B23: 0.054
A24: 1982 | B24: -0.004
A25: 1983 | B25: -0.018
A26: 1984 | B26: 0.051
A27: 1985 | B27: -0.012
A28: 1986 | B28: 0
A29: 1987 | B29: 0.021
A30: 1988 | B30: 0.042
A31: 1989 | B31: 0.024
A32: 1990 | B32: -0.003
A33: 1991 | B33: -0.01
A34: 1992 | B34: -0.021
A35: 1993 | B35: 0.012
A36: 1994 | B36: 0.032
A37: 1995 | B37: 0.031
A38: 1996 | B38: 0.043
A39: 1997 | B39: 0.026
A40: 1998 | B40: 0.005
A41: 1999 | B41: 0.024
A42: 2000 | B42: 0.042
A43: 2001 | B43: 0.027
A44: 2002 | B44: 0.037
A45: 2003 | B45: 0.029
A46: 2004 | B46: 0.046
A47: 2005 | B47: 0.053
A48: 2006 | B48: 0.056
A49: 2007 | B49: 0.054
A50: 2008 | B50: 0.032
A51: 2009 | B51: -0.015
A52: 2010 | B52: 0.03
A53: 2011 | B53: 0.032
A54: 2012 | B54: 0.024
A55: 2013 | B55: 0.025
A56: 2014 | B56: 0.014
A57: 2015 | B57: 0.013
A58: 2016 | B58: 0.007
A59: 2017 | B59: 0.012
A60: 2018 | B60: 0.016
A61: 2019 | B61: 0.003
A62: 2020 | B62: -0.062
A63: 2021 | B63: 0.05
A64: 2022 | B64: 0.019
A65: 2023 | B65: 0.007
A66: 2024 | B66: 0.013
A67: 2025 | B67: 0.016
A68: 2026 | B68: 0.018
A69: a National Treasury, Budget Review 2024 forecasts, February 2024.

Sheet LG GDP&disp.income per capita
A1: LG
A2: Real GDP and personal disposable income per capita, 1961–2023
B3: Real GDP per capita | C3: Real personal disposable income per capita
A4: 1961 | B4: 49427 | C4: 26850
A5: 1962 | B5: 51092 | C5: 27682
A6: 1963 | B6: 53406 | C6: 27919
A7: 1964 | B7: 56087 | C7: 28219
A8: 1965 | B8: 57897 | C8: 28520
A9: 1966 | B9: 58806 | C9: 29635
A10: 1967 | B10: 61327 | C10: 30208
A11: 1968 | B11: 62167 | C11: 31950
A12: 1969 | B12: 63349 | C12: 32079
A13: 1970 | B13: 64906 | C13: 32772
A14: 1971 | B14: 66033 | C14: 35055
A15: 1972 | B15: 65513 | C15: 35902
A16: 1973 | B16: 66880 | C16: 35745
A17: 1974 | B17: 69340 | C17: 36881
A18: 1975 | B18: 68935 | C18: 37718
A19: 1976 | B19: 68893 | C19: 36288
A20: 1977 | B20: 67206 | C20: 37532
A21: 1978 | B21: 67570 | C21: 35745
A22: 1979 | B22: 68530 | C22: 37090
A23: 1980 | B23: 71428 | C23: 39422
A24: 1981 | B24: 73509 | C24: 37515
A25: 1982 | B25: 71555 | C25: 37426
A26: 1983 | B26: 68649 | C26: 37939
A27: 1984 | B27: 70547 | C27: 39359
A28: 1985 | B28: 68171 | C28: 38306
A29: 1986 | B29: 66705 | C29: 36512
A30: 1987 | B30: 66662 | C30: 37870
A31: 1988 | B31: 68020 | C31: 38779
A32: 1989 | B32: 68198 | C32: 38866
A33: 1990 | B33: 66572 | C33: 38098
A34: 1991 | B34: 64532 | C34: 37124
A35: 1992 | B35: 61848 | C35: 37156
A36: 1993 | B36: 61314 | C36: 36496
A37: 1994 | B37: 61965 | C37: 36579
A38: 1995 | B38: 62560 | C38: 37540
A39: 1996 | B39: 63894 | C39: 38531
A40: 1997 | B40: 64193 | C40: 38976
A41: 1998 | B41: 63171 | C41: 38620
A42: 1999 | B42: 63350 | C42: 38394
A43: 2000 | B43: 64696 | C43: 39098
A44: 2001 | B44: 64984 | C44: 39324
A45: 2002 | B45: 65118 | C45: 39374
A46: 2003 | B46: 66121 | C46: 39859
A47: 2004 | B47: 68391 | C47: 41789
A48: 2005 | B48: 71186 | C48: 43714
A49: 2006 | B49: 74292 | C49: 46528
A50: 2007 | B50: 77299 | C50: 48694
A51: 2008 | B51: 78709 | C51: 49163
A52: 2009 | B52: 76407 | C52: 47457
A53: 2010 | B53: 77568 | C53: 48289
A54: 2011 | B54: 78811 | C54: 49365
A55: 2012 | B55: 79464 | C55: 49895
A56: 2013 | B56: 80191 | C56: 49800
A57: 2014 | B57: 80077 | C57: 49622
A58: 2015 | B58: 79917 | C58: 50353
A59: 2016 | B59: 79264 | C59: 50008
A60: 2017 | B60: 78988 | C60: 50527
A61: 2018 | B61: 79017 | C61: 51236
A62: 2019 | B62: 78061 | C62: 50999
A63: 2020 | B63: 72269 | C63: 47917
A64: 2021 | B64: 75069 | C64: 50505
A65: 2022 | B65: 75743 | C65: 50696
A66: 2023 | B66: 75548 | C66: 50152

Sheet Real GDP per head 61-23
A1: Real GDP per head, 1961–2023
B2: Real GDP per head, 1961–2022
A3: 1961 | B3: 49427
A4: 1962 | B4: 51092
A5: 1963 | B5: 53406
A6: 1964 | B6: 56087
A7: 1965 | B7: 57897
A8: 1966 | B8: 58806
A9: 1967 | B9: 61327
A10: 1968 | B10: 62167
A11: 1969 | B11: 63349
A12: 1970 | B12: 64906
A13: 1971 | B13: 66033
A14: 1972 | B14: 65513
A15: 1973 | B15: 66880
A16: 1974 | B16: 69340
A17: 1975 | B17: 68935
A18: 1976 | B18: 68893
A19: 1977 | B19: 67206
A20: 1978 | B20: 67570
A21: 1979 | B21: 68530
A22: 1980 | B22: 71428
A23: 1981 | B23: 73509
A24: 1982 | B24: 71555
A25: 1983 | B25: 68649
A26: 1984 | B26: 70547
A27: 1985 | B27: 68171
A28: 1986 | B28: 66705
A29: 1987 | B29: 66662
A30: 1988 | B30: 68020
A31: 1989 | B31: 68198
A32: 1990 | B32: 66572
A33: 1991 | B33: 64532
A34: 1992 | B34: 61848
A35: 1993 | B35: 61314
A36: 1994 | B36: 61965
A37: 1995 | B37: 62560
A38: 1996 | B38: 63894
A39: 1997 | B39: 64193
A40: 1998 | B40: 63171
A41: 1999 | B41: 63350
A42: 2000 | B42: 64696
A43: 2001 | B43: 64984
A44: 2002 | B44: 65118
A45: 2003 | B45: 66121
A46: 2004 | B46: 68391
A47: 2005 | B47: 71186
A48: 2006 | B48: 74292
A49: 2007 | B49: 77299
A50: 2008 | B50: 78709
A51: 2009 | B51: 76407
A52: 2010 | B52: 77568
A53: 2011 | B53: 78811
A54: 2012 | B54: 79464
A55: 2013 | B55: 80191
A56: 2014 | B56: 80077
A57: 2015 | B57: 79917
A58: 2016 | B58: 79264
A59: 2017 | B59: 78988
A60: 2018 | B60: 79017
A61: 2019 | B61: 78061
A62: 2020 | B62: 72269
A63: 2021 | B63: 75069
A64: 2022 | B64: 75743
A65: 2023 | B65: 75548
A67: WE CAN’T DO OUR OWN FORECASTS UNTIL THE NEW MID-TERM ESTIMATES WILL COME OUT BASED ON THE CENSUS 2022.
A73: FOR TAMARA ONLY!
B74: Population | C74: GDP | D74: GDP per capita
A75: 2021 | B75: 60.143 | C75: 4497909 | D75: 74907
A76: 2022 | B76: 60.605 | C76: 4583369 | D76: =C76/B76 -> 75626.91197
A77: 2023 | B77: 61.2474 | C77: 4647536.441 | D77: =C77/B77 -> 75881.36706
A78: 2024 | B78: 61.8966 | C78: 4726544.112 | D78: 76361.93445
A79: 2025 | B79: 62.5527 | C79: 4811621.792 | D79: 76921.08881
B81: GDP | F81: Population
A83: 2022 | B83: 4497909 | C83: 0.019 | E83: 2023 | F83: 60604992 | G83: 0.0106
B84: =B83*C83 -> 85460.271 | F84: =F83*G83 -> 642412.9152
B85: =B83+B84 -> 4583369.271 | F85: =F83+F84 -> 61247404.92
A87: 2023 | B87: =B85+(B86) -> 4583369.271 | C87: 0.014 | E87: 2024 | F87: 61247405 | G87: 0.0106
B88: =B87*C87 -> 64167.16979 | F88: =F87*G87 -> 649222.493
B89: =B87+B88 -> 4647536.441 | F89: =F87+F88 -> 61896627.49
A91: 2024 | B91: 4647536 | C91: 0.017 | E91: 2025 | F91: 61896627 | G91: 0.0106
B92: =B91*C91 -> 79008.112 | F92: =F91*G91 -> 656104.2462
B93: =B91+B92 -> 4726544.112 | F93: =F91+F92 -> 62552731.25
A95: 2025 | B95: 4726544 | C95: 0.018
B96: =B95*C95 -> 85077.792
B97: =B95+B96 -> 4811621.792

Sheet BC Real GDP growth 1910-2024 (hidden)
B1: GDP growth, 1910–2024
A2: Teens | B2: 0.03
A3: 1920s | B3: 0.05
A4: 1934-40 | B4: 0.07
A5: 1946-50 | B5: 0.04
A6: 1950s | B6: 0.045
A7: 1960s | B7: 0.057
A8: 1970s | B8: 0.034
A9: 1980s | B9: 0.016
A10: 1990s | B10: 0.018
A11: 2001-10 | B11: 0.035
A12: 2011-2020 | B12: 0.008
A13: Forecast 2021–24 | B13: 0.026
A14: NGPF | B14: 0.07
A15: NDP | B15: 0.054
A16: ERRP | B16: 0.03
A17: This chart compares historical GDP growth figures with growth estimates needed to achieve job creation targets set in the two most recent policy documents:
A18: • The New Growth Path Framework (2010) sets a target of 5 million additional jobs by the year 2020 requiring annual GDP growth of 7%.
A19: • The National Development Plan (2011) sets a target of 11 million additional jobs by 2030 requiring annual GDP growth of 5.4%.
A20: • The South African Economic Reconstruction and Recovery Plan (2020) targets an average annual economic growth rate of 3% over the next decade and plans over 800 000 jobs in the immediate-term.
A21: Included in the graph is the National Treasury GDP forecast for the period 2021–2024, released in November 2021.
B30: 5.1
B31: 1.8
B32: 1.6
B33: 1.7

Sheet Real GDP 1910-26
B1: GDP growth, 1910–2026
A2: Teens | B2: 0.03
A3: 1920s | B3: 0.05
A4: 1934-40 | B4: 0.07
A5: 1946-50 | B5: 0.04
A6: 1950s | B6: 0.045
A7: 1960s | B7: 0.057
A8: 1970s | B8: 0.034
A9: 1980s | B9: 0.016
A10: 1990s | B10: 0.018
A11: 2001-10 | B11: 0.035
A12: 2011-20 | B12: 0.008
A13: Forecast 2021–26 | B13: 0.021
A14: NGPF | B14: 0.07
A15: NDP | B15: 0.054
A17: This chart compares historical GDP growth figures with growth estimates needed to achieve job creation targets set in the most recent policy documents:
A18: • The New Growth Path Framework (2010) sets a target of 5 million additional jobs by the year 2020, requiring annual GDP growth of 7%.
A19: • The National Development Plan (2011) set a target of 11 million additional jobs by 2030, requiring annual GDP growth of 5.4%.
A20: Included in the graph is the National Treasury GDP forecast for the 2024-2026 period, released in February 2024.
A22: FOR TAMARA ONLY!
A23: 1946 | B23: 0.032
A24: 1947 | B24: 0.019
A25: 1948 | B25: 0.074
A26: 1949 | B26: 0.023
A27: 1950 | B27: 0.05 | C27: 0.04
A28: 1951 | B28: 0.048
A29: 1952 | B29: 0.03
A30: 1953 | B30: 0.045
A31: 1954 | B31: 0.065
A32: 1955 | B32: 0.057
A33: 1956 | B33: 0.056
A34: 1957 | B34: 0.045
A35: 1958 | B35: 0.028
A36: 1959 | B36: 0.046
A37: 1960 | B37: 0.03 | C37: 0.045
A38: 1961 | B38: 0.038
A39: 1962 | B39: 0.062
A40: 1963 | B40: 0.074
A41: 1964 | B41: 0.079
A42: 1965 | B42: 0.061
A43: 1966 | B43: 0.044
A44: 1967 | B44: 0.072
A45: 1968 | B45: 0.042
A46: 1969 | B46: 0.047
A47: 1970 | B47: 0.052 | C47: 0.057
A48: 1971 | B48: 0.043
A49: 1972 | B49: 0.017
A50: 1973 | B50: 0.046
A51: 1974 | B51: 0.061
A52: 1975 | B52: 0.017
A53: 1976 | B53: 0.022
A54: 1977 | B54: -0.001
A55: 1978 | B55: 0.03
A56: 1979 | B56: 0.038
A57: 1980 | B57: 0.066 | C57: 0.034
A58: 1981 | B58: 0.054
A59: 1982 | B59: -0.004
A60: 1983 | B60: -0.018
A61: 1984 | B61: 0.051
A62: 1985 | B62: -0.012
A63: 1986 | B63: 0
A64: 1987 | B64: 0.021
A65: 1988 | B65: 0.042
A66: 1989 | B66: 0.024
A67: 1990 | B67: -0.003 | C67: 0.016
A68: 1991 | B68: -0.01
A69: 1992 | B69: -0.021
A70: 1993 | B70: 0.012
A71: 1994 | B71: 0.032
A72: 1995 | B72: 0.031
A73: 1996 | B73: 0.043
A74: 1997 | B74: 0.026
A75: 1998 | B75: 0.005
A76: 1999 | B76: 0.024
A77: 2000 | B77: 0.042 | C77: 0.018
A78: 2001 | B78: 0.027
A79: 2002 | B79: 0.037
A80: 2003 | B80: 0.029
A81: 2004 | B81: 0.046
A82: 2005 | B82: 0.053
A83: 2006 | B83: 0.056
A84: 2007 | B84: 0.054
A85: 2008 | B85: 0.032
A86: 2009 | B86: -0.015
A87: 2010 | B87: 0.03 | C87: 0.035
A88: 2011 | B88: 0.032
A89: 2012 | B89: 0.024
A90: 2013 | B90: 0.025
A91: 2014 | B91: 0.014
A92: 2015 | B92: 0.013
A93: 2016 | B93: 0.007
A94: 2017 | B94: 0.012
A95: 2018 | B95: 0.016
A96: 2019 | B96: 0.003
A97: 2020 | B97: -0.062 | C97: 0.008
A98: 2021 | B98: 0.05
A99: 2022 | B99: 0.019
A100: 2023 | B100: 0.007
A101: 2024 | B101: 0.013
A102: 2025 | B102: 0.016 | C102: 0.021
A103: 2026 | B103: 0.018

Sheet Business cycle phases 1945-
A2: Business cycle phasesa of South Africa since 1945
A4: Upward phase | B4: Duration in months | C4: Downward phase | D4: Duration in months
A5: Post war – Jul 1946 | B5: 7 | C5: Aug 1946 – Apr 1947 | D5: 9
A6: May 1947 – Nov 1948 | B6: 19 | C6: Dec 1948 – Feb 1950 | D6: 15
A7: Mar 1950 – Dec 1951 | B7: 22 | C7: Jan 1952 – Mar 1953 | D7: 15
A8: Apr 1953 – Apr 1955 | B8: 25 | C8: May 1955 – Sep 1956 | D8: 17
A9: Oct 1956 – Jan 1958 | B9: 16 | C9: Feb 1958 – Mar 1959 | D9: 14
A10: Apr 1959 – Apr 1960 | B10: 13 | C10: May 1960 – Aug 1961 | D10: 16
A11: Sep 1961 – Apr 1965 | B11: 44 | C11: May 1965 – Dec 1965 | D11: 8
A12: Jan 1966 – May 1967 | B12: 17 | C12: Jun 1967 – Dec 1967 | D12: 7
A13: Jan 1968 – Dec 1970 | B13: 36 | C13: Jan 1971 – Aug 1972 | D13: 20
A14: Sep 1972 – Aug 1974 | B14: 24 | C14: Sep 1974 – Dec 1977 | D14: 40
A15: Jan 1978 - Aug 1981 | B15: 44 | C15: Sep 1981 – Mar 1983 | D15: 19
A16: Apr 1983 – Jun 1984 | B16: 15 | C16: July 1984 – Mar 1986 | D16: 21
A17: Apr 1986 – Feb 1989 | B17: 35 | C17: Mar 1989 – May 1993 | D17: 51
A18: Jun 1993 – Nov 1996 | B18: 44 | C18: Dec 1996 – Aug 1999 | D18: 33
A19: Sep 1999 – Nov 2007 | B19: 99 | C19: Dec 2007 – Aug 2009 | D19: 21
A20: Sep 2009 – Nov 2013 | B20: 51 | C20: Dec 2013 – Apr 2017 | D20: 41
A21: May 2017 – Jun 2019 | B21: 26 | C21: Jul 2019 – Apr 2020 | D21: 10
A22: May 2020 –
A23: Source: SARB, www.resbank.co.za, time series data, accessed 3 July 2024
A24: a Growth cycles represent the fluctuations around the long-term growth trend of aggregate economic activity — so-called trend-adjusted business cycles. The Reserve Bank determines reference upper (peaks) and lower (troughs) turning points in the business cycle in terms of the growth cycle definition of business cycles and not in terms of the classical definition of business cycles. Classical business cycles refer to periods of absolute increase in aggregate economic activity, followed by periods of absolute decrease, recessions. The SARB employs several statistical tools to establish whether a reference turning point in the South African business cycle has occurred. The Bank's three composite business cycle indicators — leading, coincident and lagging — are continuously monitored. [SARB, Quarterly Bulletin March 2023, pp107-120]

Sheet BG Business cycle phases 1945-
B2: Business cycle phases of South Africa since 1945 | D2: Please put note on the graph
A3: Post war – Jul 1946 | B3: 7
A4: Aug 1946 – Apr 1947 | B4: -9
A5: May 1947 – Nov 1948 | B5: 19
A6: Dec 1948 – Feb 1950 | B6: -15
A7: Mar 1950 – Dec 1951 | B7: 22
A8: Jan 1952 – Mar 1953 | B8: -15
A9: Apr 1953 – Apr 1955 | B9: 25
A10: May 1955 – Sep 1956 | B10: -17
A11: Oct 1956 – Jan 1958 | B11: 16
A12: Feb 1958 – Mar 1959 | B12: -14
A13: Apr 1959 – Apr 1960 | B13: 13
A14: May 1960 – Aug 1961 | B14: -16
A15: Sep 1961 – Apr 1965 | B15: 44
A16: May 1965 – Dec 1965 | B16: -8
A17: Jan 1966 – May 1967 | B17: 17
A18: Jun 1967 – Dec 1967 | B18: -7
A19: Jan 1968 – Dec 1970 | B19: 36
A20: Jan 1971 – Aug 1972 | B20: -20
A21: Sep 1972 – Aug 1974 | B21: 24
A22: Sep 1974 – Dec 1977 | B22: -40
A23: Jan 1978 – Aug 1981 | B23: 44
A24: Sep 1981 – Mar 1983 | B24: -19
A25: Apr 1983 – Jun 1984 | B25: 15
A26: July 1984 – Mar 1986 | B26: -21 | D26: a From May 2020, the upward phase is ongoing.
A27: Apr 1986 – Feb 1989 | B27: 35
A28: Mar 1989 – May 1993 | B28: -51
A29: Jun 1993 – Nov 1996 | B29: 44
A30: Dec 1996 – Aug 1999 | B30: -33
A31: Sep 1999 – Nov 2007 | B31: 99
A32: Dec 2007 – Aug 2009 | B32: -21
A33: Sep 2009 – Nov 2013 | B33: 51
A34: Dec 2013 — Apr 2017 | B34: -41
A35: May 2017 — Jun 2019 | B35: 26
A36: Jul 2019 — Apr 2020 | B36: -10
A37: May 2020 —
A38: a From May 2020, upward phase is ongoing.
A39: Upward phase
A40: Downward phase

Sheet Intern. GDP & GDP per head
A2: GDP and GDP per capita, selected countries, 2023
B4: Population millions | C4: —GDPa—
A5: Country | C5: $bn | D5: Growth | E5: Per capita | F5: Growth per capita
A6: Australia | B6: 26.6 | C6: 1634 | D6: 0.03 | E6: 61341 | F6: 0.006
A7: Botswana | B7: 2.7 | C7: 17.9 | D7: 0.027 | E7: 6708 | F7: 0.01
A8: Brazil | B8: 216.4 | C8: 1954.8 | D8: 0.029 | E8: 9032 | F8: 0.024
A9: Chile | B9: 19.6 | C9: 279.7 | D9: 0.002 | E9: 14248 | F9: 0.001
A10: China | B10: 1410.7 | C10: 17174 | D10: 0.052 | E10: 12174 | F10: 0.053
A11: Denmark | B11: 5.9 | C11: 363 | D11: 0.019 | E11: 61032 | F11: 0.011
A12: Egypt | B12: 112.7 | C12: 470.9 | D12: 0.038 | E12: 4178 | F12: 0.022
A13: France | B13: 68.2 | C13: 2657 | D13: 0.007 | E13: 38976 | F13: 0.004
A14: Germany | B14: 84.5 | C14: 3622.5 | D14: -0.003 | E14: 42879 | F14: -0.011
A15: Ghana | B15: 34.1 | C15: 70.5 | D15: 0.029 | E15: 2066 | F15: 0.01
A16: Greece | B16: 10.4 | C16: 215.8 | D16: 0.02 | E16: 20827 | F16: 0.027
A17: Hong Kong | B17: 7.5 | C17: 328.2 | D17: 0.032 | E17: 43548 | F17: 0.006
A18: India | B18: 1428.6 | C18: 3199.1 | D18: 0.076 | E18: 2239 | F18: 0.067
A19: Indonesia | B19: 277.5 | C19: 1178.9 | D19: 0.05 | E19: 4248 | F19: 0.043
A20: Ireland | B20: 5.3 | C20: 483 | D20: -0.032 | E20: 91784 | F20: -0.057
A21: Israel | B21: 9.8 | C21: 416.4 | D21: 0.02 | E21: 42674 | F21: -0.001
A22: Italy | B22: 58.8 | C22: 1984.6 | D22: 0.009 | E22: 33774 | F22: 0.012
A23: Japan | B23: 124.5 | C23: 4617 | D23: 0.019 | E23: 37079 | F23: 0.024
A24: Kazakhstan | B24: 19.9 | C24: 232.8 | D24: 0.051 | E24: 11701 | F24: 0.037
A25: Lithuania | B25: 2.9 | C25: 52.3 | D25: -0.003 | E25: 18214 | F25: -0.017
A26: Mexico | B26: 128.5 | C26: 1326.6 | D26: 0.032 | E26: 10327 | F26: 0.025
A27: Mozambique | B27: 33.9 | C27: 20.4 | D27: 0.05 | E27: 603 | F27: 0.021
A28: Netherlands | B28: 17.9 | C28: 895.8 | D28: 0.001 | E28: 50100 | F28: -0.009
A29: Nigeria | B29: 223.8 | C29: 550.6 | D29: 0.029 | E29: 2460 | F29: 0.004
A30: Pakistan | B30: 240.5 | C30: 400.2 | D30: 0 | E30: 1664 | F30: -0.019
A31: Philippines | B31: 117.3 | C31: 430.3 | D31: 0.055 | E31: 3668 | F31: 0.039
A32: Poland | B32: 36.7 | C32: 633.6 | D32: 0.002 | E32: 17270 | F32: 0.005
A33: Russia | B33: 143.8 | C33: 1524.5 | D33: 0.036 | E33: 10421 | F33: 0.039
A34: Saudi Arabia | B34: 36.9 | C34: 776.1 | D34: -0.008 | E34: 21006 | F34: -0.022
A35: South Africa | B35: 60.4 | C35: 362.9 | D35: 0.006 | E35: 6007 | F35: -0.003
A36: Spain | B36: 48.4 | C36: 1356.7 | D36: 0.025 | E36: 28047 | F36: 0.012
A37: Switzerland | B37: 8.8 | C37: 796 | D37: 0.007 | E37: 89943 | F37: -0.001
A38: Thailand | B38: 71.8 | C38: 458.4 | D38: 0.019 | E38: 6385 | F38: 0.017
A39: Turkey | B39: 85.3 | C39: 1248.4 | D39: 0.045 | E39: 14630 | F39: 0.041
A40: Uganda | B40: 48.6 | C40: 46.5 | D40: 0.052 | E40: 956 | F40: 0.023
A41: United Kingdom | B41: 68.4 | C41: 3212.8 | D41: 0.001 | E41: 47005 | F41: -0.007
A42: United States | B42: 334.9 | C42: 21776.3 | D42: 0.025 | E42: 65020 | F42: 0.02
A43: Source: The World Bank, World Development Indicators, www.worldbank.org, accessed 8 October 2024
A44: a At constant 2015 US$.

Sheet HG Intern GDP per capita SC
Q2: Real GDP per capita average annual growth, selected countries, 2023
R3: Growth per capita
B4: Real GDP per capita average annual growth, selected countries, 2022 | Q4: Australia | R4: 0.006 | T4: Horizontal graph
A5: Australia | B5: 0.025 | Q5: Botswana | R5: 0.01
A6: Botswana | B6: 0.041 | Q6: Brazil | R6: 0.024
A7: Brazil | B7: 0.024 | Q7: Chile | R7: 0.001
A8: Chile | B8: 0.019 | Q8: China | R8: 0.053
A9: China | B9: 0.03 | Q9: Denmark | R9: 0.011
A10: Denmark | B10: 0.03 | Q10: Egypt | R10: 0.022
A11: Egypt | B11: 0.049 | Q11: France | R11: 0.004
A12: France | B12: 0.023 | Q12: Germany | R12: -0.011
A13: Germany | B13: 0.007 | Q13: Ghana | R13: 0.01
A14: Ghana | B14: 0.013 | Q14: Greece | R14: 0.027
A15: Greece | B15: 0.067 | Q15: Hong Kong | R15: 0.006
A16: Hong Kong | B16: -0.026 | Q16: India | R16: 0.067
A17: India | B17: 0.063 | Q17: Indonesia | R17: 0.043
A18: Indonesia | B18: 0.046 | Q18: Ireland | R18: -0.057
A19: Ireland | B19: 0.108 | Q19: Israel | R19: -0.001
A20: Israel | B20: 0.044 | Q20: Italy | R20: 0.012
A21: Italy | B21: 0.041 | Q21: Japan | R21: 0.024
A22: Japan | B22: 0.015 | Q22: Kazakhstan | R22: 0.037
A23: Kazakhstan | B23: -0.001 | Q23: Lithuania | R23: -0.017
A24: Lithuania | B24: 0.007 | Q24: Mexico | R24: 0.025
A25: Mexico | B25: 0.024 | Q25: Mozambique | R25: 0.021
A26: Mozambique | B26: 0.013 | Q26: Netherlands | R26: -0.009
A27: Netherlands | B27: 0.035 | Q27: Nigeria | R27: 0.004
A28: Nigeria | B28: 0.008 | Q28: Pakistan | R28: -0.019
A29: Pakistan | B29: 0.042 | Q29: Philippines | R29: 0.039
A30: Philippines | B30: 0.06 | Q30: Poland | R30: 0.005
A31: Poland | B31: 0.054 | Q31: Russia | R31: 0.039
A32: Russia | B32: -0.022 | Q32: Saudi Arabia | R32: -0.022
A33: Saudi Arabia | B33: 0.074 | Q33: South Africa | R33: -0.003
A34: South Africa | B34: 0.012 | Q34: Spain | R34: 0.012
A35: Spain | B35: 0.05 | Q35: Switzerland | R35: -0.001
A36: Switzerland | B36: 0.013 | Q36: Thailand | R36: 0.017
A37: Thailand | B37: 0.014 | Q37: Turkey | R37: 0.041
A38: Turkey | B38: 0.049 | Q38: Uganda | R38: 0.023
A39: Uganda | B39: 0.016 | Q39: United Kingdom | R39: -0.007
A40: United Kingdom | B40: 0.042 | Q40: United States | R40: 0.02
A41: United States | B41: 0.017
L62: SC

Sheet Intern GDP&GDP per capita EM
A2: GDP and GDP per capita, emerging markets, 2023
B4: Population millions | C4: —GDPa—
A5: Country | C5: $bn | D5: Growth | E5: Per capita | F5: Growth per capita
A6: Brazil | B6: 216.4 | C6: 1954.8 | D6: 0.029 | E6: 9032 | F6: 0.024
A7: Bulgaria | B7: 6.4 | C7: 62.9 | D7: 0.018 | E7: 9780 | F7: 0.024
A8: Chile | B8: 19.6 | C8: 279.7 | D8: 0.002 | E8: 14248 | F8: 0.001
A9: China | B9: 1410.7 | C9: 17174 | D9: 0.052 | E9: 12174 | F9: 0.053
A10: Colombia | B10: 52.1 | C10: 356.8 | D10: 0.006 | E10: 6850 | F10: 0.002
A11: Czech Republic | B11: 10.9 | C11: 215.3 | D11: -0.003 | E11: 19800 | F11: -0.022
A12: Egypt | B12: 112.7 | C12: 470.9 | D12: 0.038 | E12: 4178 | F12: 0.022
A13: Estonia | B13: 1.4 | C13: 27.7 | D13: -0.03 | E13: 20245 | F13: -0.042
A14: Greece | B14: 10.4 | C14: 215.8 | D14: 0.02 | E14: 20827 | F14: 0.027
A15: Hungary | B15: 9.6 | C15: 156.2 | D15: -0.009 | E15: 16287 | F15: -0.004
A16: India | B16: 1428.6 | C16: 3199.1 | D16: 0.076 | E16: 2239 | F16: 0.067
A17: Indonesia | B17: 277.5 | C17: 1178.9 | D17: 0.05 | E17: 4248 | F17: 0.043
A18: Jordan | B18: 11.3 | C18: 45.1 | D18: 0.026 | E18: 3975 | F18: 0.022
A19: Kuwait | B19: 4.3 | C19: 116.7 | D19: -0.022 | E19: 27069 | F19: -0.032
A20: Latvia | B20: 1.9 | C20: 31.9 | D20: -0.003 | E20: 16945 | F20: -0.004
A21: Lithuania | B21: 2.9 | C21: 52.3 | D21: -0.003 | E21: 18214 | F21: -0.017
A22: Malaysia | B22: 34.3 | C22: 401.1 | D22: 0.037 | E22: 11691 | F22: 0.026
A23: Mauritius | B23: 1.3 | C23: 14.3 | D23: 0.07 | E23: 11319 | F23: 0.071
A24: Mexico | B24: 128.5 | C24: 1326.6 | D24: 0.032 | E24: 10327 | F24: 0.025
A25: Morocco | B25: 37.8 | C25: 129.5 | D25: 0.032 | E25: 3371 | F25: 0.021
A26: Oman | B26: 4.6 | C26: 87.4 | D26: 0.013 | E26: 18822 | F26: -0.002
A27: Pakistan | B27: 240.5 | C27: 400.2 | D27: 0 | E27: 1664 | F27: -0.019
A28: Peru | B28: 34 | C28: 221.8 | D28: -0.006 | E28: 6456 | F28: -0.014
A29: Philippines | B29: 117.3 | C29: 430.3 | D29: 0.055 | E29: 3668 | F29: 0.039
A30: Poland | B30: 36.7 | C30: 633.6 | D30: 0.002 | E30: 17270 | F30: 0.005
A31: Qatar | B31: 2.7 | C31: 170.9 | D31: 0.042 | E31: 63428 | F31: 0.039
A32: Romania | B32: 19.1 | C32: 236 | D32: 0.021 | E32: 12387 | F32: 0.021
A33: Russia | B33: 143.8 | C33: 1524.5 | D33: 0.036 | E33: 10421 | F33: 0.039
A34: Slovakia | B34: 5.4 | C34: 104.3 | D34: 0.016 | E34: 19218 | F34: 0.017
A35: South Africa | B35: 60.4 | C35: 362.9 | D35: 0.006 | E35: 6007 | F35: -0.003
A36: Sri Lanka | B36: 22 | C36: 87.5 | D36: -0.023 | E36: 3969 | F36: -0.017
A37: Thailand | B37: 71.8 | C37: 458.4 | D37: 0.019 | E37: 6385 | F37: 0.017
A38: Turkey | B38: 85.3 | C38: 1248.4 | D38: 0.045 | E38: 14630 | F38: 0.041
A39: United Arab Emirates | B39: 9.5 | C39: 446.1 | D39: 0.034 | E39: 46878 | F39: 0.026
A40: Vietnam | B40: 98.9 | C40: 377.4 | D40: 0.05 | E40: 3817 | F40: 0.043
A41: Source: The World Bank, World Development Indicators, www.worldbank.org, accessed 8 October 2024
A42: a At constant 2015 US$.
A43: N/A — Not available.

Sheet Intern GDP&GDP per capita SAC
A2: GDP and GDP per capita, selected African countries, 2023
B4: Population millions | C4: —GDPa—
A5: Country | C5: $bn | D5: Growth | E5: Per capita | F5: Growth per capita
A6: Algeria | B6: 45.6 | C6: 215.1 | D6: 0.041 | E6: 4717 | F6: 0.025 | G6: x
A7: Angola | B7: 36.7 | C7: 85.6 | D7: 0.009 | E7: 2334 | F7: -0.022 | G7: x
A8: Botswana | B8: 2.7 | C8: 17.9 | D8: 0.027 | E8: 6708 | F8: 0.01 | G8: x | I8: Botswana | J8: 2.7 | K8: 17.9 | L8: 0.027 | M8: 6708 | N8: 0.01
A9: Burundi | B9: 13.2 | C9: 3.5 | D9: 0.027 | E9: 262 | F9: 0 | G9: x
A10: Cameroon | B10: 28.6 | C10: 41.9 | D10: 0.04 | E10: 1461 | F10: 0.013 | G10: x
A11: Central African Republic | B11: 5.7 | C11: 2.1 | D11: 0.009 | E11: 357 | F11: -0.02 | G11: x
A12: Congo (DRC) | B12: 102.3 | C12: 56.8 | D12: 0.086 | E12: 556 | F12: 0.051 | G12: x
A13: Congo (Republic) | B13: 6.1 | C13: 10.4 | D13: 0.019 | E13: 1698 | F13: -0.04 | G13: x
A14: Egypt | B14: 112.7 | C14: 470.9 | D14: 0.038 | E14: 4178 | F14: 0.022 | G14: x | I14: Egypt | J14: 112.7 | K14: 470.9 | L14: 0.038 | M14: 4178 | N14: 0.022
A15: Eritrea | B15: 3.7 | C15: N/A | D15: N/A | E15: N/A | F15: N/A | G15: x
A16: Eswatini | B16: 1.2 | C16: 5.1 | D16: 0.048 | E16: 4176 | F16: 0.04 | G16: x
A17: Ethiopia | B17: 126.5 | C17: 112.7 | D17: 0.065 | E17: 890 | F17: 0.038 | G17: x
A18: Ivory Coast | B18: 28.9 | C18: 72 | D18: 0.065 | E18: 2494 | F18: 0.039 | G18: x
A19: Ghana | B19: 34.1 | C19: 70.5 | D19: 0.029 | E19: 2066 | F19: 0.01 | G19: x | I19: Ghana | J19: 34.1 | K19: 70.5 | L19: 0.029 | M19: 2066 | N19: 0.01
A20: Kenya | B20: 55.1 | C20: 99.9 | D20: 0.054 | E20: 1814 | F20: 0.034 | G20: x
A21: Lesotho | B21: 2.3 | C21: 2.2 | D21: 0.009 | E21: 950 | F21: -0.002 | G21: x
A22: Liberia | B22: 5.4 | C22: 3.6 | D22: 0.047 | E22: 663 | F22: 0.025 | G22: x
A23: Libya | B23: 6.9 | C23: 67.9 | D23: -0.017 | E23: 9861 | F23: -0.028 | G23: x
A24: Madagascar | B24: 30.3 | C24: 14 | D24: 0.04 | E24: 461 | F24: 0.015 | G24: x
A25: Malawi | B25: 20.9 | C25: 11.5 | D25: 0.015 | E25: 549 | F25: -0.01 | G25: x
A26: Mauritius | B26: 1.3 | C26: 14.3 | D26: 0.07 | E26: 11319 | F26: 0.071 | G26: x | I26: Mauritius | J26: 1.3 | K26: 14.3 | L26: 0.07 | M26: 11319 | N26: 0.071
A27: Morocco | B27: 37.8 | C27: 129.5 | D27: 0.032 | E27: 3371 | F27: 0.021 | G27: x | I27: Morocco | J27: 37.8 | K27: 129.5 | L27: 0.032 | M27: 3371 | N27: 0.021
A28: Mozambique | B28: 33.9 | C28: 20.4 | D28: 0.05 | E28: 603 | F28: 0.021 | G28: x | I28: Mozambique | J28: 33.9 | K28: 20.4 | L28: 0.05 | M28: 603 | N28: 0.021
A29: Namibia | B29: 2.6 | C29: 11.7 | D29: 0.042 | E29: 4512 | F29: 0.027 | G29: x
A30: Nigeria | B30: 223.8 | C30: 550.6 | D30: 0.029 | E30: 2460 | F30: 0.004 | G30: x | I30: Nigeria | J30: 223.8 | K30: 550.6 | L30: 0.029 | M30: 2460 | N30: 0.004
A31: Rwanda | B31: 14.1 | C31: 14 | D31: 0.082 | E31: 994 | F31: 0.058 | G31: x
A32: Senegal | B32: 17.8 | C32: 26.2 | D32: 0.037 | E32: 1476 | F32: 0.011 | G32: x
A33: Somalia | B33: 18.1 | C33: 9.2 | D33: 0.031 | E33: 509 | F33: 0 | G33: x
A34: South Africa | B34: 60.4 | C34: 362.9 | D34: 0.006 | E34: 6007 | F34: -0.003 | G34: x | I34: South Africa | J34: 60.4 | K34: 362.9 | L34: 0.006 | M34: 6007 | N34: -0.003
A35: Sudan | B35: 48.1 | C35: 42.3 | D35: -0.12 | E35: 879 | F35: -0.143 | G35: x
A36: Tanzania | B36: 67.4 | C36: 70.6 | D36: 0.052 | E36: 1081 | F36: 0.022 | G36: x
A37: Tunisia | B37: 12.5 | C37: 48.6 | D37: 0.004 | E37: 3902 | F37: -0.004 | G37: x
A38: Uganda | B38: 48.6 | C38: 46.5 | D38: 0.052 | E38: 956 | F38: 0.023 | G38: x | I38: Uganda | J38: 48.6 | K38: 46.5 | L38: 0.052 | M38: 956 | N38: 0.023
A39: Zambia | B39: 20.6 | C39: 27.7 | D39: 0.058 | E39: 1347 | F39: 0.03 | G39: x
A40: Zimbabwe | B40: 16.7 | C40: 23.1 | D40: 0.05 | E40: 1383 | F40: 0.028 | G40: x
A41: Source: The World Bank, World Development Indicators, www.worldbank.org, accessed 8 October 2024
A42: a At constant 2015 US$.
A43: N/A — Not available.

Sheet Structure of GDP

Sheet GVA per industry 1994-23
A2: Structure of GDP
A4: Gross value added (GVA)ab by industry, 1994-2023
A6: Year | B6: Agriculture | C6: Mining | D6: Manufacturing | E6: Electricity | F6: Construction | G6: Tradec | H6: Transport | I6: Finance | J6: Government | K6: Personal servicesd | L6: Total
A7: 1994 | B7: 0.041 | C7: 0.052 | D7: 0.228 | E7: 0.025 | F7: 0.033 | G7: 0.132 | H7: 0.085 | I7: 0.182 | J7: 0.081 | K7: 0.141 | L7: 1
A8: 2001 | B8: 0.031 | C8: 0.061 | D8: 0.207 | E8: 0.017 | F8: 0.025 | G8: 0.129 | H8: 0.1 | I8: 0.207 | J8: 0.074 | K8: 0.149 | L8: 1
A9: 2002 | B9: 0.032 | C9: 0.063 | D9: 0.207 | E9: 0.017 | F9: 0.023 | G9: 0.126 | H9: 0.094 | I9: 0.223 | J9: 0.071 | K9: 0.145 | L9: 1
A10: 2003 | B10: 0.029 | C10: 0.053 | D10: 0.201 | E10: 0.015 | F10: 0.023 | G10: 0.128 | H10: 0.1 | I10: 0.231 | J10: 0.071 | K10: 0.149 | L10: 1
A11: 2004 | B11: 0.026 | C11: 0.051 | D11: 0.197 | E11: 0.015 | F11: 0.025 | G11: 0.13 | H11: 0.101 | I11: 0.235 | J11: 0.07 | K11: 0.149 | L11: 1
A12: 2005 | B12: 0.023 | C12: 0.054 | D12: 0.191 | E12: 0.014 | F12: 0.027 | G12: 0.128 | H12: 0.101 | I12: 0.243 | J12: 0.07 | K12: 0.149 | L12: 1
A13: 2006 | B13: 0.023 | C13: 0.061 | D13: 0.172 | E13: 0.014 | F13: 0.028 | G13: 0.128 | H13: 0.107 | I13: 0.248 | J13: 0.069 | K13: 0.15 | L13: 1
A14: 2007 | B14: 0.026 | C14: 0.063 | D14: 0.171 | E14: 0.013 | F14: 0.033 | G14: 0.126 | H14: 0.1 | I14: 0.253 | J14: 0.068 | K14: 0.146 | L14: 1
A15: 2008 | B15: 0.028 | C15: 0.07 | D15: 0.171 | E15: 0.013 | F15: 0.042 | G15: 0.13 | H15: 0.091 | I15: 0.238 | J15: 0.07 | K15: 0.146 | L15: 1
A16: 2009 | B16: 0.026 | C16: 0.065 | D16: 0.158 | E16: 0.017 | F16: 0.04 | G16: 0.128 | H16: 0.088 | I16: 0.248 | J16: 0.075 | K16: 0.153 | L16: 1
A17: 2010 | B17: 0.023 | C17: 0.068 | D17: 0.151 | E17: 0.02 | F17: 0.036 | G17: 0.138 | H17: 0.084 | I17: 0.244 | J17: 0.077 | K17: 0.158 | L17: 1
A18: 2011 | B18: 0.022 | C18: 0.071 | D18: 0.141 | E18: 0.023 | F18: 0.037 | G18: 0.138 | H18: 0.085 | I18: 0.241 | J18: 0.078 | K18: 0.163 | L18: 1
A19: 2012 | B19: 0.022 | C19: 0.068 | D19: 0.138 | E19: 0.027 | F19: 0.038 | G19: 0.141 | H19: 0.088 | I19: 0.236 | J19: 0.079 | K19: 0.1654422038 | L19: 1
A20: 2013 | B20: 0.021 | C20: 0.068 | D20: 0.137 | E20: 0.027 | F20: 0.039 | G20: 0.141 | H20: 0.091 | I20: 0.232 | J20: 0.082 | K20: 0.163 | L20: 1
A21: 2014 | B21: 0.02423325949 | C21: 0.064 | D21: 0.138 | E21: 0.028 | F21: 0.039 | G21: 0.141 | H21: 0.09 | I21: 0.23 | J21: 0.085 | K21: 0.161 | L21: 1
A22: 2015 | B22: 0.025 | C22: 0.057 | D22: 0.139 | E22: 0.029 | F22: 0.039 | G22: 0.14 | H22: 0.09 | I22: 0.232 | J22: 0.087 | K22: 0.164 | L22: 1
A23: 2016 | B23: 0.027 | C23: 0.059 | D23: 0.139 | E23: 0.029 | F23: 0.037 | G23: 0.139 | H23: 0.088 | I23: 0.231 | J23: 0.088 | K23: 0.164 | L23: 1
A24: 2017 | B24: 0.028 | C24: 0.058 | D24: 0.138 | E24: 0.03 | F24: 0.035 | G24: 0.138 | H24: 0.087 | I24: 0.233 | J24: 0.087 | K24: 0.167 | L24: 1
A25: 2018 | B25: 0.025 | C25: 0.06 | D25: 0.139 | E25: 0.03 | F25: 0.034 | G25: 0.139 | H25: 0.084 | I25: 0.236 | J25: 0.086 | K25: 0.167 | L25: 1
A26: 2019 | B26: 0.022 | C26: 0.062 | D26: 0.138 | E26: 0.03 | F26: 0.033 | G26: 0.139 | H26: 0.083 | I26: 0.238 | J26: 0.089 | K26: 0.167 | L26: 1
A27: 2020 | B27: 0.028 | C27: 0.07 | D27: 0.13 | E27: 0.031 | F27: 0.027 | G27: 0.131 | H27: 0.074 | I27: 0.243 | J27: 0.093 | K27: 0.172 | L27: 1
A28: 2021 | B28: 0.028 | C28: 0.085 | D28: 0.134 | E28: 0.031 | F28: 0.025 | G28: 0.135 | H28: 0.073 | I28: 0.235 | J28: 0.084 | K28: 0.169 | L28: 1
A29: 2022 | B29: 0.03 | C29: 0.082 | D29: 0.138 | E29: 0.033 | F29: 0.025 | G29: 0.135 | H29: 0.076 | I29: 0.233 | J29: 0.085 | K29: 0.163 | L29: 1
A30: 2023 | B30: 0.029 | C30: 0.07 | D30: 0.144 | E30: 0.035 | F30: 0.025 | G30: 0.139 | H30: 0.078 | I30: 0.233 | J30: 0.087 | K30: 0.16 | L30: 1
A31: Source: Stats SA, www.statssa.gov.za, Gross Domestic Product, 2nd Quarter 2024, Statistical release P0441, 6 September 2024, accessed 11 September 2024
A32: a Gross value added (GVA) measures the contribution to the economy of each individual producer, industry or sector. GVA is output at basic prices minus intermediate consumption at purchaser prices. The basic price is the amount receivable by the producer from the purchaser for a unit of a product minus any tax on the product plus any subsidy on the product.
A33: b At current prices.
A34: c Trade comprises wholesale, retail, and motor trade; catering and accommodation.
A35: d Personal services comprises the former categories of ‘Community, social and personal services’ and ‘Other producers’.

Sheet BC Primary sector contr. to GVA
A2: Primary sector contribution to GVA, 1994-2023
B5: Agriculture | C5: Mining and quarrying
A6: 1994 | B6: 0.041 | C6: 0.052
A7: 2000 | B7: 0.028 | C7: 0.056
A8: 2005 | B8: 0.026 | C8: 0.051
A9: 2010 | B9: 0.023 | C9: 0.068
A10: 2015 | B10: 0.025 | C10: 0.057
A11: 2020 | B11: 0.028 | C11: 0.07
A12: 2023 | B12: 0.029 | C12: 0.07
A16: At current prices

Sheet BC Secondary sec. contr. to GVA
A2: Secondary sector contribution to GVA, 1994-2023
B4: Manufacturing | C4: Electricity, gas and water | D4: Construction
A5: 1994 | B5: 0.228 | C5: 0.025 | D5: 0.033
A6: 2000 | B6: 0.206 | C6: 0.019 | D6: 0.026
A7: 2005 | B7: 0.191 | C7: 0.014 | D7: 0.027
A8: 2010 | B8: 0.151 | C8: 0.02 | D8: 0.036
A9: 2015 | B9: 0.139 | C9: 0.029 | D9: 0.039
A10: 2020 | B10: 0.13 | C10: 0.031 | D10: 0.027
A11: 2023 | B11: 0.134 | C11: 0.035 | D11: 0.025
A14: At current prices.

Sheet BC Tertiary sec. contr. to GVA
A1: BC
A2: Tertiary sector contribution to GVA, 1994-2023
B4: Trade | C4: Transport | D4: Finance | E4: Government | F4: Personal services
A6: 1994 | B6: 0.132 | C6: 0.085 | D6: 0.182 | E6: 0.081 | F6: 0.141
A7: 2000 | B7: 0.135 | C7: 0.101 | D7: 0.2 | E7: 0.076 | F7: 0.153
A8: 2005 | B8: 0.128 | C8: 0.101 | D8: 0.243 | E8: 0.07 | F8: 0.149
A9: 2010 | B9: 0.138 | C9: 0.084 | D9: 0.244 | E9: 0.077 | F9: 0.158
A10: 2015 | B10: 0.14 | C10: 0.09 | D10: 0.232 | E10: 0.087 | F10: 0.164
A11: 2020 | B11: 0.131 | C11: 0.074 | D11: 0.243 | E11: 0.093 | F11: 0.172
A12: 2023 | B12: 0.139 | C12: 0.078 | D12: 0.233 | E12: 0.087 | F12: 0.16
A15: At current prices.

Sheet Size of formal&informal economy
A2: Relative size of formal and non-observed economiesa, 2014-21
A4: Sector | B4: 2014 | C4: 2015 | D4: 2016 | E4: 2017 | F4: 2018 | G4: 2019 | H4: 2020 | I4: 2021
A5: Formal | B5: 0.921 | C5: 0.92 | D5: 0.919 | E5: 0.92 | F5: 0.919 | G5: 0.918 | H5: 0.923 | I5: 0.925
A6: Informal | B6: 0.05 | C6: 0.05 | D6: 0.051 | E6: 0.051 | F6: 0.052 | G6: 0.052 | H6: 0.047 | I6: 0.045
A7: Own final use | B7: 0.024 | C7: 0.025 | D7: 0.024 | E7: 0.025 | F7: 0.025 | G7: 0.025 | H7: 0.025 | I7: 0.024
A8: Other non-observed | B8: 0.005 | C8: 0.005 | D8: 0.005 | E8: 0.005 | F8: 0.005 | G8: 0.005 | H8: 0.005 | I8: 0.006
A9: Total | B9: 1 | C9: 1 | D9: 1 | E9: 1 | F9: 1 | G9: 1 | H9: 1 | I9: 1
A10: Source: Stats SA, email communication 7 August 2024
A11: a The production boundary (the range of goods and services included in the estimates of value added) divided according to the formal and non-observed economies. The non-observed economy is the extent of the economic activity missing from statistical data collections and from administrative sources.
L13: 2014 | M13: 2015 | N13: 2016 | O13: 2017 | P13: 2018 | Q13: 2019 | R13: 2020 | S13: 2021
K14: Formal | L14: 0.921 | M14: 0.92 | N14: 0.919 | O14: 0.92 | P14: 0.919 | Q14: 0.918 | R14: 0.923 | S14: 0.925
K15: Informal | L15: 0.05 | M15: 0.05 | N15: 0.051 | O15: 0.051 | P15: 0.052 | Q15: 0.052 | R15: 0.046 | S15: 0.045
K16: Own final use | L16: 0.024 | M16: 0.025 | N16: 0.024 | O16: 0.025 | P16: 0.025 | Q16: 0.025 | R16: 0.025 | S16: 0.024
K17: Other non-observed | L17: 0.005 | M17: 0.005 | N17: 0.005 | O17: 0.005 | P17: 0.005 | Q17: 0.005 | R17: 0.005 | S17: 0.006

Sheet Economic breakdown of NOE 2021
A2: Economic breakdown of non-observed economy (NOE), 2021
B4: Informal | C4: Illicit | D4: Total
B5: Rm
A6: Agriculture, forestry and fishing | B6: 8652.224476 | C6: 1663.744294 | D6: 10315.96877
A7: Mining and quarrying | B7: 434.9433746 | C7: 211.8461328 | D7: 646.7895074
A8: Manufacturing | B8: 15632.42705 | C8: 17980.37156 | D8: 33612.79861
A9: Electricity, gas and water | B9: — | C9: — | D9: —
A10: Construction | B10: 31095.34828 | C10: — | D10: 31095.34828
A11: Trade, catering and accommodation | B11: 76533.29605 | C11: 2377.862146 | D11: 78911.1582
A12: Transport, storage and communication | B12: 59869.32175 | C12: — | D12: 59869.32175
A13: Finance, real estate and business services | B13: 27800.90569 | C13: — | D13: 27800.90569
A14: General government services | B14: 3 | C14: — | D14: —
A15: Personal services | B15: 33587.71227 | C15: 8971.718441 | D15: 42559.43071
A16: Total GVAa of informal and illicit | B16: 253606.1789 | C16: 31205.54257 | D16: 284811.7215
A17: Total GVA | D17: 5603769.639
A18: Informal and illicit economy as proportion of GVA | D18: 0.051
A20: Other NOE (own, small scale, NPIb and HHb)
D21: Rm
A22: Agriculture, forestry and fishing - OWNb | D22: 4462
A23: Manufacturing - Small Scale | D23: 21485.64118
A24: Electricity, gas and water - OWN is included with Water Collection and excluded from informal grouping | D24: 11223
A25: Construction | D25: 5987.957491
A26: Non- Profit | D26: 36212.201
A27: Households | D27: 66633.56658
A28: Other NOE (own, small scale, NPI and HH) | D28: 134781.3663
A29: Total non-observed economy | D29: 419593.0878
A30: Proportion of the economy | D30: 0.075
A32: Gross Value Added Observed and non Observed | C32: Total NOE | D32: % of NOE
A33: Agriculture, forestry and fishing | C33: 14777.96877 | D33: 0.035
A34: Mining and quarrying | C34: 646.7895074 | D34: 0.002
A35: Manufacturing | C35: 55098.43979 | D35: 0.131
A36: Electricity, gas and water | C36: — | D36: 0
A37: Construction | C37: 37083.30577 | D37: 0.088
A38: Trade, catering and accommodation | C38: 78911.1582 | D38: 0.188
A39: Transport, storage and communication | C39: 59869.32175 | D39: 0.143
A40: Finance, real estate and business services | C40: 27800.90569 | D40: 0.066
A41: General government services | C41: — | D41: 0
A42: Personal services | C42: 42559.43071 | D42: 0.101
A43: Non- Profit Institutions | C43: 36212.201 | D43: 0.086
A44: Households | C44: 66633.56658 | D44: 0.159
A45: Total GVA of Non-Observed Economy | C45: 419593.0878 | D45: 1
A46: Total GVA economy | C46: 5603769.639 | D46: —
A47: % of the economy | D47: 0.075
A49: Relative size | B49: 2021 | C49: 2021
A50: Sector | B50: Values | C50: Percentage
A51: Formal | B51: 5184176.551 | C51: 92.51230663
A52: Informal | B52: 253606.1789 | C52: 4.525635336
A53: Own final use | B53: 134781.3663 | C53: 2.405191058
A54: Other non-observed | B54: 31205.54257 | C54: 0.5568669767
A55: Total | B55: 5603769.639 | C55: 100
A56: Source: Stats SA, email communication 7 August 2024
A57: a Gross Value Added (GVA).
A58: b Non-profit institutions (NPI), Households (HH)
A59: c Own is defined as non-market activities of the final consumption of households. Non-market activities are those undertaken by an individual who is not willing to sell his/her goods.These include: forestry (collection of firewood), water (water fetching), construction (own account construction), owner occupied dwellings.

Sheet Expenditure on GDP 1994-23
A2: Expenditure on GDPa, 1994-2023
B4: —Final consumption expenditure— | D4: Gross fixed capital formation | E4: Gross domestic expenditure | F4: Exports of goods and services | G4: Less imports of goods and services | H4: Expenditure on gross domestic product
A5: Year | B5: Householdsb | C5: General governmentc
B6: —Rbn—
A7: 1994 | B7: 1362 | C7: 503 | D7: 286 | E7: 2159 | F7: 616 | G7: 435 | H7: 2401
A8: 2000 | B8: 1678 | C8: 506 | D8: 366 | E8: 2543 | F8: 873 | G8: 574 | H8: 2841
A9: 2005 | B9: 2078 | C9: 614 | D9: 538 | E9: 3274 | F9: 1009 | G9: 839 | H9: 3429
A10: 2010 | B10: 2508 | C10: 739 | D10: 695 | E10: 3950 | F10: 1062 | G10: 1017 | H10: 3994
A11: 2011 | B11: 2610 | C11: 769 | D11: 742 | E11: 4164 | F11: 1094 | G11: 1138 | H11: 4120
A12: 2012 | B12: 2694 | C12: 806 | D12: 756 | E12: 4280 | F12: 1106 | G12: 1182 | H12: 4204
A13: 2013 | B13: 2736 | C13: 831 | D13: 796 | E13: 4386 | F13: 1147 | G13: 1229 | H13: 4303
A14: 2014 | B14: 2756 | C14: 847 | D14: 786 | E14: 4395 | F14: 1189 | G14: 1221 | H14: 4363
A15: 2015 | B15: 2815 | C15: 839 | D15: 796 | E15: 4478 | F15: 1225 | G15: 1283 | H15: 4421
A16: 2016 | B16: 2834 | C16: 856 | D16: 781 | E16: 4445 | F16: 1230 | G16: 1230 | H16: 4446
A17: 2017 | B17: 2883 | C17: 854 | D17: 765 | E17: 4514 | F17: 1227 | G17: 1248 | H17: 4492
A18: 2018 | B18: 2974 | C18: 863 | D18: 756 | E18: 4605 | F18: 1261 | G18: 1292 | H18: 4574
A19: 2019 | B19: 3012 | C19: 879 | D19: 742 | E19: 4657 | F19: 1219 | G19: 1299 | H19: 4577
A20: 2020 | B20: 2828 | C20: 887 | D20: 633 | E20: 4284 | F20: 1072 | G20: 1071 | H20: 4286
A21: 2021 | B21: 3002 | C21: 892 | D21: 630 | E21: 4512 | F21: 1176 | G21: 1174 | H21: 4514
A22: 2022 | B22: 3076 | C22: 898 | D22: 660 | E22: 4687 | F22: 1256 | G22: 1349 | H22: 4594
A23: 2023 | B23: 3098 | C23: 915 | D23: 686 | E23: 4724 | F23: 1303 | G23: 1403 | H23: 4624
A24: 2022-23 | B24: 0.007 | C24: 0.019 | D24: 0.039 | E24: 0.008 | F24: 0.037 | G24: 0.039 | H24: 0.007
A25: Source: Stats SA, Gross Domestic Product 2Q 2024 time series data, accessed 11 September 2024
A26: a At constant 2015 prices.
A27: b Including non-profit institutions serving households.
A28: c Current expenditure on salaries, wages, goods, and other services of a non-capital nature by the services departments (not business enterprises) of general government. General government includes central government, provincial, and local government.

Sheet HG Change in expen on GDP 22-23
A1: HG
B3: Change in expenditure on GDP, 2022-23
A4: Household consumption | B4: 0.007
A5: General government consumption | B5: 0.019
A6: Gross fixed capital formation | B6: 0.039
A7: Gross domestic expenditure | B7: 0.008
A8: Exports | B8: 0.037
A9: Imports | B9: 0.039
A10: Expenditure on GDP | B10: 0.007

Sheet Type of expenditure % GDP 00-23
A2: Type of expenditure as a proportion of GDPa, 2000-23
B4: —Final consumption expenditure— | D4: Gross fixed capital formation | E4: Exports of goodsb and services | F4: Imports of goods and services
A5: Year | B5: Households | C5: General government
A6: 2000 | B6: 0.656 | C6: 0.166 | D6: 0.144 | E6: 0.244 | F6: 0.218
A7: 2001 | B7: 0.653 | C7: 0.166 | D7: 0.144 | E7: 0.264 | F7: 0.228
A8: 2002 | B8: 0.627 | C8: 0.168 | D8: 0.14 | E8: 0.284 | F8: 0.25
A9: 2003 | B9: 0.619 | C9: 0.169 | D9: 0.147 | E9: 0.239 | F9: 0.218
A10: 2004 | B10: 0.637 | C10: 0.17 | D10: 0.152 | E10: 0.228 | F10: 0.229
A11: 2005 | B11: 0.636 | C11: 0.161 | D11: 0.159 | E11: 0.236 | F11: 0.238
A12: 2006 | B12: 0.636 | C12: 0.159 | D12: 0.174 | E12: 0.261 | F12: 0.277
A13: 2007 | B13: 0.635 | C13: 0.159 | D13: 0.19 | E13: 0.28 | F13: 0.292
A14: 2008 | B14: 0.63 | C14: 0.171 | D14: 0.216 | E14: 0.323 | F14: 0.337
A15: 2009 | B15: 0.62 | C15: 0.178 | D15: 0.195 | E15: 0.25 | F15: 0.246
A16: 2010 | B16: 0.624 | C16: 0.18 | D16: 0.176 | E16: 0.258 | F16: 0.246
A17: 2011 | B17: 0.629 | C17: 0.182 | D17: 0.178 | E17: 0.277 | F17: 0.269
A18: 2012 | B18: 0.643 | C18: 0.188 | D18: 0.179 | E18: 0.271 | F18: 0.284
A19: 2013 | B19: 0.639 | C19: 0.191 | D19: 0.186 | E19: 0.284 | F19: 0.305
A20: 2014 | B20: 0.637 | C20: 0.193 | D20: 0.183 | E20: 0.29 | F20: 0.305
A21: 2015 | B21: 0.637 | C21: 0.19 | D21: 0.18 | E21: 0.277 | F21: 0.29
A22: 2016 | B22: 0.633 | C22: 0.193 | D22: 0.174 | E22: 0.282 | F22: 0.277
A23: 2017 | B23: 0.63 | C23: 0.192 | D23: 0.164 | E23: 0.273 | F23: 0.262
A24: 2018 | B24: 0.64 | C24: 0.194 | D24: 0.159 | E24: 0.275 | F24: 0.27
A25: 2019 | B25: 0.641 | C25: 0.196 | D25: 0.155 | E25: 0.272 | F25: 0.267
A26: 2020 | B26: 0.626 | C26: 0.206 | D26: 0.138 | E26: 0.276 | F26: 0.232
A27: 2021 | B27: 0.619 | C27: 0.192 | D27: 0.131 | E27: 0.311 | F27: 0.249
A28: 2022 | B28: 0.634 | C28: 0.19 | D28: 0.141 | E28: 0.334 | F28: 0.314
A29: 2023 | B29: 0.644 | C29: 0.193 | D29: 0.149 | E29: 0.328 | F29: 0.324
A30: Source: SARB, www.resbank.co.za, time series data, accessed 13 September 2024
A31: a At current prices.
A32: b Including gold.

Sheet Spending as % of GDP 2000,2023
A1: Spending as a proportion of GDP, 2000 and 2023
B2: 2000 | C2: 2023
A3: Household consumption | B3: 0.656 | C3: 0.644
A4: General government consumption | B4: 0.166 | C4: 0.193
A5: Gross fixed capital formation | B5: 0.144 | C5: 0.149
A6: Exports of goods and services | B6: 0.244 | C6: 0.328
A7: Imports of goods and services | B7: 0.218 | C7: 0.324

Sheet Provincial economies

Sheet GDP&growth trends 2015-23
A2: Provincial and local economies
A4: Provincial economies
A6: Provincial GDP and GDP growth trends, 2015-23
B8: GDP 2023 | C8: —Provincial GDP contribution to the economy of South Africa— | G8: —Real growth rateb—
A9: Province | B9: Rbna | C9: 2015 | D9: 2020 | E9: 2022 | F9: 2023 | G9: 2015 | H9: 2020 | I9: 2022 | J9: 2023
A10: Eastern Cape | B10: 369.6 | C10: 0.08 | D10: 0.077 | E10: 0.075 | F10: 0.077 | G10: 0.009 | H10: -0.06 | I10: 0.021 | J10: 0.008
A11: Free State | B11: 221.6 | C11: 0.049 | D11: 0.05 | E11: 0.049 | F11: 0.049 | G11: -0.003 | H11: -0.058 | I11: 0.018 | J11: 0.001
A12: Gauteng | B12: 1558.4 | C12: 0.334 | D12: 0.332 | E12: 0.329 | F12: 0.332 | G12: 0.012 | H12: -0.073 | I12: 0.028 | J12: 0.007
A13: KwaZulu-Natal | B13: 766.7 | C13: 0.164 | D13: 0.162 | E13: 0.16 | F13: 0.162 | G13: 0.012 | H13: -0.049 | I13: 0.01 | J13: 0.011
A14: Limpopo | B14: 329.7 | C14: 0.072 | D14: 0.076 | E14: 0.078 | F14: 0.076 | G14: 0.019 | H14: -0.064 | I14: 0.009 | J14: 0.006
A15: Mpumalanga | B15: 342.1 | C15: 0.075 | D15: 0.078 | E15: 0.08 | F15: 0.078 | G15: 0.004 | H15: -0.053 | I15: 0.005 | J15: 0.004
A16: North West | B16: 284.6 | C16: 0.063 | D16: 0.065 | E16: 0.067 | F16: 0.064 | G16: 0.041 | H16: -0.056 | I16: 0.005 | J16: 0.003
A17: Northern Cape | B17: 99.1 | C17: 0.021 | D17: 0.022 | E17: 0.023 | F17: 0.023 | G17: 0.02 | H17: -0.052 | I17: 0.011 | J17: 0.005
A18: Western Cape | B18: 660.6 | C18: 0.141 | D18: 0.138 | E18: 0.138 | F18: 0.14 | G18: 0.014 | H18: -0.059 | I18: 0.028 | J18: 0.008
A19: South Africa | B19: 4632.4 | C19: 1 | D19: 1 | E19: 1 | F19: 1 | G19: 0.013 | H19: -0.062 | I19: 0.019 | J19: 0.007
A20: Source: Stats SA, www.statssa.gov.za, Provincial gross domestic product 2023, Statistical release P0441.2, 19 September 2024, time series data, accessed 23 September 2024
A21: a At constant 2015 prices.
A22: b The percentage change from the previous year.

Sheet BC Provincial GDP growth 2023
A2: Real annual provincial economic growth, 2023
B4: 2022
A5: Eastern Cape | B5: 0.008
A6: Free State | B6: 0.001
A7: Gauteng | B7: 0.007
A8: KwaZulu-Natal | B8: 0.011
A9: Limpopo | B9: 0.006
A10: Mpumalanga | B10: 0.004
A11: North West | B11: 0.003
A12: Northern Cape | B12: 0.005
A13: Western Cape | B13: 0.008
A14: South Africa | B14: 0.017

Sheet GDP per head by province 22-23
A2: GDP per head by provincea, 2022 and 2023
B4: —Population millionsb— | D4: —GDP Rm— | F4: —GDP per headc—
A5: Province | B5: 2022 | C5: 2023 | D5: 2022 | E5: 2023 | F5: 2022 | G5: 2023
A6: Eastern Cape | B6: 6.54 | C6: 6.54 | D6: 366666 | E6: 369581 | F6: =D6/B6 -> 56065.13761 | G6: =E6/C6 -> 56510.85627
A7: Free State | B7: 3 | C7: 3.03 | D7: 219724 | E7: 221627 | F7: =D7/B7 -> 73241.33333 | G7: =E7/C7 -> 73144.22442
A8: Gauteng | B8: 16.27 | C8: 16.64 | D8: 1549527 | E8: 1558387 | F8: 95238.29133 | G8: 93653.0649
A9: KwaZulu-Natal | B9: 11.82 | C9: 11.96 | D9: 761998 | E9: 766726 | F9: 64466.83587 | G9: 64107.52508
A10: Limpopo | B10: 6.17 | C10: 6.23 | D10: 326393 | E10: 329712 | F10: 52900 | G10: 52923.27448
A11: Mpumalanga | B11: 4.86 | C11: 4.94 | D11: 340142 | E11: 342126 | F11: 69988.06584 | G11: 69256.2753
A12: North West | B12: 4.21 | C12: 4.27 | D12: 284252 | E12: 284596 | F12: 67518.28979 | G12: 66650.1171
A13: Northern Cape | B13: 1.29 | C13: 1.31 | D13: 98623 | E13: 99078 | F13: 76451.93798 | G13: 75632.06107
A14: Western Cape | B14: 7.23 | C14: 7.37 | D14: 655071 | E14: 660600 | F14: 90604.56432 | G14: 89633.64993
A15: South Africa | B15: 61.38 | C15: 62.28 | D15: 4600300 | E15: 4632433 | F15: 74947.86575 | G15: 74380.74823
A16: Source: Stats SA, www.statssa.gov.za, Provincial gross domestic product 2023, Statistical release P0441.2, 19 September 2024, time series data, accessed 23 September 2024; General Household Survey 2023, Statistical release P0318, released 23 May 2024, p2
A17: a At constant 2015 prices.
A18: b Population figures are from General Household Survey 2023. The population estimates which incorporate the results of Census 2022 will be released during 2025.
A19: c CRA calculations.

Sheet BC GDP per head 2023
B2: GDP per head 2023
A5: EC | B5: 56510.85627
A6: FS | B6: 73144.22442
A7: GAU | B7: 93653.0649
A8: KZN | B8: 64107.52508
A9: LIM | B9: 52923.27448
A10: MOU | B10: 69256.2753
A11: NW | B11: 66650.1171
A12: NC | B12: 75632.06107
A13: WC | B13: 89633.64993
A14: SA | B14: 74380.74823

Sheet GDP by province&industry 2023
A2: GDPa by province and industry (actual numbers), 2023
A4: Province | B4: Agriculture | C4: Mining | D4: Manufacturing | E4: Electricity, gas and water | F4: Construction | G4: Trade | H4: Transport | I4: Finance | J4: Personal services | K4: General government services | L4: Taxes less subsidies on products | M4: Totalb
B5: —Rbn—
A6: Eastern Cape | B6: 11.6 | C6: 1.3 | D6: 71.4 | E6: 11 | F6: 12.3 | G6: 79.3 | H6: 26.9 | I6: 87.6 | J6: 125.5 | K6: 55.8 | L6: 54.6 | M6: 537.4
A7: Free State | B7: 16.5 | C7: 27.9 | D7: 36.1 | E7: 11.9 | F7: 5.4 | G7: 40.7 | H7: 21.2 | I7: 60.3 | J7: 55 | K7: 32.2 | L7: 34.7 | M7: 342.1
A8: Gauteng | B8: 12.1 | C8: 50.3 | D8: 366 | E8: 73.3 | F8: 50.7 | G8: 286.1 | H8: 181.2 | I8: 635.8 | J8: 220.2 | K8: 217.6 | L8: 236.6 | M8: 2329.8
A9: KwaZulu-Natal | B9: 45.9 | C9: 14.2 | D9: 177 | E9: 35.8 | F9: 27.5 | G9: 138.9 | H9: 99 | I9: 195.7 | J9: 210.9 | K9: 77.3 | L9: 115.5 | M9: 1137.7
A10: Limpopo | B10: 14.8 | C10: 109.5 | D10: 18.7 | E10: 13.4 | F10: 9.3 | G10: 65.3 | H10: 22.9 | I10: 70 | J10: 114.5 | K10: 42.9 | L10: 54.4 | M10: 535.6
A11: Mpumalanga | B11: 17.7 | C11: 98.2 | D11: 65.1 | E11: 28.8 | F11: 9.9 | G11: 65.6 | H11: 23.9 | I11: 78.8 | J11: 81.8 | K11: 24 | L11: 55.8 | M11: 549.5
A12: North West | B12: 12.5 | C12: 113.4 | D12: 23.4 | E12: 15.2 | F12: 6.2 | G12: 48.1 | H12: 21.5 | I12: 64 | J12: 70.7 | K12: 28.5 | L12: 45.6 | M12: 449.1
A13: Northern Cape | B13: 11.3 | C13: 27.4 | D13: 6.2 | E13: 4.7 | F13: 2.1 | G13: 17.2 | H13: 12.7 | I13: 20 | J13: 25.7 | K13: 15 | L13: 16.1 | M13: 158.2
A14: Western Cape | B14: 41.3 | C14: 1.9 | D14: 146.5 | E14: 25.3 | F14: 31.8 | G14: 136.6 | H14: 85.6 | I14: 259.7 | J14: 103.2 | K14: 52.7 | L14: 100 | M14: 984.7
A15: South Africab | B15: 183.8 | C15: 444.2 | D15: 910.5 | E15: 219.4 | F15: 155.2 | G15: 877.7 | H15: 495 | I15: 1471.8 | J15: 1007.3 | K15: 546 | L15: 713.2 | M15: 7024
A16: Source: Stats SA, www.statssa.gov.za, Provincial gross domestic product 2023, Statistical release P0441.2, 19 September 2024, time series data, accessed 23 September 2024
A17: a At current prices.
A18: b Figures should add up vertically and horizontally but may not, owing to rounding.

Sheet GDP by province&industry % 2023
A2: GDPa by province and industry (proportions), 2023
A4: Province | B4: Agriculture | C4: Mining | D4: Manufacturing | E4: Electricity, gas and water | F4: Construction | G4: Trade | H4: Transport | I4: Finance | J4: Personal services | K4: General government services | L4: Taxes less subsidies on products | M4: Totalb
A5: Eastern Cape | B5: 0.022 | C5: 0.002 | D5: 0.133 | E5: 0.021 | F5: 0.023 | G5: 0.148 | H5: 0.05 | I5: 0.163 | J5: 0.234 | K5: 0.104 | L5: 0.102 | M5: 1
A6: Free State | B6: 0.048 | C6: 0.082 | D6: 0.106 | E6: 0.035 | F6: 0.016 | G6: 0.119 | H6: 0.062 | I6: 0.176 | J6: 0.161 | K6: 0.094 | L6: 0.102 | M6: 1
A7: Gauteng | B7: 0.005 | C7: 0.022 | D7: 0.157 | E7: 0.031 | F7: 0.022 | G7: 0.123 | H7: 0.078 | I7: 0.273 | J7: 0.095 | K7: 0.093 | L7: 0.102 | M7: 1
A8: KwaZulu-Natal | B8: 0.04 | C8: 0.012 | D8: 0.156 | E8: 0.031 | F8: 0.024 | G8: 0.122 | H8: 0.087 | I8: 0.172 | J8: 0.185 | K8: 0.068 | L8: 0.102 | M8: 1
A9: Limpopo | B9: 0.028 | C9: 0.204 | D9: 0.035 | E9: 0.025 | F9: 0.017 | G9: 0.122 | H9: 0.043 | I9: 0.131 | J9: 0.214 | K9: 0.08 | L9: 0.102 | M9: 1
A10: Mpumalanga | B10: 0.032 | C10: 0.179 | D10: 0.118 | E10: 0.052 | F10: 0.018 | G10: 0.119 | H10: 0.043 | I10: 0.143 | J10: 0.149 | K10: 0.044 | L10: 0.102 | M10: 1
A11: North West | B11: 0.028 | C11: 0.253 | D11: 0.052 | E11: 0.034 | F11: 0.014 | G11: 0.107 | H11: 0.048 | I11: 0.143 | J11: 0.157 | K11: 0.063 | L11: 0.102 | M11: 1
A12: Northern Cape | B12: 0.071 | C12: 0.173 | D12: 0.039 | E12: 0.03 | F12: 0.013 | G12: 0.108 | H12: 0.08 | I12: 0.126 | J12: 0.162 | K12: 0.095 | L12: 0.102 | M12: 1
A13: Western Cape | B13: 0.042 | C13: 0.002 | D13: 0.149 | E13: 0.026 | F13: 0.032 | G13: 0.139 | H13: 0.087 | I13: 0.264 | J13: 0.105 | K13: 0.054 | L13: 0.102 | M13: 1
A14: South Africab | B14: 0.028 | C14: 0.073 | D14: 0.123 | E14: 0.029 | F14: 0.022 | G14: 0.122 | H14: 0.068 | I14: 0.209 | J14: 0.147 | K14: 0.077 | L14: 0.102 | M14: 1
A15: Source: Stats SA, www.statssa.gov.za, Provincial gross domestic product 2023, Statistical release P0441.2, 19 September 2024, time series data, accessed 23 September 2024
A16: a At current market prices.
A17: b Figures should add up horizontally but may not, owing to rounding.

Sheet 2PCs Prov.contribution to GDP
A2: Provincial contribution to GDP, 2013 and 2022
B4: 2013 | C4: 2023
A5: Eastern Cape | B5: 0.08 | C5: 0.07650231646
A6: Free State | B6: 0.049 | C6: 0.02252795385
A7: Gauteng | B7: 0.332 | C7: 0.331694498
A8: KwaZulu-Natal | B8: 0.163 | C8: 0.1619692263
A9: Limpopo | B9: 0.073 | C9: 0.07822706086
A10: Mpumalanga | B10: 0.076 | C10: 0.07822706086
A11: North West | B11: 0.065 | C11: 0.06394496173
A12: Northern Cape | B12: 0.021 | C12: 0.02252795385
A13: Western Cape | B13: 0.141 | C13: 0.1401842244

Sheet GDP growth by province&industry
A2: GDP growtha by province and industry, 2023
A3: Province | B3: Agriculture | C3: Mining | D3: Manufacturing | E3: Electricity, gas and water | F3: Construction | G3: Trade | H3: Transport | I3: Finance | J3: Community, social, and personal services | K3: General government services | L3: Taxes less subsidies on products | M3: Total
A4: Eastern Cape | B4: -0.057 | C4: 0.005 | D4: -0.013 | E4: -0.038 | F4: -0.01 | G4: -0.009 | H4: 0.046 | I4: 0.02 | J4: 0.02 | K4: 0.002 | L4: 0.011 | M4: 0.008
A5: Free State | B5: -0.063 | C5: -0.01 | D5: 0.011 | E5: -0.044 | F5: -0.01 | G5: -0.026 | H5: 0.035 | I5: 0.016 | J5: 0.007 | K5: 0.012 | L5: 0.005 | M5: 0.001
A6: Gauteng | B6: -0.055 | C6: -0.007 | D6: -0.003 | E6: -0.034 | F6: -0.004 | G6: -0.024 | H6: 0.036 | I6: 0.014 | J6: 0.021 | K6: 0.004 | L6: 0.012 | M6: 0.007
A7: KwaZulu-Natal | B7: -0.044 | C7: 0.008 | D7: 0.016 | E7: -0.048 | F7: 0.001 | G7: -0.014 | H7: 0.05 | I7: 0.027 | J7: 0.008 | K7: 0.011 | L7: 0.012 | M7: 0.011
A8: Limpopo | B8: -0.054 | C8: -0.004 | D8: 0.006 | E8: -0.049 | F8: -0.002 | G8: -0.019 | H8: 0.04 | I8: 0.017 | J8: 0.024 | K8: 0.009 | L8: 0.007 | M8: 0.006
A9: Mpumalanga | B9: -0.045 | C9: -0.004 | D9: 0.004 | E9: -0.05 | F9: 0.004 | G9: -0.006 | H9: 0.034 | I9: 0.016 | J9: 0.019 | K9: 0.006 | L9: 0.006 | M9: 0.004
A10: North West | B10: -0.048 | C10: -0.007 | D10: -0.011 | E10: -0.037 | F10: -0.008 | G10: -0.029 | H10: 0.052 | I10: 0.023 | J10: 0.018 | K10: -0.001 | L10: 0.007 | M10: 0.003
A11: Northern Cape | B11: -0.026 | C11: 0.007 | D11: 0.013 | E11: -0.052 | F11: 0.009 | G11: -0.03 | H11: 0.031 | I11: 0.026 | J11: 0.011 | K11: -0.002 | L11: 0.008 | M11: 0.005
A12: Western Cape | B12: -0.047 | C12: -0.013 | D12: 0.007 | E12: -0.032 | F12: 0.006 | G12: -0.015 | H12: 0.045 | I12: 0.01 | J12: 0.027 | K12: 0.004 | L12: 0.011 | M12: 0.008
A13: South Africa | B13: -0.048 | C13: -0.005 | D13: 0.003 | E13: -0.04 | F13: -0.001 | G13: -0.018 | H13: 0.041 | I13: 0.016 | J13: 0.018 | K13: 0.005 | L13: 0.01 | M13: 0.007
A14: Source: Stats SA, www.statssa.gov.za, Provincial gross domestic product 2023, Statistical release P0441.2, 19 September 2024, time series data, accessed 23 September 2024
A15: a At constant 2015 prices.

Sheet BC GDP growth by province 19-23
B3: GDP growth by province, 2018-23
B4: 2019 | C4: 2023
A5: EC | B5: 0.001 | C5: 0.008
A6: FS | B6: -0.001 | C6: 0.001
A7: GAU | B7: 0.006 | C7: 0.007
A8: KZN | B8: 0.002 | C8: 0.011
A9: LIM | B9: 0.001 | C9: 0.006
A10: MPU | B10: -0.001 | C10: 0.004
A11: NW | B11: -0.002 | C11: 0.003
A12: NC | B12: -0.002 | C12: 0.005
A13: WC | B13: 0.004 | C13: 0.008
A14: SA | B14: 0.003 | C14: 0.007

Sheet Provin.contribution GDP 2023
B2: Provincial contribution to GDP, national population, employment and total tax revenue, 2023
B4: Province | C4: Contribution to GDP | D4: Contribution to national population | E4: Contribution to employment | F4: Contribution to individual total tax assessed a
B5: Eastern Cape | C5: 0.07650231646 | D5: 0.1049403529 | E5: 0.08833965496 | F5: 0.082
B6: Free State | C6: 0.02252795385 | D6: 0.04860074178 | E6: 0.04465924385 | F6: 0.047
B7: Gauteng | C7: 0.331694498 | D7: 0.2672318289 | E7: 0.3051511073 | F7: 0.357
B8: KwaZulu-Natal | C8: 0.1619692263 | D8: 0.1920267168 | E8: 0.1616297565 | F8: 0.158
B9: Limpopo | C9: 0.07822706086 | D9: 0.100075462 | E9: 0.08986908112 | F9: 0.051
B10: Mpumalanga | C10: 0.07822706086 | D10: 0.07928327152 | E10: 0.0708430197 | F10: 0.06
B11: North West | C11: 0.06394496173 | D11: 0.06849381051 | E11: 0.05389697785 | F11: 0.044
B12: Northern Cape | C12: 0.02252795385 | D12: 0.02100091518 | E12: 0.01969900893 | F12: 0.021
B13: Western Cape | C13: 0.1401842244 | D13: 0.1183308447 | E13: 0.1658509727 | F13: 0.18
B14: South Africa | C14: 1 | D14: 1 | E14: 1 | F14: 1
B15: Source: Stats SA, www.statssa.gov.za, Provincial gross domestic product 2023, Statistical release P0441.2, 19 September 2024, time series data, accessed 23 September 2024; General Household Survey 2023, Statistical release P0318, released 23 May 2024, p2; Quarterly Labour Force Survey Quarter 2 2023, Statistical release P0211, p5; SARS, Tax Statistics 2023, p54, accessed 24 September 2024
B16: a 2022 data. Based on where the taxpayer resides as submitted on income tax returns. The total includes an individual tax data where province data was insufficient.

Sheet Inflation and interest rates

Sheet Inflation and rates 86-23
A2: Inflation and interest rates
A4: Inflation and interest rates, 1986-2023
A6: Year | B6: Headline inflationa | C6: Change in producer price indexb | D6: Bank rate c/ repo rate | E6: Prime overdraft rate d | F6: Real prime overdraft rate e
A7: 1986 | B7: 0.187 | C7: 0.195 | D7: 0.095 | E7: 0.143 | F7: -0.036
A8: 1987 | B8: 0.161 | C8: 0.139 | D8: 0.095 | E8: 0.125 | F8: -0.032
A9: 1988 | B9: 0.129 | C9: 0.131 | D9: 0.118 | E9: 0.153 | F9: 0.023
A10: 1989 | B10: 0.147 | C10: 0.154 | D10: 0.168 | E10: 0.198 | F10: 0.045
A11: 1990 | B11: 0.144 | C11: 0.119 | D11: 0.18 | E11: 0.21 | F11: 0.045
A12: 1991 | B12: 0.153 | C12: 0.115 | D12: 0.172 | E12: 0.203 | F12: 0.043
A13: 1992 | B13: 0.139 | C13: 0.082 | D13: 0.154 | E13: 0.188 | F13: 0.043
A14: 1993 | B14: 0.097 | C14: 0.066 | D14: 0.128 | E14: 0.162 | F14: 0.059
A15: 1994 | B15: 0.09 | C15: 0.083 | D15: 0.123 | E15: 0.158 | F15: 0.061
A16: 1995 | B16: 0.087 | C16: 0.094 | D16: 0.145 | E16: 0.179 | F16: 0.085
A17: 1996 | B17: 0.074 | C17: 0.07 | D17: 0.159 | E17: 0.195 | F17: 0.114
A18: 1997 | B18: 0.086 | C18: 0.07 | D18: 0.168 | E18: 0.2 | F18: 0.105
A19: 1998 | B19: 0.069 | C19: 0.036 | D19: 19.4%f | E19: 0.218 | F19: 0.14
A20: 1999 | B20: 0.051 | C20: 0.058 | D20: 0.148 | E20: 0.18 | F20: 0.121
A21: 2000 | B21: 0.053 | C21: 0.092 | D21: 0.118 | E21: 0.145 | F21: 0.087
A22: 2001 | B22: 0.057 | C22: 0.084 | D22: 0.11 | E22: 0.138 | F22: 0.076
A23: 2002 | B23: 0.092 | C23: 0.142 | D23: 0.121 | E23: 0.158 | F23: 0.061
A24: 2003 | B24: 0.058 | C24: 0.017 | D24: 0.117 | E24: 0.15 | F24: 0.088
A25: 2004 | B25: 0.014 | C25: 0.006 | D25: 0.113 | E25: 0.113 | F25: 0.123
A26: 2005 | B26: 0.034 | C26: 0.031 | D26: 0.071 | E26: 0.106 | F26: 0.083
A27: 2006 | B27: 0.047 | C27: 0.077 | D27: 0.076 | E27: 0.111 | F27: 0.077
A28: 2007 | B28: 0.071 | C28: 0.1 | D28: 0.096 | E28: 0.131 | F28: 0.067
A29: 2008 | B29: 0.115 | C29: 0.142 | D29: 0.116 | E29: 0.151 | F29: 0.047
A30: 2009 | B30: 0.071 | C30: -0.001 | D30: 0.084 | E30: 0.119 | F30: 0.042
A31: 2010 | B31: 0.042 | C31: 0.058 | D31: 0.064 | E31: 0.099 | F31: 0.053
A32: 2011 | B32: 0.051 | C32: 0.084 | D32: 0.055 | E32: 0.09 | F32: 0.038
A33: 2012 | B33: 0.055 | C33: 0.07 | D33: 0.052 | E33: 0.088 | F33: 0.029
A34: 2013 | B34: 0.059 | C34: 0.06 | D34: 0.05 | E34: 0.09 | F34: 0.026
A35: 2014 | B35: 0.06 | C35: 0.075 | D35: 0.056 | E35: 0.091 | F35: 0.029
A36: 2015 | B36: 0.047 | C36: 0.036 | D36: 0.059 | E36: 0.094 | F36: 0.046
A37: 2016 | B37: 0.063 | C37: 0.07 | D37: 0.0694 | E37: 0.1041 | F37: 0.0389
A38: 2017 | B38: 0.052 | C38: 0.048 | D38: 0.069 | E38: 0.1039 | F38: 0.0494
A39: 2018 | B39: 0.047 | C39: 0.055 | D39: 0.0675 | E39: 0.1025 | F39: 0.0523
A40: 2019 | B40: 0.04 | C40: 0.046 | D40: 0.065 | E40: 0.1014 | F40: 0.0575
A41: 2020 | B41: 0.033 | C41: 0.026 | D41: 0.035 | E41: 0.079 | F41: 0.043
A42: 2021 | B42: 0.045 | C42: 0.071 | D42: 0.035 | E42: 0.0703 | F42: 0.0238
A43: 2022 | B43: 0.069 | C43: 0.144 | D43: 0.051 | E43: 0.086 | F43: 0.018
A44: 2023 | B44: 0.06 | C44: 0.067 | D44: 0.079 | E44: 0.114 | F44: 0.053
A45: Source: Stats SA, Consumer Price Index, timeseries accessed 6 August 2024; Producer Price Index, timeseries accessed 6 August 2024; SARB, www.resbank.co.za, time series data, accessed 6 August 2024;
A46: a This is the Consumer Price Index (CPI). Base year Dec 2021 = 100.
A47: b All-items up to 2011, PPI for final manufactured goods from 2012. Base year Dec 2023 = 100
A48: c Rate at which the Reserve Bank lends to commercial banks.
A49: d Lowest overdraft rate charged by banks (average for the year).
A50: e Average prime overdraft rate adjusted for rebased inflation.
A51: f Average repo rate for 1998 (March to December). The repo rate replaced bank rate in March 1998. In terms of the repo (repurchase) rate system, the Reserve Bank dictates the amount of liquidity it is willing to supply to banks, and lets the market settle on the interest rate.

Sheet LG Inflation rates 81-23
A1: Inflation rates, 1981–23
B2: CPI | C2: PPI
A3: 1981 | B3: 0.152 | C3: 0.135
A4: 1982 | B4: 0.147 | C4: 0.139
A5: 1983 | B5: 0.124 | C5: 0.105
A6: 1984 | B6: 0.116 | C6: 0.084
A7: 1985 | B7: 0.161 | C7: 0.17
A8: 1986 | B8: 0.187 | C8: 0.195
A9: 1987 | B9: 0.161 | C9: 0.139
A10: 1988 | B10: 0.129 | C10: 0.131
A11: 1989 | B11: 0.147 | C11: 0.154
A12: 1990 | B12: 0.144 | C12: 0.119
A13: 1991 | B13: 0.153 | C13: 0.115
A14: 1992 | B14: 0.139 | C14: 0.082
A15: 1993 | B15: 0.097 | C15: 0.066
A16: 1994 | B16: 0.09 | C16: 0.083
A17: 1995 | B17: 0.087 | C17: 0.094
A18: 1996 | B18: 0.074 | C18: 0.07
A19: 1997 | B19: 0.086 | C19: 0.07
A20: 1998 | B20: 0.069 | C20: 0.036
A21: 1999 | B21: 0.051 | C21: 0.058
A22: 2000 | B22: 0.053 | C22: 0.092
A23: 2001 | B23: 0.057 | C23: 0.084
A24: 2002 | B24: 0.092 | C24: 0.142
A25: 2003 | B25: 0.058 | C25: 0.017
A26: 2004 | B26: 0.014 | C26: 0.006
A27: 2005 | B27: 0.034 | C27: 0.031
A28: 2006 | B28: 0.047 | C28: 0.077
A29: 2007 | B29: 0.071 | C29: 0.1
A30: 2008 | B30: 0.115 | C30: 0.142
A31: 2009 | B31: 0.071 | C31: -0.001
A32: 2010 | B32: 0.043 | C32: 0.058
A33: 2011 | B33: 0.05 | C33: 0.084
A34: 2012 | B34: 0.057 | C34: 0.07
A35: 2013 | B35: 0.057 | C35: 0.06
A36: 2014 | B36: 0.061 | C36: 0.075
A37: 2015 | B37: 0.046 | C37: 0.036
A38: 2016 | B38: 0.064 | C38: 0.07
A39: 2017 | B39: 0.053 | C39: 0.048
A40: 2018 | B40: 0.047 | C40: 0.055
A41: 2019 | B41: 0.041 | C41: 0.046
A42: 2020 | B42: 0.033 | C42: 0.026
A43: 2021 | B43: 0.045 | C43: 0.071
A44: 2022 | B44: 0.069 | C44: 0.144
A45: 2023 | B45: 0.06 | C45: 0.067

Sheet LG Interest rates 81-23
B2: Prime overdraft rate | C2: Real prime overdraft rate
A3: 1981 | B3: 0.14 | C3: -0.011
A4: 1982 | B4: 0.193 | C4: 0.041
A5: 1983 | B5: 0.167 | C5: 0.039
A6: 1984 | B6: 0.223 | C6: 0.097
A7: 1985 | B7: 0.215 | C7: 0.045
A8: 1986 | B8: 0.143 | C8: -0.036
A9: 1987 | B9: 0.125 | C9: -0.032
A10: 1988 | B10: 0.153 | C10: 0.023
A11: 1989 | B11: 0.198 | C11: 0.045
A12: 1990 | B12: 0.21 | C12: 0.045
A13: 1991 | B13: 0.203 | C13: 0.043
A14: 1992 | B14: 0.188 | C14: 0.043
A15: 1993 | B15: 0.162 | C15: 0.059
A16: 1994 | B16: 0.158 | C16: 0.061
A17: 1995 | B17: 0.179 | C17: 0.085
A18: 1996 | B18: 0.195 | C18: 0.114
A19: 1997 | B19: 0.2 | C19: 0.105
A20: 1998 | B20: 0.218 | C20: 0.14
A21: 1999 | B21: 0.18 | C21: 0.121
A22: 2000 | B22: 0.145 | C22: 0.087
A23: 2001 | B23: 0.138 | C23: 0.076
A24: 2002 | B24: 0.158 | C24: 0.061
A25: 2003 | B25: 0.15 | C25: 0.088
A26: 2004 | B26: 0.113 | C26: 0.123
A27: 2005 | B27: 0.106 | C27: 0.083
A28: 2006 | B28: 0.111 | C28: 0.077
A29: 2007 | B29: 0.131 | C29: 0.067
A30: 2008 | B30: 0.151 | C30: 0.047
A31: 2009 | B31: 0.119 | C31: 0.042
A32: 2010 | B32: 0.099 | C32: 0.053
A33: 2011 | B33: 0.09 | C33: 0.038
A34: 2012 | B34: 0.088 | C34: 0.029
A35: 2013 | B35: 0.09 | C35: 0.026
A36: 2014 | B36: 0.091 | C36: 0.029
A37: 2015 | B37: 0.094 | C37: 0.046
A38: 2016 | B38: 0.1041 | C38: 0.0389
A39: 2017 | B39: 0.1039 | C39: 0.0494
A40: 2018 | B40: 0.1025 | C40: 0.0523
A41: 2019 | B41: 0.101 | C41: 0.058
A42: 2020 | B42: 0.079 | C42: 0.043
A43: 2021 | B43: 0.07 | C43: 0.024
A44: 2022 | B44: 0.086 | C44: 0.018
A45: 2023 | B45: 0.114 | C45: 0.053

Sheet CPI by province & area
A2: CPI by province and areaa, 2017-23
A5: Province | B5: Weight | C5: 2018 | D5: 2019 | E5: 2020 | F5: 2021 | G5: 2022 | H5: 2023
A6: Eastern Cape | B6: 0.0803 | C6: 0.044 | D6: 0.037 | E6: 0.031 | F6: 0.048 | G6: 0.075 | H6: 0.064
A7: Free State | B7: 0.0595 | C7: 0.043 | D7: 0.041 | E7: 0.03 | F7: 0.045 | G7: 0.073 | H7: 0.068
A8: Gauteng | B8: 0.3629 | C8: 0.048 | D8: 0.04 | E8: 0.03 | F8: 0.045 | G8: 0.069 | H8: 0.056
A9: KwaZulu-Natal | B9: 0.1268 | C9: 0.039 | D9: 0.038 | E9: 0.032 | F9: 0.046 | G9: 0.072 | H9: 0.067
A10: Limpopo | B10: 0.057 | C10: 0.037 | D10: 0.044 | E10: 0.032 | F10: 0.047 | G10: 0.076 | H10: 0.058
A11: Mpumalanga | B11: 0.0689 | C11: 0.04 | D11: 0.04 | E11: 0.03 | F11: 0.044 | G11: 0.073 | H11: 0.066
A12: North West | B12: 0.0531 | C12: 0.036 | D12: 0.036 | E12: 0.031 | F12: 0.052 | G12: 0.069 | H12: 0.061
A13: Northern Cape | B13: 0.0193 | C13: 0.039 | D13: 0.041 | E13: 0.034 | F13: 0.047 | G13: 0.074 | H13: 0.064
A14: Western Cape | B14: 0.1721 | C14: 0.053 | D14: 0.049 | E14: 0.039 | F14: 0.047 | G14: 0.066 | H14: 0.063
A15: South Africa | B15: 1 | C15: 0.047 | D15: 0.041 | E15: 0.033 | F15: 0.045 | G15: 0.069 | H15: 0.06
A16: Area
A17: Rural areasb | B17: 0.1223 | C17: 0.035 | D17: 0.041 | E17: 0.029 | F17: 0.049 | G17: 0.08 | H17: 0.074
A18: South Africa | B18: 1 | C18: 0.047 | D18: 0.041 | E18: 0.033 | F18: 0.045 | G18: 0.069 | H18: 0.06
A19: Source: Stats SA, email communication, 19 June 2024
A20: a Geographic indices.
A21: b The CPI for rural areas is compiled using data from rural and urban areas in accordance with the purchasing patterns of rural areas.

Sheet PC Components of CPI 2023
B2: Componentsa of the CPI, 2023
C4: Componentsa of the CPI, 2023
B5: Housing and utilities | C5: 0.2449
B6: Transport | C6: 0.1435
B7: Food and non-alcoholic beverages | C7: 0.1714
B8: Insurance and other services | C8: 0.1481
B9: Household contents and services | C9: 0.0437
B10: Alcohol and tobacco | C10: 0.0626
B11: Recreation and culture | C11: 0.052
B12: Clothing and footwear | C12: 0.0365
B13: Communication | C13: 0.0242
B14: Restaurants and hotels | C14: 0.0325
B15: Education | C15: 0.0262
B16: Health | C16: 0.0144
A18: a Weights represent the relative importance of the indicator product in a subgroup. The weight of a product is calculated by dividing the total expenditure of households on that product by the total expenditure of households on all goods and services. Stats SA will update the CPI basket of goods and services and respective weights in the January 2025 CPI release. This update will mainly be based on the results of the income and expenditure survey which completed fieldwork in November 2023.

Sheet Group & product inflation
A2: Group and product inflation for all urban areas, 2018-23
B4: Weight | C4: 2018 | D4: 2019 | E4: 2020 | F4: 2021 | G4: 2022 | H4: 2023
A5: Food | B5: 0.153 | C5: 0.033 | D5: 0.031 | E5: 0.048 | F5: 0.064 | G5: 0.095 | H5: 0.109
A6: Bread and cereals | B6: 0.0316 | C6: -0.026 | D6: 0.071 | E6: 0.037 | F6: 0.04 | G6: 0.121 | H6: 0.141
A7: Meat | B7: 0.0542 | C7: 0.068 | D7: 0.004 | E7: 0.051 | F7: 0.085 | G7: 0.093 | H7: 0.065
A8: Fish | B8: 0.004 | C8: 0.056 | D8: 0.064 | E8: 0.044 | F8: 0.056 | G8: 0.076 | H8: 0.094
A9: Milk, cheese and eggs | B9: 0.0253 | C9: 0.038 | D9: 0.017 | E9: 0.053 | F9: 0.06 | G9: 0.067 | H9: 0.132
A10: Oils and fats | B10: 0.0045 | C10: -0.007 | D10: 0.028 | E10: 0.073 | F10: 0.186 | G10: 0.269 | H10: -0.012
A11: Fruit | B11: 0.0033 | C11: -0.045 | D11: 0.046 | E11: 0.113 | F11: -0.012 | G11: -0.001 | H11: 0.049
A12: Vegetables | B12: 0.0127 | C12: 0.056 | D12: 0.062 | E12: 0.02 | F12: 0.041 | G12: 0.068 | H12: 0.192
A13: Sugar, sweets and desserts | B13: 0.0058 | C13: -0.005 | D13: 0.056 | E13: 0.073 | F13: 0.064 | G13: 0.062 | H13: 0.15
A14: Other food | B14: 0.0116 | C14: 0.021 | D14: 0.04 | E14: 0.037 | F14: 0.043 | G14: 0.093 | H14: 0.134
A15: Non-alcoholic beverages | B15: 0.0184 | C15: 0.063 | D15: 0.063 | E15: 0.027 | F15: 0.032 | G15: 0.061 | H15: 0.092
A16: Hot beverages | B16: 0.0065 | C16: 0.042 | D16: 0.027 | E16: 0.037 | F16: 0.036 | G16: 0.077 | H16: 0.105
A17: Cold beverages | B17: 0.0117 | C17: 0.073 | D17: 0.086 | E17: 0.02 | F17: 0.03 | G17: 0.053 | H17: 0.084
A18: Alcoholic beverages and tobacco | B18: 0.0626 | C18: 0.054 | D18: 0.056 | E18: 0.033 | F18: 0.046 | G18: 0.059 | H18: 0.059
A19: Spirits and liqueurs | B19: 0.0094 | C19: 0.065 | D19: 0.061 | E19: 0.035 | F19: 0.042 | G19: 0.061 | H19: 0.072
A20: Wine | B20: 0.0114 | C20: 0.068 | D20: 0.082 | E20: 0.046 | F20: 0.064 | G20: 0.067 | H20: 0.081
A21: Beer | B21: 0.0221 | C21: 0.066 | D21: 0.044 | E21: 0.013 | F21: 0.038 | G21: 0.063 | H21: 0.053
A22: Tobacco | B22: 0.0197 | C22: 0.028 | D22: 0.052 | E22: 0.047 | F22: 0.046 | G22: 0.048 | H22: 0.049
A23: Clothing and footwear | B23: 0.0365 | C23: 0.017 | D23: 0.02 | E23: 0.009 | F23: 0.013 | G23: 0.022 | H23: 0.028
A24: Clothing | B24: 0.0264 | C24: 0.02 | D24: 0.022 | E24: 0.011 | F24: 0.012 | G24: 0.023 | H24: 0.029
A25: Footwear | B25: 0.0101 | C25: 0.012 | D25: 0.013 | E25: 0.004 | F25: 0.017 | G25: 0.02 | H25: 0.023
A26: Housing and utilities | B26: 0.2449 | C26: 0.048 | D26: 0.049 | E26: 0.037 | F26: 0.032 | G26: 0.045 | H26: 0.047
A27: Actual rentals for housing | B27: 0.035 | C27: 0.045 | D27: 0.037 | E27: 0.021 | F27: 0.009 | G27: 0.022 | H27: 0.026
A28: Owners’ equivalent rent | B28: 0.1299 | C28: 0.039 | D28: 0.03 | E28: 0.019 | F28: 0.011 | G28: 0.027 | H28: 0.028
A29: Maintenance and repair | B29: 0.0084 | C29: 0.03 | D29: 0.039 | E29: 0.024 | F29: 0.039 | G29: 0.048 | H29: 0.059
A30: Water and other services | B30: 0.0346 | C30: 0.091 | D30: 0.09 | E30: 0.066 | F30: 0.05 | G30: 0.05 | H30: 0.064
A31: Electricity and other fuels | B31: 0.037 | C31: 0.053 | D31: 0.094 | E31: 0.09 | F31: 0.101 | G31: 0.111 | H31: 0.117
A32: Household contents and services | B32: 0.0437 | C32: 0.027 | D32: 0.031 | E32: 0.02 | F32: 0.014 | G32: 0.044 | H32: 0.05
A33: Furnishing, floor coverings and textiles | B33: 0.0082 | C33: -0.029 | D33: -0.009 | E33: -0.022 | F33: -0.005 | G33: 0.019 | H33: 0.01
A34: Appliances, tableware and equipment | B34: 0.0067 | C34: -0.003 | D34: 0.014 | E34: 0.008 | F34: 0.002 | G34: 0.044 | H34: 0.044
A35: Supplies and services | B35: 0.0288 | C35: 0.048 | D35: 0.046 | E35: 0.034 | F35: 0.021 | G35: 0.051 | H35: 0.061
A36: — domestic workers’ wages | B36: 0.0253 | C36: 0.051 | D36: 0.049 | E36: 0.041 | F36: 0.022 | G36: 0.034 | H36: 0.048
A37: Health | B37: 0.0144 | C37: 0.05 | D37: 0.049 | E37: 0.044 | F37: 0.037 | G37: 0.046 | H37: 0.059
A38: Medical products | B38: 0.0057 | C38: 0.036 | D38: 0.04 | E38: 0.035 | F38: 0.039 | G38: 0.043 | H38: 0.061
A39: Medical services | B39: 0.0087 | C39: 0.061 | D39: 0.055 | E39: 0.049 | F39: 0.034 | G39: 0.05 | H39: 0.056
A40: Transport | B40: 0.1435 | C40: 0.07 | D40: 0.036 | E40: -0.005 | F40: 0.094 | G40: 0.171 | H40: 0.05
A41: Purchase of vehicles | B41: 0.0591 | C41: 0.031 | D41: 0.036 | E41: 0.039 | F41: 0.049 | G41: 0.06 | H41: 0.077
A42: Private transport operation | B42: 0.0601 | C42: 0.121 | D42: 0.025 | E42: -0.05 | F42: 0.157 | G42: 0.284 | H42: 0.017
A43: — fuel | B43: 0.0482 | C43: 0.145 | D43: 0.022 | E43: -0.07 | F43: 0.182 | G43: 0.343 | H43: 0.006
A44: — other running costs | B44: 0.0119 | C44: 0.032 | D44: 0.043 | E44: 0.032 | F44: 0.06 | G44: 0.06 | H44: 0.067
A45: Public transport | B45: 0.0243 | C45: 0.039 | D45: 0.071 | E45: 0.005 | F45: 0.053 | G45: 0.171 | H45: 0.071
A46: Communication | B46: 0.0243 | C46: 0.006 | D46: 0.002 | E46: -0.002 | F46: -0.005 | G46: -0.006 | H46: -0.003
A47: Postal and telecommunication services | B47: 0.0223 | C47: 0.017 | D47: 0.009 | E47: 0 | F47: -0.001 | G47: 0.001 | H47: 0.001
A48: Telecommunication equipment | B48: 0.0019 | C48: -0.155 | D48: -0.091 | E48: -0.039 | F48: -0.086 | G48: -0.113 | H48: -0.045
A49: Recreation and culture | B49: 0.052 | C49: 0.007 | D49: 0.01 | E49: 0.01 | F49: 0.016 | G49: 0.025 | H49: 0.034
A50: Recreational equipment | B50: 0.0128 | C50: -0.03 | D50: -0.003 | E50: 0.008 | F50: 0.028 | G50: 0.035 | H50: 0.03
A51: Recreational and cultural services | B51: 0.0314 | C51: 0.01 | D51: 0.009 | E51: 0.006 | F51: 0.007 | G51: 0.016 | H51: 0.022
A52: Books, newspapers and stationery | B52: 0.0061 | C52: 0.061 | D52: 0.054 | E52: 0.051 | F52: 0.045 | G52: 0.048 | H52: 0.105
A53: Package holidays | B53: 0.0017 | C53: 0.004 | D53: -0.051 | E53: -0.06 | F53: -0.03 | G53: 0.033 | H53: 0.055
A54: Education | B54: 0.0262 | C54: 0.069 | D54: 0.067 | E54: 0.064 | F54: 0.045 | G54: 0.043 | H54: 0.055
A55: Primary and secondary education | B55: 0.0157 | C55: 0.076 | D55: 0.07 | E55: 0.074 | F55: 0.041 | G55: 0.043 | H55: 0.058
A56: Tertiary | B56: 0.0105 | C56: 0.053 | D56: 0.06 | E56: 0.05 | F56: 0.051 | G56: 0.043 | H56: 0.051
A57: Restaurants and hotels | B57: 0.0325 | C57: 0.041 | D57: 0.034 | E57: 0.005 | F57: 0.023 | G57: 0.066 | H57: 0.06
A58: Restaurants | B58: 0.022 | C58: 0.063 | D58: 0.043 | E58: 0.025 | F58: 0.034 | G58: 0.066 | H58: 0.068
A59: Hotels | B59: 0.0105 | C59: -0.007 | D59: 0.014 | E59: -0.036 | F59: -0.004 | G59: 0.069 | H59: 0.042
A60: Miscellaneous goods and services | B60: 0.1481 | C60: 0.059 | D60: 0.054 | E60: 0.065 | F60: 0.043 | G60: 0.04 | H60: 0.059
A61: Personal care | B61: 0.021 | C61: 0.015 | D61: 0.021 | E61: 0.008 | F61: 0.014 | G61: 0.061 | H61: 0.108
A62: Insurance | B62: 0.0989 | C62: 0.072 | D62: 0.067 | E62: 0.076 | F62: 0.048 | G62: 0.04 | H62: 0.059
A63: Financial services | B63: 0.0153 | C63: 0.065 | D63: 0.04 | E63: 0.071 | F63: 0.046 | G63: 0.036 | H63: 0.026
A64: Other services | B64: 0.0129 | C64: 0.034 | D64: 0.023 | E64: 0.047 | F64: 0.043 | G64: 0.009 | H64: 0.01
A65: ALL ITEMS | B65: 1 | C65: 0.047 | D65: 0.04 | E65: 0.033 | F65: 0.045 | G65: 0.069 | H65: 0.06
A66: Source: Stats SA, email communication, 19 June 2024

Sheet CPI per expenditure decile
A2: CPI per expenditure decile, 2017-23
A4: Decile | B4: Expenditure | C4: Weight | D4: 2018 | E4: 2019 | F4: 2020 | G4: 2021 | H4: 2022 | I4: 2023
A5: 1 | B5: up to R20 140 | C5: 0.0048 | D5: 0.028 | E5: 0.049 | F5: 0.038 | G5: 0.053 | H5: 0.086 | I5: 0.095
A6: 2 | B6: R20 141 - R33 619 | C6: 0.011 | D6: 0.03 | E6: 0.044 | F6: 0.038 | G6: 0.052 | H6: 0.08 | I6: 0.09
A7: 3 | B7: R33 620 - R48 673 | C7: 0.0185 | D7: 0.035 | E7: 0.04 | F7: 0.034 | G7: 0.046 | H7: 0.072 | I7: 0.078
A8: 4 | B8: R48 674 - R65 213 | C8: 0.0278 | D8: 0.036 | E8: 0.04 | F8: 0.032 | G8: 0.043 | H8: 0.067 | I8: 0.068
A9: 5 | B9: R65 214 - R84 698 | C9: 0.0388 | D9: 0.037 | E9: 0.039 | F9: 0.031 | G9: 0.04 | H9: 0.065 | I9: 0.067
A10: 6 | B10: R 84 699 - R109 163 | C10: 0.0558 | D10: 0.039 | E10: 0.036 | F10: 0.029 | G10: 0.038 | H10: 0.063 | I10: 0.062
A11: 7 | B11: R109 164 - R143 174 | C11: 0.079 | D11: 0.043 | E11: 0.038 | F11: 0.029 | G11: 0.042 | H11: 0.067 | I11: 0.061
A12: 8 | B12: R143 175 - R199 920 | C12: 0.1127 | D12: 0.045 | E12: 0.039 | F12: 0.029 | G12: 0.044 | H12: 0.07 | I12: 0.058
A13: 9 | B13: R199 921 - R312 246 | C13: 0.1645 | D13: 0.051 | E13: 0.042 | F13: 0.032 | G13: 0.047 | H13: 0.072 | I13: 0.057
A14: 10 | B14: R 312 247 and more | C14: 0.4871 | D14: 0.049 | E14: 0.044 | F14: 0.034 | G14: 0.047 | H14: 0.068 | I14: 0.056
A15: Source: Stats SA, email communication, 19 June 2024

Sheet CPI, admin, core, food
B2: CPI, CPI for administered prices, core inflation and food, 2010-23
B4: Year | C4: Headline inflation | D4: — CPI for administered prices— | F4: Core inflation | G4: Food inflation
D5: Regulated | E5: Total
B6: 2009 | C6: 0.071 | D6: -0.007 | E6: 0.023 | F6: 0.073 | G6: 0.091
B7: 2010 | C7: 0.042 | D7: 2.107 | E7: 0.101 | F7: 0.041 | G7: 0.008
B8: 2011 | C8: 0.051 | D8: 0.134 | E8: 0.117 | F8: 0.035 | G8: 0.075
B9: 2012 | C9: 0.055 | D9: 0.109 | E9: 0.099 | F9: 0.045 | G9: 0.072
B10: 2013 | C10: 0.059 | D10: 0.091 | E10: 0.088 | F10: 0.053 | G10: 0.059
B11: 2014 | C11: 0.06 | D11: 0.061 | E11: 0.067 | F11: 0.055 | G11: 0.078
B12: 2015 | C12: 0.047 | D12: -0.006 | E12: 0.018 | F12: 0.056 | G12: 0.052
B13: 2016 | C13: 0.063 | D13: 0.052 | E13: 0.052 | F13: 0.056 | G13: 0.108
B14: 2017 | C14: 0.052 | D14: 0.056 | E14: 0.057 | F14: 0.047 | G14: 0.069
B15: 2018 | C15: 0.047 | D15: 0.089 | E15: 0.085 | F15: 0.043 | G15: 0.033
B16: 2019 | C16: 0.04 | D16: 0.051 | E16: 0.057 | F16: 0.041 | G16: 0.031
B17: 2020 | C17: 0.033 | D17: 0.011 | E17: 0.024 | F17: 0.034 | G17: 0.047
B18: 2021 | C18: 0.045 | D18: 0.113 | E18: 0.092 | F18: 0.03 | G18: 0.064
B19: 2022 | C19: 0.069 | D19: 0.179 | E19: 0.14 | F19: 0.044 | G19: 0.095
B20: 2023 | C20: 0.06 | D20: 0.046 | E20: 0.048 | F20: 0.049 | G20: 0.109
B21: Source: Stats SA, email communication, 19 June 2024

Sheet Admin. prices inflation
A2: Administered prices average annual inflation, 2019-23
A4: Petrol | B4: CPI weight | C4: 2019 | D4: 2020 | E4: 2021 | F4: 2022 | G4: 2023
A5: Unleaded petrol | B5: 0.033 | C5: 0.019 | D5: -0.065 | E5: 0.259 | F5: 0.2993 | G5: 0.2993
A6: Municipal prices
A7: Water supply | B7: 0.0108 | C7: 0.112 | D7: 0.102 | E7: 0.038 | F7: 0.075 | G7: 0.089
A8: Refuse collection | B8: — | C8: — | D8: — | E8: — | F8: — | G8: —
A9: Sewerage collection | B9: — | C9: — | D9: — | E9: — | F9: — | G9: —
A10: Assessment rates | B10: 0.013 | C10: 0.104 | D10: 0.054 | E10: 0.038 | F10: 0.0384 | G10: 0.059
A11: Electricity | B11: 0.0375 | C11: 0.096 | D11: 0.091 | E11: 0.115 | F11: 0.1074 | G11: 0.117
A12: Education
A13: Primary school fees | B13: 0.0076 | C13: 0.07 | D13: 0.072 | E13: 0.025 | F13: 0.0402 | G13: 0.06
A14: Secondary school fees | B14: 0.0078 | C14: 0.07 | D14: 0.075 | E14: 0.043 | F14: 0.0461 | G14: 0.057
A15: University fees | B15: 0.0099 | C15: 0.061 | D15: 0.049 | E15: 0.065 | F15: 0.0438 | G15: 0.051
A16: Licences
A17: Licence issue and application fees | B17: — | C17: — | D17: — | E17: — | F17: — | G17: —
A18: Motor vehicle registration fees | B18: — | C18: — | D18: — | E18: — | F18: — | G18: —
A19: Motor vehicle registration fees and licensing | B19: 0.0013 | C19: 0.056 | D19: 0.025 | E19: 0.001 | F19: 0.0234 | G19: 0.027
A20: Television licences | B20: 0.0004 | C20: 0 | D20: 0 | E20: 0 | F20: 0 | G20: 0
A21: Communication
A22: Telephone fees | B22: 0.0009 | C22: 0.004 | D22: 0.002 | E22: 0 | F22: 0.0009 | G22: 0.006
A23: Cellphone fees | B23: 0.0222 | C23: 0.01 | D23: 0.001 | E23: 0 | F23: -0.0003 | G23: -0.001
A24: Other
A25: University boarding fees | B25: 0.0006 | C25: 0.103 | D25: 0.067 | E25: 0.051 | F25: 0.0642 | G25: 0.066
A26: Train fees | B26: 0.0009 | C26: 0.018 | D26: 0.004 | E26: 0.024 | F26: 0.0226 | G26: 0.031
A27: Stamps | B27: – | C27: — | D27: — | E27: — | F27: — | G27: —
A28: Paraffin | B28: 0.0005 | C28: 0.031 | D28: — | E28: — | F28: 0.2784 | G28: 0.163
A29: Total administered prices | B29: 0.1617 | C29: 0.057 | D29: 0.024 | E29: 0.092 | F29: 0.14 | G29: 0.048
A30: Source: Stats SA, email communication, 13 March 2024

Sheet Repurchase (repo) rate
B2: Repurchase (repo) rate, dates of change
B4: Date | C4: Rate | D4: Date | E4: Rate
B5: 1999-11-25 | C5: 0.12 | D5: 2009-05-29 | E5: 0.075
B6: 2000-01-14 | C6: 0.1175 | D6: 2009-08-14 | E6: 0.07
B7: 2000-10-17 | C7: 0.12 | D7: 2010-03-26 | E7: 0.065
B8: 2001-06-15 | C8: 0.11 | D8: 2010-09-10 | E8: 0.06
B9: 2001-09-05 | C9: 0.1 | D9: 2010-11-19 | E9: 0.055
B10: 2001-09-21 | C10: 0.095 | D10: 2012-07-20 | E10: 0.05
B11: 2002-01-16 | C11: 0.105 | D11: 2014-01-30 | E11: 0.055
B12: 2002-03-15 | C12: 0.115 | D12: 2014-07-18 | E12: 0.0575
B13: 2002-06-14 | C13: 0.125 | D13: 2015-07-24 | E13: 0.06
B14: 2002-09-13 | C14: 0.135 | D14: 2015-11-20 | E14: 0.0625
B15: 2003-06-13 | C15: 0.12 | D15: 2016-01-29 | E15: 0.0675
B16: 2003-08-15 | C16: 0.11 | D16: 2016-03-18 | E16: 0.07
B17: 2003-09-11 | C17: 0.1 | D17: 2017-07-21 | E17: 0.0725
B18: 2003-10-17 | C18: 0.085 | D18: 2018-03-29 | E18: 0.065
B19: 2003-12-12 | C19: 0.08 | D19: 2018-11-23 | E19: 0.0675
B20: 2004-08-13 | C20: 0.075 | D20: 2019-07-19 | E20: 0.065
B21: 2005-04-14 | C21: 0.07 | D21: 2020-01-17 | E21: 0.0625
B22: 2006-06-08 | C22: 0.075 | D22: 2020-03-20 | E22: 0.0525
B23: 2006-08-03 | C23: 0.08 | D23: 2020-04-15 | E23: 0.0425
B24: 2006-10-13 | C24: 0.085 | D24: 2020-05-22 | E24: 0.0375
B25: 2006-12-08 | C25: 0.09 | D25: 2020-07-24 | E25: 0.035
B26: 2007-06-08 | C26: 0.095 | D26: 2021-11-19 | E26: 0.0375
B27: 2007-08-17 | C27: 0.1 | D27: 2022-01-28 | E27: 0.04
B28: 2007-10-12 | C28: 0.105 | D28: 2022-03-25 | E28: 0.0425
B29: 2007-12-07 | C29: 0.11 | D29: 2022-05-20 | E29: 0.0475
B30: 2008-04-11 | C30: 0.115 | D30: 2022-07-22 | E30: 0.055
B31: 2008-06-13 | C31: 0.12 | D31: 2022-09-23 | E31: 0.0625
B32: 2008-12-12 | C32: 0.115 | D32: 2022-11-25 | E32: 0.07
B33: 2009-02-06 | C33: 0.105 | D33: 2023-01-27 | E33: 0.0725
B34: 2009-03-25 | C34: 0.095 | D34: 2023-03-31 | E34: 0.0775
B35: 2009-05-04 | C35: 0.085 | D35: 2023-05-26 | E35: 0.0825
B36: Source: SARB, www.resbank.co.za, time series data, accessed 15 August 2024
B47: Source: SARB, www.resbank.co.za, time series data, accessed 3 November 2022

Sheet BC.Repurchase (repo) rate
A1: LG
A2: Repurchase (repo) rate, dates of change
B3: Repurchase (repo) rate, dates of change
A4: 1999-11-25 | B4: 0.12
A5: 2000-01-14 | B5: 0.1175
A6: 2000-10-17 | B6: 0.12
A7: 2001-06-15 | B7: 0.11
A8: 2001-09-05 | B8: 0.1
A9: 2001-09-21 | B9: 0.095
A10: 2002-01-16 | B10: 0.105
A11: 2002-03-15 | B11: 0.115
A12: 2002-06-14 | B12: 0.125
A13: 2002-09-13 | B13: 0.135
A14: 2003-06-13 | B14: 0.12
A15: 2003-08-15 | B15: 0.11
A16: 2003-09-11 | B16: 0.1
A17: 2003-10-17 | B17: 0.085
A18: 2003-12-12 | B18: 0.08
A19: 2004-08-13 | B19: 0.075
A20: 2005-04-14 | B20: 0.07
A21: 2006-06-08 | B21: 0.075
A22: 2006-08-03 | B22: 0.08
A23: 2006-10-13 | B23: 0.085
A24: 2006-12-08 | B24: 0.09
A25: 2007-06-08 | B25: 0.095
A26: 2007-08-17 | B26: 0.1
A27: 2007-10-12 | B27: 0.105
A28: 2007-12-07 | B28: 0.11
A29: 2008-04-11 | B29: 0.115
A30: 2008-06-13 | B30: 0.12
A31: 2008-12-12 | B31: 0.115
A32: 2009-02-06 | B32: 0.105
A33: 2009-03-25 | B33: 0.095
A34: 2009-05-04 | B34: 0.085
A35: 2009-05-29 | B35: 0.075
A36: 2009-08-14 | B36: 0.07
A37: 2010-03-26 | B37: 0.065
A38: 2010-09-10 | B38: 0.06
A39: 2010-11-19 | B39: 0.055
A40: 2012-07-20 | B40: 0.05
A41: 2014-01-30 | B41: 0.055
A42: 2014-07-18 | B42: 0.0575
A43: 2015-07-24 | B43: 0.06
A44: 2015-11-20 | B44: 0.0625
A45: 2016-01-29 | B45: 0.0675
A46: 2016-03-18 | B46: 0.07
A47: 2017-07-21 | B47: 0.0725
A48: 2018-03-29 | B48: 0.065
A49: 2018-11-23 | B49: 0.0675
A50: 2019-07-19 | B50: 0.065
A51: 2020-01-17 | B51: 0.0625
A52: 2020-03-20 | B52: 0.0525
A53: 2020-04-15 | B53: 0.0425
A54: 2020-05-22 | B54: 0.0375
A55: 2020-07-24 | B55: 0.035
A56: 2021-11-19 | B56: 0.0375
A57: 2022//01/28 | B57: 0.04
A58: 2022-03-25 | B58: 0.0425
A59: 2022-05-20 | B59: 0.0475
A60: 2022-07-22 | B60: 0.055
A61: 2022-09-23 | B61: 0.0625
A62: 2022-11-25 | B62: 0.07
A63: 2023-01-27 | B63: 0.0725
A64: 2023-03-31 | B64: 0.0775
A65: 2023-05-26 | B65: 0.0825

Sheet Saving and debt

Sheet Personal saving, debt
A2: Saving and debt
A4: Personal saving, household debt, and gross domestic saving, 1973-2023
A6: Year | B6: Saving to disposable income of households | C6: Household debt to disposable income of households | D6: Debt-service costs a to disposable income of households | E6: Gross domestic saving to GDP
A7: 1973 | B7: 0.053 | C7: 0.371 | D7: 0.034 | E7: 0.233
A8: 1974 | B8: 0.054 | C8: 0.372 | D8: 0.041 | E8: 0.237
A9: 1975 | B9: 0.055 | C9: 0.385 | D9: 0.036 | E9: 0.238
A10: 1976 | B10: 0.039 | C10: 0.402 | D10: 0.041 | E10: 0.23
A11: 1977 | B11: 0.081 | C11: 0.376 | D11: 0.038 | E11: 0.278
A12: 1978 | B12: 0.06 | C12: 0.384 | D12: 0.038 | E12: 0.269
A13: 1979 | B13: 0.074 | C13: 0.374 | D13: 0.034 | E13: 0.303
A14: 1980 | B14: 0.065 | C14: 0.371 | D14: 0.031 | E14: 0.334
A15: 1981 | B15: 0.014 | C15: 0.406 | D15: 0.041 | E15: 0.264
A16: 1982 | B16: 0.011 | C16: 0.426 | D16: 0.054 | E16: 0.208
A17: 1983 | B17: 0.018 | C17: 0.445 | D17: 0.056 | E17: 0.248
A18: 1984 | B18: 0.032 | C18: 0.479 | D18: 0.077 | E18: 0.216
A19: 1985 | B19: 0.055 | C19: 0.478 | D19: 0.081 | E19: 0.243
A20: 1986 | B20: 0.033 | C20: 0.446 | D20: 0.059 | E20: 0.236
A21: 1987 | B21: 0.049 | C21: 0.406 | D21: 0.045 | E21: 0.22
A22: 1988 | B22: 0.045 | C22: 0.423 | D22: 0.052 | E22: 0.223
A23: 1989 | B23: 0.042 | C23: 0.447 | D23: 0.074 | E23: 0.227
A24: 1990 | B24: 0.021 | C24: 0.465 | D24: 0.083 | E24: 0.195
A25: 1991 | B25: 0.021 | C25: 0.48 | D25: 0.094 | E25: 0.189
A26: 1992 | B26: 0.048 | C26: 0.463 | D26: 0.087 | E26: 0.171
A27: 1993 | B27: 0.039 | C27: 0.473 | D27: 0.077 | E27: 0.16
A28: 1994 | B28: 0.026 | C28: 0.491 | D28: 0.081 | E28: 0.165
A29: 1995 | B29: 0.021 | C29: 0.531 | D29: 0.094 | E29: 0.162
A30: 1996 | B30: 0.018 | C30: 0.557 | D30: 0.107 | E30: 0.156
A31: 1997 | B31: 0.03 | C31: 0.552 | D31: 0.11 | E31: 0.15
A32: 1998 | B32: 0.021 | C32: 0.545 | D32: 0.115 | E32: 0.149
A33: 1999 | B33: 0.015 | C33: 0.519 | D33: 0.095 | E33: 0.152
A34: 2000 | B34: 0.011 | C34: 0.494 | D34: 0.072 | E34: 0.149
A35: 2001 | B35: 0.007 | C35: 0.487 | D35: 0.067 | E35: 0.148
A36: 2002 | B36: 0.007 | C36: 0.473 | D36: 0.073 | E36: 0.158
A37: 2003 | B37: 0.003 | C37: 0.495 | D37: 0.075 | E37: 0.149
A38: 2004 | B38: 0.003 | C38: 0.517 | D38: 0.058 | E38: 0.145
A39: 2005 | B39: 0 | C39: 0.581 | D39: 0.061 | E39: 0.14
A40: 2006 | B40: -0.024 | C40: 0.69 | D40: 0.075 | E40: 0.145
A41: 2007 | B41: -0.029 | C41: 0.752 | D41: 0.097 | E41: 0.145
A42: 2008 | B42: -0.013 | C42: 0.758 | D42: 0.124 | E42: 0.163
A43: 2009 | B43: -0.009 | C43: 0.748 | D43: 0.106 | E43: 0.163
A44: 2010 | B44: -0.014 | C44: 0.717 | D44: 0.09 | E44: 0.163
A45: 2011 | B45: -0.016 | C45: 0.693 | D45: 0.086 | E45: 0.168
A46: 2012 | B46: -0.022 | C46: 0.694 | D46: 0.086 | E46: 0.139
A47: 2013 | B47: -0.024 | C47: 0.692 | D47: 0.086 | E47: 0.138
A48: 2014 | B48: -0.019 | C48: 0.676 | D48: 0.087 | E48: 0.137
A49: 2015 | B49: -0.011 | C49: 0.657 | D49: 0.087 | E49: 0.143
A50: 2016 | B50: -0.009 | C50: 0.639 | D50: 0.089 | E50: 0.143
A51: 2017 | B51: -0.001 | C51: 0.624 | D51: 0.086 | E51: 0.142
A52: 2018 | B52: -0.003 | C52: 0.613 | D52: 0.084 | E52: 0.132
A53: 2019 | B53: -0.006 | C53: 0.616 | D53: 0.085 | E53: 0.132
A54: 2020 | B54: 0.008 | C54: 0.655 | D54: 0.079 | E54: 0.143
A55: 2021 | B55: 0.012 | C55: 0.631 | D55: 0.068 | E55: 0.165
A56: 2022 | B56: 0.001 | C56: 0.618 | D56: 0.073 | E56: 0.149
A57: 2023 | B57: -0.007 | C57: 0.623 | D57: 0.088 | E57: 0.139
A58: Source: SARB, www.resbank.co.za, time series data, accessed 15 August 2024
A59: a Interest payments on housing and personal debt.

Sheet LG.Saving and debt 1970-2023
A1: Saving and debt, 1970–2023
B2: Saving to disposable income of households | C2: Household debt to disposable income | D2: Debt-service cost to disposable income of households | E2: Gross domestic saving to GDP
A3: 1970 | B3: 0.04 | C3: 0.373 | D3: 0.035 | E3: 0.192
A4: 1971 | B4: 0.066 | C4: 0.369 | D4: 0.036 | E4: 0.211
A5: 1972 | B5: 0.078 | C5: 0.361 | D5: 0.035 | E5: 0.229
A6: 1973 | B6: 0.053 | C6: 0.371 | D6: 0.034 | E6: 0.233
A7: 1974 | B7: 0.054 | C7: 0.372 | D7: 0.041 | E7: 0.237
A8: 1975 | B8: 0.055 | C8: 0.385 | D8: 0.036 | E8: 0.238
A9: 1976 | B9: 0.039 | C9: 0.402 | D9: 0.041 | E9: 0.23
A10: 1977 | B10: 0.081 | C10: 0.376 | D10: 0.038 | E10: 0.278
A11: 1978 | B11: 0.06 | C11: 0.384 | D11: 0.038 | E11: 0.269
A12: 1979 | B12: 0.074 | C12: 0.374 | D12: 0.034 | E12: 0.303
A13: 1980 | B13: 0.065 | C13: 0.371 | D13: 0.031 | E13: 0.334
A14: 1981 | B14: 0.014 | C14: 0.406 | D14: 0.041 | E14: 0.264
A15: 1982 | B15: 0.011 | C15: 0.426 | D15: 0.054 | E15: 0.208
A16: 1983 | B16: 0.018 | C16: 0.445 | D16: 0.056 | E16: 0.248
A17: 1984 | B17: 0.032 | C17: 0.479 | D17: 0.077 | E17: 0.216
A18: 1985 | B18: 0.055 | C18: 0.478 | D18: 0.081 | E18: 0.243
A19: 1986 | B19: 0.033 | C19: 0.446 | D19: 0.059 | E19: 0.236
A20: 1987 | B20: 0.049 | C20: 0.406 | D20: 0.045 | E20: 0.22
A21: 1988 | B21: 0.045 | C21: 0.423 | D21: 0.052 | E21: 0.223
A22: 1989 | B22: 0.042 | C22: 0.447 | D22: 0.074 | E22: 0.227
A23: 1990 | B23: 0.021 | C23: 0.465 | D23: 0.083 | E23: 0.195
A24: 1991 | B24: 0.021 | C24: 0.48 | D24: 0.094 | E24: 0.189
A25: 1992 | B25: 0.048 | C25: 0.463 | D25: 0.087 | E25: 0.171
A26: 1993 | B26: 0.039 | C26: 0.473 | D26: 0.077 | E26: 0.16
A27: 1994 | B27: 0.026 | C27: 0.491 | D27: 0.081 | E27: 0.165
A28: 1995 | B28: 0.021 | C28: 0.531 | D28: 0.094 | E28: 0.162
A29: 1996 | B29: 0.018 | C29: 0.557 | D29: 0.107 | E29: 0.156
A30: 1997 | B30: 0.03 | C30: 0.552 | D30: 0.11 | E30: 0.15
A31: 1998 | B31: 0.021 | C31: 0.545 | D31: 0.115 | E31: 0.149
A32: 1999 | B32: 0.015 | C32: 0.519 | D32: 0.095 | E32: 0.152
A33: 2000 | B33: 0.011 | C33: 0.494 | D33: 0.072 | E33: 0.149
A34: 2001 | B34: 0.007 | C34: 0.487 | D34: 0.067 | E34: 0.148
A35: 2002 | B35: 0.007 | C35: 0.473 | D35: 0.073 | E35: 0.158
A36: 2003 | B36: 0.003 | C36: 0.495 | D36: 0.075 | E36: 0.149
A37: 2004 | B37: 0.003 | C37: 0.517 | D37: 0.058 | E37: 0.145
A38: 2005 | B38: 0 | C38: 0.581 | D38: 0.061 | E38: 0.14
A39: 2006 | B39: -0.024 | C39: 0.69 | D39: 0.075 | E39: 0.145
A40: 2007 | B40: -0.029 | C40: 0.752 | D40: 0.097 | E40: 0.145
A41: 2008 | B41: -0.013 | C41: 0.758 | D41: 0.124 | E41: 0.163
A42: 2009 | B42: -0.009 | C42: 0.748 | D42: 0.106 | E42: 0.163
A43: 2010 | B43: -0.014 | C43: 0.717 | D43: 0.09 | E43: 0.163
A44: 2011 | B44: -0.016 | C44: 0.693 | D44: 0.086 | E44: 0.168
A45: 2012 | B45: -0.022 | C45: 0.694 | D45: 0.086 | E45: 0.139
A46: 2013 | B46: -0.024 | C46: 0.692 | D46: 0.086 | E46: 0.138
A47: 2014 | B47: -0.019 | C47: 0.676 | D47: 0.087 | E47: 0.137
A48: 2015 | B48: -0.011 | C48: 0.657 | D48: 0.087 | E48: 0.143
A49: 2016 | B49: -0.009 | C49: 0.639 | D49: 0.089 | E49: 0.143
A50: 2017 | B50: -0.001 | C50: 0.624 | D50: 0.086 | E50: 0.142
A51: 2018 | B51: -0.003 | C51: 0.613 | D51: 0.084 | E51: 0.132
A52: 2019 | B52: -0.006 | C52: 0.616 | D52: 0.085 | E52: 0.132
A53: 2020 | B53: 0.008 | C53: 0.655 | D53: 0.079 | E53: 0.143
A54: 2021 | B54: 0.012 | C54: 0.631 | D54: 0.068 | E54: 0.165
A55: 2022 | B55: 0.001 | C55: 0.618 | D55: 0.073 | E55: 0.149
A56: 2023 | B56: -0.007 | C56: 0.623 | D56: 0.088 | E56: 0.139

Sheet Investment

Sheet Real GFCF 1960-2023
B2: Investment
B4: All investment
B6: Real gross fixed capital formation (GFCF), 1960-2023
B8: Year | C8: Totala Rbn | D8: Change | E8: GFCF as a proportion of GDPb
B9: 1960 | C9: 101.1 | D9: 0.015 | E9: 0.174
B10: 1961 | C10: 101.2 | D10: 0.001 | E10: 0.167
B11: 1962 | C11: 98.9 | D11: -0.023 | E11: 0.161
B12: 1963 | C12: 116.5 | D12: 0.179 | E12: 0.181
B13: 1964 | C13: 139.4 | D13: 0.197 | E13: 0.197
B14: 1965 | C14: 163.8 | D14: 0.174 | E14: 0.22
B15: 1966 | C15: 161.9 | D15: -0.011 | E15: 0.213
B16: 1967 | C16: 166.1 | D16: 0.026 | E16: 0.202
B17: 1968 | C17: 173.6 | D17: 0.045 | E17: 0.198
B18: 1969 | C18: 195.4 | D18: 0.125 | E18: 0.202
B19: 1970 | C19: 223.2 | D19: 0.143 | E19: 0.223
B20: 1971 | C20: 247.4 | D20: 0.108 | E20: 0.237
B21: 1972 | C21: 261.8 | D21: 0.058 | E21: 0.245
B22: 1973 | C22: 275.5 | D22: 0.052 | E22: 0.235
B23: 1974 | C23: 293.5 | D23: 0.065 | E23: 0.236
B24: 1975 | C24: 322.1 | D24: 0.098 | E24: 0.281
B25: 1976 | C25: 318.1 | D25: -0.012 | E25: 0.291
B26: 1977 | C26: 299.2 | D26: -0.06 | E26: 0.282
B27: 1978 | C27: 290.9 | D27: -0.028 | E27: 0.258
B28: 1979 | C28: 303 | D28: 0.042 | E28: 0.257
B29: 1980 | C29: 354.8 | D29: 0.171 | E29: 0.263
B30: 1981 | C30: 386.5 | D30: 0.09 | E30: 0.272
B31: 1982 | C31: 378.2 | D31: -0.021 | E31: 0.27
B32: 1983 | C32: 364.8 | D32: -0.035 | E32: 0.259
B33: 1984 | C33: 359.4 | D33: -0.015 | E33: 0.235
B34: 1985 | C34: 334.1 | D34: -0.07 | E34: 0.23
B35: 1986 | C35: 272.1 | D35: -0.186 | E35: 0.204
B36: 1987 | C36: 258.1 | D36: -0.051 | E36: 0.183
B37: 1988 | C37: 290.6 | D37: 0.126 | E37: 0.195
B38: 1989 | C38: 309.5 | D38: 0.065 | E38: 0.209
B39: 1990 | C39: 302.3 | D39: -0.023 | E39: 0.196
B40: 1991 | C40: 280 | D40: -0.074 | E40: 0.179
B41: 1992 | C41: 265.2 | D41: -0.053 | E41: 0.164
B42: 1993 | C42: 263.8 | D42: -0.006 | E42: 0.147
B43: 1994 | C43: 285.5 | D43: 0.082 | E43: 0.15
B44: 1995 | C44: 316 | D44: 0.107 | E44: 0.157
B45: 1996 | C45: 344.5 | D45: 0.09 | E45: 0.158
B46: 1997 | C46: 364.3 | D46: 0.057 | E46: 0.162
B47: 1998 | C47: 381.6 | D47: 0.048 | E47: 0.165
B48: 1999 | C48: 352.7 | D48: -0.076 | E48: 0.148
B49: 2000 | C49: 366.3 | D49: 0.039 | E49: 0.144
B50: 2001 | C50: 376.7 | D50: 0.028 | E50: 0.144
B51: 2002 | C51: 389.9 | D51: 0.035 | E51: 0.14
B52: 2003 | C52: 429.8 | D52: 0.102 | E52: 0.147
B53: 2004 | C53: 485.1 | D53: 0.129 | E53: 0.152
B54: 2005 | C54: 538.4 | D54: 0.11 | E54: 0.159
B55: 2006 | C55: 603.8 | D55: 0.121 | E55: 0.174
B56: 2007 | C56: 686.9 | D56: 0.138 | E56: 0.19
B57: 2008 | C57: 775 | D57: 0.128 | E57: 0.216
B58: 2009 | C58: 723.2 | D58: -0.067 | E58: 0.195
B59: 2010 | C59: 694.9 | D59: -0.039 | E59: 0.176
B60: 2011 | C60: 742.5 | D60: 0.068 | E60: 0.178
B61: 2012 | C61: 755.5 | D61: 0.018 | E61: 0.179
B62: 2013 | C62: 796 | D62: 0.054 | E62: 0.186
B63: 2014 | C63: 785.5 | D63: -0.013 | E63: 0.183
B64: 2015 | C64: 796.1 | D64: 0.013 | E64: 0.18
B65: 2016 | C65: 780.8 | D65: -0.019 | E65: 0.174
B66: 2017 | C66: 764.9 | D66: -0.02 | E66: 0.164
B67: 2018 | C67: 755.6 | D67: -0.012 | E67: 0.159
B68: 2019 | C68: 742.4 | D68: -0.017 | E68: 0.155
B69: 2020 | C69: 632.7 | D69: -0.148 | E69: 0.138
B70: 2021 | C70: 629.9 | D70: -0.004 | E70: 0.131
B71: 2022 | C71: 660.1 | D71: 0.048 | E71: 0.141
B72: 2023 | C72: 685.6 | D72: 0.039 | E72: 0.149
B73: Source: SARB, www.resbank.co.za, time series data, accessed 13 September 2024
B74: a At constant 2015 prices.
B75: b At current prices.

Sheet LG GFCF as % of GDP
B1: LG
B3: Proportion | C3: Target
A4: 1960 | B4: 0.174 | C4: 0.3
A5: 1961 | B5: 0.167 | C5: 0.3
A6: 1962 | B6: 0.161 | C6: 0.3
A7: 1963 | B7: 0.181 | C7: 0.3
A8: 1964 | B8: 0.197 | C8: 0.3
A9: 1965 | B9: 0.22 | C9: 0.3
A10: 1966 | B10: 0.213 | C10: 0.3
A11: 1967 | B11: 0.202 | C11: 0.3
A12: 1968 | B12: 0.198 | C12: 0.3
A13: 1969 | B13: 0.202 | C13: 0.3
A14: 1970 | B14: 0.223 | C14: 0.3
A15: 1971 | B15: 0.237 | C15: 0.3
A16: 1972 | B16: 0.245 | C16: 0.3
A17: 1973 | B17: 0.235 | C17: 0.3
A18: 1974 | B18: 0.236 | C18: 0.3
A19: 1975 | B19: 0.281 | C19: 0.3
A20: 1976 | B20: 0.291 | C20: 0.3
A21: 1977 | B21: 0.282 | C21: 0.3
A22: 1978 | B22: 0.258 | C22: 0.3
A23: 1979 | B23: 0.257 | C23: 0.3
A24: 1980 | B24: 0.263 | C24: 0.3
A25: 1981 | B25: 0.272 | C25: 0.3
A26: 1982 | B26: 0.27 | C26: 0.3
A27: 1983 | B27: 0.259 | C27: 0.3
A28: 1984 | B28: 0.235 | C28: 0.3
A29: 1985 | B29: 0.23 | C29: 0.3
A30: 1986 | B30: 0.204 | C30: 0.3
A31: 1987 | B31: 0.183 | C31: 0.3
A32: 1988 | B32: 0.195 | C32: 0.3
A33: 1989 | B33: 0.209 | C33: 0.3
A34: 1990 | B34: 0.196 | C34: 0.3
A35: 1991 | B35: 0.179 | C35: 0.3
A36: 1992 | B36: 0.164 | C36: 0.3
A37: 1993 | B37: 0.147 | C37: 0.3
A38: 1994 | B38: 0.15 | C38: 0.3
A39: 1995 | B39: 0.157 | C39: 0.3
A40: 1996 | B40: 0.158 | C40: 0.3
A41: 1997 | B41: 0.162 | C41: 0.3
A42: 1998 | B42: 0.165 | C42: 0.3
A43: 1999 | B43: 0.148 | C43: 0.3
A44: 2000 | B44: 0.144 | C44: 0.3
A45: 2001 | B45: 0.144 | C45: 0.3
A46: 2002 | B46: 0.14 | C46: 0.3
A47: 2003 | B47: 0.147 | C47: 0.3
A48: 2004 | B48: 0.152 | C48: 0.3
A49: 2005 | B49: 0.159 | C49: 0.3
A50: 2006 | B50: 0.174 | C50: 0.3
A51: 2007 | B51: 0.19 | C51: 0.3
A52: 2008 | B52: 0.216 | C52: 0.3
A53: 2009 | B53: 0.195 | C53: 0.3
A54: 2010 | B54: 0.176 | C54: 0.3
A55: 2011 | B55: 0.178 | C55: 0.3
A56: 2012 | B56: 0.179 | C56: 0.3
A57: 2013 | B57: 0.186 | C57: 0.3
A58: 2014 | B58: 0.183 | C58: 0.3
A59: 2015 | B59: 0.18 | C59: 0.3
A60: 2016 | B60: 0.174 | C60: 0.3
A61: 2017 | B61: 0.164 | C61: 0.3
A62: 2018 | B62: 0.159 | C62: 0.3
A63: 2019 | B63: 0.155 | C63: 0.3
A64: 2020 | B64: 0.138 | C64: 0.3
A65: 2021 | B65: 0.131 | C65: 0.3
A66: 2022 | B66: 0.141 | C66: 0.3
A67: 2023 | B67: 0.149 | C67: 0.3

Sheet BG.Invest.annual change 60-23
A2: Annual change in investment, 1960–2023
B3: Proportion
A4: 1960 | B4: 0.015
A5: 1961 | B5: 0.001
A6: 1962 | B6: -0.023
A7: 1963 | B7: 0.179
A8: 1964 | B8: 0.197
A9: 1965 | B9: 0.174
A10: 1966 | B10: -0.011
A11: 1967 | B11: 0.026
A12: 1968 | B12: 0.045
A13: 1969 | B13: 0.125
A14: 1970 | B14: 0.143
A15: 1971 | B15: 0.108
A16: 1972 | B16: 0.058
A17: 1973 | B17: 0.052
A18: 1974 | B18: 0.065
A19: 1975 | B19: 0.098
A20: 1976 | B20: -0.012
A21: 1977 | B21: -0.06
A22: 1978 | B22: -0.028
A23: 1979 | B23: 0.042
A24: 1980 | B24: 0.171
A25: 1981 | B25: 0.09
A26: 1982 | B26: -0.021
A27: 1983 | B27: -0.035
A28: 1984 | B28: -0.015
A29: 1985 | B29: -0.07
A30: 1986 | B30: -0.186
A31: 1987 | B31: -0.051
A32: 1988 | B32: 0.126
A33: 1989 | B33: 0.065
A34: 1990 | B34: -0.023
A35: 1991 | B35: -0.074
A36: 1992 | B36: -0.053
A37: 1993 | B37: -0.006
A38: 1994 | B38: 0.082
A39: 1995 | B39: 0.107
A40: 1996 | B40: 0.09
A41: 1997 | B41: 0.057
A42: 1998 | B42: 0.048
A43: 1999 | B43: -0.076
A44: 2000 | B44: 0.039
A45: 2001 | B45: 0.028
A46: 2002 | B46: 0.035
A47: 2003 | B47: 0.102
A48: 2004 | B48: 0.129
A49: 2005 | B49: 0.11
A50: 2006 | B50: 0.121
A51: 2007 | B51: 0.138
A52: 2008 | B52: 0.128
A53: 2009 | B53: -0.067
A54: 2010 | B54: -0.039
A55: 2011 | B55: 0.068
A56: 2012 | B56: 0.018
A57: 2013 | B57: 0.054
A58: 2014 | B58: -0.013
A59: 2015 | B59: 0.013
A60: 2016 | B60: -0.019
A61: 2017 | B61: -0.02
A62: 2018 | B62: -0.012
A63: 2019 | B63: -0.017
A64: 2020 | B64: -0.148
A65: 2021 | B65: -0.004
A66: 2022 | B66: 0.048
A67: 2023 | B67: 0.039

Sheet Investment by type of investor
A2: Investmenta by type of investment, 1994-2023
B4: —Public— | E4: Private | F4: Totale
B5: Economic infrastructureb | C5: Social infrastructurec | D5: Economic servicesd
A6: Year | B6: —Rbn—
A7: 1994 | B7: 56.9 | C7: 16.2 | D7: 20 | E7: 206.3 | F7: 285.5
A8: 1995 | B8: 54 | C8: 21 | D8: 25.5 | E8: 228.8 | F8: 316
A9: 1996 | B9: 66.7 | C9: 21 | D9: 21.7 | E9: 246.4 | F9: 344.5
A10: 1997 | B10: 68.1 | C10: 24.7 | D10: 27.6 | E10: 258.3 | F10: 364.3
A11: 1998 | B11: 83.8 | C11: 21.3 | D11: 28.2 | E11: 253.3 | F11: 381.6
A12: 1999 | B12: 65.1 | C12: 19 | D12: 30.4 | E12: 245.3 | F12: 352.7
A13: 2000 | B13: 59.2 | C13: 14 | D13: 35.6 | E13: 265.3 | F13: 366.3
A14: 2001 | B14: 55.6 | C14: 16.5 | D14: 27.9 | E14: 282.2 | F14: 376.7
A15: 2002 | B15: 57.5 | C15: 19.8 | D15: 33.9 | E15: 289.2 | F15: 389.9
A16: 2003 | B16: 69.4 | C16: 22.4 | D16: 35.1 | E16: 313.2 | F16: 429.8
A17: 2004 | B17: 73.9 | C17: 23.9 | D17: 35.9 | E17: 359.3 | F17: 485.1
A18: 2005 | B18: 79.5 | C18: 25.2 | D18: 32 | E18: 406.6 | F18: 538.4
A19: 2006 | B19: 85.2 | C19: 28 | D19: 45.3 | E19: 448.2 | F19: 603.8
A20: 2007 | B20: 119.1 | C20: 30.1 | D20: 55.6 | E20: 486.5 | F20: 686.9
A21: 2008 | B21: 169.5 | C21: 25.6 | D21: 51.2 | E21: 530.5 | F21: 775
A22: 2009 | B22: 187.2 | C22: 25.8 | D22: 47.8 | E22: 462.3 | F22: 723.2
A23: 2010 | B23: 173.8 | C23: 29.3 | D23: 38.1 | E23: 453.6 | F23: 694.9
A24: 2011 | B24: 186 | C24: 34.9 | D24: 44 | E24: 477.8 | F24: 742.5
A25: 2012 | B25: 180.9 | C25: 34.1 | D25: 44.1 | E25: 496.5 | F25: 755.5
A26: 2013 | B26: 204.7 | C26: 30.5 | D26: 43.6 | E26: 517.2 | F26: 796
A27: 2014 | B27: 203.1 | C27: 32.3 | D27: 37.5 | E27: 512.6 | F27: 785.5
A28: 2015 | B28: 216.8 | C28: 37.2 | D28: 39.2 | E28: 503 | F28: 796.1
A29: 2016 | B29: 203.1 | C29: 35.8 | D29: 43.2 | E29: 498.7 | F29: 780.8
A30: 2017 | B30: 179.4 | C30: 34.4 | D30: 41.7 | E30: 509.3 | F30: 764.9
A31: 2018 | B31: 161.1 | C31: 33.9 | D31: 39.5 | E31: 521.1 | F31: 755.6
A32: 2019 | B32: 141.4 | C32: 30.3 | D32: 40.8 | E32: 529.9 | F32: 742.4
A33: 2020 | B33: 114.9 | C33: 26.2 | D33: 39.1 | E33: 452.7 | F33: 632.7
A34: 2021 | B34: 114.4 | C34: 24.6 | D34: 40.3 | E34: 450.6 | F34: 629.9
A35: 2022 | B35: 113.2 | C35: 26 | D35: 43.3 | E35: 477.6 | F35: 660.1
A36: 2023 | B36: 118.4 | C36: 30.1 | D36: 45.4 | E36: 491.8 | F36: 685.6
A37: 2022-23 | B37: =(B36-B35)/B35 -> 0.04593639576 | C37: =(C36-C35)/C35 -> 0.1576923077 | D37: 0.04849884527 | E37: 0.0297319933 | F37: 0.03863051053
A38: Source: SARB, www.resbank.co.za, time series data, accessed 13 September 2024
A39: a At constant 2015 prices.
A40: b Roads, bridges, dams, electricity, and water supply, etc.
A41: c Schools, hospitals, etc and administrative services.
A42: d Business enterprises not included in economic infrastructure.
A43: e Figures should add up but may not, owing to rounding.

Sheet BC Investment by type 94&23
A2: Investment by type of investment (proportions), 1994 and 2023
B4: 1994 | C4: 2023
A5: Economic infrastructure | B5: 0.199 | C5: 0.173
A6: Social infrastructure | B6: 0.057 | C6: 0.044
A7: Economic services | B7: 0.07 | C7: 0.066
A8: Private | B8: 0.723 | C8: 0.717

Sheet Type of investor 1971-2023
B2: Investment by type of investora, 1973-2023
C4: Private business enterprises | D4: —Public authorities— | H4: Private business as a proportion of all investmentc
B5: Year | D5: General government | E5: Public corporationsb | F5: Totalc | G5: All investment
C6: —Rbn—
B7: 1973 | C7: 140.8 | D7: 152.3 | E7: 29 | F7: =D7+E7 -> 181.3 | G7: 275.5 | H7: =C7/G7 -> 0.5110707804
B8: 1974 | C8: 151.1 | D8: 156.8 | E8: 32.2 | F8: 189 | G8: 293.5 | H8: 0.5148211244
B9: 1975 | C9: 156.3 | D9: 176.6 | E9: 40.6 | F9: 217.2 | G9: 322.1 | H9: 0.485253027
B10: 1976 | C10: 148.4 | D10: 187.4 | E10: 39.7 | F10: 227.1 | G10: 318.1 | H10: 0.4665199623
B11: 1977 | C11: 141.4 | D11: 157.7 | E11: 43.7 | F11: 201.4 | G11: 299.2 | H11: 0.4725935829
B12: 1978 | C12: 137.8 | D12: 135.8 | E12: 49.4 | F12: 185.2 | G12: 290.9 | H12: 0.4737023032
B13: 1979 | C13: 142.2 | D13: 136.9 | E13: 55 | F13: 191.9 | G13: 303 | H13: 0.4693069307
B14: 1980 | C14: 176 | D14: 137.9 | E14: 67.2 | F14: 205.1 | G14: 354.8 | H14: 0.496054115
B15: 1981 | C15: 211.1 | D15: 154.4 | E15: 56.5 | F15: 210.9 | G15: 386.5 | H15: 0.5461836999
B16: 1982 | C16: 210.4 | D16: 155.2 | E16: 49.7 | F16: 204.9 | G16: 378.2 | H16: 0.5563194077
B17: 1983 | C17: 207.2 | D17: 136.6 | E17: 49 | F17: 185.6 | G17: 364.8 | H17: 0.5679824561
B18: 1984 | C18: 208.3 | D18: 125.7 | E18: 50.3 | F18: 176 | G18: 359.4 | H18: 0.5795770729
B19: 1985 | C19: 182.1 | D19: 125.3 | E19: 51.7 | F19: 177 | G19: 334.1 | H19: 0.5450463933
B20: 1986 | C20: 151.8 | D20: 100.9 | E20: 37 | F20: 137.9 | G20: 272.1 | H20: 0.5578831312
B21: 1987 | C21: 157.7 | D21: 101.8 | E21: 30.6 | F21: 132.4 | G21: 258.1 | H21: 0.611003487
B22: 1988 | C22: 185.7 | D22: 104.8 | E22: 28.6 | F22: 133.4 | G22: 290.6 | H22: 0.6390227116
B23: 1989 | C23: 189.6 | D23: 110.1 | E23: 38.5 | F23: 148.6 | G23: 309.5 | H23: 0.6126009693
B24: 1990 | C24: 190.4 | D24: 96.1 | E24: 39.7 | F24: 135.8 | G24: 302.3 | H24: 0.6298379094
B25: 1991 | C25: 179.8 | D25: 86.2 | E25: 35.6 | F25: 121.8 | G25: 280 | H25: 0.6421428571
B26: 1992 | C26: 175.6 | D26: 76.9 | E26: 33.3 | F26: 110.2 | G26: 265.2 | H26: 0.6621417798
B27: 1993 | C27: 183 | D27: 71.8 | E27: 28.3 | F27: 100.1 | G27: 263.8 | H27: 0.6937073541
B28: 1994 | C28: 206.3 | D28: 68.9 | E28: 27.5 | F28: 96.4 | G28: 285.5 | H28: =C28/G28 -> 0.722591944
B29: 1995 | C29: 228.8 | D29: 72.7 | E29: 31.7 | F29: 104.4 | G29: 316 | H29: =C29/G29 -> 0.7240506329
B30: 1996 | C30: 246.4 | D30: 78.3 | E30: 34.3 | F30: 112.6 | G30: 344.5 | H30: 0.7152394775
B31: 1997 | C31: 258.3 | D31: 83.5 | E31: 38.2 | F31: 121.7 | G31: 364.3 | H31: 0.7090310184
B32: 1998 | C32: 253.3 | D32: 81.2 | E32: 57.7 | F32: 138.9 | G32: 381.6 | H32: 0.6637840671
B33: 1999 | C33: 245.3 | D33: 73.7 | E33: 42.3 | F33: 116 | G33: 352.7 | H33: 0.6954919195
B34: 2000 | C34: 265.3 | D34: 75.2 | E34: 34.1 | F34: 109.3 | G34: 366.3 | H34: 0.7242697243
B35: 2001 | C35: 282.2 | D35: 70.8 | E35: 33.5 | F35: 104.3 | G35: 376.7 | H35: 0.7491372445
B36: 2002 | C36: 289.2 | D36: 76 | E36: 38.1 | F36: 114.1 | G36: 389.9 | H36: 0.7417286484
B37: 2003 | C37: 313.2 | D37: 85.9 | E37: 43.3 | F37: 129.2 | G37: 429.8 | H37: 0.7287110284
B38: 2004 | C38: 359.3 | D38: 91.2 | E38: 47.2 | F38: 138.4 | G38: 485.1 | H38: 0.7406720264
B39: 2005 | C39: 406.6 | D39: 90.1 | E39: 53.1 | F39: 143.2 | G39: 538.4 | H39: 0.7552005944
B40: 2006 | C40: 448.2 | D40: 101.2 | E40: 60.7 | F40: 161.9 | G40: 603.8 | H40: 0.7422987744
B41: 2007 | C41: 486.5 | D41: 126.3 | E41: 83.3 | F41: 209.6 | G41: 686.9 | H41: 0.7082544766
B42: 2008 | C42: 530.5 | D42: 141.6 | E42: 107 | F42: 248.6 | G42: 775 | H42: 0.684516129
B43: 2009 | C43: 462.3 | D43: 137 | E43: 124.8 | F43: 261.8 | G43: 723.2 | H43: 0.6392422566
B44: 2010 | C44: 453.6 | D44: 124.3 | E44: 117.1 | F44: 241.4 | G44: 694.9 | H44: 0.6527557922
B45: 2011 | C45: 477.8 | D45: 138.9 | E45: 125.8 | F45: 264.7 | G45: 742.5 | H45: 0.6435016835
B46: 2012 | C46: 496.5 | D46: 132.8 | E46: 126.2 | F46: 259 | G46: 755.5 | H46: 0.657180675
B47: 2013 | C47: 517.2 | D47: 134.3 | E47: 144.5 | F47: 278.8 | G47: 796 | H47: 0.6497487437
B48: 2014 | C48: 512.6 | D48: 140.9 | E48: 132 | F48: 272.9 | G48: 785.5 | H48: 0.6525779758
B49: 2015 | C49: 503 | D49: 154.3 | E49: 138.9 | F49: 293.2 | G49: 796.1 | H49: 0.6318301721
B50: 2016 | C50: 498.7 | D50: 157.4 | E50: 124.7 | F50: 282.1 | G50: 780.8 | H50: 0.6387038934
B51: 2017 | C51: 509.3 | D51: 141.6 | E51: 114 | F51: 255.6 | G51: 764.9 | H51: 0.6658386717
B52: 2018 | C52: 521.1 | D52: 133.6 | E52: 100.9 | F52: 234.5 | G52: 755.6 | H52: 0.6896506088
B53: 2019 | C53: 529.9 | D53: 124.8 | E53: 87.7 | F53: 212.5 | G53: 742.4 | H53: 0.7137661638
B54: 2020 | C54: 452.7 | D54: 111.8 | E54: 68.2 | F54: 180 | G54: 632.7 | H54: 0.7155049787
B55: 2021 | C55: 450.6 | D55: 111.3 | E55: 68.1 | F55: 179.4 | G55: 629.9 | H55: 0.7153516431
B56: 2022 | C56: 477.6 | D56: 114.9 | E56: 67.6 | F56: 182.5 | G56: 660.1 | H56: 0.7235267384
B57: 2023 | C57: 491.8 | D57: 119.4 | E57: 74.3 | F57: 193.7 | G57: 685.6 | H57: 0.717327888
B58: 2022-23 | C58: =(C57-C56)/C56 -> 0.0297319933 | D58: =(D57-D56)/D56 -> 0.03916449086 | E58: 0.09911242604 | F58: 0.06136986301 | G58: 0.03863051053 | H58: —
B59: Source: SARB, www.resbank.co.za, time series data, accessed 13 September 2024
B60: a At constant 2015 prices.
B61: b Includes the South African Post Office, Telkom, Transnet, and Eskom.
B62: c CRA calculations.

Sheet LG.Type of investor.1970-2023
A1: Investment by type of investor, 1970–2023
B2: Private | C2: Public | D2: Total
A3: 1970 | B3: 122.6 | C3: 137.7 | D3: 223.2
A4: 1971 | B4: 131.3 | C4: 163.4 | D4: 247.4
A5: 1972 | B5: 130.7 | C5: 188.2 | D5: 261.8
A6: 1973 | B6: 140.8 | C6: 181.3 | D6: 275.5
A7: 1974 | B7: 151.1 | C7: 189 | D7: 293.5
A8: 1975 | B8: 156.3 | C8: 217.2 | D8: 322.1
A9: 1976 | B9: 148.4 | C9: 227.1 | D9: 318.1
A10: 1977 | B10: 141.4 | C10: 201.4 | D10: 299.2
A11: 1978 | B11: 137.8 | C11: 185.2 | D11: 290.9
A12: 1979 | B12: 142.2 | C12: 191.9 | D12: 303
A13: 1980 | B13: 176 | C13: 205.1 | D13: 354.8
A14: 1981 | B14: 211.1 | C14: 210.9 | D14: 386.5
A15: 1982 | B15: 210.4 | C15: 204.9 | D15: 378.2
A16: 1983 | B16: 207.2 | C16: 185.6 | D16: 364.8
A17: 1984 | B17: 208.3 | C17: 176 | D17: 359.4
A18: 1985 | B18: 182.1 | C18: 177 | D18: 334.1
A19: 1986 | B19: 151.8 | C19: 137.9 | D19: 272.1
A20: 1987 | B20: 157.7 | C20: 132.4 | D20: 258.1
A21: 1988 | B21: 185.7 | C21: 133.4 | D21: 290.6
A22: 1989 | B22: 189.6 | C22: 148.6 | D22: 309.5
A23: 1990 | B23: 190.4 | C23: 135.8 | D23: 302.3
A24: 1991 | B24: 179.8 | C24: 121.8 | D24: 280
A25: 1992 | B25: 175.6 | C25: 110.2 | D25: 265.2
A26: 1993 | B26: 183 | C26: 100.1 | D26: 263.8
A27: 1994 | B27: 206.3 | C27: 96.4 | D27: 285.5
A28: 1995 | B28: 228.8 | C28: 104.4 | D28: 316
A29: 1996 | B29: 246.4 | C29: 112.6 | D29: 344.5
A30: 1997 | B30: 258.3 | C30: 121.7 | D30: 364.3
A31: 1998 | B31: 253.3 | C31: 138.9 | D31: 381.6
A32: 1999 | B32: 245.3 | C32: 116 | D32: 352.7
A33: 2000 | B33: 265.3 | C33: 109.3 | D33: 366.3
A34: 2001 | B34: 282.2 | C34: 104.3 | D34: 376.7
A35: 2002 | B35: 289.2 | C35: 114.1 | D35: 389.9
A36: 2003 | B36: 313.2 | C36: 129.2 | D36: 429.8
A37: 2004 | B37: 359.3 | C37: 138.4 | D37: 485.1
A38: 2005 | B38: 406.6 | C38: 143.2 | D38: 538.4
A39: 2006 | B39: 448.2 | C39: 161.9 | D39: 603.8
A40: 2007 | B40: 486.5 | C40: 209.6 | D40: 686.9
A41: 2008 | B41: 530.5 | C41: 248.6 | D41: 775
A42: 2009 | B42: 462.3 | C42: 261.8 | D42: 723.2
A43: 2010 | B43: 453.6 | C43: 241.4 | D43: 694.9
A44: 2011 | B44: 477.8 | C44: 264.7 | D44: 742.5
A45: 2012 | B45: 496.5 | C45: 259 | D45: 755.5
A46: 2013 | B46: 517.2 | C46: 278.8 | D46: 796
A47: 2014 | B47: 512.6 | C47: 272.9 | D47: 785.5
A48: 2015 | B48: 503 | C48: 293.2 | D48: 796.1
A49: 2016 | B49: 498.7 | C49: 282.1 | D49: 780.8
A50: 2017 | B50: 509.3 | C50: 255.6 | D50: 764.9
A51: 2018 | B51: 521.1 | C51: 234.5 | D51: 755.6
A52: 2019 | B52: 529.9 | C52: 212.5 | D52: 742.4
A53: 2020 | B53: 452.7 | C53: 180 | D53: 632.7
A54: 2021 | B54: 450.6 | C54: 179.4 | D54: 629.9
A55: 2022 | B55: 477.6 | C55: 182.5 | D55: 660.1
A56: 2023 | B56: 491.8 | C56: 193.7 | D56: 685.6

Sheet LG.Private investment 1970-2023
B2: Proportions
A3: 1970 | B3: 0.5492831541
A4: 1971 | B4: 0.5307194826
A5: 1972 | B5: 0.4992360581
A6: 1973 | B6: 0.5110707804
A7: 1974 | B7: 0.5148211244
A8: 1975 | B8: 0.485253027
A9: 1976 | B9: 0.4665199623
A10: 1977 | B10: 0.4725935829
A11: 1978 | B11: 0.4737023032
A12: 1979 | B12: 0.4693069307
A13: 1980 | B13: 0.496054115
A14: 1981 | B14: 0.5461836999
A15: 1982 | B15: 0.5563194077
A16: 1983 | B16: 0.5679824561
A17: 1984 | B17: 0.5795770729
A18: 1985 | B18: 0.5450463933
A19: 1986 | B19: 0.5578831312
A20: 1987 | B20: 0.611003487
A21: 1988 | B21: 0.6390227116
A22: 1989 | B22: 0.6126009693
A23: 1990 | B23: 0.6298379094
A24: 1991 | B24: 0.6421428571
A25: 1992 | B25: 0.6621417798
A26: 1993 | B26: 0.6937073541
A27: 1994 | B27: 0.722591944
A28: 1995 | B28: 0.7240506329
A29: 1996 | B29: 0.7152394775
A30: 1997 | B30: 0.7090310184
A31: 1998 | B31: 0.6637840671
A32: 1999 | B32: 0.6954919195
A33: 2000 | B33: 0.7242697243
A34: 2001 | B34: 0.7491372445
A35: 2002 | B35: 0.7417286484
A36: 2003 | B36: 0.7287110284
A37: 2004 | B37: 0.7406720264
A38: 2005 | B38: 0.7552005944
A39: 2006 | B39: 0.7422987744
A40: 2007 | B40: 0.7082544766
A41: 2008 | B41: 0.684516129
A42: 2009 | B42: 0.6392422566
A43: 2010 | B43: 0.6527557922
A44: 2011 | B44: 0.6435016835
A45: 2012 | B45: 0.657180675
A46: 2013 | B46: 0.6497487437
A47: 2014 | B47: 0.6525779758
A48: 2015 | B48: 0.6318301721
A49: 2016 | B49: 0.6387038934
A50: 2017 | B50: 0.6658386717
A51: 2018 | B51: 0.6896506088
A52: 2019 | B52: 0.7137661638
A53: 2020 | B53: 0.7155049787
A54: 2021 | B54: 0.7153516431
A55: 2022 | B55: 0.7235267384
A56: 2023 | B56: 0.717327888

Sheet GFCF by economic activity 80-23
A2: GFCF by type of economic activitya, 1980-2023
B4: 1980 | C4: 1994 | D4: 2008 | E4: 2019 | F4: 2022 | G4: 2023 | H4: —Change—
A5: Sector | H5: 2008-23 | I5: 2022-23
A6: Agriculture, forestry and fishing | B6: 36 | C6: 18.4 | D6: 22.7 | E6: 27.8 | F6: 37.6 | G6: 37.1 | H6: =(G6-D6)/D6 -> 0.6343612335 | I6: =(G6-F6)/F6 -> -0.01329787234
A7: Mining and quarrying | B7: 41.7 | C7: 31.7 | D7: 95.3 | E7: 91.8 | F7: 89.7 | G7: 89.8 | H7: =(G7-D7)/D7 -> -0.05771248688 | I7: =(G7-F7)/F7 -> 0.001114827202
A8: Manufacturing | B8: 56.6 | C8: 42.2 | D8: 97.7 | E8: 104.7 | F8: 80.5 | G8: 86.8 | H8: -0.1115660184 | I8: 0.07826086957
A9: Electricity, gas and water | B9: 35.9 | C9: 19 | D9: 57.4 | E9: 64.6 | F9: 40.9 | G9: 49.8 | H9: -0.1324041812 | I9: 0.217603912
A10: Construction (contractors) | B10: 5.3 | C10: 2.9 | D10: 13.1 | E10: 12.9 | F10: 12.2 | G10: 12.4 | H10: -0.0534351145 | I10: 0.01639344262
A11: Trade etc | B11: 10.5 | C11: 13.4 | D11: 38.9 | E11: 48.5 | F11: 39.4 | G11: 42.4 | H11: 0.08997429306 | I11: 0.07614213198
A12: Transport and communication | B12: 30.4 | C12: 23.5 | D12: 98.6 | E12: 90 | F12: 85.4 | G12: 91 | H12: -0.07707910751 | I12: 0.06557377049
A13: Finance etc | B13: 75.3 | C13: 86.7 | D13: 203.7 | E13: 165 | F13: 149.7 | G13: 146.5 | H13: -0.2808051055 | I13: -0.0213760855
A14: Community, social and personal services | B14: 50.3 | C14: 46.6 | D14: 146.4 | E14: 137.1 | F14: 124.8 | G14: 129.9 | H14: -0.112704918 | I14: 0.04086538462
A15: Total | B15: 354.8 | C15: 285.5 | D15: 775 | E15: 742.4 | F15: 660.1 | G15: 685.6 | H15: -0.1153548387 | I15: 0.03863051053
A16: Source: SARB, www.resbank.co.za, time series data, accessed 17 September 2024
A17: a At constant 2015 prices.

Sheet GFCF by econ activity % 80-23
A2: GFCF by type of economic activitya (proportions), 1980-203
A4: Sector | B4: 1980 | C4: 1990 | D4: 2000 | E4: 2008 | F4: 2020 | G4: 2022 | H4: 2023
A5: Agriculture, forestry and fishing | B5: 0.098 | C5: 0.058 | D5: 0.039 | E5: 0.026 | F5: 0.057 | G5: 0.061 | H5: 0.058
A6: Mining and quarrying | B6: 0.111 | C6: 0.125 | D6: 0.107 | E6: 0.119 | F6: 0.126 | G6: 0.141 | H6: 0.139
A7: Manufacturing | B7: 0.169 | C7: 0.154 | D7: 0.146 | E7: 0.123 | F7: 0.133 | G7: 0.124 | H7: 0.132
A8: Electricity, gas and water | B8: 0.111 | C8: 0.081 | D8: 0.038 | E8: 0.076 | F8: 0.077 | G8: 0.064 | H8: 0.076
A9: Construction (contractors) | B9: 0.017 | C9: 0.014 | D9: 0.016 | E9: 0.017 | F9: 0.025 | G9: 0.019 | H9: 0.019
A10: Trade etc | B10: 0.033 | C10: 0.042 | D10: 0.057 | E10: 0.05 | F10: 0.085 | G10: 0.059 | H10: 0.062
A11: Transport and communication | B11: 0.091 | C11: 0.062 | D11: 0.126 | E11: 0.147 | F11: 0.113 | G11: 0.118 | H11: 0.122
A12: Finance etc | B12: 0.176 | C12: 0.237 | D12: 0.29 | E12: 0.263 | F12: 0.189 | G12: 0.226 | H12: 0.204
A13: Community, social and personal services | B13: 0.193 | C13: 0.228 | D13: 0.182 | E13: 0.179 | F13: 0.195 | G13: 0.188 | H13: 0.187
A14: Total | B14: 1 | C14: 1 | D14: 1 | E14: 1 | F14: 1 | G14: 1 | H14: 1
A15: Source: SARB, www.resbank.co.za, time series data, accessed 3 November 2023
A16: a At current prices. CRA calculations.

Sheet BC GFCF by econ activity 93-23
A2: GFCF by kind of economic activity, 1993 and 2023 (proportions)
B3: 1993 | C3: 2023
A4: Agriculture, forestry, and fishing | B4: 0.046 | C4: 0.058
A5: Mining and quarrying | B5: 0.086 | C5: 0.139
A6: Manufacturing | B6: 0.151 | C6: 0.132
A7: Electricity, gas, and water | B7: 0.068 | C7: 0.076
A8: Construction (contractors) | B8: 0.012 | C8: 0.019
A9: Trade etc | B9: 0.052 | C9: 0.062
A10: Transport and communication | B10: 0.11 | C10: 0.122
A11: Finance etc | B11: 0.264 | C11: 0.204
A12: Community, social, and personal services | B12: 0.21 | C12: 0.187

Sheet GFCF by asset 2003-23
A2: GFCF by type of asseta, 2003-23
A4: Year | B4: Residential buildings | C4: Non-residential buildings | D4: Construction works | E4: Transport equipment | F4: Computers and related equipment | G4: Machinery and other equipment | H4: Transfer costs | I4: Total
B5: —Rbn—
A6: 2003 | B6: 70.8 | C6: 45.9 | D6: 52.5 | E6: 55 | F6: 11.7 | G6: 160.6 | H6: 17.7 | I6: 429.8
A7: 2004 | B7: 93.6 | C7: 50.6 | D7: 59 | E7: 61.3 | F7: 13.6 | G7: 173.6 | H7: 23.9 | I7: 485.1
A8: 2005 | B8: 121 | C8: 53.9 | D8: 63.4 | E8: 71.7 | F8: 16.8 | G8: 181.8 | H8: 27.6 | I8: 538.4
A9: 2006 | B9: 130.9 | C9: 59.9 | D9: 74.2 | E9: 82.2 | F9: 19.6 | G9: 205.7 | H9: 23.2 | I9: 603.8
A10: 2007 | B10: 136.2 | C10: 68.7 | D10: 103.2 | E10: 90.9 | F10: 23 | G10: 229.7 | H10: 22.1 | I10: 686.9
A11: 2008 | B11: 125.1 | C11: 80.8 | D11: 144.8 | E11: 91.2 | F11: 25.9 | G11: 263 | H11: 13.8 | I11: 775
A12: 2009 | B12: 118.2 | C12: 82.8 | D12: 169 | E12: 77.3 | F12: 23.3 | G12: 202.2 | H12: 10.5 | I12: 723.2
A13: 2010 | B13: 96.6 | C13: 79.7 | D13: 156 | E13: 83.4 | F13: 20.5 | G13: 203.3 | H13: 12.5 | I13: 694.9
A14: 2011 | B14: 96.1 | C14: 76.5 | D14: 164.9 | E14: 89 | F14: 27.3 | G14: 224.4 | H14: 13.7 | I14: 742.5
A15: 2012 | B15: 96.5 | C15: 69.7 | D15: 180.4 | E15: 102.1 | F15: 32.4 | G15: 207.7 | H15: 13 | I15: 755.5
A16: 2013 | B16: 99 | C16: 59.2 | D16: 210.8 | E16: 101 | F16: 14.1 | G16: 240.8 | H16: 13.1 | I16: 796
A17: 2014 | B17: 106.2 | C17: 62.3 | D17: 199.1 | E17: 93.6 | F17: 15.7 | G17: 235.9 | H17: 13.6 | I17: 785.5
A18: 2015 | B18: 107.4 | C18: 63.5 | D18: 204.9 | E18: 102.6 | F18: 24.4 | G18: 221.8 | H18: 13.7 | I18: 796.1
A19: 2016 | B19: 104.7 | C19: 67.3 | D19: 196.4 | E19: 98.7 | F19: 24.3 | G19: 213.7 | H19: 14.1 | I19: 780.8
A20: 2017 | B20: 106.3 | C20: 61.3 | D20: 171.1 | E20: 94.7 | F20: 26.9 | G20: 230.4 | H20: 13.9 | I20: 764.9
A21: 2018 | B21: 105.6 | C21: 64 | D21: 159.1 | E21: 91.2 | F21: 26.5 | G21: 234.2 | H21: 13.8 | I21: 755.6
A22: 2019 | B22: 106.8 | C22: 57.8 | D22: 146.3 | E22: 83.8 | F22: 28.6 | G22: 244.2 | H22: 13.2 | I22: 742.4
A23: 2020 | B23: 81.7 | C23: 61.9 | D23: 121.5 | E23: 63.8 | F23: 24.2 | G23: 208.5 | H23: 12.4 | I23: 632.7
A24: 2021 | B24: 88 | C24: 40.9 | D24: 122.6 | E24: 65.3 | F24: 29.6 | G24: 207.4 | H24: 11.9 | I24: 629.9
A25: 2022 | B25: 91.2 | C25: 39.5 | D25: 120.1 | E25: 69.1 | F25: 29.6 | G25: 228 | H25: 12.6 | I25: 660.1
A26: 2023 | B26: 84.7 | C26: 38.9 | D26: 118 | E26: 74.7 | F26: 33 | G26: 251.5 | H26: 12 | I26: 685.6
A27: 2008-23 | B27: =(B26-B11)/B11 -> -0.3229416467 | C27: =(C26-C11)/C11 -> -0.5185643564 | D27: -0.1850828729 | E27: -0.1809210526 | F27: 0.2741312741 | G27: -0.04372623574 | H27: -0.1304347826 | I27: -0.1153548387
A28: 2022-23 | B28: =(B26-B25)/B25 -> -0.07127192982 | C28: =(C26-C25)/C25 -> -0.01518987342 | D28: -0.01748542881 | E28: 0.08104196816 | F28: 0.1148648649 | G28: 0.1030701754 | H28: -0.04761904762 | I28: 0.03863051053
A29: Source: SARB, www.resbank.co.za, time series data, accessed 19 September 2024
A30: a At constant 2015 prices.

Sheet Agric.manuf.mining fixed stock
A1: Agriculture, forestry, fishing and manufacturing investment in fixed capital stockab, 1980-2023
A3: Year | B3: Agriculture, forestry and fishing Rbn | C3: Proportion of total fixed capital stock | D3: Mining and quarrying | E3: Proportion of total fixed capital stock | F3: Manufacturing Rbn | G3: Proportion of total fixed capital stock
A4: 1980 | B4: 311.5 | C4: 0.07 | D4: 219.5 | E4: 0.049 | F4: 472.6 | G4: 0.106
A5: 1990 | B5: 289.3 | C5: 0.054 | D5: 435.2 | E5: 0.081 | F5: 538.7 | G5: 0.1
A6: 2000 | B6: 263.2 | C6: 0.04686545907 | D6: 347 | E6: 0.06179331994 | F6: 692.4 | G6: 0.1233029662
A7: 2001 | B7: 260.8 | C7: 0.04636363442 | D7: 345.4 | E7: 0.06139631347 | F7: 697.8 | G7: 0.1240591131
A8: 2002 | B8: 261.5 | C8: 0.04633315602 | D8: 346.5 | E8: 0.0614058465 | F8: 699.3 | G8: 0.123920753
A9: 2003 | B9: 262 | C9: 0.04590419545 | D9: 349.4 | E9: 0.06120524354 | F9: 702.9 | G9: 0.1231489276
A10: 2004 | B10: 262.5 | C10: 0.0451007328 | D10: 343.2 | E10: 0.05895669952 | F10: 717.6 | G10: 0.1232633231
A11: 2005 | B11: 263 | C11: 0.04402227795 | D11: 334.2 | E11: 0.05593374931 | F11: 736 | G11: 0.1231937828
A12: 2006 | B12: 262.3 | C12: 0.04254344784 | D12: 341.1 | E12: 0.05531176874 | F12: 762.5 | G12: 0.1236513211
A13: 2007 | B13: 261.2 | C13: 0.04073412374 | D13: 358.7 | E13: 0.05593448505 | F13: 789.5 | G13: 0.1231218661
A14: 2008 | B14: 261.3 | C14: 0.03899521895 | D14: 385.9 | E14: 0.05759061736 | F14: 817.2 | G14: 0.1219677425
A15: 2009 | B15: 260.2 | C15: 0.03756463369 | D15: 412.4 | E15: 0.05953835635 | F15: 803.9 | G15: 0.1160572495
A16: 2010 | B16: 259.7 | C16: 0.03659009292 | D16: 456.4 | E16: 0.06431044951 | F16: 771.6 | G16: 0.1087142236
A17: 2011 | B17: 262.7 | C17: 0.03596792591 | D17: 486.8 | E17: 0.06665918125 | F17: 763.1 | G17: 0.1044908388
A18: 2012 | B18: 267 | C18: 0.03557614686 | D18: 509.8 | E18: 0.06793682707 | F18: 751.6 | G18: 0.1001527913
A19: 2013 | B19: 273.3 | C19: 0.03535017161 | D19: 538.6 | E19: 0.06966308994 | F19: 749.5 | G19: 0.09694521857
A20: 2014 | B20: 276.1 | C20: 0.03479757263 | D20: 556.7 | E20: 0.07017103155 | F20: 742.6 | G20: 0.09359859982
A21: 2015 | B21: 278.6 | C21: 0.0342475064 | D21: 545.5 | E21: 0.06704077878 | F21: 737 | G21: 0.09057830384
A22: 2016 | B22: 279.9 | C22: 0.03366589736 | D22: 521.7 | E22: 0.06275758073 | F22: 734.1 | G22: 0.08831298191
A23: 2017 | B23: 283.6 | C23: 0.03350379447 | D23: 515.7 | E23: 0.06093183189 | F23: 732.4 | G23: 0.08652793883
A24: 2018 | B24: 286.9 | C24: 0.03334413693 | D24: 523.4 | E24: 0.06109336696 | F24: 734.1 | G24: 0.08519326903
A25: 2019 | B25: 288.6 | C25: 0.03303228567 | D25: 536.6 | E25: 0.062 | F25: 740.6 | G25: 0.085
A26: 2020 | B26: 296.6 | C26: 0.034 | D26: 535 | E26: 0.061 | F26: 726.6 | G26: 0.083
A27: 2021 | B27: 303.7 | C27: 0.035 | D27: 542.7 | E27: 0.062 | F27: 709 | G27: 0.081
A28: 2022 | B28: 311.8 | C28: 0.036 | D28: 551.6 | E28: 0.063 | F28: 698.4 | G28: 0.08
A29: 2023 | B29: 318.3 | C29: 0.036 | D29: 559 | E29: 0.064 | F29: 695.6 | G29: 0.079
A30: Source: SARB, www.resbank.co.za, time series data, accessed 19 September 2024
A31: a Fixed capital is conventionally defined as the stock of tangible, durable fixed assets owned or used by resident enterprises for more than one year. This includes plant, machinery, vehicles and equipment, installations and physical infrastructure, the value of land improvements, and buildings.
A32: b At constant 2015 prices.

Sheet Capital expend projects 2008-24
B2: Announced capital expenditure projects by value, organisation, 2008-24
C4: —Value of announced projects Rbn— | E4: —Value of capital expenditure by organisationa—
B5: Year | C5: At constant 2022 prices | D5: At current prices | E5: Private sector | F5: General government | G5: Public corporations
B6: 2008 | C6: 438.8 | D6: 184 | E6: 0.681868326 | F6: 0.2885145233 | G6: 0.02961715078
B7: 2009 | C7: 223.4 | D7: 101.8 | E7: 0.7343361597 | F7: 0.244 | G7: 0.023
B8: 2010 | C8: 139.5 | D8: 67.5 | E8: 0.767 | F8: 0.062 | G8: 0.1689865255
B9: 2011 | C9: 563.1 | D9: 287.4 | E9: 0.311 | F9: 0.1463929721 | G9: 0.542054449
B10: 2012 | C10: 823.2 | D10: 465.6 | E10: 0.196 | F10: 0.116 | G10: 0.688
B11: 2013 | C11: 506.3 | D11: 286.3 | E11: 0.601 | F11: 0.085 | G11: 0.315
B12: 2014 | C12: 120 | D12: 71.5 | E12: 0.671 | F12: 0.178 | G12: 0.152
B13: 2015 | C13: 232.5 | D13: 146.2 | E13: 0.8136556346 | F13: 0.075 | G13: 0.1118777352
B14: 2016 | C14: 197 | D14: 132.5 | E14: 0.438 | F14: 0.441 | G14: 0.122
B15: 2017 | C15: 166.7 | D15: 118.2 | E15: 0.766 | F15: 0.225 | G15: 0.009
B16: 2018 | C16: 185.5 | D16: 136.9 | E16: 0.821 | F16: 0.049 | G16: 0.13
B17: 2019 | C17: 179.7 | D17: 138.7 | E17: 0.626 | F17: 0.105 | G17: 0.27
B18: 2020 | C18: 628.7 | D18: 511.5 | E18: 0.132 | F18: 0.852 | G18: 0.017
B19: 2021 | C19: 430.1 | D19: 372.7 | E19: 0.327 | F19: 0.085 | G19: 0.588
B20: 2022 | C20: 286.2 | D20: 260.4 | E20: 0.781 | F20: 0.083 | G20: 0.136
B21: 2023 | C21: 202.6 | D21: 193.2 | E21: 0.43 | F21: 0.39 | G21: 0.18
B22: 2024b | C22: 793.7 | D22: 793.7 | E22: 0.26 | F22: 0.496 | G22: 0.245
B23: Source: Nedbank, Capital expenditure project listing First half 2024, 12 August 2024
B24: a At current prices. Figures should add up horizontally to 100% but may not, owing to rounding.
B25: b 2024 value represents projects announced in the first half of 2024 and annualised for comparative purposes.

Sheet Value of projects by sector
A2: Announced capital expenditure projects by sector, 2019-24a
A4: Industry | B4: 2020 | C4: 2021 | D4: 2022 | E4: 2023 | F4: 2024 | G4: Proportion of 2024
B5: Rbn
A6: Agriculture, forestry and fishing | B6: 7 | C6: 0 | D6: 0 | E6: 0 | F6: 0 | G6: 0
A7: Mining and quarrying | B7: 4.2 | C7: 13.1 | D7: 22.6 | E7: 3.7 | F7: 18.7 | G7: 0.047
A8: Manufacturing | B8: 1.8 | C8: 21.7 | D8: 6.7 | E8: 13.3 | F8: 16.9 | G8: 0.043
A9: Electricity, gas and water | B9: 156 | C9: 53.3 | D9: 122.4 | E9: 9.3 | F9: 106.7 | G9: 0.269
A10: Construction | B10: 0 | C10: 0 | D10: 0 | E10: 0 | F10: 0 | G10: 0
A11: Wholesale, retail and motor trade, hotels and accommodation | B11: 0 | C11: 0.4 | D11: 2.7 | E11: 0 | F11: 0.9 | G11: 0.002
A12: Transport, storage and communication | B12: 58.1 | C12: 62.3 | D12: 8.8 | E12: 18.3 | F12: 22.4 | G12: 0.056
A13: Finance, real estate, financial and business services | B13: 13.2 | C13: 0.7 | D13: 15.9 | E13: 0.7 | F13: 18.6 | G13: 0.047
A14: Community, social and personal services | B14: 138.4 | C14: 9.4 | D14: 18.4 | E14: 53.2 | F14: 212.7 | G14: 0.536
A15: Total | B15: 378.6 | C15: 160.7 | D15: 197.4 | E15: 98.6 | F15: 396.8 | G15: 1
A16: Source: Nedbank, Capital expenditure project listing First half 2024, 12 August 2024
A18: a In the first half of each year.

Sheet Foreign investment Stock

Sheet Foreign liabilit&assets 90-22
A2: Foreign investment: stock
A4: Inward and outward investment
A6: Foreign liabilitiesa and assetsb, 1990-2022
B8: 1990 | C8: 1995 | D8: 2000c | E8: 2005 | F8: 2010 | G8: 2015 | H8: 2020 | I8: 2021 | J8: 2022
A9: Foreign liabilities
A10: Direct investmentd | B10: 23.6 | C10: 54.8 | D10: 328.9 | E10: 611.6 | F10: 1190.8 | G10: 1970.4 | H10: 1955.1 | I10: 2780 | J10: 2926.3
A11: Non-direct investmente | B11: 63.9 | C11: 166.2 | D11: 429.8 | E11: 702.2 | F11: 1624.4 | G11: 3573.9 | H11: =H12-H10 -> 4492.1 | I11: =I12-I10 -> 4439.2 | J11: =J12-J10 -> 4636.2
A12: Totalf | B12: 87.5 | C12: 221 | D12: 758.7 | E12: 1313.8 | F12: 2815.2 | G12: 5544.3 | H12: 6447.2 | I12: 7219.2 | J12: 7562.5
A13: Direct investment as a proportion of total | B13: 0.27 | C13: 0.248 | D13: 0.434 | E13: 0.466 | F13: 0.423 | G13: 0.355 | H13: 0.303 | I13: 0.385 | J13: 0.387
A14: Increase (direct investment) | B14: 0.035 | C14: 1.322 | D14: 5.002 | E14: 0.86 | F14: 0.947 | G14: 0.225 | H14: -0.008 | I14: =(I12-H12)/H12 -> 0.1197419035 | J14: 0.053
A15: Foreign assets
A16: Direct investmentg | B16: 38.5 | C16: 85 | D16: 206.8 | E16: 196.3 | F16: 552.1 | G16: 2404.6 | H16: 3685.6 | I16: 3560.1 | J16: 3533.9
A17: Non-direct investmente | B17: 13.1 | C17: 30.1 | D17: 470.9 | E17: 769.8 | F17: 1607.7 | G17: 3776.8 | H17: =H18-H16 -> 4411.9 | I17: =I18-I16 -> 5286.1 | J17: =J18-J16 -> 5331.6
A18: Totalf | B18: 51.6 | C18: 115.1 | D18: 677.7 | E18: 966.1 | F18: 2159.8 | G18: 6181.4 | H18: 8097.5 | I18: 8846.2 | J18: 8865.5
A19: Direct investment as a proportion of total | B19: 0.746 | C19: 0.738 | D19: 0.305 | E19: 0.203 | F19: 0.256 | G19: 0.389 | H19: 0.455 | I19: 0.402 | J19: =J16/J18 -> 0.3986125994
A20: Increase (direct investment) | B20: 0.689 | C20: 1.208 | D20: 1.433 | E20: -0.051 | F20: 1.813 | G20: =(G16-F16)/F16 -> 3.355370404 | H20: 0.31 | I20: -0.034 | J20: =(J16-I16)/I16 -> -0.007359343839
A21: Foreign liabilities as a proportion of foreign assets
A22: All foreign liabilities as a proportion of foreign assets | B22: 1.696 | C22: 1.92 | D22: 1.12 | E22: 1.36 | F22: 1.303 | G22: 0.897 | H22: =H12/H18 -> 0.7961963569 | I22: 0.816 | J22: =J12/J18 -> 0.8530257741
A23: Direct foreign liabilities as a proportion of direct foreign assets | B23: 0.613 | C23: 0.645 | D23: 1.59 | E23: 3.116 | F23: 2.157 | G23: 0.819 | H23: =H10/H16 -> 0.5304699371 | I23: 0.781 | J23: =J10/J16 -> 0.8280653103
A24: Source: SARB, www.resbank.co.za, time series data, accessed 24 June 2024
A25: a Foreign investment in South Africa.
A26: b South African investment in other countries.
A27: c According to the Reserve Bank, the large increase in South Africa’s foreign liabilities in 1999 and 2000 was the result of the transfer of the primary listing of certain companies from the Johannesburg to the London Stock Exchange.
A28: d Investment by foreigners in undertakings in South Africa in which they (individually or collectively in the case of affiliated organisations or persons) have at least 10% of voting rights.
A29: e Includes portfolio investment, banking sector financial derivatives, and long- and short-term loans from various sources.
A30: f Figures should add up vertically but may not, owing to rounding.
A32: g Investment by South African residents in undertakings abroad in which they (individually or collectively in the case of affiliated organisations or persons) have at least 10% of the voting rights.

Sheet Total direct investment 70-22
B2: Total direct investment, 1970-2022
B4: Year | C4: Foreign liabilities Rbn | D4: Foreign assets Rbn | E4: Ratio to 1
B5: 1970 | C5: 4.2 | D5: 0.9 | E5: 4.67
B6: 1971 | C6: 4.7 | D6: 1 | E6: 4.7
B7: 1972 | C7: 5.2 | D7: 1 | E7: 5.2
B8: 1973 | C8: 5.6 | D8: 1.4 | E8: 4
B9: 1974 | C9: 6.7 | D9: 1.7 | E9: 3.94
B10: 1975 | C10: 7.4 | D10: 2.1 | E10: 3.52
B11: 1976 | C11: 8.2 | D11: 2.2 | E11: 3.73
B12: 1977 | C12: 8.8 | D12: 2.6 | E12: 3.38
B13: 1978 | C13: 9.9 | D13: 3.2 | E13: 3.09
B14: 1979 | C14: 10.3 | D14: 3.4 | E14: 3.03
B15: 1980 | C15: 12.3 | D15: 4.1 | E15: 3
B16: 1981 | C16: 14.2 | D16: 5.8 | E16: 2.45
B17: 1982 | C17: 16.1 | D17: 7.9 | E17: 2.04
B18: 1983 | C18: 17.1 | D18: 9.1 | E18: 1.88
B19: 1984 | C19: 21.8 | D19: 16.9 | E19: 1.29
B20: 1985 | C20: 22.8 | D20: 22.8 | E20: 1
B21: 1986 | C21: 21.5 | D21: 23.9 | E21: 0.9
B22: 1987 | C22: 19.3 | D22: 25.9 | E22: 0.75
B23: 1988 | C23: 18.4 | D23: 28.7 | E23: 0.64
B24: 1989 | C24: 20.4 | D24: 33.3 | E24: 0.61
B25: 1990 | C25: 23.6 | D25: 38.5 | E25: 0.61
B26: 1991 | C26: 28 | D26: 44.2 | E26: 0.63
B27: 1992 | C27: 32.6 | D27: 54.3 | E27: 0.6
B28: 1993 | C28: 36.3 | D28: 61 | E28: 0.6
B29: 1994 | C29: 44.7 | D29: 67.7 | E29: 0.66
B30: 1995 | C30: 54.8 | D30: 85 | E30: 0.64
B31: 1996 | C31: 62 | D31: 98.5 | E31: 0.63
B32: 1997 | C32: 81.5 | D32: 93.8 | E32: 0.87
B33: 1998 | C33: 91.9 | D33: 133.2 | E33: 0.69
B34: 1999 | C34: 318.6 | D34: 172.8 | E34: 1.84
B35: 2000 | C35: 328.9 | D35: 206.8 | E35: 1.59
B36: 2001 | C36: 420.7 | D36: 175.7 | E36: 2.39
B37: 2002 | C37: 310 | D37: 170.1 | E37: 1.82
B38: 2003 | C38: 378.9 | D38: 161.9 | E38: 2.34
B39: 2004 | C39: 452 | D39: 194.7 | E39: 2.32
B40: 2005 | C40: 611.6 | D40: 196.3 | E40: 3.12
B41: 2006 | C41: 745.3 | D41: 286.5 | E41: 2.6
B42: 2007 | C42: 897.8 | D42: 376 | E42: 2.39
B43: 2008 | C43: 778.4 | D43: 460 | E43: 1.69
B44: 2009 | C44: 1024 | D44: 518.8 | E44: 1.97
B45: 2010 | C45: 1190.8 | D45: 552.1 | E45: 2.16
B46: 2011 | C46: 1297.9 | D46: 790.3 | E46: 1.64
B47: 2012 | C47: 1390 | D47: 950.3 | E47: 1.46
B48: 2013 | C48: 1595.8 | D48: 1349.9 | E48: 1.18
B49: 2014 | C49: 1608.652 | D49: 1691.089 | E49: 0.95
B50: 2015 | C50: 1970.4 | D50: 2404.6 | E50: =C50/D50 -> 0.8194294269
B51: 2016 | C51: 1853.6 | D51: 2403.5 | E51: 0.771208654
B52: 2017 | C52: 1925.5 | D52: 3361.9 | E52: 0.5727416044
B53: 2018 | C53: 1992.1 | D53: 3543 | E53: 0.5622636184
B54: 2019 | C54: 2037.2 | D54: 3015.5 | E54: 0.6755761897
B55: 2020 | C55: 1955.1 | D55: 3685.6 | E55: 0.5304699371
B56: 2021 | C56: 2780 | D56: 3560.1 | E56: 0.7808769417
B57: 2022 | C57: 2926.3 | D57: 3533.9 | E57: 0.8280653103
B58: Source: SARB, www.resbank.co.za, time series data, accessed 24 June 2024

Sheet LG.Foreign liab to assets 60-22
B4: Ratio
A5: 1960 | B5: 4.25
A6: 1961 | B6: 4.25
A7: 1962 | B7: 3.6
A8: 1963 | B8: 3.8
A9: 1964 | B9: 4
A10: 1965 | B10: 3.67
A11: 1966 | B11: 3.57
A12: 1967 | B12: 3.86
A13: 1968 | B13: 4.57
A14: 1969 | B14: 4.63
A15: 1970 | B15: 4.67
A16: 1971 | B16: 4.7
A17: 1972 | B17: 5.2
A18: 1973 | B18: 4
A19: 1974 | B19: 3.94
A20: 1975 | B20: 3.52
A21: 1976 | B21: 3.73
A22: 1977 | B22: 3.38
A23: 1978 | B23: 3.09
A24: 1979 | B24: 3.03
A25: 1980 | B25: 3
A26: 1981 | B26: 2.45
A27: 1982 | B27: 2.04
A28: 1983 | B28: 1.88
A29: 1984 | B29: 1.29
A30: 1985 | B30: 1
A31: 1986 | B31: 0.9
A32: 1987 | B32: 0.75
A33: 1988 | B33: 0.64
A34: 1989 | B34: 0.61
A35: 1990 | B35: 0.61
A36: 1991 | B36: 0.63
A37: 1992 | B37: 0.6
A38: 1993 | B38: 0.6
A39: 1994 | B39: 0.66
A40: 1995 | B40: 0.64
A41: 1996 | B41: 0.63
A42: 1997 | B42: 0.87
A43: 1998 | B43: 0.69
A44: 1999 | B44: 1.84
A45: 2000 | B45: 1.59
A46: 2001 | B46: 2.39
A47: 2002 | B47: 1.82
A48: 2003 | B48: 2.34
A49: 2004 | B49: 2.32
A50: 2005 | B50: 3.12
A51: 2006 | B51: 2.6
A52: 2007 | B52: 2.39
A53: 2008 | B53: 1.69
A54: 2009 | B54: 1.97
A55: 2010 | B55: 2.16
A56: 2011 | B56: 1.64
A57: 2012 | B57: 1.46
A58: 2013 | B58: 1.18
A59: 2014 | B59: 0.95
A60: 2015 | B60: 0.82
A61: 2016 | B61: 0.77
A62: 2017 | B62: 0.57
A63: 2018 | B63: 0.56
A64: 2019 | B64: 0.68
A65: 2020 | B65: 0.53
A66: 2021 | B66: 0.78
A67: 2022 | B67: 0.83

Sheet Inward investment

Sheet Foreign liabilities 1970-2022
B2: Inward investment
B4: Foreign liabilities (foreign investment in South Africa), 1970-2022
B6: Year | C6: Direct investmenta Rbn | D6: Non-direct investmentb Rbn | E6: Total investment Rbn | F6: Change | G6: Direct investment as a proportion of total investment
B7: 1970 | C7: 4.2 | D7: 3.6 | E7: 7.8 | F7: 0.219 | G7: 0.5356457187
B8: 1971 | C8: 4.7 | D8: 3.2 | E8: 7.9 | F8: =(E8-E7)/E7 -> 0.01282051282 | G8: 0.5908284773
B9: 1972 | C9: 5.2 | D9: 4.2 | E9: 9.4 | F9: 0.1898734177 | G9: 0.554954955
B10: 1973 | C10: 5.6 | D10: 4.5 | E10: 10.1 | F10: 0.07446808511 | G10: 0.5536387071
B11: 1974 | C11: 6.7 | D11: 6.4 | E11: 13.1 | F11: 0.297029703 | G11: 0.5106790171
B12: 1975 | C12: 7.4 | D12: 9.2 | E12: 16.6 | F12: 0.2671755725 | G12: 0.4479292078
B13: 1976 | C13: 8.2 | D13: 11.2 | E13: 19.4 | F13: 0.1686746988 | G13: 0.4243034056
B14: 1977 | C14: 8.8 | D14: 12.1 | E14: 20.9 | F14: 0.07731958763 | G14: 0.4207485916
B15: 1978 | C15: 9.9 | D15: 12 | E15: 21.9 | F15: 0.04784688995 | G15: 0.4496714729
B16: 1979 | C16: 10.3 | D16: 11.9 | E16: 22.2 | F16: 0.01369863014 | G16: 0.4649039975
B17: 1980 | C17: 12.3 | D17: 13.9 | E17: 26.2 | F17: 0.1801801802 | G17: 0.4679171909
B18: 1981 | C18: 14.2 | D18: 18.6 | E18: 32.8 | F18: 0.2519083969 | G18: 0.4323764247
B19: 1982 | C19: 16.1 | D19: 25.4 | E19: 41.5 | F19: 0.2652439024 | G19: 0.3880956975
B20: 1983 | C20: 17.1 | D20: 31.6 | E20: 48.7 | F20: 0.1734939759 | G20: 0.3508033036
B21: 1984 | C21: 21.8 | D21: 49.9 | E21: 71.7 | F21: 0.4722792608 | G21: 0.3043060067
B22: 1985 | C22: 22.8 | D22: 66.8 | E22: 89.6 | F22: 0.249651325 | G22: 0.2540490462
B23: 1986 | C23: 21.5 | D23: 59.1 | E23: 80.6 | F23: -0.1004464286 | G23: 0.2660754155
B24: 1987 | C24: 19.3 | D24: 55.4 | E24: 74.7 | F24: -0.07320099256 | G24: 0.258638225
B25: 1988 | C25: 18.4 | D25: 59.7 | E25: 78.1 | F25: 0.04551539491 | G25: 0.2359919039
B26: 1989 | C26: 20.4 | D26: 64.5 | E26: 84.9 | F26: 0.08706786172 | G26: 0.2406968937
B27: 1990 | C27: 23.6 | D27: 63.9 | E27: 87.5 | F27: 0.03062426384 | G27: 0.2696785841
B28: 1991 | C28: 28 | D28: 69.6 | E28: 97.6 | F28: 0.1154285714 | G28: 0.2870703529
B29: 1992 | C29: 32.6 | D29: 86.4 | E29: 119 | F29: 0.2192622951 | G29: 0.2736358975
B30: 1993 | C30: 36.3 | D30: 105.9 | E30: 142.2 | F30: 0.1949579832 | G30: 0.2554325284
B31: 1994 | C31: 44.7 | D31: 132.5 | E31: 177.2 | F31: 0.2461322082 | G31: 0.2522160094
B32: 1995 | C32: 54.8 | D32: 166.2 | E32: 221 | F32: 0.2471783296 | G32: 0.2477885716
B33: 1996 | C33: 62 | D33: 212.6 | E33: 274.6 | F33: 0.2425339367 | G33: 0.2257284382
B34: 1997 | C34: 81.5 | D34: 244.9 | E34: 326.4 | F34: 0.1886380189 | G34: 0.249616978
B35: 1998 | C35: 91.9 | D35: 313.1 | E35: 405 | F35: 0.2408088235 | G35: 0.2268471988
B36: 1999c | C36: 318.6 | D36: 389.6 | E36: 708.2 | F36: 0.7486419753 | G36: 0.4499349731
B37: 2000 | C37: 328.9 | D37: 429.8 | E37: 758.7 | F37: 0.07130754024 | G37: 0.4334780637
B38: 2001 | C38: 420.7 | D38: 555.8 | E38: 976.5 | F38: 0.2870699881 | G38: 0.430840219
B39: 2002 | C39: 310 | D39: 471.7 | E39: 781.7 | F39: -0.1994879672 | G39: 0.3966197659
B40: 2003 | C40: 378.9 | D40: 462.5 | E40: 841.4 | F40: 0.07637200972 | G40: 0.4503204919
B41: 2004 | C41: 452 | D41: 498.6 | E41: 950.6 | F41: 0.1297836938 | G41: 0.4754674028
B42: 2005 | C42: 611.6 | D42: 700.2 | E42: 1311.8 | F42: 0.3799705449 | G42: 0.4662028917
B43: 2006 | C43: 745.3 | D43: 969.3 | E43: 1714.6 | F43: 0.3070590029 | G43: 0.434686374
B44: 2007 | C44: 897.8 | D44: 1273.1 | E44: 2170.9 | F44: 0.2661262102 | G44: 0.4135380426
B45: 2008 | C45: 778.4 | D45: 1388.8 | E45: 2167.2 | F45: -0.001704362246 | G45: =C45/E45 -> 0.3591731266
B46: 2009 | C46: 1024 | D46: 1373.4 | E46: 2397.4 | F46: 0.1062200074 | G46: =C46/E46 -> 0.4271293902
B47: 2010 | C47: 1190.8 | D47: 1624.4 | E47: 2815.2 | F47: 0.1742721281 | G47: 0.4229898956
B48: 2011 | C48: 1297.9 | D48: 1803.2 | E48: 3101.1 | F48: 0.1015558397 | G48: 0.4185340676
B49: 2012 | C49: 1390 | D49: 2277.7 | E49: 3667.7 | F49: 0.1827093612 | G49: 0.3789899248
B50: 2013 | C50: 1595.8 | D50: 2694.2 | E50: 4290 | F50: 0.1696703656 | G50: 0.3719747159
B51: 2014 | C51: 1608.7 | D51: 3324.6 | E51: 4933.3 | F51: 0.14995338 | G51: 0.3260787911
B52: 2015 | C52: 1970.4 | D52: 3573.9 | E52: 5544.3 | F52: 0.1238521882 | G52: 0.3553923297
B53: 2016 | C53: 1853.6 | D53: =E53-C53 -> 3636.3 | E53: 5489.9 | F53: -0.009811878867 | G53: =C53/E53 -> 0.3376382083
B54: 2017 | C54: 1925.5 | D54: 4522.5 | E54: 6448 | F54: 0.1745204831 | G54: 0.298619727
B55: 2018 | C55: 1992.1 | D55: 4417.1 | E55: 6409.2 | F55: -0.006017369727 | G55: 0.3108188229
B56: 2019 | C56: 2037.2 | D56: 4508 | E56: 6545.2 | F56: 0.02121949697 | G56: 0.3112509931
B57: 2020 | C57: 1955.1 | D57: 4492.1 | E57: 6447.2 | F57: -0.0149728045 | G57: 0.3032479216
B58: 2021 | C58: 2780 | D58: 4439.2 | E58: 7219.2 | F58: 0.1197419035 | G58: 0.3850842199
B59: 2022 | C59: 2926.3 | D59: 4636.2 | E59: 7562.5 | F59: 0.04755374557 | G59: 0.3869487603
B60: Source: SARB, www.resbank.co.za, time series data, accessed 24 June 2024
B61: a Investment by foreigners in undertakings in South Africa in which they (individually or collectively in the case of affiliated organisations or persons) have at least 10% of the voting rights.
B62: b Includes portfolio investment, banking sector financial derivatives and long- and short-term loans from various sources.
B63: c According to the Reserve Bank the very large increase in South Africa’s foreign liabilities in 1999 and 2000 was the result of the transfer of the primary listing of certain companies from the Johannesburg to the London Stock Exchange.

Sheet LG Direct invest % of total
A1: LG
A2: Direct investment as proportion of total foreign investment in South Africa , 1960-2021
B4: %
A5: 1960 | B5: 0.5468140442
A6: 1961 | B6: 0.5662529353
A7: 1962 | B7: 0.6018829859
A8: 1963 | B8: 0.6047634374
A9: 1964 | B9: 0.5950829384
A10: 1965 | B10: 0.5980603448
A11: 1966 | B11: 0.6033038066
A12: 1967 | B12: 0.6511289148
A13: 1968 | B13: 0.5753571429
A14: 1969 | B14: 0.5769953052
A15: 1970 | B15: 0.5356457187
A16: 1971 | B16: 0.5908284773
A17: 1972 | B17: 0.554954955
A18: 1973 | B18: 0.5536387071
A19: 1974 | B19: 0.5106790171
A20: 1975 | B20: 0.4479292078
A21: 1976 | B21: 0.4243034056
A22: 1977 | B22: 0.4207485916
A23: 1978 | B23: 0.4496714729
A24: 1979 | B24: 0.4649039975
A25: 1980 | B25: 0.4679171909
A26: 1981 | B26: 0.4323764247
A27: 1982 | B27: 0.3880956975
A28: 1983 | B28: 0.3508033036
A29: 1984 | B29: 0.3043060067
A30: 1985 | B30: 0.2540490462
A31: 1986 | B31: 0.2660754155
A32: 1987 | B32: 0.258638225
A33: 1988 | B33: 0.2359919039
A34: 1989 | B34: 0.2406968937
A35: 1990 | B35: 0.2696785841
A36: 1991 | B36: 0.2870703529
A37: 1992 | B37: 0.2736358975
A38: 1993 | B38: 0.2554325284
A39: 1994 | B39: 0.2522160094
A40: 1995 | B40: 0.2477885716
A41: 1996 | B41: 0.2257284382
A42: 1997 | B42: 0.249616978
A43: 1998 | B43: 0.2268471988
A44: 1999 | B44: 0.4499349731
A45: 2000 | B45: 0.4334780637
A46: 2001 | B46: 0.430840219
A47: 2002 | B47: 0.3966197659
A48: 2003 | B48: 0.4503204919
A49: 2004 | B49: 0.4754674028
A50: 2005 | B50: 0.4662028917
A51: 2006 | B51: 0.434686374
A52: 2007 | B52: 0.4135380426
A53: 2008 | B53: 0.3591491553
A54: 2009 | B54: 0.4271246718
A55: 2010 | B55: 0.4229898956
A56: 2011 | B56: 0.4185340676
A57: 2012 | B57: 0.3789899248
A58: 2013 | B58: 0.3719747159
A59: 2014 | B59: 0.3260787911
A60: 2015 | B60: 0.3553923297
A61: 2016 | B61: 0.3376382083
A62: 2017 | B62: 0.298619727
A63: 2018 | B63: 0.3108188229
A64: 2019 | B64: 0.3112509931
A65: 2020 | B65: 0.3032479216
A66: 2021 | B66: 0.385
A67: 2022 | B67: 0.387

Sheet Foreign liabilities in SA 2022
A2: Foreign liabilities (foreign investment in South Africa) by country/region at 31st December 2022
A4: Country/region | B4: Direct investment | C4: Non-direct investmenta | D4: Country/region total | E4: Country/region total investment as a share of all foreign investment | F4: Country/region direct investment as a share of country/region total investment
B5: —Rbn— | E5: —%—
A6: United Kingdom | B6: 715.6 | C6: =D6-B6 -> 760.8 | D6: 1476.4 | E6: =D6/D21 -> 0.1952264463 | F6: =B6/D6 -> 0.4846924953
A7: Netherlands | B7: 1073.9 | C7: =D7-B7 -> 77.4 | D7: 1151.3 | E7: =D7/D21 -> 0.1522380165 | F7: =B7/D7 -> 0.9327716494
A8: Belgium | B8: 200.1 | C8: 673.8 | D8: 873.9 | E8: =D8/D21 -> 0.1155570248 | F8: 0.2289735668
A9: Germany | B9: 121 | C9: =D9-B9 -> 50.5 | D9: 171.5 | E9: =D9/D21 -> 0.02267768595 | F9: =B9/D9 -> 0.7055393586
A10: Luxembourg | B10: 68.3 | C10: =D10-B10 -> 99.3 | D10: 167.6 | E10: =D10/D21 -> 0.02216198347 | F10: =B10/D10 -> 0.4075178998
A11: Switzerland | B11: 31.4 | C11: =D11-B11 -> 61.3 | D11: 92.7 | E11: =D11/D21 -> 0.01225785124 | F11: =B11/D11 -> 0.3387270766
A12: Rest of Europe | B12: 129.4 | C12: 268.4 | D12: 397.8 | E12: =D12/D21 -> 0.05260165289 | F12: 0.32528909
A13: United States | B13: 160.6 | C13: 1630.3 | D13: 1790.9 | E13: =D13/D21 -> 0.2368132231 | F13: 0.08967558211
A14: Rest of North and South America | B14: 43.1 | C14: 32.3 | D14: 75.4 | E14: =D14/D21 -> 0.009970247934 | F14: 0.5716180371
A15: Africa | B15: 94.3 | C15: 210.4 | D15: 304.7 | E15: =D15/D21 -> 0.04029090909 | F15: 0.3094847391
A16: Japan | B16: 50.9 | C16: 14.7 | D16: 65.6 | E16: =D16/D21 -> 0.008674380165 | F16: 0.7759146341
A17: China | B17: 100.8 | C17: 185.2 | D17: 286 | E17: =D17/D21 -> 0.03781818182 | F17: 0.3524475524
A18: Rest of Asiab | B18: 73.5 | C18: 231.4 | D18: 304.9 | E18: =D18/D21 -> 0.04031735537 | F18: 0.2410626435
A19: Oceaniac | B19: 58.8 | C19: 20.6 | D19: 79.4 | E19: =D19/D21 -> 0.01049917355 | F19: 0.7405541562
A20: International organisations | B20: 4.6 | C20: 319.8 | D20: 324.4 | E20: =D20/D21 -> 0.04289586777 | F20: 0.01418002466
A21: Total | B21: 2926.3 | C21: 4636.2 | D21: 7562.5 | E21: 1 | F21: 0.3869487603
A22: Source: SARB, Quarterly Bulletin, March 2024, pp98-101
A23: a Includes portfolio investment, banking sector financial derivatives and long- and short-term loans from various sources.
A24: b Hong Kong, India, Malaysia, Singapore, South Korea and other.
A25: c Australia and other.

Sheet 2 graphs investment in SA
A1: 2 smaller graphs next to each other
B2: Proportion of regional investment in South Africa, 2022
A3: Europe | B3: 0.573
A4: America | B4: 0.247
A5: Africa | B5: 0.04
A6: Asia | B6: 0.087
A7: Oceania | B7: 0.01
A8: Other | B8: 0.043
B19: Direct investment of selected countries, as a share of total direct investment, 2022
A22: Netherlands | B22: 0.367
A23: United Kingdom | B23: 0.245
A24: Belgium | B24: 0.068
A25: United States | B25: 0.055
A26: Germany | B26: 0.041
A27: China | B27: 0.034
A28: Luxembourg | B28: 0.023
A29: Australia | B29: 0.02
A30: Japan | B30: 0.017
A31: Mauritius | B31: 0.009
A34: United Kingdom | B34: 715.6 | C34: 0.2445408878
A35: Netherlands | B35: 1073.9 | C35: 0.3669821959
A36: Belgium | B36: 200.1 | C36: 0.06837986536
A37: Germany | B37: 121 | C37: 0.04134914397
A38: Luxembourg | B38: 68.3 | C38: 0.02334005399
A39: Switzerland | B39: 31.4 | C39: 0.01073027372
A40: Rest of Europe | B40: 129.4 | C40: 0.04421966306
A41: United States | B41: 160.6 | C41: 0.05488159109 | G41: 68.3
A42: Rest of North and South America | B42: 43.1 | C42: 0.01472849674 | G42: 2926.3
A43: Africa | B43: 94.3 | C43: 0.03222499402 | G43: =G41/G42 -> 0.02334005399
A44: Japan | B44: 50.9 | C44: 0.01739397874
A45: China | B45: 100.8 | C45: 0.03444622903
A46: Rest of Asiab | B46: 73.5 | C46: 0.025117042
A47: Oceaniac | B47: 58.8 | C47: 0.0200936336
A48: International organisations | B48: 4.6 | C48: 0.001571950928
A49: Total | B49: 2926.3 | C49: 1

Sheet FDI by economic activity 94-22
A2: Foreign direct investment (FDI) in South Africa by economic activity (actual numbers), 1994-2022
A5: Sector | B5: 1994 | C5: 2005 | D5: 2010 | E5: 2015 | F5: 2020 | G5: 2021 | H5: 2022
A6: Agriculture, forestry and fishing | B6: 0.32 | C6: 0.73 | D6: 0.93 | E6: 1.46 | F6: 2.17 | G6: 4.23 | H6: 5.02
A7: Mining and quarrying | B7: 1.96 | C7: 168.27 | D7: 388.77 | E7: 314 | F7: 656.71 | G7: 818.55 | H7: 707.3
A8: Manufacturing | B8: 14.88 | C8: 136.03 | D8: 262.92 | E8: 569.94 | F8: 303.63 | G8: 860.12 | H8: 1126.53
A9: Electricity, gas and water | B9: — | C9: 0.03 | D9: 0.03 | E9: 1.13 | F9: 0.69 | G9: 4.43 | H9: 4.4
A10: Construction | B10: 0.56 | C10: 1.98 | D10: 2.04 | E10: 3.97 | F10: 3.5 | G10: 5.72 | H10: 2.63
A11: Trade etc | B11: 6.7 | C11: 14.72 | D11: 34.51 | E11: 80.02 | F11: 121.62 | G11: 131.16 | H11: 113.48
A12: Transport and communication | B12: 0.47 | C12: 9.45 | D12: 83.94 | E12: 196.32 | F12: 163.44 | G12: 198.71 | H12: 339.7
A13: Finance etc | B13: 11.1 | C13: 157.59 | D13: 241.79 | E13: 802.68 | F13: 684.4 | G13: 722.11 | H13: 584.16
A14: Community, social and personal services | B14: 0.04 | C14: 0.52 | D14: 0.58 | E14: 0.91 | F14: 18.94 | G14: 34.96 | H14: 43.11
A15: Totala | B15: 36.02 | C15: 489.32 | D15: 1015.52 | E15: 1970.41 | F15: 1955.09 | G15: 2780 | H15: 2926.34
A16: Source: SARB, Quarterly Bulletins, 1996-2024
A17: a Figures should add up horizontally but may not, owing to rounding.

Sheet FDI by economic activity %
A2: Foreign direct investment (FDI) in South Africa by economic activity (proportions), 1994-2022
A4: Sector | B4: 1994 | C4: 2005 | D4: 2010 | E4: 2015 | F4: 2020 | G4: 2021 | H4: 2022
A5: Agriculture, forestry and fishing | B5: 0.009 | C5: 0.001 | D5: 0.001 | E5: 0.001 | F5: 0.001019050727 | G5: 0.001521582734 | H5: 0.001715453433
A6: Mining and quarrying | B6: 0.054 | C6: 0.344 | D6: 0.383 | E6: 0.159 | F6: 0.336 | G6: 0.294442446 | H6: 0.2417012377
A7: Manufacturing | B7: 0.413 | C7: 0.278 | D7: 0.259 | E7: 0.289 | F7: 0.155 | G7: 0.3093956835 | H7: 0.3849621028
A8: Electricity, gas and water | B8: — | C8: 0 | D8: 0 | E8: 0.001 | F8: 0 | G8: 0.00159352518 | H8: 0.001503584683
A9: Construction | B9: 0.016 | C9: 0.004 | D9: 0.002 | E9: 0.002 | F9: 0.002 | G9: 0.002057553957 | H9: 0.0008987335716
A10: Trade etc | B10: 0.186 | C10: 0.03 | D10: 0.034 | E10: 0.041 | F10: 0.062 | G10: 0.04717985612 | H10: 0.03877881586
A11: Transport and communication | B11: 0.013 | C11: 0.019 | D11: 0.083 | E11: 0.1 | F11: 0.084 | G11: 0.07147841727 | H11: 0.116083572
A12: Finance etc | B12: 0.308 | C12: 0.322 | D12: 0.238 | E12: 0.407 | F12: 0.35 | G12: 0.2597517986 | H12: 0.19962137
A13: Community, social and personal services | B13: 0.001 | C13: 0.001 | D13: 0.001 | E13: 0 | F13: 0.01 | G13: 0.01257553957 | H13: 0.01473171265
A14: Totala | B14: 1 | C14: 1 | D14: 1 | E14: 1 | F14: 1 | G14: 1 | H14: 1
A15: Source: SARB, Quarterly Bulletins, 1996-2024
A16: a Figures should add up horizontally but may not, owing to rounding.

Sheet FDI by econ.activity 1994-22
A1: BC
A2: FDI in South Africa by kind of economic activity (proportions), 1994 and 2022
B4: 1994 | C4: 2022
A5: Agriculture, forestry, and fishing | B5: 0.009 | C5: 0.001715453433
A6: Mining and quarrying | B6: 0.054 | C6: 0.2417012377
A7: Manufacturing | B7: 0.413 | C7: 0.3849621028
A8: Electricity, gas, and water | B8: — | C8: 0.001503584683
A9: Construction | B9: 0.016 | C9: 0.0008987335716
A10: Trade etc | B10: 0.186 | C10: 0.03877881586
A11: Transport and communication | B11: 0.013 | C11: 0.116083572
A12: Finance etc | B12: 0.308 | C12: 0.19962137
A13: Community, social and personal services | B13: 0.001 | C13: 0.01473171265

Sheet Outward investment

Sheet Foreign assets 1970-2022
B2: Outward investment
B4: Foreign assets (South African investment in other countries), 1970-2022
B6: Year | C6: Direct investmenta Rbn | D6: Non-direct investmentb Rbn | E6: Total Rbn | F6: Year-on- year change | G6: Direct investment as a proportion of total
B7: 1970 | C7: 0.9 | D7: 1.4 | E7: 2.3 | F7: 0 | G7: 0.3851950355
B8: 1971 | C8: 1 | D8: 1.3 | E8: 2.3 | F8: =(E8-E7)/E7 -> 0 | G8: 0.4278761062
B9: 1972 | C9: 1 | D9: 1.9 | E9: 2.9 | F9: 0.2608695652 | G9: 0.3645906228
B10: 1973 | C10: 1.4 | D10: 1.7 | E10: 3.1 | F10: 0.06896551724 | G10: 0.4559768638
B11: 1974 | C11: 1.7 | D11: 2 | E11: 3.7 | F11: 0.1935483871 | G11: 0.4768175583
B12: 1975 | C12: 2.1 | D12: 2.5 | E12: 4.6 | F12: 0.2432432432 | G12: 0.4554905783
B13: 1976 | C13: 2.2 | D13: 2.7 | E13: 4.9 | F13: 0.0652173913 | G13: 0.4504208581
B14: 1977 | C14: 2.6 | D14: 2.7 | E14: 5.3 | F14: 0.08163265306 | G14: 0.5012425922
B15: 1978 | C15: 3.2 | D15: 4.3 | E15: 7.5 | F15: 0.4150943396 | G15: 0.4295821653
B16: 1979 | C16: 3.4 | D16: 6.8 | E16: 10.2 | F16: 0.36 | G16: 0.3351393951
B17: 1980 | C17: 4.1 | D17: 8.5 | E17: 12.6 | F17: 0.2352941176 | G17: 0.3284056589
B18: 1981 | C18: 5.8 | D18: 7.3 | E18: 13.1 | F18: 0.03968253968 | G18: 0.4449900261
B19: 1982 | C19: 7.9 | D19: 7.6 | E19: 15.5 | F19: 0.1832061069 | G19: 0.5114845575
B20: 1983 | C20: 9.1 | D20: 8.4 | E20: 17.5 | F20: 0.1290322581 | G20: 0.5267008468
B21: 1984 | C21: 16.9 | D21: 9.8 | E21: 26.7 | F21: 0.5257142857 | G21: 0.6360661903
B22: 1985 | C22: 22.8 | D22: 11 | E22: 33.8 | F22: 0.265917603 | G22: 0.6766689444
B23: 1986 | C23: 23.9 | D23: 12 | E23: 35.9 | F23: 0.06213017751 | G23: 0.6694421082
B24: 1987 | C24: 25.9 | D24: 13.9 | E24: 39.8 | F24: 0.1086350975 | G24: 0.6591088378
B25: 1988 | C25: 28.7 | D25: 13 | E25: 41.7 | F25: 0.04773869347 | G25: 0.6920477041
B26: 1989 | C26: 33.3 | D26: 14.6 | E26: 47.9 | F26: 0.1486810552 | G26: 0.6989912547
B27: 1990 | C27: 38.5 | D27: 13.1 | E27: 51.6 | F27: 0.07724425887 | G27: 0.750453632
B28: 1991 | C28: 44.2 | D28: 16.3 | E28: 60.5 | F28: 0.1724806202 | G28: 0.7315380666
B29: 1992 | C29: 54.3 | D29: 19 | E29: 73.3 | F29: 0.2115702479 | G29: 0.7419460567
B30: 1993 | C30: 61 | D30: 20.3 | E30: 81.3 | F30: 0.1091405184 | G30: 0.7508120878
B31: 1994 | C31: 67.7 | D31: 22.8 | E31: 90.5 | F31: 0.1131611316 | G31: 0.748590132
B32: 1995 | C32: 85 | D32: 30.1 | E32: 115.1 | F32: 0.2718232044 | G32: 0.7391935849
B33: 1996 | C33: 98.5 | D33: 43.9 | E33: 142.4 | F33: 0.2371850565 | G33: 0.6918560965
B34: 1997 | C34: 93.8 | D34: 115.7 | E34: 209.5 | F34: 0.4712078652 | G34: 0.447978949
B35: 1998 | C35: 133.2 | D35: 172.4 | E35: 305.6 | F35: 0.4587112172 | G35: 0.4358546388
B36: 1999 | C36: 172.8 | D36: 358.7 | E36: 531.5 | F36: 0.7392015707 | G36: 0.3250933257
B37: 2000 | C37: 206.8 | D37: 470.9 | E37: 677.7 | F37: 0.275070555 | G37: 0.3051881844
B38: 2001 | C38: 175.7 | D38: 589.1 | E38: 764.8 | F38: 0.1285229453 | G38: 0.2297147116
B39: 2002 | C39: 170.1 | D39: 469.6 | E39: 639.7 | F39: -0.1635721757 | G39: 0.2658688288
B40: 2003 | C40: 161.8 | D40: 523.9 | E40: 685.7 | F40: 0.07190870721 | G40: 0.2360320368
B41: 2004 | C41: 194.7 | D41: 546.9 | E41: 741.6 | F41: 0.08152253172 | G41: 0.2624894648
B42: 2005 | C42: 196.3 | D42: 769.8 | E42: 966.1 | F42: 0.3027238403 | G42: 0.2032162562
B43: 2006 | C43: 286.5 | D43: 968.8 | E43: 1255.3 | F43: 0.2993478936 | G43: 0.228321085
B44: 2007 | C44: 376 | D44: 1154.7 | E44: 1530.7 | F44: 0.2193897873 | G44: 0.2456497382
B45: 2008 | C45: 460 | D45: 1542.7 | E45: 2002.7 | F45: 0.3083556543 | G45: 0.2297047699
B46: 2009 | C46: 518.8 | D46: 1455.2 | E46: 1974 | F46: -0.01433065362 | G46: 0.2628152747
B47: 2010 | C47: 552.1 | D47: 1607.7 | E47: 2159.8 | F47: 0.09412360689 | G47: 0.2556130405
B48: 2011 | C48: 790.3 | D48: 1956.5 | E48: 2746.8 | F48: 0.2717844245 | G48: 0.2877017585
B49: 2012 | C49: 950.3 | D49: 2245.1 | E49: 3195.4 | F49: 0.1633173147 | G49: 0.2973813961
B50: 2013 | C50: 1349.9 | D50: 2786 | E50: 4135.9 | F50: 0.2943293484 | G50: 0.3263761011
B51: 2014 | C51: 1691.089 | D51: =E51-C51 -> 2940.319 | E51: 4631.408 | F51: 0.1198065717 | G51: 0.3651350443
B52: 2015 | C52: 2404.6 | D52: 3776.8 | E52: 6181.4 | F52: 0.334669716 | G52: 0.38900118
B53: 2016 | C53: 2403.5 | D53: =E53-C53 -> 3392.1 | E53: 5795.6 | F53: =(E53-E52)/E52 -> -0.06241304559 | G53: =C53/E53 -> 0.4147111602
B54: 2017 | C54: 3410.01 | D54: =E54-C54 -> 3522.09 | E54: 6932.1 | F54: 0.1960970391 | G54: 0.4919158696
B55: 2018 | C55: 3543 | D55: =E55-C55 -> 3514.7 | E55: 7057.7 | F55: 0.01811860764 | G55: 0.5020049024
B56: 2019 | C56: 3015.5 | D56: =E56-C56 -> 3966.1 | E56: 6981.6 | F56: -0.01078254956 | G56: 0.4319210496
B57: 2020 | C57: 3685.6 | D57: =E57-C57 -> 4411.9 | E57: 8097.5 | F57: 0.1598344219 | G57: 0.4551528249
B58: 2021 | C58: 3560.1 | D58: 5286.1 | E58: 8846.2 | F58: 0.092460636 | G58: 0.4024439872
B59: 2022 | C59: 3533.9 | D59: =E59-C59 -> 5331.6 | E59: 8865.5 | F59: 0.002181727748 | G59: 0.3986125994
B60: Source: SARB, www.resbank.co.za, time series data, accessed 24 June 2024
B61: a Investment by South African residents in undertakings abroad in which they (individually or collectively in the case of affiliated organisations or persons) have at least 10% of the voting rights.
B62: b Includes portfolio investment, banking sector financial derivatives, and long- and short-term loans from various sources.

Sheet LG Direct foreign assets 70-22
B2: South African direct investment in other countries as a proportion of total, 1960-2022
A3: 1960 | B3: 0.4649122807
A4: 1961 | B4: 0.425204918
A5: 1962 | B5: 0.3714746172
A6: 1963 | B6: 0.3640319072
A7: 1964 | B7: 0.3898431665
A8: 1965 | B8: 0.4135338346
A9: 1966 | B9: 0.4035736291
A10: 1967 | B10: 0.4194139194
A11: 1968 | B11: 0.3179012346
A12: 1969 | B12: 0.3428571429
A13: 1970 | B13: 0.3851950355
A14: 1971 | B14: 0.4278761062
A15: 1972 | B15: 0.3645906228
A16: 1973 | B16: 0.4559768638
A17: 1974 | B17: 0.4768175583
A18: 1975 | B18: 0.4554905783
A19: 1976 | B19: 0.4504208581
A20: 1977 | B20: 0.5012425922
A21: 1978 | B21: 0.4295821653
A22: 1979 | B22: 0.3351393951
A23: 1980 | B23: 0.3284056589
A24: 1981 | B24: 0.4449900261
A25: 1982 | B25: 0.5114845575
A26: 1983 | B26: 0.5267008468
A27: 1984 | B27: 0.6360661903
A28: 1985 | B28: 0.6766689444
A29: 1986 | B29: 0.6694421082
A30: 1987 | B30: 0.6591088378
A31: 1988 | B31: 0.6920477041
A32: 1989 | B32: 0.6989912547
A33: 1990 | B33: 0.750453632
A34: 1991 | B34: 0.7315380666
A35: 1992 | B35: 0.7419460567
A36: 1993 | B36: 0.7508120878
A37: 1994 | B37: 0.748590132
A38: 1995 | B38: 0.7391935849
A39: 1996 | B39: 0.6918560965
A40: 1997 | B40: 0.447978949
A41: 1998 | B41: 0.4358546388
A42: 1999 | B42: 0.3250933257
A43: 2000 | B43: 0.3051881844
A44: 2001 | B44: 0.2297147116
A45: 2002 | B45: 0.2658688288
A46: 2003 | B46: 0.2360320368
A47: 2004 | B47: 0.2624894648
A48: 2005 | B48: 0.2032162562
A49: 2006 | B49: 0.228321085
A50: 2007 | B50: 0.2456497382
A51: 2008 | B51: 0.2297047699
A52: 2009 | B52: 0.2628152747
A53: 2010 | B53: 0.2556130405
A54: 2011 | B54: 0.2877017585
A55: 2012 | B55: 0.2973813961
A56: 2013 | B56: 0.3263761011
A57: 2014 | B57: 0.3651350443
A58: 2015 | B58: 0.38900118
A59: 2016 | B59: 0.4147111602
A60: 2017 | B60: 0.492
A61: 2018 | B61: 0.502
A62: 2019 | B62: 0.432
A63: 2020 | B63: 0.455
A64: 2021 | B64: 0.402
A65: 2022 | B65: 0.399

Sheet Foreign assets 2022
B2: Foreign assets (South African investment in other countries) by country/region at 31st December 2022
B4: Country/region | C4: Direct investmenta Rbn | D4: Non-direct investmentb Rbn | E4: Total Rbn | F4: Total investment in each country/region as a share of total SA investment in the world | G4: Direct investment as a share of total SA investment in each country/region
B5: United Kingdom | C5: 308.2 | D5: =E5-C5 -> 1304.7 | E5: 1612.9 | F5: =E5/E22 -> 0.1819299532 | G5: =C5/E5 -> 0.1910843822
B6: Netherlands | C6: 1588.3 | D6: =E6-C6 -> 221.7 | E6: 1810 | F6: =E6/E22 -> 0.2041622018 | G6: =C6/E6 -> 0.8775138122
B7: Luxembourg | C7: 26.8 | D7: 331.1 | E7: 357.9 | F7: =E7/E22 -> 0.04036997349 | G7: 0.07488125175
B8: Switzerland | C8: 143.2 | D8: 193.9 | E8: 337.1 | F8: =E8/E22 -> 0.03802380012 | G8: 0.4247997627
B9: Germany | C9: 31.2 | D9: 66.1 | E9: 97.3 | F9: =E9/E22 -> 0.01097512831 | G9: 0.3206577595
B10: Ireland | C10: 19.1 | D10: 571.7 | E10: 590.8 | F10: =E10/E22 -> 0.06664034741 | G10: 0.03232904536
B11: Rest of Europe | C11: 391.5 | D11: 419.4 | E11: 810.9 | F11: =E11/E22 -> 0.09146692234 | G11: 0.4827968923
B12: United States | C12: 204.4 | D12: 1109.4 | E12: 1313.8 | F12: =E12/E22 -> 0.1481924313 | G12: 0.1555792358
B13: Rest of North and South America | C13: 36.5 | D13: 166.7 | E13: 203.2 | F13: =E13/E22 -> 0.02292030906 | G13: 0.1796259843
B14: Mauritius | C14: 131.7 | D14: 66.1 | E14: 197.8 | F14: =E14/E22 -> 0.02231120636 | G14: 0.6658240647
B15: Nigeria | C15: 26.1 | D15: 115.8 | E15: 141.9 | F15: =E15/E22 -> 0.01600586543 | G15: 0.1839323467
B16: Rest of Africa | C16: 399.3 | D16: 153.1 | E16: 552.4 | F16: =E16/E22 -> 0.06230895043 | G16: 0.7228457639
B17: China | C17: 3.4 | D17: 100.1 | E17: 103.5 | F17: =E17/E22 -> 0.01167446845 | G17: 0.03285024155
B18: India | C18: 14.5 | D18: 11.3 | E18: 25.8 | F18: =E18/E22 -> 0.002910157352 | G18: 0.5620155039
B19: Rest of Asiac | C19: 108.6 | D19: 110.7 | E19: 219.3 | F19: =E19/E22 -> 0.02473633749 | G19: 0.4952120383
B20: Oceaniad | C20: 100.1 | D20: 139.6 | E20: 239.7 | F20: =E20/E22 -> 0.02703739214 | G20: 0.41760534
B21: International organisations | C21: 0.9 | D21: 250.4 | E21: 251.3 | F21: =E21/E22 -> 0.02834583498 | G21: 0.00358137684
B22: Total | C22: 3533.9 | D22: 5331.6 | E22: 8865.5 | F22: 1 | G22: 0.3986125994
B23: Source: SARB, Quarterly Bulletin, March 2024, pp102-105
B24: a Investment by South African residents in undertakings abroad in which they (individually or collectively in the case of affiliated organisations or persons) have at least 10% of the voting rights.
B25: b Includes portfolio investment, banking sector financial derivatives, and long- and short-term loans from various sources.
B26: c Japan, Hong Kong, and other.
B27: d Australia and other.

Sheet 2 graphs SA investment overseas
A2: Two smaller graphs next to each other
B4: Proportion of regional South African investment, 2022
A5: Europe | B5: 0.634
A6: America | B6: 0.171
A7: Africa | B7: 0.101
A8: Asia | B8: 0.039
A9: Oceania | B9: 0.027
A10: Other | B10: 0.028
B13: South African direct investment in selected countries, as a share of total direct investment, 2022
A14: United Kingdom | B14: 0.087
A15: Netherlands | B15: 0.449
A16: Rest of Europe | B16: 0.173
A17: United States | B17: 0.058
A18: Rest of North and South America | B18: 0.01
A19: Mauritius | B19: 0.037
A20: Rest of Africa | B20: 0.12
A21: Asia | B21: 0.036
A22: Oceania | B22: 0.028

Sheet Foreign assets Africa 1994-2022
A2: Foreign assets (South African investment) in Africa, 1994-2022
B4: 1994 | C4: 2005 | D4: 2010 | E4: 2015 | F4: 2020 | G4: 2021 | H4: 2022
A5: Type of investment | B5: —Rbn—
A6: Direct investmenta in Africa | B6: 3.8 | C6: 19.1 | D6: 121.8 | E6: 347.7 | F6: 451.5 | G6: 515 | H6: 557.1
A7: Non-direct investmentb in Africa | B7: 2.4 | C7: 17.8 | D7: 40.4 | E7: 174.8 | F7: =F8-F6 -> 273.1 | G7: =G8-G6 -> 244 | H7: =H8-H6 -> 335
A8: Total | B8: 6.1 | C8: 36.8 | D8: 162.2 | E8: 522.4 | F8: 724.6 | G8: 759 | H8: 892.1
A9: Direct SA investment in Africa as a proportion of total SA investment in Africa | B9: 0.611 | C9: 0.518 | D9: 0.751 | E9: =E6/E8 -> 0.6655819296 | F9: =F6/F8 -> 0.6231024013 | G9: =G6/G8 -> 0.6785243742 | H9: =H6/H8 -> 0.6244815604
A10: Increase in direct investment | B10: — | C10: 0.553 | D10: 5.377 | E10: =(E6-D6)/D6 -> 1.854679803 | F10: =(F6-E6)/E6 -> 0.2985332183 | G10: =(G8-F8)/F8 -> 0.04747446867 | H10: =(H8-G8)/G8 -> 0.1753623188
A11: Source: SARB, Quarterly Bulletins, 1996–2024
A12: a Investment by South African residents in undertakings abroad in which they (individually or collectively in the case of affiliated organisations or persons) have at least 10% of the voting rights.
A13: b Includes portfolio investment, banking sector financial derivatives, and long- and short-term loans from various sources.

Sheet Foreign assets in Africa 2022
B2: Foreign assets (South African investment) in Africa by country at 31st December 2022
B4: Country | C4: Direct investmenta Rbn | D4: Non-direct investmentb Rbn | E4: Total Rbn | F4: Direct investment as a share of total SA investment in each country | G4: Direct investment in each country as a share of total direct investment in Africa | H4: Total investment in each country as a share of total SA investment in Africa
B5: Botswana | C5: 25.8 | D5: =E5-C5 -> 4 | E5: 29.8 | F5: =C5/E5 -> 0.8657718121 | G5: =C5/C14 -> 0.04631125471 | H5: =E5/E14 -> 0.03340432687
B6: Eswatini | C6: 7.2 | D6: =E6-C6 -> 2.8 | E6: 10 | F6: =C6/E6 -> 0.72 | G6: =C6/C14 -> 0.01292407108 | H6: =E6/E14 -> 0.01120950566
B7: Lesotho | C7: 6.1 | D7: 1.4 | E7: 7.5 | F7: 0.8133333333 | G7: =C7/C14 -> 0.01094956022 | H7: =E7/E14 -> 0.008407129246
B8: Mauritius | C8: 131.7 | D8: 66.1 | E8: 197.8 | F8: 0.6658240647 | G8: =C8/C14 -> 0.2364028002 | H8: =E8/E14 -> 0.221724022
B9: Mozambique | C9: 54.3 | D9: 8 | E9: 62.3 | F9: 0.8715890851 | G9: =C9/C14 -> 0.09746903608 | H9: =E9/E14 -> 0.06983522027
B10: Namibia | C10: 27.8 | D10: 20.6 | E10: 48.4 | F10: 0.5743801653 | G10: =C10/C14 -> 0.04990127446 | H10: =E10/E14 -> 0.0542540074
B11: Nigeria | C11: 26.1 | D11: 115.8 | E11: 141.9 | F11: 0.1839323467 | G11: =C11/C14 -> 0.04684975767 | H11: =E11/E14 -> 0.1590628853
B12: Zimbabwe | C12: 39.1 | D12: 9 | E12: 48.1 | F12: 0.8128898129 | G12: =C12/C14 -> 0.07018488602 | H12: =E12/E14 -> 0.05391772223
B13: Other | C13: 239 | D13: 107.3 | E13: 346.3 | F13: 0.6901530465 | G13: =C13/C14 -> 0.4290073595 | H13: =E13/E14 -> 0.388185181
B14: Total | C14: 557.1 | D14: 335 | E14: 892.1 | F14: 0.6244815604 | G14: 1 | H14: 1
B15: Source: SARB, Quarterly Bulletin, March 2024, p104
B16: a Investment by South African residents in undertakings abroad in which they (individually or collectively in the case of affiliated organisations or persons) have at least 10% of the voting rights.
B17: b Includes portfolio investment, banking sector financial derivative, and long- and short-term loans from various sources.

Sheet JSE

Sheet Foreign investment JSE 95-2023
B1: The Johannesburg Stock Exchange (JSE): Foreign investment flows
C3: Purchases and sales by foreigners on the JSE, 1995-2023
D5: —Net purchases/sales by foreigners—
D6: Equities | E6: Bonds
C7: Year | D7: —Rbn—
C8: 1995 | D8: 4.8 | E8: N/A
C9: 1996 | D9: 5.3 | E9: N/A
C10: 1997 | D10: 26.2 | E10: N/A
C11: 1998 | D11: 42.3 | E11: N/A
C12: 1999 | D12: 40.6 | E12: N/A
C13: 2000 | D13: 17.4 | E13: N/A
C14: 2001 | D14: 29.8 | E14: N/A
C15: 2002 | D15: -5.6 | E15: N/A
C16: 2003 | D16: -0.4 | E16: -7.2
C17: 2004 | D17: 32.9 | E17: 0.2
C18: 2005 | D18: 50.2 | E18: -7.7
C19: 2006 | D19: 73.7 | E19: 26.8
C20: 2007 | D20: 63.3 | E20: 17.4
C21: 2008 | D21: -54.4 | E21: 73
C22: 2009 | D22: 75.4 | E22: 57.7
C23: 2010 | D23: 36.4 | E23: 58.6
C24: 2011 | D24: -17.2 | E24: 49.2
C25: 2012 | D25: -3.4 | E25: 93.7
C26: 2013 | D26: -0.2 | E26: 32.5
C27: 2014 | D27: 13.4 | E27: 2.8
C28: 2015 | D28: -1 | E28: 0.8
C29: 2016 | D29: -123.9 | E29: 32.3
C30: 2017 | D30: -47.6 | E30: 55.6
C31: 2018 | D31: -53 | E31: -65.1
C32: 2019 | D32: -114.2 | E32: -22.2
C33: 2020 | D33: -125.6 | E33: -48.4
C34: 2021 | D34: -153.1 | E34: -160.1
C35: 2022 | D35: -84.7 | E35: -155.6
C36: 2023 | D36: -134.8 | E36: -181.7
B37: Source: JSE, www.jse.co.za, market trading statistics, accessed 19 September 2024
B39: N/A — Not available.

Sheet BC,LG Net purchases&sales JSE
A1: BC; LG
A2: Net purchases and sales by foreigners on JSE, 2003–22
B3: —Rbn—
B4: LG | C4: BC
B5: Equities | C5: Bonds
A6: 2003 | B6: -0.4 | C6: -7.2
A7: 2004 | B7: 32.9 | C7: 0.2
A8: 2005 | B8: 50.2 | C8: -7.7
A9: 2006 | B9: 73.7 | C9: 26.8
A10: 2007 | B10: 63.3 | C10: 17.4
A11: 2008 | B11: -54.4 | C11: 73
A12: 2009 | B12: 75.4 | C12: 57.7
A13: 2010 | B13: 36.4 | C13: 58.6
A14: 2011 | B14: -17.2 | C14: 49.2
A15: 2012 | B15: -3.4 | C15: 93.7
A16: 2013 | B16: -0.2 | C16: 32.5
A17: 2014 | B17: 13.4 | C17: 2.8
A18: 2015 | B18: -1 | C18: 0.8
A19: 2016 | B19: -123.9 | C19: 32.3
A20: 2017 | B20: -47.6 | C20: 55.6
A21: 2018 | B21: -53 | C21: -65.1
A22: 2019 | B22: -114.2 | C22: -22.2
A23: 2020 | B23: -125.6 | C23: -48.4
A24: 2021 | B24: -153.1 | C24: -160.1
A25: 2022 | B25: -84.7 | C25: -155.6
A26: 2023 | B26: -134.8 | C26: -181.7

Sheet Exchange rates

Sheet Exchange rate 1993-2023
A2: Exchange rates
A4: The Rand/Euro and Rand/Pound exchange rate, 1993-2023
A6: Year | B6: Value of Rand in Eurosa | C6: Value of the Euro in Randsb | D6: Change | E6: Value of Rand in Pounds | F6: Value of the Pound in Rands | G6: Change
A7: 1993 | B7: 0.26 | C7: 3.8211 | D7: 0.036 | E7: 0.2 | F7: 4.91 | G7: -0.023
A8: 1994 | B8: 0.24 | C8: 4.2081 | D8: 0.141 | E8: 0.18 | F8: 5.4374 | G8: 0.107
A9: 1995 | B9: 0.21 | C9: 4.6911 | D9: 0.115 | E9: 0.17 | F9: 5.7243 | G9: 0.053
A10: 1996 | B10: 0.19 | C10: 5.3814 | D10: 0.147 | E10: 0.15 | F10: 6.7196 | G10: 0.174
A11: 1997 | B11: 0.19 | C11: 5.2095 | D11: -0.032 | E11: 0.13 | F11: 7.5485 | G11: 0.123
A12: 1998 | B12: 0.16 | C12: 6.2201 | D12: 0.194 | E12: 0.11 | F12: 9.1633 | G12: 0.214
A13: 1999 | B13: 0.15 | C13: 6.5246 | D13: 0.049 | E13: 0.1 | F13: 9.8921 | G13: 0.08
A14: 2000 | B14: 0.16 | C14: 6.3926 | D14: -0.02 | E14: 0.1 | F14: 10.4863 | G14: 0.06
A15: 2001 | B15: 0.13 | C15: 7.7056 | D15: 0.205 | E15: 0.08 | F15: 12.3915 | G15: 0.182
A16: 2002 | B16: 0.1 | C16: 9.9031 | D16: 0.285 | E16: 0.06 | F16: 15.7584 | G16: 0.272
A17: 2003 | B17: 0.12 | C17: 8.5306 | D17: -0.139 | E17: 0.08 | F17: 12.3404 | G17: -0.217
A18: 2004 | B18: 0.12 | C18: 8.0135 | D18: -0.061 | E18: 0.08 | F18: 11.8078 | G18: -0.043
A19: 2005 | B19: 0.13 | C19: 7.9129 | D19: -0.013 | E19: 0.09 | F19: 11.5385 | G19: -0.023
A20: 2006 | B20: 0.12 | C20: 8.5157 | D20: 0.076 | E20: 0.08 | F20: 12.4964 | G20: 0.083
A21: 2007 | B21: 0.1 | C21: 9.6583 | D21: 0.134 | E21: 0.07 | F21: 14.1146 | G21: 0.129
A22: 2008 | B22: 0.08 | C22: 12.0517 | D22: 0.248 | E22: 0.07 | F22: 15.1254 | G22: 0.072
A23: 2009 | B23: 0.09 | C23: 11.6957 | D23: -0.03 | E23: 0.08 | F23: 13.1177 | G23: -0.133
A24: 2010 | B24: 0.1 | C24: 9.7133 | D24: -0.169 | E24: 0.09 | F24: 11.3149 | G24: -0.137
A25: 2011 | B25: 0.1 | C25: 10.0816 | D25: 0.038 | E25: 0.09 | F25: 11.619 | G25: 0.027
A26: 2012 | B26: 0.09 | C26: 10.553 | D26: 0.047 | E26: 0.08 | F26: 13.0135 | G26: 0.12
A27: 2013 | B27: 0.08 | C27: 12.8237 | D27: 0.215 | E27: 0.07 | F27: 15.1059 | G27: 0.161
A28: 2014 | B28: 0.07 | C28: 14.4027 | D28: 0.123 | E28: 0.06 | F28: 17.8581 | G28: 0.182
A29: 2015 | B29: 0.07 | C29: 14.1443 | D29: =(C29-C28)/C28 -> -0.01794108049 | E29: 0.05 | F29: 19.4915 | G29: =(F29-F28)/F28 -> 0.09146549745
A30: 2016 | B30: 0.06 | C30: 16.2847 | D30: 0.151 | E30: 0.05 | F30: 19.997 | G30: 0.026
A31: 2017 | B31: 0.07 | C31: 15.0397 | D31: =(C31-C30)/C30 -> -0.07645212991 | E31: 0.06 | F31: 17.1523 | G31: =(F31-F30)/F30 -> -0.1422563385
A32: 2018 | B32: 0.06 | C32: 15.6043 | D32: 0.03754064243 | E32: 0.06 | F32: 17.6318 | G32: 0.02795543455
A33: 2019 | B33: 0.06 | C33: 16.1743 | D33: 0.03652839281 | E33: 0.05 | F33: 18.437 | G33: 0.04566748715
A34: 2020 | B34: 0.05 | C34: 18.7695 | D34: 0.1604520752 | E34: 0.05 | F34: 21.0947 | G34: 0.1441503498
A35: 2021 | B35: 0.06 | C35: 17.4815 | D35: -0.06862196649 | E35: 0.05 | F35: 20.323 | G35: -0.03658264872
A36: 2022 | B36: 0.06 | C36: 17.1997 | D36: -0.01611989818 | E36: 0.05 | F36: 20.1751 | G36: -0.007277468878
A37: 2023 | B37: 0.05 | C37: 19.9534 | D37: 0.1601016297 | E37: 0.04 | F37: 22.9437 | G37: 0.1372285639
A38: Source: SARB, www.resbank.co.za, time series data, accessed 19 September 2024
A39: a On 1 January 1999 the European Currency Unit (ECU) was replaced by the Euro at a conversion of 1 to 1.
A40: b Weighted average of the banks’ daily rates at approximately 10.30am. Weights are based on the banks’ foreign exchange transactions.

Sheet LG Value of R in Euro & pounds
A1: LG
A2: The value of the rand in euros and pounds, 1990–2021
B3: Value of Rand in Euros | C3: Value of Rand in Pounds
A4: 1990 | B4: 0.28 | C4: 0.22
A5: 1991 | B5: 0.29 | C5: 0.21
A6: 1992 | B6: 0.27 | C6: 0.2
A7: 1993 | B7: 0.26 | C7: 0.2
A8: 1994 | B8: 0.24 | C8: 0.18
A9: 1995 | B9: 0.21 | C9: 0.17
A10: 1996 | B10: 0.19 | C10: 0.15
A11: 1997 | B11: 0.19 | C11: 0.13
A12: 1998 | B12: 0.16 | C12: 0.11
A13: 1999 | B13: 0.15 | C13: 0.1
A14: 2000 | B14: 0.16 | C14: 0.1
A15: 2001 | B15: 0.13 | C15: 0.08
A16: 2002 | B16: 0.1 | C16: 0.06
A17: 2003 | B17: 0.12 | C17: 0.08
A18: 2004 | B18: 0.12 | C18: 0.08
A19: 2005 | B19: 0.13 | C19: 0.09
A20: 2006 | B20: 0.12 | C20: 0.08
A21: 2007 | B21: 0.1 | C21: 0.07
A22: 2008 | B22: 0.08 | C22: 0.07
A23: 2009 | B23: 0.09 | C23: 0.08
A24: 2010 | B24: 0.1 | C24: 0.09
A25: 2011 | B25: 0.1 | C25: 0.09
A26: 2012 | B26: 0.09 | C26: 0.08
A27: 2013 | B27: 0.08 | C27: 0.07
A28: 2014 | B28: 0.07 | C28: 0.06
A29: 2015 | B29: 0.07 | C29: 0.05
A30: 2016 | B30: 0.06 | C30: 0.05
A31: 2017 | B31: 0.07 | C31: 0.06
A32: 2018 | B32: 0.06 | C32: 0.06
A33: 2019 | B33: 0.06 | C33: 0.05
A34: 2020 | B34: 0.05 | C34: 0.05
A35: 2021 | B35: 0.06 | C35: 0.05
A36: 2022 | B36: 0.06 | C36: 0.05
A37: 2023 | B37: 0.05 | C37: 0.04

Sheet R-$ exchange rate.70-23
A2: The Rand/Dollar and real effective exchange rates, 1970-2023
A4: Year | B4: Value of Rand in Dollarsa | C4: Change | D4: Value of Dollar in Rands | E4: Change | F4: Index of real effective exchange rate (average)b | G4: Change
A5: 1970 | B5: 1.4 | C5: — | D5: N/A | E5: — | F5: 129.51 | G5: —
A6: 1971 | B6: 1.4 | C6: 0 | D6: N/A | E6: — | F6: 129.7 | G6: =(F6-F5)/F5 -> 0.00146706818
A7: 1972 | B7: 1.29 | C7: -0.079 | D7: N/A | E7: — | F7: 117.88 | G7: =(F7-F6)/F6 -> -0.09113338473
A8: 1973 | B8: 1.44 | C8: 0.116 | D8: N/A | E8: — | F8: 123.66 | G8: 0.04903291483
A9: 1974 | B9: 1.47 | C9: 0.021 | D9: N/A | E9: — | F9: 126.52 | G9: 0.02312793142
A10: 1975 | B10: 1.35 | C10: -0.082 | D10: N/A | E10: — | F10: 127.15 | G10: 0.004979449889
A11: 1976 | B11: 1.15 | C11: -0.148 | D11: N/A | E11: — | F11: 125.24 | G11: -0.015021628
A12: 1977 | B12: 1.15 | C12: 0 | D12: N/A | E12: — | F12: 131.33 | G12: 0.04862663686
A13: 1978 | B13: 1.15 | C13: 0 | D13: 0.8696 | E13: — | F13: 124.76 | G13: -0.05002665042
A14: 1979 | B14: 1.19 | C14: 0.035 | D14: 0.842 | E14: =(D14-D13)/D13 -> -0.03173873045 | F14: 131.27 | G14: 0.05218018596
A15: 1980 | B15: 1.28 | C15: 0.076 | D15: 0.7788 | E15: =(D15-D14)/D14 -> -0.07505938242 | F15: 146.81 | G15: 0.1183819608
A16: 1981 | B16: 1.14 | C16: -0.109 | D16: 0.8775 | E16: 0.1267334361 | F16: 158.85 | G16: 0.08201076221
A17: 1982 | B17: 0.92 | C17: -0.193 | D17: 1.0859 | E17: 0.2374928775 | F17: 152.7 | G17: -0.03871576959
A18: 1983 | B18: 0.9 | C18: -0.022 | D18: 1.1141 | E18: 0.0259692421 | F18: 170.74 | G18: 0.1181401441
A19: 1984 | B19: 0.68 | C19: -0.244 | D19: 1.4757 | E19: 0.324566915 | F19: 148.29 | G19: -0.1314864707
A20: 1985 | B20: 0.45 | C20: -0.338 | D20: 2.2279 | E20: 0.5097241987 | F20: 115.9 | G20: -0.2184233596
A21: 1986 | B21: 0.44 | C21: -0.022 | D21: 2.2835 | E21: 0.02495623681 | F21: 111.56 | G21: -0.0374460742
A22: 1987 | B22: 0.49 | C22: 0.114 | D22: 2.0357 | E22: -0.1085176265 | F22: 125.02 | G22: 0.1206525636
A23: 1988 | B23: 0.44 | C23: -0.102 | D23: 2.2726 | E23: 0.1163727465 | F23: 120.04 | G23: -0.03983362662
A24: 1989 | B24: 0.38 | C24: -0.136 | D24: 2.6222 | E24: 0.1538326146 | F24: 122.53 | G24: 0.02074308564
A25: 1990 | B25: 0.39 | C25: 0.026 | D25: 2.5877 | E25: -0.01315689116 | F25: 129.39 | G25: 0.05598628907
A26: 1991 | B26: 0.36 | C26: -0.077 | D26: 2.7609 | E26: 0.06693202458 | F26: 134.79 | G26: 0.04173429168
A27: 1992 | B27: 0.35 | C27: -0.028 | D27: 2.8516 | E27: 0.03285160636 | F27: 137.19 | G27: 0.01780547518
A28: 1993 | B28: 0.31 | C28: -0.114 | D28: 3.2667 | E28: 0.1455674008 | F28: 135.42 | G28: -0.012901815
A29: 1994 | B29: 0.28 | C29: -0.097 | D29: 3.5497 | E29: 0.08663176906 | F29: 132.73 | G29: -0.01986412642
A30: 1995 | B30: 0.28 | C30: 0 | D30: 3.627 | E30: 0.02177648815 | F30: 130.76 | G30: -0.01484216078
A31: 1996 | B31: 0.23 | C31: -0.179 | D31: 4.2964 | E31: 0.1845602426 | F31: 122.64 | G31: -0.06209850107
A32: 1997 | B32: 0.22 | C32: -0.043 | D32: 4.6073 | E32: 0.07236290848 | F32: 130.71 | G32: 0.06580234834
A33: 1998 | B33: 0.18 | C33: -0.182 | D33: 5.5316 | E33: 0.2006164131 | F33: 118.46 | G33: -0.09371891975
A34: 1999 | B34: 0.16 | C34: -0.111 | D34: 6.1131 | E34: 0.1051232916 | F34: 110.67 | G34: -0.06576059429
A35: 2000 | B35: 0.14 | C35: -0.125 | D35: 6.9353 | E35: 0.1344980452 | F35: 109.9 | G35: -0.006957621758
A36: 2001 | B36: 0.12 | C36: -0.143 | D36: 8.6031 | E36: 0.2404798639 | F36: 100.2 | G36: -0.08826205641
A37: 2002 | B37: 0.1 | C37: -0.167 | D37: 10.5165 | E37: 0.2224082017 | F37: 90.51 | G37: -0.09670658683
A38: 2003 | B38: 0.13 | C38: 0.3 | D38: 7.5647 | E38: -0.2806827367 | F38: 113.19 | G38: 0.2505800464
A39: 2004 | B39: 0.16 | C39: 0.231 | D39: 6.4499 | E39: -0.1473686994 | F39: 120.75 | G39: 0.0667903525
A40: 2005 | B40: 0.16 | C40: 0 | D40: 6.3623 | E40: -0.01358160592 | F40: 123.35 | G40: 0.0215320911
A41: 2006 | B41: 0.15 | C41: -0.063 | D41: 6.7672 | E41: 0.06364050736 | F41: 119.37 | G41: -0.03226591001
A42: 2007 | B42: 0.14 | C42: -0.067 | D42: 7.0544 | E42: 0.04244000473 | F42: 115.18 | G42: -0.03510094664
A43: 2008 | B43: 0.12 | C43: -0.143 | D43: 8.2517 | E43: 0.1697238603 | F43: 103.17 | G43: -0.1042715749
A44: 2009 | B44: 0.12 | C44: 0 | D44: 8.4372 | E44: 0.0224802162 | F44: 111.19 | G44: 0.0777357759
A45: 2010 | B45: 0.14 | C45: 0.167 | D45: 7.3222 | E45: -0.1321528469 | F45: 124.83 | G45: 0.1226729022
A46: 2011 | B46: 0.14 | C46: 0 | D46: 7.2531 | E46: -0.009437054437 | F46: 120.61 | G46: -0.03380597613
A47: 2012 | B47: 0.12 | C47: -0.143 | D47: 8.2099 | E47: 0.1319160083 | F47: 113.71 | G47: -0.05720918663
A48: 2013 | B48: 0.1 | C48: -0.167 | D48: 9.6502 | E48: 0.1754345364 | F48: 102.24 | G48: -0.1008706358
A49: 2014 | B49: 0.09 | C49: -0.1 | D49: 10.8444 | E49: 0.1237487306 | F49: 98.82 | G49: -0.03345070423
A50: 2015 | B50: 0.08 | C50: =(B50-B49)/B49 -> -0.1111111111 | D50: 12.7507 | E50: 0.1757865811 | F50: 100 | G50: 0.01194090265
A51: 2016 | B51: 0.07 | C51: =(B51-B50)/B50 -> -0.125 | D51: 14.7088 | E51: 0.1535680394 | F51: 96.35 | G51: -0.0365
A52: 2017 | B52: 0.08 | C52: =(B52-B51)/B51 -> 0.1428571429 | D52: 13.3129 | E52: -0.09490237137 | F52: 106.43 | G52: 0.1046185781
A53: 2018 | B53: 0.08 | C53: =(B53-B52)/B52 -> 0 | D53: 13.2339 | E53: -0.005934093999 | F53: 109.08 | G53: 0.02489899464
A54: 2019 | B54: 0.07 | C54: =(B54-B53)/B53 -> -0.125 | D54: 14.4484 | E54: 0.09177188886 | F54: 108.85 | G54: -0.002108544188
A55: 2020 | B55: 0.06 | C55: -0.1428571429 | D55: 16.4591 | E55: 0.1391641981 | F55: 99.81 | G55: -0.0830500689
A56: 2021 | B56: 0.07 | C56: 0.1666666667 | D56: 14.7787 | E56: -0.1020954973 | F56: 105.94 | G56: 0.06141669171
A57: 2022 | B57: 0.06 | C57: =(B57-B56)/B56 -> -0.1428571429 | D57: 16.3559 | E57: =(D57-D56)/D56 -> 0.1067211595 | F57: 107.95 | G57: =(F57-F56)/F56 -> 0.01897300359
A58: 2023 | B58: 0.05 | C58: =(B58-B57)/B57 -> -0.1666666667 | D58: 18.4502 | E58: =(D58-D57)/D57 -> 0.1280455371 | F58: 103.19 | G58: =(F58-F57)/F57 -> -0.04409448819
A59: Source: SARB, www.resbank.co.za, time series data, accessed 19 September 2024
A60: a For information on the old financial rand system, see p143 of the 2014/15 Survey.
A61: b The weighted average exchange rate of the rand is based on trade in and consumption of manufactured goods between South Africa and its 20 most important trading-partner countries or areas. Index: 2015 = 100.
A62: N/A — Not available.

Sheet LG.Value of R in $ 70-23
C2: The value of the rand in dollars, 1970–2022
B3: 1970 | C3: 1.4
B4: 1971 | C4: 1.4
B5: 1972 | C5: 1.29
B6: 1973 | C6: 1.44
B7: 1974 | C7: 1.47
B8: 1975 | C8: 1.35
B9: 1976 | C9: 1.15
B10: 1977 | C10: 1.15
B11: 1978 | C11: 1.15
B12: 1979 | C12: 1.19
B13: 1980 | C13: 1.28
B14: 1981 | C14: 1.14
B15: 1982 | C15: 0.92
B16: 1983 | C16: 0.9
B17: 1984 | C17: 0.68
B18: 1985 | C18: 0.45
B19: 1986 | C19: 0.44
B20: 1987 | C20: 0.49
B21: 1988 | C21: 0.44
B22: 1989 | C22: 0.38
B23: 1990 | C23: 0.39
B24: 1991 | C24: 0.36
B25: 1992 | C25: 0.35
B26: 1993 | C26: 0.31
B27: 1994 | C27: 0.28
B28: 1995 | C28: 0.28
B29: 1996 | C29: 0.23
B30: 1997 | C30: 0.22
B31: 1998 | C31: 0.18
B32: 1999 | C32: 0.16
B33: 2000 | C33: 0.14
B34: 2001 | C34: 0.12
B35: 2002 | C35: 0.1
B36: 2003 | C36: 0.13
B37: 2004 | C37: 0.16
B38: 2005 | C38: 0.16
B39: 2006 | C39: 0.15
B40: 2007 | C40: 0.14
B41: 2008 | C41: 0.12
B42: 2009 | C42: 0.12
B43: 2010 | C43: 0.14
B44: 2011 | C44: 0.14
B45: 2012 | C45: 0.12
B46: 2013 | C46: 0.1
B47: 2014 | C47: 0.09
B48: 2015 | C48: 0.08
B49: 2016 | C49: 0.07
B50: 2017 | C50: 0.08
B51: 2018 | C51: 0.08
B52: 2019 | C52: 0.07
B53: 2020 | C53: 0.06
B54: 2021 | C54: 0.07
B55: 2022 | C55: 0.06
B56: 2023 | C56: 0.05

Sheet BG&LG.Index of exch rate 70-23
B2: Index of real effective exchange ratea (average), 1970-2021
A3: 1970 | B3: 129.51
A4: 1971 | B4: 129.7
A5: 1972 | B5: 117.88
A6: 1973 | B6: 123.66
A7: 1974 | B7: 126.52
A8: 1975 | B8: 127.15
A9: 1976 | B9: 125.24
A10: 1977 | B10: 131.33
A11: 1978 | B11: 124.76
A12: 1979 | B12: 131.27
A13: 1980 | B13: 146.81
A14: 1981 | B14: 158.85
A15: 1982 | B15: 152.7
A16: 1983 | B16: 170.74
A17: 1984 | B17: 148.29
A18: 1985 | B18: 115.9
A19: 1986 | B19: 111.56
A20: 1987 | B20: 125.02
A21: 1988 | B21: 120.04
A22: 1989 | B22: 122.53
A23: 1990 | B23: 129.39
A24: 1991 | B24: 134.79
A25: 1992 | B25: 137.19
A26: 1993 | B26: 135.42
A27: 1994 | B27: 132.73
A28: 1995 | B28: 130.76 | E28: Index
A29: 1996 | B29: 122.64 | D29: 1990 | E29: 129.39
A30: 1997 | B30: 130.71 | D30: 1991 | E30: 134.79
A31: 1998 | B31: 118.46 | D31: 1992 | E31: 137.19
A32: 1999 | B32: 110.67 | D32: 1993 | E32: 135.42
A33: 2000 | B33: 109.9 | D33: 1994 | E33: 132.73
A34: 2001 | B34: 100.2 | D34: 1995 | E34: 130.76
A35: 2002 | B35: 90.51 | D35: 1996 | E35: 122.64
A36: 2003 | B36: 113.19 | D36: 1997 | E36: 130.71
A37: 2004 | B37: 120.75 | D37: 1998 | E37: 118.46
A38: 2005 | B38: 123.35 | D38: 1999 | E38: 110.67
A39: 2006 | B39: 119.37 | D39: 2000 | E39: 109.9
A40: 2007 | B40: 115.18 | D40: 2001 | E40: 100.2
A41: 2008 | B41: 103.17 | D41: 2002 | E41: 90.51
A42: 2009 | B42: 111.19 | D42: 2003 | E42: 113.19
A43: 2010 | B43: 124.83 | D43: 2004 | E43: 120.75
A44: 2011 | B44: 120.61 | D44: 2005 | E44: 123.35
A45: 2012 | B45: 113.71 | D45: 2006 | E45: 119.37
A46: 2013 | B46: 102.24 | D46: 2007 | E46: 115.18
A47: 2014 | B47: 98.82 | D47: 2008 | E47: 103.17
A48: 2015 | B48: 100 | D48: 2009 | E48: 111.19
A49: 2016 | B49: 96.35 | D49: 2010 | E49: 124.83
A50: 2017 | B50: 106.43 | D50: 2011 | E50: 120.61
A51: 2018 | B51: 109.08 | D51: 2012 | E51: 113.71
A52: 2019 | B52: 108.85 | D52: 2013 | E52: 102.24
A53: 2020 | B53: 99.81 | D53: 2014 | E53: 98.82
A54: 2021 | B54: 105.94 | D54: 2015 | E54: 100
A55: 2022 | B55: 107.95 | D55: 2016 | E55: 96.35
A56: 2023 | B56: 103.19 | D56: 2017 | E56: 106.43
D57: 2018 | E57: 109.08
D58: 2019 | E58: 108.85
D59: 2020 | E59: 99.81
D60: 2021 | E60: 105.94
D61: 2022 | E61: 107.95
D62: 2023 | E62: 103.19

Sheet Trading partner weights 1999-20
A2: Comparison of trading partner country total trade weights, 1999-2020
B4: Prior to 1999 | C4: 1999 | D4: 2003 | E4: 2008 | F4: 2014 | G4: 2020
A5: Euro area | B5: 38.58a | C5: 35.7 | D5: 36.38 | E5: 34.82 | F5: 29.26 | G5: 30.68
A6: China | B6: 2.91 | C6: 3.11 | D6: 3.14 | E6: 12.49 | F6: 20.54 | G6: 24.53
A7: United States | B7: 14.44 | C7: 15.15 | D7: 15.47 | E7: 14.88 | F7: 13.72 | G7: 10.56
A8: Japan | B8: 9.9 | C8: 10.26 | D8: 10.43 | E8: 10.12 | F8: 6.03 | G8: 4.95
A9: India | B9: — | C9: — | D9: — | E9: 2.01 | F9: 3.98 | G9: 4.85
A10: United Kingdom | B10: 14.09 | C10: 14.91 | D10: 15.37 | E10: 10.71 | F10: 5.82 | G10: 4.03
A11: South Korea | B11: 2.5 | C11: 2.57 | D11: 2.64 | E11: 1.96 | F11: 3.1 | G11: 2.75
A12: Botswana | B12: — | C12: — | D12: — | E12: — | F12: 2.09 | G12: 2.45
A13: Vietnam | B13: — | C13: — | D13: — | E13: — | F13: — | G13: 1.87
A14: Thailand | B14: — | C14: — | D14: — | E14: — | F14: 1.86 | G14: 1.85
A15: Zambia | B15: — | C15: — | D15: — | E15: 0.8 | F15: 1.42 | G15: 1.56
A16: United Arab Emirates | B16: — | C16: — | D16: — | E16: — | F16: — | G16: 1.43
A17: Switzerland | B17: 4.99 | C17: 5.28 | D17: 5.54 | E17: 2.83 | F17: 1.78 | G17: 1.33
A18: Sweden | B18: 1.58 | C18: 1.79 | D18: 1.81 | E18: 1.99 | F18: 1.81 | G18: 1.21
A19: Malaysia | B19: — | C19: — | D19: — | E19: — | F19: 1.27 | G19: 1.1
A20: Mozambique | B20: — | C20: — | D20: — | E20: — | F20: 0.97 | G20: 1.07
A21: Brazil | B21: — | C21: — | D21: — | E21: 1.37 | F21: 1.16 | G21: 1.06
A22: Poland | B22: — | C22: — | D22: — | E22: — | F22: 0.89 | G22: 0.99
A23: Australia | B23: 1.59 | C23: 1.62 | D23: 1.68 | E23: 2.04 | F23: 1.19 | G23: 0.95
A24: Saudi Arabia | B24: — | C24: — | D24: — | E24: — | F24: — | G24: 0.78
A25: Hong Kong | B25: 2.59 | C25: 2.62 | D25: 2.7 | E25: 1.48 | F25: — | G25: —
A26: Zimbabwe | B26: 2.27 | C26: 2.27 | D26: — | E26: — | F26: 1.25 | G26: —
A27: Canada | B27: 1.87 | C27: 1.93 | D27: 1.96 | E27: — | F27: 0.98 | G27: —
A28: Singapore | B28: 1.55 | C28: 1.62 | D28: 1.66 | E28: 1.4 | F28: — | G28: —
A29: Israel | B29: 1.14 | C29: 1.17 | D29: 1.22 | E29: 1.11 | F29: 0.88 | G29: —
A30: Source: SARB, Quarterly Bulletin, June 2020, p84
A32: a Prior to 1 January 1999, the Euro area weights comprised Germany, Italy, France, Netherlands, Belgium, Spain, Ireland, Australia, Finland and Portugal.

Sheet 20 currencies 2023
A1: 20 currencies in the ‘basket’ against which the rand is measured, 2022
B2: Revised weights of 20 currencies in the ‘basket’ against which the rand is measured, 2010-12
A3: Euro area | B3: 0.3068
A4: China | B4: 0.2453
A5: United States | B5: 0.1056
A6: Japan | B6: 0.0495
A7: India | B7: 0.0485
A8: United Kingdom | B8: 0.0403
A9: South Korea | B9: 0.0275
A10: Botswana | B10: 0.0245
A11: Vietnam | B11: 0.0187
A12: Thailand | B12: 0.0185
A13: Zambia | B13: 0.0156
A14: United Arab Emirates | B14: 0.0143
A15: Switzerland | B15: 0.0133
A16: Sweden | B16: 0.0121
A17: Malaysia | B17: 0.011
A18: Mozambique | B18: 0.0107
A19: Brazil | B19: 0.0106
A20: Poland | B20: 0.0099
A21: Australia | B21: 0.0095
A22: Saudi Arabia | B22: 0.0078
A24: Source: SARB, Quarterly Bulletin, June 2020, p84

Sheet Trade

Sheet Total trade composition
A2: Trade
A4: All trade
A6: Total trade composition, including services, 2017-23
A8: Trade composition | B8: 2017 | C8: 2018 | D8: 2019 | E8: 2020 | F8: 2021 | G8: 2022 | H8: 2023
A9: Merchandise exports, free on boarda | B9: 1101.6 | C9: 1177.4 | D9: 1233.2 | E9: 1286.4 | F9: 1690 | G9: 1927.7 | H9: 1921.8
A10: Net gold exportsb | B10: 66.4 | C10: 71.7 | D10: 67.2 | E10: 107.8 | F10: 109.6 | G10: 86.1 | H10: 115.9
A11: Service receiptsc | B11: 220.4 | C11: 225.2 | D11: 229.8 | E11: 139.7 | F11: 135.2 | G11: 207.2 | H11: 263
A12: Income receiptsd | B12: 80.8 | C12: 104.3 | D12: 123.5 | E12: 128.9 | F12: 167.5 | G12: 185.7 | H12: 216.7
A13: Less: Merchandise imports, free on board | B13: 1109 | C13: 1223.1 | D13: 1263.8 | E13: 1105.1 | F13: 1349.7 | G13: 1792.2 | H13: 1934.3
A14: Less: Payments for services | B14: 221.2 | C14: 224.4 | D14: 237.9 | E14: 184.6 | F14: 201 | G14: 298.4 | H14: 343.3
A15: Less: Income paymentse | B15: 221.6 | C15: 254.1 | D15: 263.9 | E15: 221.5 | F15: 286 | G15: 324.1 | H15: 312
A16: Current transfers (net receipts +)f | B16: -37.5 | C16: -34.6 | D16: -34.6 | E16: -42.2 | F16: -35.8 | G16: -25.3 | H16: -39.9
A17: Balance on current account | B17: -120.2 | C17: -157.1 | D17: -146.5 | E17: 109.5 | F17: 229.6 | G17: -33.3 | H17: -112.1
A18: —Trade balance | B18: 59 | C18: 26.4 | D18: 36.6 | E18: 289.2 | F18: 449.8 | G18: 221.7 | H18: 103.4
A19: Source: SARB, Quarterly Bulletin, June 2024, p84
A20: a Free on board means that the value put on an article includes the cost of its production as well as the cost of its transportation to the national border of the exporting country (including airports), but excludes the cost of transportation between countries.
A21: b Commodity gold. Net gold exports is unique to gold-producing countries. The reference to net gold exports indicates that the figure represents net foreign gold sales plus the change in the gold holdings of the Reserve Bank, other banking institutions and the gold mines.
A22: c Apart from trade in goods, the current account also records trade in services, which is often referred to as invisible trade. Trade in services incorporates multiple transactions, including air freight, harbour dues, travel allowances and money spent by tourists on food and accommodation. Insurance, brokers’ fees and the cost of maintaining diplomatic property are also included in this category.
A23: d Investment income such as dividends, interest and profits earned abroad.
A24: e Income payments refer to income flows from South African residents to the rest of the world.
A25: f Includes such items as government assistance rendered to or received from other countries, private transfers of income, such as personal, immigrant and other remittances and other charitable donations. In the case of transfers, money, goods or services are transferred without receiving anything tangible in return. These are therefore unrequited transfers.

Sheet PCs.Export&import composition
B2: Export and import composition, 2022
C3: Exports
B4: Merchandise exports | C4: 0.7634066894
B5: Net gold exports | C5: 0.04603956463
B6: Service receipts | C6: 0.1044728688
B7: Income receipts | C7: 0.0860808771
C8: Imports
B9: Merchandise imports | C9: 0.7469493358
B10: Payments for services | C10: 0.1325687365
B11: Income payments | C11: 0.1204819277

Sheet Services&income receipts&paymen
A2: Services and income receipts and payments, 2022 and 2023
B4: —Receipts— | F4: —Payments—
B5: 2022 | C5: 2023 | D5: 2022 | E5: 2023 | F5: 2022 | G5: 2023 | H5: 2022 | I5: 2023
A6: Service | B6: —Number— Rbn | D6: —Proportion— | F6: —Number— Rbn | H6: —Proportion—
A7: Transportation | B7: 25.7 | C7: 31 | D7: 0.1242145964 | E7: 0.1178707224 | F7: 132.2 | G7: 138.2 | H7: 0.4443697479 | I7: 0.4025633557
A8: Passenger fares | B8: 0.9 | C8: 1.5 | D8: 0.004349927501 | E8: 0.005703422053 | F8: 34.3 | G8: 40.2 | H8: 0.1152941176 | I8: 0.1170987475
A9: Other | B9: 24.8 | C9: 29.5 | D9: 0.1198646689 | E9: 0.1121673004 | F9: 97.9 | G9: 98 | H9: 0.3290756303 | I9: 0.2854646082
A10: Travel | B10: 78.1 | C10: 104.7 | D10: 0.377477042 | E10: 0.3980988593 | F10: 36.6 | G10: 44.9 | H10: 0.1230252101 | I10: 0.130789397
A11: Business | B11: 5.7 | C11: 8.9 | D11: 0.02754954084 | E11: 0.03384030418 | F11: 9.2 | G11: 11.6 | H11: 0.03092436975 | I11: 0.03378968832
A12: Other | B12: 72.3 | C12: 95.8 | D12: 0.3494441759 | E12: 0.3642585551 | F12: 27.4 | G12: 33.3 | H12: 0.09210084034 | I12: 0.09699970871
A13: Other services | B13: 103.4 | C13: 127.2 | D13: 0.4983083615 | E13: 0.4836501901 | F13: 129.7 | G13: 160.1 | H13: 0.4329411765 | I13: 0.4663559569
A14: Repairs and maintenance service on movable goods n.i.e.a | B14: 0.7 | C14: 0.9 | D14: 0.003383276945 | E14: 0.003422053232 | F14: 0 | G14: 0 | H14: 0 | I14: 0
A15: Financial and insurance services | B15: 20.8 | C15: 23.3 | D15: 0.1005316578 | E15: 0.08859315589 | F15: 12.9 | G15: 14.4 | H15: 0.04336134454 | I15: 0.04194581998
A16: Charges for the use of intellectual property | B16: 3.4 | C16: 3.1 | D16: 0.01643305945 | E16: 0.01178707224 | F16: 23.8 | G16: 30.1 | H16: 0.08 | I16: 0.08767841538
A17: Telecommunications, computer and information services | B17: 15.5 | C17: 24.8 | D17: 0.07491541808 | E17: 0.09429657795 | F17: 57.7 | G17: 72.5 | H17: 0.1939495798 | I17: 0.211185552
A18: Personal, cultural, and recreational services | B18: 7.9 | C18: 8.3 | D18: 0.03818269696 | E18: 0.03155893536 | F18: 2.3 | G18: 5.1 | H18: 0.007731092437 | I18: 0.01485581124
A19: Other business and miscellaneous services, | B19: 54.7 | C19: 65.6 | D19: 0.264378927 | E19: 0.2494296578 | F19: 32.1 | G19: 37.5 | H19: 0.1078991597 | I19: 0.1092339062
A20: among them: | I20: 0
A21: – Legal services | B21: 6.7 | C21: 8.6 | D21: 0.03238279362 | E21: 0.03269961977 | F21: 2.4 | G21: 3.2 | H21: 0.008067226891 | I21: 0.009321293329
A22: – Accounting services | B22: 5.3 | C22: 5 | D22: 0.02561623973 | E22: 0.01901140684 | F22: 2.1 | G22: 2.5 | H22: 0.007058823529 | I22: 0.007282260414
A23: – Advertising and market research services | B23: 4.4 | C23: 5.3 | D23: 0.02126631223 | E23: 0.02015209125 | F23: 5.3 | G23: 6.7 | H23: 0.01781512605 | I23: 0.01951645791
A24: – Architectural, engineering and other services | B24: 13.7 | C24: 17.6 | D24: 0.06621556307 | E24: 0.06692015209 | F24: 10.6 | G24: 11.6 | H24: 0.0356302521 | I24: 0.03378968832
A25: Total services | B25: 207.2 | C25: 263 | D25: 1 | E25: 1 | F25: 298.4 | G25: 343.3 | H25: 1 | I25: 1
A26: Incomeb
A27: Compensation of employees | B27: 14.2 | C27: 14.8 | D27: 0.076 | E27: 0.06829718505 | F27: 16.5 | G27: 17.2 | H27: 0.05089450956 | I27: 0.05512820513
A28: Investment income
A29: Direct investment | B29: 85.7 | C29: 98.9 | D29: 0.4612486545 | E29: 0.4563913244 | F29: 109.5 | G29: 75.7 | H29: 0.3377544725 | I29: 0.2426282051
A30: – Dividends | B30: 74.1 | C30: 83.2 | D30: 0.3988159311 | E30: 0.3839409322 | F30: 106.6 | G30: 71.7 | H30: 0.3288093769 | I30: 0.2298076923
A31: – Interest | B31: 11.1 | C31: 15.3 | D31: 0.0597416577 | E31: 0.07060452238 | F31: 2.7 | G31: 3.9 | H31: 0.008328192474 | I31: 0.0125
A32: – Branch | B32: 0.5 | C32: 0.5 | D32: 0.002691065662 | E32: 0.002307337333 | F32: 0.2 | G32: 0.1 | H32: 0.0006169031462 | I32: 0.0003205128205
A33: Non-direct investmentc | B33: 85.8 | C33: 103 | D33: 0.4623250807 | E33: 0.4753114905 | F33: 198.2 | G33: 219.1 | H33: 0.6116594695 | I33: 0.7022435897
A34: – Dividends | B34: 50.8 | C34: 42 | D34: 0.2734122713 | E34: 0.1938163359 | F34: 63.4 | G34: 55 | H34: 0.1955582973 | I34: 0.1762820513
A35: – Interest | B35: 34.9 | C35: 61 | D35: 0.1889128095 | E35: 0.2814951546 | F35: 134.8 | G35: 164.1 | H35: 0.4161011721 | I35: 0.5259615385
A36: Total income | B36: 185.7 | C36: 216.7 | D36: 1 | E36: 1 | F36: 324.1 | G36: 312 | H36: 1 | I36: 1
A37: Source: SARB, Quarterly Bulletin, June 2024, pp90-91
A38: a Not included elsewhere.
A39: b There are two categories of income flow: compensation of employees and investment income. Compensation of employees includes wages, salaries and other benefits earned by individuals in or from countries other than those in which they are resident (i.e. from the rest of the world). Investment income includes dividends, interest, profits and other income earned from the provision of financial capital. It is important to note that investment income is recorded in the current account, not the financial account. Thus, when a South African purchases shares in a British company on the London Stock Exchange, the value of the shares purchased is recorded in the financial account but any subsequent dividend receipts are recorded as income receipts in the current account of the South African balance of payments.
A40: c Including portfolio and other investment.

Sheet Merchandise

Sheet Trade trends in balance of paym
B2: Merchandise trade statistics
B4: Merchandise exports and importsa, 1983-2022
D6: Exportsb | E6: Importsc
C7: Year | D7: —Rbn—
C8: 1983 | D8: 10.902 | E8: 16.296
C9: 1984 | D9: 13.681 | E9: 21.986
C10: 1985 | D10: 20.874 | E10: 23.847
C11: 1986 | D11: 24.752 | E11: 26.382
C12: 1987 | D12: 26.729 | E12: 29.182
C13: 1988 | D13: 33.464 | E13: 40.008
C14: 1989 | D14: 40.05 | E14: 45.067
C15: 1990 | D15: 44.74 | E15: 44.706
C16: 1991 | D16: 46.147 | E16: 47.466
C17: 1992 | D17: 50.446 | E17: 51.976
C18: 1993 | D18: 58.428 | E18: 60.512
C19: 1994 | D19: 69.866 | E19: 77.675
C20: 1995 | D20: 86.58 | E20: 99.425
C21: 1996 | D21: 103.906 | E21: 118.658
C22: 1997 | D22: 118.012 | E22: 133.061
C23: 1998 | D23: 135.214 | E23: 150.705
C24: 1999 | D24: 150.619 | E24: 149.854
C25: 2000 | D25: 194.223 | E25: 189.411
C26: 2001 | D26: 236.556 | E26: 221.235
C27: 2002 | D27: 289.608 | E27: 283.004
C28: 2003 | D28: 259.328 | E28: 264.752
C29: 2004 | D29: 281.827 | E29: 311.759
C30: 2005 | D30: 331.338 | E30: 360.362
C31: 2006 | D31: 414.589 | E31: 474.321
C32: 2007 | D32: 513.418 | E32: 571.512
C33: 2008 | D33: 680.268 | E33: 743.325
C34: 2009 | D34: 536.491 | E34: 561.163
C35: 2010 | D35: 609.9 | E35: 610.62
C36: 2011 | D36: 719.07 | E36: 747.12
C37: 2012 | D37: 749.98 | E37: 859.172
C38: 2013 | D38: 865.57 | E38: 1006.26
C39: 2014 | D39: 940.17 | E39: 1074.83
C40: 2015 | D40: 967.54 | E40: 1082.28
C41: 2016 | D41: 1053.62 | E41: 1094.69
C42: 2017 | D42: 1101.6 | E42: 1109.05
C43: 2018 | D43: 1177.35 | E43: 1222.91
C44: 2019 | D44: 1235.47 | E44: 1263.7
C45: 2020 | D45: 1285.69 | E45: 1104.65
C46: 2021 | D46: 1688.75 | E46: 1348.66
C47: 2022 | D47: 1930.02 | E47: 1791.95
B48: Source: SARB, www.resbank.co.za, time series data, accessed 14 November 2023
B49: a Published customs figures adjusted for balance of payments purposes.
B50: b Including gold.
B51: c Including oil.

Sheet SA's chief merchandise partners
A2: South Africa’s chief merchandisea trading partners, 2023
A4: Country | B4: Exports | C4: Imports | D4: Trade balance | E4: Total | F4: Proportion of total
B5: —Rbn—
A6: China | B6: 228.6 | C6: 404.4 | D6: =B6-C6 -> -175.8 | E6: =B6+C6 -> 633 | F6: =E6/total1 -> 0.1574705209
A7: United States | B7: 155 | C7: 169.7 | D7: =B7-C7 -> -14.7 | E7: =B7+C7 -> 324.7 | F7: =E7/total1 -> 0.08077516294
A8: Germany | B8: 142.8 | C8: 159.9 | D8: -17.1 | E8: 302.7 | F8: 0.07530225384
A9: India | B9: 91.4 | C9: 138.4 | D9: =B9-C9 -> -47 | E9: =B9+C9 -> 229.8 | F9: =E9/total1 -> 0.05716702323
A10: Japan | B10: 105.9 | C10: 50 | D10: 55.9 | E10: 155.9 | F10: 0.03878302403
A11: Mozambique | B11: 114.6 | C11: 19 | D11: 95.6 | E11: 133.6 | F11: 0.03323548435
A12: United Kingdom | B12: 99.2 | C12: 33.7 | D12: 65.5 | E12: 132.9 | F12: 0.03306134634
A13: United Arab Emirates | B13: 47.3 | C13: 73.8 | D13: -26.5 | E13: 121.1 | F13: 0.03012587691
A14: Netherlands | B14: 78.6 | C14: 29.7 | D14: 48.9 | E14: 108.3 | F14: 0.02694163889
A15: Belgium | B15: 68.3 | C15: 22.8 | D15: 45.5 | E15: 91.1 | F15: 0.02266281905
A16: Botswana | B16: 77.1 | C16: 9.7 | D16: 67.4 | E16: 86.8 | F16: 0.02159311409
A17: Namibia | B17: 62.3 | C17: 18.8 | D17: 43.5 | E17: 81.1 | F17: 0.02017513309
A18: Thailand | B18: 7.9 | C18: 64.5 | D18: -56.6 | E18: 72.4 | F18: 0.01801084631
A19: Zimbabwe | B19: 62.5 | C19: 4.8 | D19: 57.7 | E19: 67.3 | F19: 0.01674212647
A20: Saudi Arabia | B20: 8 | C20: 57.9 | D20: -49.9 | E20: 65.9 | F20: 0.01639385044
A21: Italy | B21: 20.7 | C21: 44.6 | D21: =B21-C21 -> -23.9 | E21: =B21+C21 -> 65.3 | F21: =E21/total1 -> 0.01624458928
A22: Spain | B22: 29.1 | C22: 32.4 | D22: =B22-C22 -> -3.3 | E22: =B22+C22 -> 61.5 | F22: =E22/total1 -> 0.01529926862
A23: Zambia | B23: 51.1 | C23: 4.9 | D23: =B23-C23 -> 46.2 | E23: =B23+C23 -> 56 | F23: =E23/total1 -> 0.01393104135
A24: South Korea | B24: 37.4 | C24: 18.4 | D24: =B24-C24 -> 19 | E24: =B24+C24 -> 55.8 | F24: =E24/total1 -> 0.01388128763
A25: Eswatini | B25: 29.6 | C25: 25.3 | D25: =B25-C25 -> 4.3 | E25: =B25+C25 -> 54.9 | F25: =E25/total1 -> 0.01365739589
A26: Nigeria | B26: 6.5 | C26: 43.7 | D26: =B26-C26 -> -37.2 | E26: =B26+C26 -> 50.2 | F26: =E26/total1 -> 0.01248818349
A27: France | B27: 10.7 | C27: 39.1 | D27: =B27-C27 -> -28.4 | E27: =B27+C27 -> 49.8 | F27: =E27/total1 -> 0.01238867605
A28: Oman | B28: 0.9 | C28: 47.1 | D28: =B28-C28 -> -46.2 | E28: =B28+C28 -> 48 | F28: =E28/total1 -> 0.01194089258
A29: Australia | B29: 19.6 | C29: 19.5 | D29: 0.1 | E29: 39.1 | F29: 0.009726852082
A30: Brazil | B30: 8.3 | C30: 26.5 | D30: -18.2 | E30: 34.8 | F30: 0.008657147122
A31: Lesotho | B31: 25.3 | C31: 5.9 | D31: 19.4 | E31: 31.2 | F31: 0.007761580178
A32: Congo (DRC) | B32: 28.7 | C32: 2.1 | D32: 26.6 | E32: 30.8 | F32: 0.00766207274
A33: Taiwan | B33: 17.1 | C33: 13.3 | D33: 3.8 | E33: 30.4 | F33: 0.007562565302
A34: Hong Kong | B34: 27.4 | C34: 1.7 | D34: 25.7 | E34: 29.1 | F34: 0.007239166128
A35: Bahrain | B35: 0.5 | C35: 28 | D35: -27.5 | E35: 28.5 | F35: 0.00708990497
A36: Singapore | B36: 13 | C36: 15.3 | D36: -2.3 | E36: 28.3 | F36: 0.007040151251
A37: Indonesia | B37: 9.1 | C37: 17.9 | D37: =B37-C37 -> -8.8 | E37: =B37+C37 -> 27 | F37: =E37/total1 -> 0.006716752077
A38: Poland | B38: 2.9 | C38: 23.6 | D38: -20.7 | E38: 26.5 | F38: 0.006592367779
A39: Other unclassifiedb | B39: 117.8 | C39: 8.2 | D39: =B39-C39 -> 109.6 | E39: =B39+C39 -> 126 | F39: =E39/total1 -> 0.03134484303
A40: Other countries | B40: 235.8 | C40: 304.2 | D40: -68.4 | E40: 540 | F40: 0.1343350415
A41: TOTAL | B41: 2041 | C41: 1978.8 | D41: =B41-C41 -> 62.2 | E41: =B41+C41 -> 4019.8 | F41: 1
A42: Source: South African Revenue Service (SARS), Customs and Excise, Trade statistics, data accessed 14 March 2024; CRA calculations
A43: a Refers to merchandise trade in all physical goods, which consist of raw materials as well as intermediate and final goods.
A44: b Origin of the goods is unknown.

Sheet SA trade with world
A2: South Africa’s merchandise tradea with the world, 2023
A4: Region | B4: Exportsb | C4: Importsb | D4: Trade balance | E4: Total | F4: Proportion of total
B5: —Rbn—
A6: Southern African Development Community (SADC)c | B6: 494.9 | C6: 105.7 | D6: =B6-C6 -> 389.2 | E6: =B6+C6 -> 600.6 | F6: =E6/total2 -> 0.1494104184 | G6: x
A7: Rest of Africa | B7: 55.4 | C7: 74 | D7: -18.6 | E7: =SUM(B7:C7) -> 129.4 | F7: 0.03219065625 | G7: x
A8: European Union (EU) | B8: 385.6 | C8: 463.2 | D8: -77.6 | E8: 848.8 | F8: 0.2111547838 | G8: x
A9: Rest of Europe | B9: 117.8 | C9: 59.4 | D9: 58.4 | E9: 177.2 | F9: 0.04408179511 | G9: x
A10: North American Free Trade Agreement (NAFTA)d | B10: 170.6 | C10: 189.3 | D10: -18.7 | E10: 359.9 | F10: 0.0895318175 | G10: x
A11: Rest of America and Caribbean | B11: 18.5 | C11: 40.7 | D11: -22.2 | E11: 59.2 | F11: 0.01472710085 | G11: x
A12: Oceania (including Australia and New Zealand) | B12: 22.2 | C12: 21.7 | D12: 0.5 | E12: 43.9 | F12: 0.01092094134 | G12: x
A13: Eastern Asia (including China, Hong Kong, Japan) | B13: 416.7 | C13: 487.9 | D13: -71.2 | E13: 904.6 | F13: 0.2250360714 | G13: x
A14: South and Central Asia (including Bangladesh, India, Pakistan) | B14: 103.7 | C14: 144.9 | D14: -41.2 | E14: 248.6 | F14: 0.06184387283 | G14: x
A15: South Eastern Asia (including Indonesia, Malaysia, Thailand) | B15: 52.4 | C15: 144.6 | D15: -92.2 | E15: 197 | F15: 0.0490074133 | G15: x
A16: Western Asia (including Israel, Saudi Arabia, Turkey, UAE) | B16: 74.6 | C16: 239.2 | D16: -164.6 | E16: 313.8 | F16: 0.07806358525 | G16: x
A17: Other | B17: 128.7 | C17: 8.2 | D17: 120.5 | E17: 136.9 | F17: 0.03405642072
A18: Total | B18: 2041 | C18: 1978.8 | D18: =B18-C18 -> 62.2 | E18: =B18+C18 -> 4019.8 | F18: 1
A19: Source: SARS, Customs and Excise, Trade statistics, data accessed 14 March 2024; CRA calculations
A20: a Refers to merchandise trade in all physical goods, which consist of raw materials as well as intermediate and final goods.
A21: b ‘Imports’ are imports into South Africa, and ‘exports’ are exports from South Africa.
A22: c Including Southern African Customs Union (SACU) countries (Botswana, Lesotho, Namibia, and Eswatini) data.
A23: d The North American Free Trade Agreement between the United States, Canada, and Mexico.
A39: ONLY FOR TAMARA | E39: EU | F39: Exports | G39: Imports
E40: Austria | F40: 932583958 | G40: 14943076768
A41: SADC | B41: Exports | C41: Imports | E41: Belgium | F41: 68286120288 | G41: 22841190024
A42: Angola | B42: 6976607153 | C42: 6560729159 | E42: Bulgaria | F42: 771178468 | G42: 2919394316
A43: Botswana | B43: 77089296570 | C43: 9660466219 | E43: Croatia | F43: 318196783 | G43: 415086326
A44: Comoros | B44: 51272474 | C44: 26231941 | E44: Cyprus | F44: 496283155 | G44: 90597127
A45: DRC | B45: 28708336686 | C45: 2125008505 | E45: Czech Rep | F45: 8077340848 | G45: 13851193243
A46: Eswatini | B46: 29642125628 | C46: 25276019039 | E46: Denmark | F46: 2385910163 | G46: 5588815163
A47: Lesotho | B47: 25311608868 | C47: 5943619889 | E47: Estonia | F47: 355117596 | G47: 408057280
A48: Madagascar | B48: 3761596353 | C48: 2921737679 | E48: Finland | F48: 2042168508 | G48: 9062943782
A49: Malawi | B49: 8861768978 | C49: 757573514 | E49: France | F49: 10724544040 | G49: 39091670789
A50: Mauritius | B50: 11712802418 | C50: 3597946020 | E50: Germany | F50: 142843831555 | G50: 159896252544
A51: Mozambique | B51: 114586810223 | C51: 18953331581 | E51: Greece | F51: 1577998977 | G51: 2223620339
A52: Namibia | B52: 62279337833 | C52: 18838824978 | E52: Hungary | F52: 575536630 | G52: 7702288900
A53: Seychelles | B53: 1426894362 | C53: 9873100 | E53: Ireland | F53: 2186151710 | G53: 8256007770
A54: Tanzania | B54: 10907679518 | C54: 1391058916 | E54: Italy | F54: 20731512017 | G54: 44592811103
A55: Zambia | B55: 51148573037 | C55: 4859037481 | E55: Latvia | F55: 2055017740 | G55: 985384659
A56: Zimbabwe | B56: 62484920027 | C56: 4768830112 | E56: Lithuania. | F56: 260532259 | G56: 3187978244
A57: Total SADC | B57: =SUM(B42:B56) -> 494949630128 | C57: =SUM(C42:C56) -> 105690288133 | E57: Luxembourg | F57: 758917295 | G57: 886664902
A58: Total Africa | B58: 550303142431 | C58: 179696499914 | E58: Malta | F58: 264019657 | G58: 141279583
A59: Rest of Africa | B59: =B58-B57 -> 55353512303 | C59: =C58-C57 -> 74006211781 | E59: Netherlands | F59: 78609383471 | G59: 29673252443
E60: Poland | F60: 2887248463 | G60: 23633220002
A61: ASIA | B61: Exports | C61: Imports | E61: Portugal | F61: 3540303945 | G61: 6498509861
A62: Eastern Asia | E62: Romania | F62: 2255328069 | G62: 5899486031
A63: China | B63: 228585290120 | C63: 404432108737 | E63: Slovakia | F63: 118456706 | G63: 5978920726
A64: Hong Kong | B64: 27385368991 | C64: 1716930736 | E64: Slovenia | F64: 1547837439 | G64: 1646923368
A65: Japan | B65: 105897072206 | C65: 49972449133 | E65: Spain | F65: 29091583352 | G65: 32437637489
A66: Macao | B66: 546104 | C66: 40530798 | E66: Sweden | F66: 1874415451 | G66: 20373854910
A67: Mongolia | B67: 302653671 | C67: 1136329 | E67: Total EU | F67: =SUM(F40:F66) -> 385567518543 | G67: =SUM(G40:G66) -> 463226117692
A68: North Korea | B68: 76141 | C68: 112263493 | E68: Total Europe | F68: 503329778640 | G68: 522596982875
A69: South Korea | B69: 37402247898 | C69: 18363552381 | E69: Rest of Europe | F69: =F68-F67 -> 117762260097 | G69: =G68-G67 -> 59370865183
A70: Taiwan | B70: 17130368344 | C70: 13301881631
A71: TOTAL | B71: =SUM(B63:B70) -> 416703623475 | C71: =SUM(C63:C70) -> 487940853238 | E71: NAFTA | F71: Exports | G71: Imports
E72: Canada | F72: 8283500352 | G72: 6682274663
A73: South and Central Asia | E73: Mexico | F73: 7340536650 | G73: 12953066806
A74: Bhutan | B74: 250 | C74: 303406 | E74: USA | F74: 155007328322 | G74: 169666450749
A75: Afghanistan | B75: 13023924 | C75: 2998543 | E75: NAFTA | F75: =SUM(F72:F74) -> 170631365324 | G75: =SUM(G72:G74) -> 189301792218
A76: Bangladesh | B76: 5357479397 | C76: 2120475823 | E76: Total America | F76: 189162885710 | G76: 230003884000
A77: India | B77: 91395280626 | C77: 138436073257 | E77: Rest | F77: =F76-F75 -> 18531520386 | G77: =G76-G75 -> 40702091782
A78: Kazakhstan | B78: 513141099 | C78: 224171695
A79: Kyrgyzstan | B79: 52874865 | C79: 59661087
A80: Maldives | B80: 259499888 | C80: 332551
A81: Nepal | B81: 9528780 | C81: 9759842 | E81: OTHER
A82: Pakistan | B82: 4270079717 | C82: 3354466551 | E82: 1.177879388e+11 | F82: 8196130518 | G82: Unclassified
A83: Sri Lanka | B83: 1777700218 | C83: 587543434 | E83: 10877744229 | G83: Ship/Aircraft
A84: Tajikistan | B84: 769649 | C84: 6375578 | E84: =SUM(E82:E83) -> 1.286656831e+11
A85: Turkmenistan | B85: 39006 | C85: 192691
A86: Uzbekistan | B86: 10670743 | C86: 121337723
A87: TOTAL | B87: =SUM(B74:B86) -> 103660088162 | C87: =SUM(C74:C86) -> 144923692181
A89: South Eastern Asia
A90: Brunei | B90: 2396186 | C90: 1000362783
A91: Myanmar | B91: 27545155 | C91: 175141266
A92: Cambodia | B92: 92305347 | C92: 733380304
A93: Indonesia | B93: 9086788692 | C93: 17890365975
A94: Laos | B94: 9135837 | C94: 39010599
A95: Malaysia | B95: 13919832497 | C95: 23052365901
A96: Papua New Guinea | B96: 240825893 | C96: 787308
A97: Philippines | B97: 1581332469 | C97: 2926291455
A98: Singapore | B98: 12962771769 | C98: 15302403545
A99: Thailand | B99: 7936869374 | C99: 64529789984
A100: Vietnam | B100: 6500790394 | C100: 18959734831
B101: =SUM(B90:B100) -> 52360593613 | C101: =SUM(C90:C100) -> 144609633951
A103: Western Asia
A104: Armenia | B104: 53782464 | C104: 7651145
A105: Azerbaijan | B105: 39988475 | C105: 5262865
A106: Bahrain | B106: 450268336 | C106: 28007273068
A107: Georgia | B107: 87601833 | C107: 72141339
A108: Iran | B108: 310286919 | C108: 32295538
A109: Iraq | B109: 1069611064 | C109: 81692726
A110: Israel | B110: 3927169041 | C110: 3515156815
A111: Jordan | B111: 924577847 | C111: 332186223
A112: Kuwait | B112: 1631331919 | C112: 4338872436
A113: Lebanon | B113: 215269786 | C113: 161509423
A114: Oman | B114: 897485412 | C114: 47120993461
A115: Palestine | B115: 3364221 | C115: 157956
A116: Qatar | B116: 1417330179 | C116: 6544381205
A117: Saudi Arabia | B117: 8050739972 | C117: 57929812228
A118: Syria | B118: 30246856 | C118: 3830130
A119: Turkey | B119: 7935717973 | C119: 17293073388
A120: UAE | B120: 47259602573 | C120: 73772231373
A121: Yemen | B121: 337949563 | C121: 566352
A122: Total | B122: =SUM(B104:B121) -> 74642324433 | C122: =SUM(C104:C121) -> 239219087671

Sheet BG SA exports by region
B2: South Africa’s merchandise exports by region, 2023
A3: SADC | B3: 0.1494104184
A4: Rest of Africa | B4: 0.03219065625
A5: EU | B5: 0.2111547838
A6: Rest of Europe | B6: 0.04408179511
A7: NAFTA | B7: 0.0895318175
A8: Rest of America and Caribbean | B8: 0.01472710085
A9: Oceania | B9: 0.01092094134
A10: Eastern Asia | B10: 0.2250360714
A11: South and Central Asia | B11: 0.06184387283
A12: South Eastern Asia | B12: 0.0490074133
A13: Western Asia | B13: 0.07806358525
A14: Other | B14: 0.03405642072
A19: FOR TAMARA ONLY
A21: Southern African Development Community (SADC)c | B21: 0.1494104184
A22: Rest of Africa | B22: 0.03219065625
A23: European Union (EU) | B23: 0.2111547838
A24: Rest of Europe | B24: 0.04408179511
A25: North American Free Trade Agreement (NAFTA)d | B25: 0.0895318175
A26: Rest of America and Caribbean | B26: 0.01472710085
A27: Oceania (including Australia and New Zealand) | B27: 0.01092094134
A28: Eastern Asia (including China, Hong Kong, Japan) | B28: 0.2250360714
A29: South and Central Asia (including Bangladesh, India, Pakistan) | B29: 0.06184387283
A30: South Eastern Asia (including Indonesia, Malaysia, Thailand) | B30: 0.0490074133
A31: Western Asia (including Israel, Saudi Arabia, Turkey, UAE) | B31: 0.07806358525
A32: Other | B32: 0.03405642072

Sheet SA trade with select. countries
A2: South Africa’s merchandise tradea with selected countries, 2023
A4: Country | B4: Exports | C4: Imports | D4: Trade balanceb | E4: Total
B5: —Rbn—
A6: Australia | B6: 19.7 | C6: 19.5 | D6: =B6-C6 -> 0.2 | E6: =B6+C6 -> 39.2
A7: Botswana | B7: 77.1 | C7: 9.7 | D7: =B7-C7 -> 67.4 | E7: =B7+C7 -> 86.8
A8: Brazil | B8: 8.3 | C8: 26.5 | D8: =B8-C8 -> -18.2 | E8: =B8+C8 -> 34.8
A9: Chile | B9: 0.9 | C9: 2.3 | D9: -1.4 | E9: 3.2
A10: China | B10: 228.6 | C10: 404.4 | D10: -175.8 | E10: 633
A11: Denmark | B11: 2.4 | C11: 5.6 | D11: -3.2 | E11: 8
A12: Egypt | B12: 1 | C12: 2.1 | D12: -1.1 | E12: 3.1
A13: France | B13: 10.7 | C13: 39.1 | D13: -28.4 | E13: 49.8
A14: Germany | B14: 142.8 | C14: 159.9 | D14: -17.1 | E14: 302.7
A15: Ghana | B15: 6.7 | C15: 3.3 | D15: 3.4 | E15: 10
A16: Greece | B16: 1.6 | C16: 2.2 | D16: -0.6 | E16: 3.8
A17: Hong Kong | B17: 27.4 | C17: 1.7 | D17: 25.7 | E17: 29.1
A18: India | B18: 91.4 | C18: 138.4 | D18: -47 | E18: 229.8
A19: Indonesia | B19: 9.1 | C19: 17.9 | D19: -8.8 | E19: 27
A20: Ireland | B20: 2.2 | C20: 8.3 | D20: -6.1 | E20: 10.5
A21: Israel | B21: 3.9 | C21: 3.5 | D21: 0.4 | E21: 7.4
A22: Italy | B22: 20.7 | C22: 44.6 | D22: -23.9 | E22: 65.3
A23: Japan | B23: 105.9 | C23: 50 | D23: 55.9 | E23: 155.9
A24: Kazakhstan | B24: 0.5 | C24: 0.2 | D24: 0.3 | E24: 0.7
A25: Lithuania | B25: 0.3 | C25: 3.2 | D25: -2.9 | E25: 3.5
A26: Mexico | B26: 7.3 | C26: 13 | D26: -5.7 | E26: 20.3
A27: Mozambique | B27: 114.6 | C27: 19 | D27: 95.6 | E27: 133.6
A28: Netherlands | B28: 78.6 | C28: 29.7 | D28: 48.9 | E28: 108.3
A29: Nigeria | B29: 6.6 | C29: 43.7 | D29: -37.1 | E29: 50.3
A30: Pakistan | B30: 4.3 | C30: 3.4 | D30: 0.9 | E30: 7.7
A31: Philippines | B31: 1.6 | C31: 2.9 | D31: -1.3 | E31: 4.5
A32: Poland | B32: 2.9 | C32: 23.6 | D32: -20.7 | E32: 26.5
A33: Russia | B33: 5.2 | C33: 9.7 | D33: -4.5 | E33: 14.9
A34: Saudi Arabia | B34: 8.1 | C34: 57.9 | D34: -49.8 | E34: 66
A35: Spain | B35: 29.1 | C35: 32.4 | D35: -3.3 | E35: 61.5
A36: Switzerland | B36: 9.5 | C36: 11.6 | D36: -2.1 | E36: 21.1
A37: Thailand | B37: 7.9 | C37: 64.5 | D37: -56.6 | E37: 72.4
A38: Turkey | B38: 7.9 | C38: 17.3 | D38: -9.4 | E38: 25.2
A39: Uganda | B39: 2.3 | C39: 0.2 | D39: 2.1 | E39: 2.5
A40: United Kingdom | B40: 99.2 | C40: 33.7 | D40: 65.5 | E40: 132.9
A41: United States | B41: 155 | C41: 169.7 | D41: -14.7 | E41: 324.7
A42: Source: SARS, Customs and Excise, Trade statistics, data accessed 14 March 2024; CRA calculations
A43: a Refers to merchandise trade in all physical goods, which consist of raw materials as well as intermediate and final goods.
A44: b The difference between exports and imports.

Sheet SA trade with emerging markets
A2: South Africa’s merchandise tradea with emerging markets, 2023
A4: Country | B4: Exports | C4: Imports | D4: Trade balanceb | E4: Total
B5: —Rbn—
A6: Brazil | B6: 8.3 | C6: 26.5 | D6: =B6-C6 -> -18.2 | E6: =B6+C6 -> 34.8 | F6: x
A7: Bulgaria | B7: 0.8 | C7: 2.9 | D7: =B7-C7 -> -2.1 | E7: =B7+C7 -> 3.7 | F7: x
A8: Chile | B8: 0.9 | C8: 2.3 | D8: -1.4 | E8: 3.2 | F8: x
A9: China | B9: 228.6 | C9: 404.4 | D9: -175.8 | E9: 633 | F9: x
A10: Colombia | B10: 0.5 | C10: 1.8 | D10: -1.3 | E10: 2.3 | F10: x
A11: Czech Republic | B11: 8.1 | C11: 13.9 | D11: -5.8 | E11: 22 | F11: x
A12: Egypt | B12: 1 | C12: 2.1 | D12: -1.1 | E12: 3.1 | F12: x
A13: Estonia | B13: 0.4 | C13: 0.4 | D13: 0 | E13: 0.8 | F13: x
A14: Greece | B14: 1.6 | C14: 2.2 | D14: -0.6 | E14: 3.8 | F14: x
A15: Hungary | B15: 0.6 | C15: 7.7 | D15: -7.1 | E15: 8.3 | F15: x
A16: India | B16: 91.4 | C16: 138.4 | D16: -47 | E16: 229.8 | F16: x
A17: Indonesia | B17: 9.1 | C17: 17.9 | D17: -8.8 | E17: 27 | F17: x
A18: Jordan | B18: 0.9 | C18: 0.3 | D18: 0.6 | E18: 1.2 | F18: x
A19: Kuwait | B19: 1.6 | C19: 4.3 | D19: -2.7 | E19: 5.9 | F19: x
A20: Latvia | B20: 0.3 | C20: 1 | D20: -0.7 | E20: 1.3 | F20: x
A21: Lithuania | B21: 0.3 | C21: 3.2 | D21: -2.9 | E21: 3.5 | F21: x
A22: Malaysia | B22: 13.9 | C22: 23.1 | D22: -9.2 | E22: 37 | F22: x
A23: Mauritius | B23: 11.7 | C23: 3.6 | D23: 8.1 | E23: 15.3 | F23: x
A24: Mexico | B24: 7.3 | C24: 13 | D24: -5.7 | E24: 20.3 | F24: x
A25: Morocco | B25: 2.1 | C25: 2.2 | D25: -0.1 | E25: 4.3 | F25: x
A26: Oman | B26: 0.9 | C26: 47.1 | D26: -46.2 | E26: 48 | F26: x
A27: Pakistan | B27: 4.3 | C27: 3.4 | D27: 0.9 | E27: 7.7 | F27: x
A28: Peru | B28: 0.7 | C28: 0.3 | D28: 0.4 | E28: 1 | F28: x
A29: Philippines | B29: 1.6 | C29: 2.9 | D29: -1.3 | E29: 4.5 | F29: x
A30: Poland | B30: 2.9 | C30: 23.6 | D30: -20.7 | E30: 26.5 | F30: x
A31: Qatar | B31: 1.4 | C31: 6.5 | D31: -5.1 | E31: 7.9 | F31: x
A32: Romania | B32: 2.3 | C32: 5.9 | D32: -3.6 | E32: 8.2 | F32: x
A33: Russia | B33: 5.2 | C33: 9.7 | D33: -4.5 | E33: 14.9 | F33: x
A34: Slovakia | B34: 0.1 | C34: 6 | D34: -5.9 | E34: 6.1 | F34: x
A35: Sri Lanka | B35: 1.8 | C35: 0.6 | D35: 1.2 | E35: 2.4 | F35: x
A36: Thailand | B36: 7.9 | C36: 64.5 | D36: -56.6 | E36: 72.4 | F36: x
A37: Turkey | B37: 7.9 | C37: 17.3 | D37: -9.4 | E37: 25.2 | F37: x
A38: United Arab Emirates | B38: 47.3 | C38: 73.8 | D38: -26.5 | E38: 121.1 | F38: x
A39: Vietnam | B39: 6.5 | C39: 19 | D39: -12.5 | E39: 25.5 | F39: x
A40: Source: SARS, Customs and Excise, Trade statistics, data accessed 14 March 2024; CRA calculations
A41: a Refers to merchandise trade in all physical goods, which consist of raw materials as well as intermediate and final goods.
A42: b The difference between exports and imports.

Sheet SA trade with African countries
A2: South Africa’s merchandise tradea with selected African countries, 2023
A4: Country | B4: Exports | C4: Imports | D4: Trade balanceb | E4: Total
B5: —Rbn—
A6: Algeria | B6: 0.4 | C6: 3.7 | D6: =B6-C6 -> -3.3 | E6: =B6+C6 -> 4.1 | F6: x
A7: Angola | B7: 7 | C7: 6.6 | D7: =B7-C7 -> 0.4 | E7: =B7+C7 -> 13.6 | F7: x
A8: Botswana | B8: 77.1 | C8: 9.7 | D8: 67.4 | E8: 86.8 | F8: x
A9: Cameroon | B9: 1 | C9: 1.5 | D9: -0.5 | E9: 2.5 | F9: x
A10: Congo (DRC) | B10: 28.7 | C10: 2.1 | D10: 26.6 | E10: 30.8 | F10: x
A11: Congo (Republic) | B11: 2.3 | C11: 0.3 | D11: 2 | E11: 2.6 | F11: x
A12: Egypt | B12: 1 | C12: 2.1 | D12: -1.1 | E12: 3.1 | F12: x
A13: Equatorial Guinea | B13: 0 | C13: 0 | D13: 0 | E13: 0 | F13: x
A14: Eritrea | B14: 0.2 | C14: 0 | D14: 0.2 | E14: 0.2 | F14: x
A15: Eswatini | B15: 29.6 | C15: 25.3 | D15: 4.3 | E15: 54.9 | F15: x
A16: Ethiopia | B16: 0.6 | C16: 0.2 | D16: 0.4 | E16: 0.8 | F16: x
A17: Ghana | B17: 6.7 | C17: 3.3 | D17: 3.4 | E17: 10 | F17: x
A18: Ivory Coast | B18: 3 | C18: 0.8 | D18: 2.2 | E18: 3.8 | F18: x
A19: Kenya | B19: 11.2 | C19: 0.4 | D19: 10.8 | E19: 11.6 | F19: x
A20: Lesotho | B20: 25.3 | C20: 5.9 | D20: 19.4 | E20: 31.2 | F20: x
A21: Liberia | B21: 1.4 | C21: 0 | D21: 1.4 | E21: 1.4 | F21: x
A22: Libya | B22: 0.1 | C22: 0 | D22: 0.1 | E22: 0.1 | F22: x
A23: Madagascar | B23: 3.8 | C23: 2.9 | D23: 0.9 | E23: 6.7 | F23: x
A24: Malawi | B24: 8.9 | C24: 0.8 | D24: 8.1 | E24: 9.7 | F24: x
A25: Mauritius | B25: 11.7 | C25: 3.6 | D25: 8.1 | E25: 15.3 | F25: x
A26: Morocco | B26: 2.1 | C26: 2.2 | D26: -0.1 | E26: 4.3 | F26: x
A27: Mozambique | B27: 114.6 | C27: 19 | D27: 95.6 | E27: 133.6 | F27: x
A28: Namibia | B28: 62.3 | C28: 18.8 | D28: 43.5 | E28: 81.1 | F28: x
A29: Nigeria | B29: 6.6 | C29: 43.7 | D29: -37.1 | E29: 50.3 | F29: x
A30: Rwanda | B30: 0.7 | C30: 0 | D30: 0.7 | E30: 0.7 | F30: x
A31: Senegal | B31: 3.3 | C31: 0.1 | D31: 3.2 | E31: 3.4 | F31: x
A32: Seychelles | B32: 1.4 | C32: 0 | D32: 1.4 | E32: 1.4 | F32: x
A33: Somalia | B33: 0.2 | C33: 0 | D33: 0.2 | E33: 0.2 | F33: x
A34: Sudan | B34: 0.3 | C34: 0 | D34: 0.3 | E34: 0.3 | F34: x
A35: Tanzania | B35: 10.9 | C35: 1.4 | D35: 9.5 | E35: 12.3 | F35: x
A36: Tunisia | B36: 0.1 | C36: 0.8 | D36: -0.7 | E36: 0.9 | F36: x
A37: Uganda | B37: 2.3 | C37: 0.2 | D37: 2.1 | E37: 2.5 | F37: x
A38: Zambia | B38: 51.1 | C38: 4.9 | D38: 46.2 | E38: 56 | F38: x
A39: Zimbabwe | B39: 62.5 | C39: 4.8 | D39: 57.7 | E39: 67.3 | F39: x
A40: Source: SARS, Customs and Excise, Trade statistics, data accessed 14 March 2024; CRA calculations
A41: a Refers to merchandise trade in all physical goods, which consist of raw materials as well as intermediate and final goods.
A42: b The difference between exports and imports.

Sheet Chart Trade balance chief partn
B2: Trade balance with chief merchandise trading partners, 2023
A3: China | B3: -175.8
A4: United States | B4: -14.7
A5: Germany | B5: -17.1
A6: India | B6: -47
A7: Japan | B7: 55.9
A8: Mozambique | B8: 95.6
A9: United Kingdom | B9: 65.5
A10: United Arab Emirates | B10: -26.5
A11: Netherlands | B11: 48.9
A12: Belgium | B12: 45.5
A13: Botswana | B13: 67.4
A14: Namibia | B14: 43.5
A15: Thailand | B15: -56.6
A16: Zimbabwe | B16: 57.7
A17: Saudi Arabia | B17: -49.9
A18: Italy | B18: -23.9
A19: Spain | B19: -3.3
A20: Zambia | B20: 46.2
A21: South Korea | B21: 19
A22: Eswatini | B22: 4.3
A23: Nigeria | B23: -37.2
A24: France | B24: -28.4
A25: Oman | B25: -46.2
A26: Australia | B26: 0.1
A27: Brazil | B27: -18.2
A28: Lesotho | B28: 19.4
A29: DRC | B29: 26.6
A30: Taiwan | B30: 3.8
A31: Hong Kong | B31: 25.7
A32: Bahrain | B32: -27.5
A33: Singapore | B33: -2.3
A34: Indonesia | B34: -8.8
A35: Poland | B35: -20.7

Sheet PY Trade balance trade world
B3: Trade balance with chief trading partners (regions), 2023
A4: SADC | B4: 389.2
A5: Rest of Africa | B5: -18.6
A6: EU | B6: -77.6
A7: Rest of Europe | B7: 58.4
A8: Nafta | B8: -18.7
A9: Rest of America and Caribbean | B9: -22.2
A10: Oceania | B10: 0.5
A11: Eastern Asia | B11: -71.2
A12: South and Central Asia | B12: -41.2
A13: South Eastern Asia | B13: -92.2
A14: Western Asia | B14: -164.6
A15: Other | B15: 120.5

Sheet Py Trade balance EM
A1: PY
B3: Trade balance with emerging markets, 2023
A4: Brazil | B4: -18.2
A5: Bulgaria | B5: -2.1
A6: Chile | B6: -1.4
A7: China | B7: -175.8
A8: Colombia | B8: -1.3
A9: Czech Republic | B9: -5.8
A10: Egypt | B10: -1.1
A11: Greece | B11: -0.6
A12: Hungary | B12: -7.1
A13: India | B13: -47
A14: Indonesia | B14: -8.8
A15: Jordan | B15: 0.6
A16: Kuwait | B16: -2.7
A17: Latvia | B17: -0.7
A18: Lithuania | B18: -2.9
A19: Malaysia | B19: -9.2
A20: Mauritius | B20: 8.1
A21: Mexico | B21: -5.7
A22: Oman | B22: -46.2
A23: Pakistan | B23: 0.9
A24: Peru | B24: 0.4
A25: Philippines | B25: -1.3
A26: Poland | B26: -20.7
A27: Qatar | B27: -5.1
A28: Romania | B28: -3.6
A29: Russia | B29: -4.5
A30: Slovakia | B30: -5.9
A31: Sri Lanka | B31: 1.2
A32: Thailand | B32: -56.6
A33: Turkey | B33: -9.4
A34: United Arab Emirates | B34: -26.5
A35: Vietnam | B35: -12.5

Sheet PY Trade balance AC
A1: PY
B3: Trade balance with selected African countries, 2023
A4: Algeria | B4: -3.3
A5: Angola | B5: 0.4
A6: Botswana | B6: 67.4
A7: Cameroon | B7: -0.5
A8: Congo (DRC) | B8: 26.6
A9: Congo (Republic) | B9: 2
A10: Egypt | B10: -1.1
A11: Eswatini | B11: 4.3
A12: Ethiopia | B12: 0.4
A13: Ghana | B13: 3.4
A14: Ivory Coast | B14: 2.2
A15: Kenya | B15: 10.8
A16: Lesotho | B16: 19.4
A17: Liberia | B17: 1.4
A18: Madagascar | B18: 0.9
A19: Malawi | B19: 8.1
A20: Mauritius | B20: 8.1
A21: Mozambique | B21: 95.6
A22: Namibia | B22: 43.5
A23: Nigeria | B23: -37.1
A24: Rwanda | B24: 0.7
A25: Senegal | B25: 3.2
A26: Seychelles | B26: 1.4
A27: Tanzania | B27: 9.5
A28: Tunisia | B28: -0.7
A29: Uganda | B29: 2.1
A30: Zambia | B30: 46.2
A31: Zimbabwe | B31: 57.7
A33: a Countries with which South Africa has a trade balance of less than R0.3bn or -R0.3bn are not included.
A38: Algeria | B38: -3.3
A39: Angola | B39: 0.4
A40: Botswana | B40: 67.4
A41: Cameroon | B41: -0.5
A42: Congo (DRC) | B42: 26.6
A43: Congo (Republic) | B43: 2
A44: Egypt | B44: -1.1
A45: Eswatini | B45: 4.3
A46: Ethiopia | B46: 0.4
A47: Ghana | B47: 3.4
A48: Ivory Coast | B48: 2.2
A49: Kenya | B49: 10.8
A50: Lesotho | B50: 19.4
A51: Liberia | B51: 1.4
A52: Madagascar | B52: 0.9
A53: Malawi | B53: 8.1
A54: Mauritius | B54: 8.1
A55: Mozambique | B55: 95.6
A56: Namibia | B56: 43.5
A57: Nigeria | B57: -37.1
A58: Rwanda | B58: 0.7
A59: Senegal | B59: 3.2
A60: Seychelles | B60: 1.4
A61: Tanzania | B61: 9.5
A62: Tunisia | B62: -0.7
A63: Uganda | B63: 2.1
A64: Zambia | B64: 46.2
A65: Zimbabwe | B65: 57.7

Sheet Commodities

Sheet Top ten commodities
A1: Trade in commodities
A2: Top trade categories, 2023
A3: Exports | B3: Customs value Rbn
A4: Coal, briquettes, ovoids and similar solid fuels manufactured from coal — bituminous coal | B4: 121.8
A5: Gold (including gold plated with platinum) unwrought or in semi-manufactured forms, or in powder form — other semi-manufactured forms | B5: 115.9
A6: Motor vehicles for the transport of goods — other, double-cab | B6: 88.8
A7: Ores — iron ores and concentrates, including roasted iron pyrites - non-Agglomerated | B7: 78
A8: Iron and steel — ferro-alloys— containing by mass more than 4% of carbon | B8: 77.7
A9: Ores — chromium ores and concentrates — chromium ores and concentrates | B9: 72.4
A10: Manganese ores and concentrates, including ferruginous manganese ores | B10: 48.9
A11: Motor vehicles principally designed for the transport of persons (excluding those of heading 87.02), including station wagons and racing cars — other | B11: 45.6
A12: Iron ores and concentrates, including roasted iron pyrites — agglomerated | B12: 43
A13: Platinum, unwrought or in semi-manufactured forms, or in powder form | B13: 41.6
A14: Total | B14: 733.7
A15: Imports
A16: Petroleum oils and oils obtained from bituminous minerals (excluding crude) Note 1 (G) | B16: 179.7
A17: Petroleum oils and oils obtained from bituminous minerals crude | B17: 88.6
A18: Original equipment components — for motor cars (including station wagons) of heading 87.03 | B18: 69.6
A19: Original equipment components — for motor vehicles for the transport of goods of heading 87.04 | B19: 57.6
A20: Petroleum oils and oils obtained from bituminous minerals (excluding crude) Note 1 (B) | B20: 56.7
A21: Electric accumulators, including separators therefor, whether or not rectangular (including square) - lithium-ion | B21: 32.4
A22: Telephone sets, including telephones for cellular networks or for other wireless networks; other apparatus for the transmission or reception of voice, images or other data — designed for use when carried in the hand or on the person | B22: 31.4
A23: Pharmaceutical products — medicaments | B23: 25.2
A24: Motor vehicles principally designed for the transport of persons (excluding those of heading 87.02), including station wagons and racing cars — other | B24: 23
A25: Electrical Transformers, Static Converters (For Example, Rectifiers) And Inductors - Static Converters | B25: 19.9
A26: Total | B26: 584.1
A27: Source: SARS, Customs and Excise data, accessed 4 June 2024

Sheet Exports by type of commodity
A2: Exports by commodity and world region, 2023
A4: Section | B4: Description | C4: Africa | D4: Europe | E4: America | F4: Asia | G4: Oceania | H4: Origin of goods unknown
A5: 1 | B5: Live animals | C5: 9.54 | D5: 4.55 | E5: 1.09 | F5: 4.92 | G5: 0.29 | H5: 0
A6: 2 | B6: Vegetables | C6: 30.04 | D6: 46.21 | E6: 9.34 | F6: 48.59 | G6: 0.38 | H6: 0
A7: 3 | B7: Animal or vegetable fats | C7: 5.77 | D7: 1.15 | E7: 0.11 | F7: 0.23 | G7: 0.02 | H7: 0
A8: 4 | B8: Prepared foodstuffs | C8: 47.25 | D8: 18.28 | E8: 5.75 | F8: 9.54 | G8: 0.9 | H8: 0
A9: 5 | B9: Mineral products | C9: 114.96 | D9: 87.06 | E9: 13.37 | F9: 300.32 | G9: 1.27 | H9: 1.82
A10: 6 | B10: Chemicals | C10: 56.11 | D10: 24.24 | E10: 16.35 | F10: 21.13 | G10: 1.84 | H10: 0
A11: 7 | B11: Plastics and rubber | C11: 26.57 | D11: 4.01 | E11: 2.37 | F11: 2.28 | G11: 0.44 | H11: 0
A12: 8 | B12: Raw hides and leather | C12: 0.93 | D12: 1.78 | E12: 0.65 | F12: 0.93 | G12: 0.04 | H12: 0
A13: 9 | B13: Wood products | C13: 4.52 | D13: 0.95 | E13: 0.22 | F13: 4.14 | G13: 0.19 | H13: 0
A14: 10 | B14: Wood pulp and paper | C14: 12.47 | D14: 2.01 | E14: 0.94 | F14: 18.63 | G14: 0.16 | H14: 0
A15: 11 | B15: Textiles | C15: 13.77 | D15: 3.21 | E15: 0.74 | F15: 4.99 | G15: 0.44 | H15: 0
A16: 12 | B16: Footwear | C16: 3.4 | D16: 0.21 | E16: 0.1 | F16: 0.51 | G16: 0.02 | H16: 0
A17: 13 | B17: Stone and glass | C17: 5.41 | D17: 1.21 | E17: 0.74 | F17: 0.46 | G17: 0.04 | H17: 0
A18: 14 | B18: Precious metal | C18: 4.83 | D18: 81.68 | E18: 56.97 | F18: 112.18 | G18: 0.39 | H18: 115.93
A19: 15 | B19: Products iron and steel | C19: 63.07 | D19: 48.59 | E19: 28.76 | F19: 84.97 | G19: 1.77 | H19: 0
A20: 16 | B20: Machinery | C20: 88.51 | D20: 31.31 | E20: 17.13 | F20: 12.33 | G20: 3.44 | H20: 0
A21: 17 | B21: Vehicles aircraft and vessels | C21: 47.19 | D21: 140.83 | E21: 31.87 | F21: 17.33 | G21: 10.16 | H21: 0
A22: 18 | B22: Photographic and medical equipment | C22: 6.59 | D22: 1.77 | E22: 1.13 | F22: 1.94 | G22: 0.22 | H22: 0
A23: 20 | B23: Toys and sport apparel | C23: 9.03 | D23: 0.61 | E23: 0.56 | F23: 0.29 | G23: 0.13 | H23: 0
A24: 21 | B24: Works of art | C24: 0.04 | D24: 1.27 | E24: 0.73 | F24: 0.1 | G24: 0.03 | H24: 0
A25: 22 | B25: Other unclassified goods | C25: 0.29 | D25: 2.4 | E25: 0.22 | F25: 1.56 | G25: 0.03 | H25: 0.02
A26: 23 | B26: Equipment components | C26: 0 | D26: 0 | E26: 0 | F26: 0 | G26: 0 | H26: 0
A27: Totala | B27: — | C27: 550.3 | D27: 503.33 | E27: 189.16 | F27: 647.37 | G27: 22.19 | H27: 117.79
A28: Source: SARS, Customs and Excise, Trade statistics, data accessed 14 March 2024
A30: a Figures should add up vertically but may not, owing to rounding.

Sheet Imports by type of commodity
A2: Imports by commodity and world region, 2023
A4: Section | B4: Description | C4: Africa | D4: Europe | E4: America | F4: Asia | G4: Oceania | H4: Origin of goods unknown
A5: 1 | B5: Live animals | C5: 5.24 | D5: 5.12 | E5: 6.91 | F5: 2.37 | G5: 1.24 | H5: 0
A6: 2 | B6: Vegetables | C6: 5.15 | D6: 14.08 | E6: 4.51 | F6: 15.15 | G6: 2.13 | H6: 0
A7: 3 | B7: Animal or vegetable fats | C7: 0.08 | D7: 3.49 | E7: 0.93 | F7: 9.66 | G7: 0.02 | H7: 0
A8: 4 | B8: Prepared foodstuffs | C8: 12.54 | D8: 25.65 | E8: 5 | F8: 10.91 | G8: 0.25 | H8: 0
A9: 5 | B9: Mineral Products | C9: 80.63 | D9: 28.85 | E9: 24.4 | F9: 282.92 | G9: 3.56 | H9: 1.83
A10: 6 | B10: Chemicals | C10: 13.97 | D10: 78.31 | E10: 21.84 | F10: 70.23 | G10: 10.36 | H10: 0.02
A11: 7 | B11: Plastics & Rubber | C11: 2.01 | D11: 25.47 | E11: 7.48 | F11: 38.14 | G11: 0.21 | H11: 0.02
A12: 8 | B12: Raw hides & leather | C12: 0.15 | D12: 0.78 | E12: 0.15 | F12: 3.9 | G12: 0 | H12: 0
A13: 9 | B13: Wood Products | C13: 2.91 | D13: 1.48 | E13: 0.76 | F13: 1.82 | G13: 0 | H13: 0
A14: 10 | B14: Wood pulp & paper | C14: 1.98 | D14: 12.38 | E14: 34.65 | F14: 8.04 | G14: 0.26 | H14: 0
A15: 11 | B15: Textiles | C15: 15.69 | D15: 4.37 | E15: 1.14 | F15: 38.24 | G15: 0.1 | H15: 0
A16: 12 | B16: Footwear | C16: 1.11 | D16: 1.59 | E16: 0.15 | F16: 15.17 | G16: 0.01 | H16: 0
A17: 13 | B17: Stone & Glass | C17: 0.98 | D17: 6.19 | E17: 1.26 | F17: 9.06 | G17: 0.02 | H17: 0
A18: 14 | B18: Precious Metal | C18: 17.13 | D18: 1.58 | E18: 0.67 | F18: 1.98 | G18: 0.01 | H18: 5.7
A19: 15 | B19: Products Iron & Steel | C19: 8.1 | D19: 26.39 | E19: 6.03 | F19: 55.39 | G19: 0.42 | H19: 0.12
A20: 16 | B20: Machinery | C20: 7.79 | D20: 114.96 | E20: 51.97 | F20: 288.1 | G20: 2.12 | H20: 0.35
A21: 17 | B21: Vehicles aircraft & vessels | C21: 2.58 | D21: 60.85 | E21: 29.79 | F21: 79.25 | G21: 0.23 | H21: 0.05
A22: 18 | B22: Photographic & medical equipment | C22: 0.43 | D22: 17.96 | E22: 12.21 | F22: 13.71 | G22: 0.58 | H22: 0.07
A23: 20 | B23: Toys & Sport apparel | C23: 0.35 | D23: 6.24 | E23: 1.22 | F23: 15.52 | G23: 0.08 | H23: 0
A24: 21 | B24: Works of art | C24: 0.6 | D24: 0.17 | E24: 0.16 | F24: 0.04 | G24: 0.02 | H24: 0
A25: 22 | B25: Other unclassified goods | C25: 0.05 | D25: 0.87 | E25: 0.44 | F25: 0.33 | G25: 0 | H25: 0
A26: 23 | B26: Equipment Components | C26: 0.24 | D26: 85.84 | E26: 18.34 | F26: 56.72 | G26: 0 | H26: 0
A27: Totala | B27: — | C27: 179.7 | D27: 522.6 | E27: 230 | F27: 1016.69 | G27: 21.66 | H27: 8.2
A28: Source: SARS, Customs and Excise, Trade statistics, data accessed 14 March 2024
A30: a Figures should add up vertically but may not, owing to rounding.

Sheet Intern Exports-Imports % GDP SC
A2: Exports and imports of goods and services as a proportion of GDP and GDP growth, selected countries, 2021 and 2022
B4: —Exports— | D4: —Imports— | F4: GDP growth 2022
B5: 2021 | C5: 2022 | D5: 2021 | E5: 2022
A6: Country | B6: —as a proportion of GDP—
A7: Australia | B7: 0.221 | C7: 0.254 | D7: 0.178 | E7: 0.197 | F7: 0.043
A8: Botswana | B8: 0.419 | C8: 0.435 | D8: 0.469 | E8: 0.42 | F8: 0.058
A9: Brazil | B9: 0.196 | C9: 0.2 | D9: 0.186 | E9: 0.193 | F9: 0.029
A10: Chile | B10: 0.32 | C10: 0.357 | D10: 0.327 | E10: 0.393 | F10: 0.024
A11: China | B11: 0.199 | C11: 0.207 | D11: 0.174 | E11: 0.175 | F11: 0.03
A12: Denmark | B12: 0.597 | C12: 0.7 | D12: 0.525 | E12: 0.589 | F12: 0.027
A13: Egypt | B13: 0.106 | C13: 0.151 | D13: 0.193 | E13: 0.219 | F13: 0.066
A14: France | B14: 0.294 | C14: 0.347 | D14: 0.314 | E14: 0.386 | F14: 0.025
A15: Germany | B15: 0.47 | C15: 0.509 | D15: 0.417 | E15: 0.49 | F15: 0.018
A16: Ghana | B16: 0.299 | C16: 0.349 | D16: 0.285 | E16: 0.357 | F16: 0.031
A17: Greece | B17: 0.409 | C17: 0.491 | D17: 0.486 | E17: 0.589 | F17: 0.056
A18: Hong Kong | B18: 2.04 | C18: 1.939 | D18: 1.985 | E18: 1.899 | F18: -0.035
A19: India | B19: 0.215 | C19: 0.228 | D19: 0.242 | E19: 0.264 | F19: 0.072
A20: Indonesia | B20: 0.214 | C20: 0.245 | D20: 0.188 | E20: 0.209 | F20: 0.053
A21: Ireland | B21: 1.344 | C21: 1.371 | D21: 0.95 | E21: 0.972 | F21: 0.094
A22: Israel | B22: 0.295 | C22: 0.317 | D22: 0.255 | E22: 0.288 | F22: 0.068
A23: Italy | B23: 0.327 | C23: 0.366 | D23: 0.304 | E23: 0.381 | F23: 0.037
A24: Japan | B24: 0.182 | C24: 0.215 | D24: 0.187 | E24: 0.253 | F24: 0.01
A25: Kazakhstan | B25: 0.335 | C25: 0.418 | D25: 0.24 | E25: 0.263 | F25: 0.032
A26: Lithuania | B26: 0.805 | C26: 0.868 | D26: 0.76 | E26: 0.889 | F26: 0.024
A27: Mexico | B27: 0.411 | C27: 0.426 | D27: 0.428 | E27: 0.455 | F27: 0.039
A28: Mozambique | B28: 0.314 | C28: N/A | D28: 0.688 | E28: N/A | F28: 0.044
A29: Netherlands | B29: 0.831 | C29: 0.938 | D29: 0.728 | E29: 0.83 | F29: 0.043
A30: Nigeria | B30: 0.107 | C30: N/A | D30: 0.118 | E30: N/A | F30: 0.033
A31: Pakistan | B31: 0.091 | C31: 0.105 | D31: 0.18 | E31: 0.225 | F31: 0.047
A32: Philippines | B32: 0.258 | C32: 0.284 | D32: 0.377 | E32: 0.44 | F32: 0.076
A33: Poland | B33: 0.579 | C33: 0.627 | D33: 0.545 | E33: 0.612 | F33: 0.053
A34: Russia | B34: 0.299 | C34: 0.282 | D34: 0.207 | E34: 0.156 | F34: -0.021
A35: Saudi Arabia | B35: 0.33 | C35: 0.402 | D35: 0.245 | E35: 0.233 | F35: 0.087
A36: South Africa | B36: 0.312 | C36: 0.335 | D36: 0.25 | E36: 0.315 | F36: 0.019
A37: Spain | B37: 0.349 | C37: 0.409 | D37: 0.334 | E37: 0.397 | F37: 0.058
A38: Switzerland | B38: 0.714 | C38: 0.769 | D38: 0.595 | E38: 0.632 | F38: 0.026
A39: Thailand | B39: 0.586 | C39: 0.658 | D39: 0.586 | E39: 0.681 | F39: 0.026
A40: Turkey | B40: 0.353 | C40: 0.386 | D40: 0.355 | E40: 0.426 | F40: 0.055
A41: Uganda | B41: 0.158 | C41: 0.12 | D41: 0.259 | E41: 0.225 | F41: 0.046
A42: United Kingdom | B42: 0.288 | C42: 0.334 | D42: 0.301 | E42: 0.361 | F42: 0.043
A43: United States | B43: 0.109 | C43: 0.118 | D43: 0.146 | E43: 0.156 | F43: 0.019
A44: Source: The World Bank, www.wdi.worldbank.org, accessed 5 June 2024
A45: N/A — Not available.

Sheet Intern Exports-Imports % GDP EM
A2: Exports and imports of goods and services as a proportion of GDP and GDP growth, emerging markets, 2021 and 2022
B4: —Exports— | D4: —Imports— | F4: GDP growth 2022
B5: 2021 | C5: 2022 | D5: 2021 | E5: 2022
A6: Country | B6: —as a proportion of GDP—
A7: Brazil | B7: 0.196 | C7: 0.2 | D7: 0.186 | E7: 0.193 | F7: 0.029
A8: Bulgaria | B8: 0.613 | C8: 0.692 | D8: 0.596 | E8: 0.69 | F8: 0.039
A9: Chile | B9: 0.32 | C9: 0.357 | D9: 0.327 | E9: 0.393 | F9: 0.024
A10: China | B10: 0.199 | C10: 0.207 | D10: 0.174 | E10: 0.175 | F10: 0.03
A11: Colombia | B11: 0.163 | C11: 0.206 | D11: 0.239 | E11: 0.278 | F11: 0.073
A12: Czech Republic | B12: 0.727 | C12: 0.765 | D12: 0.698 | E12: 0.755 | F12: 0.024
A13: Egypt | B13: 0.106 | C13: 0.151 | D13: 0.193 | E13: 0.219 | F13: 0.066
A14: Estonia | B14: 0.783 | C14: 0.855 | D14: 0.787 | E14: 0.861 | F14: -0.013
A15: Greece | B15: 0.409 | C15: 0.491 | D15: 0.486 | E15: 0.589 | F15: 0.056
A16: Hungary | B16: 0.803 | C16: 0.912 | D16: 0.799 | E16: 0.955 | F16: 0.046
A17: India | B17: 0.215 | C17: 0.228 | D17: 0.242 | E17: 0.264 | F17: 0.072
A18: Indonesia | B18: 0.214 | C18: 0.245 | D18: 0.188 | E18: 0.209 | F18: 0.053
A19: Jordan | B19: N/A | C19: N/A | D19: N/A | E19: N/A | F19: 0.024
A20: Kuwait | B20: N/A | C20: N/A | D20: N/A | E20: N/A | F20: 0.089
A21: Latvia | B21: 0.637 | C21: 0.72 | D21: 0.671 | E21: 0.765 | F21: 0.034
A22: Lithuania | B22: 0.805 | C22: 0.868 | D22: 0.76 | E22: 0.889 | F22: 0.024
A23: Malaysia | B23: 0.688 | C23: 0.77 | D23: 0.617 | E23: 0.697 | F23: 0.087
A24: Mauritius | B24: 0.442 | C24: 0.567 | D24: 0.54 | E24: 0.628 | F24: 0.089
A25: Mexico | B25: 0.411 | C25: 0.426 | D25: 0.428 | E25: 0.455 | F25: 0.039
A26: Morocco | B26: 0.329 | C26: 0.448 | D26: 0.42 | E26: 0.563 | F26: 0.013
A27: Oman | B27: 0.525 | C27: N/A | D27: 0.414 | E27: N/A | F27: 0.043
A28: Pakistan | B28: 0.091 | C28: 0.105 | D28: 0.18 | E28: 0.225 | F28: 0.047
A29: Peru | B29: 0.295 | C29: 0.293 | D29: 0.265 | E29: 0.291 | F29: 0.027
A30: Philippines | B30: 0.258 | C30: 0.284 | D30: 0.377 | E30: 0.44 | F30: 0.076
A31: Poland | B31: 0.579 | C31: 0.627 | D31: 0.545 | E31: 0.612 | F31: 0.053
A32: Qatar | B32: 0.589 | C32: 0.684 | D32: 0.341 | E32: 0.315 | F32: 0.042
A33: Romania | B33: 0.406 | C33: 0.43 | D33: 0.463 | E33: 0.498 | F33: 0.046
A34: Russia | B34: 0.299 | C34: 0.282 | D34: 0.207 | E34: 0.156 | F34: -0.021
A35: Slovakia | B35: 0.924 | C35: 0.994 | D35: 0.924 | E35: 1.048 | F35: 0.018
A36: South Africa | B36: 0.312 | C36: 0.335 | D36: 0.25 | E36: 0.315 | F36: 0.019
A37: Sri Lanka | B37: 0.169 | C37: 0.215 | D37: 0.243 | E37: 0.25 | F37: -0.078
A38: Thailand | B38: 0.586 | C38: 0.658 | D38: 0.586 | E38: 0.681 | F38: 0.026
A39: Turkey | B39: 0.353 | C39: 0.386 | D39: 0.355 | E39: 0.426 | F39: 0.055
A40: United Arab Emirates | B40: N/A | C40: N/A | D40: N/A | E40: N/A | F40: 0.079
A41: Vietnam | B41: 0.933 | C41: 0.94 | D41: 0.932 | E41: 0.917 | F41: 0.08
A42: Source: The World Bank, www.wdi.worldbank.org, accessed 5 June 2024
A43: N/A — Not available.

Sheet Intern Exports-Imports % GDP AC
A2: Exports and imports of goods and services as a proportion of GDP and GDP growth, selected African countries, 2021 and 2022
B4: —Exports— | D4: —Imports— | F4: GDP growth 2022
B5: 2021 | C5: 2022 | D5: 2021 | E5: 2022
A6: Country | B6: —as a proportion of GDP—
A7: Algeria | B7: 0.267 | C7: 0.353 | D7: 0.265 | E7: 0.237 | F7: 0.032
A8: Angola | B8: 0.454 | C8: 0.434 | D8: 0.166 | E8: 0.247 | F8: 0.03
A9: Botswana | B9: 0.419 | C9: 0.435 | D9: 0.469 | E9: 0.42 | F9: 0.058
A10: Burundi | B10: 0.05 | C10: 0.05 | D10: 0.238 | E10: 0.233 | F10: 0.018
A11: Cameroon | B11: 0.167 | C11: 0.193 | D11: 0.204 | E11: 0.22 | F11: 0.036
A12: Central African Republic | B12: 0.142 | C12: 0.123 | D12: 0.305 | E12: 0.329 | F12: 0.005
A13: Congo (DRC) | B13: 0.404 | C13: 0.462 | D13: 0.401 | E13: 0.49 | F13: 0.089
A14: Congo (Republic) | B14: 0.585 | C14: 0.638 | D14: 0.372 | E14: 0.343 | F14: 0.015
A15: Egypt | B15: 0.106 | C15: 0.151 | D15: 0.193 | E15: 0.219 | F15: 0.066
A16: Eritrea | B16: N/A | C16: N/A | D16: N/A | E16: N/A | F16: N/A
A17: Eswatini | B17: 0.45 | C17: 0.438 | D17: 0.459 | E17: 0.476 | F17: 0.005
A18: Ethiopia | B18: 0.076 | C18: 0.082 | D18: 0.167 | E18: 0.183 | F18: 0.053
A19: Ghana | B19: 0.299 | C19: 0.349 | D19: 0.285 | E19: 0.357 | F19: 0.031
A20: Ivory Coast | B20: 0.226 | C20: 0.248 | D20: 0.225 | E20: 0.275 | F20: 0.067
A21: Kenya | B21: 0.108 | C21: 0.122 | D21: 0.199 | E21: 0.215 | F21: 0.048
A22: Lesotho | B22: 0.455 | C22: 0.483 | D22: 0.935 | E22: 1.008 | F22: 0.011
A23: Liberia | B23: N/A | C23: N/A | D23: N/A | E23: N/A | F23: 0.048
A24: Libya | B24: N/A | C24: N/A | D24: N/A | E24: N/A | F24: -0.012
A25: Madagascar | B25: 0.228 | C25: 0.304 | D25: 0.317 | E25: 0.392 | F25: 0.038
A26: Malawi | B26: N/A | C26: N/A | D26: N/A | E26: N/A | F26: 0.009
A27: Mauritius | B27: 0.442 | C27: 0.567 | D27: 0.54 | E27: 0.628 | F27: 0.089
A28: Morocco | B28: 0.329 | C28: 0.448 | D28: 0.42 | E28: 0.563 | F28: 0.013
A29: Mozambique | B29: 0.314 | C29: N/A | D29: 0.688 | E29: N/A | F29: 0.044
A30: Namibia | B30: 0.319 | C30: 0.367 | D30: 0.501 | E30: 0.55 | F30: 0.076
A31: Nigeria | B31: 0.107 | C31: N/A | D31: 0.118 | E31: N/A | F31: 0.033
A32: Rwanda | B32: 0.195 | C32: 0.225 | D32: 0.352 | E32: 0.387 | F32: 0.082
A33: Senegal | B33: 0.246 | C33: 0.27 | D33: 0.445 | E33: 0.529 | F33: 0.042
A34: Seychelles | B34: 1.115 | C34: 1.115 | D34: 1.243 | E34: 1.216 | F34: 0.09
A35: Somalia | B35: 0.201 | C35: 0.173 | D35: 0.858 | E35: 0.785 | F35: 0.024
A36: South Africa | B36: 0.312 | C36: 0.335 | D36: 0.25 | E36: 0.315 | F36: 0.019
A37: Sudan | B37: 0.022 | C37: 0.016 | D37: 0.019 | E37: 0.011 | F37: -0.01
A38: Tanzania | B38: 0.141 | C38: 0.154 | D38: 0.188 | E38: 0.196 | F38: 0.046
A39: Tunisia | B39: 0.421 | C39: 0.494 | D39: 0.522 | E39: 0.614 | F39: 0.024
A40: Uganda | B40: 0.158 | C40: 0.12 | D40: 0.259 | E40: 0.225 | F40: 0.046
A41: Zambia | B41: 0.521 | C41: 0.402 | D41: 0.339 | E41: 0.291 | F41: 0.052
A42: Zimbabwe | B42: 0.254 | C42: 0.28 | D42: 0.309 | E42: 0.37 | F42: 0.065
A43: Source: The World Bank, www.wdi.worldbank.org, accessed 5 June 2024
A44: N/A — Not available.

Sheet Prices

Sheet London gold price 1970-2023
A2: Prices of key exports and imports
A4: Average London current gold price, 1973-2023
A6: Year | B6: Price in dollarsab | C6: Nominal price in randsa | D6: SA gold production as a proportion of world total
A7: 1973 | B7: 97.24 | C7: 67.04 | D7: 0.569290018
A8: 1974 | B8: 159.19 | C8: 108.31 | D8: 0.6078157711
A9: 1975 | B9: 161.06 | C9: 118.06 | D9: 0.5961638424
A10: 1976 | B10: 124.83 | C10: 108.55 | D10: 0.5877408774
A11: 1977 | B11: 147.71 | C11: 128.44 | D11: 0.5783683751
A12: 1978 | B12: 193.26 | C12: 168.05 | D12: 0.5798960494
A13: 1979 | B13: 306.99 | C13: 257.71 | D13: 0.5824620139
A14: 1980 | B14: 613.07 | C14: 476.8 | D14: 0.5527101135
A15: 1981 | B15: 459.68 | C15: 400.24 | D15: 0.51201183
A16: 1982 | B16: 375.79 | C16: 408.91 | D16: 0.4954181649
A17: 1983 | B17: 424.31 | C17: 471.66 | D17: 0.4837366871
A18: 1984 | B18: 360.45 | C18: 526.76 | D18: 0.4658313623
A19: 1985 | B19: 317.29 | C19: 710.63 | D19: 0.4379895561
A20: 1986 | B20: 367.59 | C20: 840.38 | D20: 0.3970130678
A21: 1987 | B21: 446.6 | C21: 908.81 | D21: 0.3654425045
A22: 1988 | B22: 437.09 | C22: 991.58 | D22: 0.3313767343
A23: 1989 | B23: 381.54 | C23: 998.89 | D23: 0.3013902681
A24: 1990 | B24: 383.58 | C24: 991.88 | D24: 0.2775229358
A25: 1991 | B25: 362.19 | C25: 999.53 | D25: 0.2782407407
A26: 1992 | B26: 343.72 | C26: 979.98 | D26: 0.2716814159
A27: 1993 | B27: 359.7 | C27: 1176.73 | D27: 0.2714912281
A28: 1994 | B28: 384.05 | C28: 1363.43 | D28: 0.2577777778
A29: 1995 | B29: 384.17 | C29: 1393.48 | D29: 0.2349775785
A30: 1996 | B30: 387.71 | C30: 1664.02 | D30: 0.2213333333
A31: 1997 | B31: 331.11 | C31: 1523.48 | D31: 0.2041493776
A32: 1998 | B32: 294.14 | C32: 1622.92 | D32: 0.1886178862
A33: 1999 | B33: 278.92 | C33: 1702.71 | D33: 0.1767716535
A34: 2000 | B34: 279.13 | C34: 1932.51 | D34: 0.1690196078
A35: 2001 | B35: 271.08 | C35: 2338.18 | D35: 0.1564202335
A36: 2002 | B36: 310.16 | C36: 3242.3 | D36: 0.1564705882
A37: 2003 | B37: 363.65 | C37: 2739.97 | D37: 0.144015444
A38: 2004 | B38: 409.33 | C38: 2637.1 | D38: 0.1403292181
A39: 2005 | B39: 444.83 | C39: 2824.97 | D39: 0.1194331984
A40: 2006 | B40: 604.46 | C40: 4084.59 | D40: 0.1105691057
A41: 2007 | B41: 696.76 | C41: 4890.75 | D41: 0.1058823529
A42: 2008 | B42: 872.31 | C42: 7135.66 | D42: 0.09424778761
A43: 2009 | B43: 970.94 | C43: 8106.94 | D43: 0.08081632653
A44: 2010 | B44: 1225 | C44: 8908.11 | D44: 0.073828125
A45: 2011 | B45: 1569.17 | C45: 11445.4 | D45: 0.06804511278
A46: 2012 | B46: 1668.43 | C46: 13709.24 | D46: 0.0594795539
A47: 2013 | B47: 1410.86 | C47: 13550.05 | D47: 0.05714285714
A48: 2014 | B48: 1266.16 | C48: 13724.95 | D48: 0.0508361204
A49: 2015 | B49: 1160.44 | C49: 14764.29 | D49: 0.04677419355
A50: 2016 | B50: 1248 | C50: 18326 | D50: 0.04516129032
A51: 2017 | B51: 1258 | C51: 16754 | D51: 0.042
A52: 2018 | B52: 1269 | C52: 16779 | D52: 0.035
A53: 2019 | B53: 1392 | C53: 20154 | D53: 0.032
A54: 2020 | B54: 1771 | C54: 29177 | D54: 0.032
A55: 2021 | B55: 1800 | C55: 26605 | D55: 0.035
A56: 2022 | B56: 1801 | C56: 29384 | D56: 0.029
A57: 2023 | B57: 1943 | C57: 35845 | D57: 0.033
A58: Source: SARB, www.resbank.co.za, times series data, accessed 5 June 2024; US Bureau of Mines, Mineral yearbooks 1969-1993; US Geological Survey, Mineral commodity summaries 1994-2024
A59: a Price per fine ounce.
A60: b At current prices.

Sheet LG Gold price 1946-2023
A1: LG
A2: Average London current gold pricea, 1946–2022
B4: $ | C4: R
A5: 1946 | B5: 34.71 | C5: 17.23
A6: 1947 | B6: 34.71 | C6: 17.23
A7: 1948 | B7: 34.71 | C7: 17.23
A8: 1949 | B8: 31.7 | C8: 17.51
A9: 1950 | B9: 34.72 | C9: 24.8
A10: 1951 | B10: 34.72 | C10: 24.8
A11: 1952 | B11: 34.6 | C11: 24.71
A12: 1953 | B12: 34.84 | C12: 24.89
A13: 1954 | B13: 35.04 | C13: 25.03
A14: 1955 | B14: 35.03 | C14: 25.02
A15: 1956 | B15: 34.99 | C15: 24.99
A16: 1957 | B16: 34.95 | C16: 24.96
A17: 1958 | B17: 35.1 | C17: 25.07
A18: 1959 | B18: 35.09 | C18: 25.06
A19: 1960 | B19: 35.17 | C19: 25.12
A20: 1961 | B20: 35.14 | C20: 25.1
A21: 1962 | B21: 35.2 | C21: 25.14
A22: 1963 | B22: 35.08 | C22: 25.06
A23: 1964 | B23: 35.08 | C23: 25.06
A24: 1965 | B24: 35.13 | C24: 25.09
A25: 1966 | B25: 35.17 | C25: 25.12
A26: 1967 | B26: 35.19 | C26: 25.13
A27: 1968 | B27: 38.4 | C27: 27.64
A28: 1969 | B28: 41.1 | C28: 29.36
A29: 1970 | B29: 35.94 | C29: 25.67
A30: 1971 | B30: 40.79 | C30: 29.27
A31: 1972 | B31: 58.14 | C31: 45.07
A32: 1973 | B32: 97.24 | C32: 67.04
A33: 1974 | B33: 159.19 | C33: 108.31
A34: 1975 | B34: 161.06 | C34: 118.06
A35: 1976 | B35: 124.83 | C35: 108.55
A36: 1977 | B36: 147.71 | C36: 128.44
A37: 1978 | B37: 193.26 | C37: 168.05
A38: 1979 | B38: 306.99 | C38: 257.71
A39: 1980 | B39: 613.07 | C39: 476.8
A40: 1981 | B40: 459.68 | C40: 400.24
A41: 1982 | B41: 375.79 | C41: 408.91
A42: 1983 | B42: 424.31 | C42: 471.66
A43: 1984 | B43: 360.45 | C43: 526.76
A44: 1985 | B44: 317.29 | C44: 710.63
A45: 1986 | B45: 367.59 | C45: 840.38
A46: 1987 | B46: 446.6 | C46: 908.81
A47: 1988 | B47: 437.09 | C47: 991.58
A48: 1989 | B48: 381.54 | C48: 998.89
A49: 1990 | B49: 383.58 | C49: 991.88
A50: 1991 | B50: 362.19 | C50: 999.53
A51: 1992 | B51: 343.72 | C51: 979.98
A52: 1993 | B52: 359.7 | C52: 1176.73
A53: 1994 | B53: 384.05 | C53: 1363.43
A54: 1995 | B54: 384.17 | C54: 1393.48
A55: 1996 | B55: 387.71 | C55: 1664.02
A56: 1997 | B56: 331.11 | C56: 1523.48
A57: 1998 | B57: 294.14 | C57: 1622.92
A58: 1999 | B58: 278.92 | C58: 1702.71
A59: 2000 | B59: 279.13 | C59: 1932.51
A60: 2001 | B60: 271.08 | C60: 2338.18
A61: 2002 | B61: 310.16 | C61: 3242.3
A62: 2003 | B62: 363.65 | C62: 2739.97
A63: 2004 | B63: 409.33 | C63: 2637.1
A64: 2005 | B64: 444.83 | C64: 2824.97
A65: 2006 | B65: 604.46 | C65: 4084.59
A66: 2007 | B66: 696.76 | C66: 4890.75
A67: 2008 | B67: 872.31 | C67: 7135.66
A68: 2009 | B68: 970.94 | C68: 8106.94
A69: 2010 | B69: 1225 | C69: 8908.11
A70: 2011 | B70: 1569.17 | C70: 11445.4
A71: 2012 | B71: 1668.43 | C71: 13709.24
A72: 2013 | B72: 1410.86 | C72: 13550.05
A73: 2014 | B73: 1266.16 | C73: 13724.95
A74: 2015 | B74: 1160.44 | C74: 14764.29
A75: 2016 | B75: 1248 | C75: 18326
A76: 2017 | B76: 1258 | C76: 16754
A77: 2018 | B77: 1269 | C77: 16779
A78: 2019 | B78: 1392 | C78: 20154
A79: 2020 | B79: 1771 | C79: 29177
A80: 2021 | B80: 1800 | C80: 26605
A81: 2022 | B81: 1801 | C81: 29384
A82: 2023 | B82: 1943 | C82: 35845

Sheet LG Current oil price 1981-2023
B1: Current oil price, 1981–2023
A2: 1981 | B2: 34.02
A3: 1982 | B3: 31.59
A4: 1983 | B4: 28.29
A5: 1984 | B5: 27.68
A6: 1985 | B6: 27.8
A7: 1986 | B7: 17.84
A8: 1987 | B8: 19.65
A9: 1988 | B9: 15
A10: 1989 | B10: 18.03
A11: 1990 | B11: 23.43
A12: 1991 | B12: 19.89
A13: 1992 | B13: 19.37
A14: 1993 | B14: 17.26
A15: 1994 | B15: 15.82
A16: 1995 | B16: 19.91
A17: 1996 | B17: 20.22
A18: 1997 | B18: 19.39
A19: 1998 | B19: 13.48
A20: 1999 | B20: 17.97
A21: 2000 | B21: 28.46
A22: 2001 | B22: 24.47
A23: 2002 | B23: 24.95
A24: 2003 | B24: 28.89
A25: 2004 | B25: 38.16
A26: 2005 | B26: 54.28
A27: 2006 | B27: 64.99
A28: 2007 | B28: 72.95
A29: 2008 | B29: 97.77
A30: 2009 | B30: 61.59
A31: 2010 | B31: 79.54
A32: 2011 | B32: 111.19
A33: 2012 | B33: 111.8
A34: 2013 | B34: 108.79
A35: 2014 | B35: 99.24
A36: 2015 | B36: 52.5
A37: 2016 | B37: 44
A38: 2017 | B38: 54
A39: 2018 | B39: 71
A40: 2019 | B40: 64
A41: 2020 | B41: 42
A42: 2021 | B42: 71
A43: 2022 | B43: 100
A44: 2023 | B44: 83

Sheet Crude oil&platinum price 85-23
B2: Brent crude oil and platinum current prices, 1987-2023
B3: Year | C3: Brent crude oila $ | D3: Platinumb $ | E3: Platinumb R
B4: 1987 | C4: 19.65 | D4: – | E4: –
B5: 1988 | C5: 15 | D5: – | E5: –
B6: 1989 | C6: 18.03 | D6: – | E6: –
B7: 1990 | C7: 23.43 | D7: – | E7: –
B8: 1991 | C8: 19.89 | D8: – | E8: –
B9: 1992 | C9: 19.37 | D9: – | E9: –
B10: 1993 | C10: 17.26 | D10: 374 | E10: 1223
B11: 1994 | C11: 15.82 | D11: 405 | E11: 1439
B12: 1995 | C12: 19.91 | D12: 425 | E12: 1541
B13: 1996 | C13: 20.22 | D13: 397 | E13: 1702
B14: 1997 | C14: 19.39 | D14: 395 | E14: 1823
B15: 1998 | C15: 13.48 | D15: 373 | E15: 2055
B16: 1999 | C16: 17.97 | D16: 378 | E16: 2309
B17: 2000 | C17: 28.46 | D17: 543 | E17: 3789
B18: 2001 | C18: 24.47 | D18: 527 | E18: 4488
B19: 2002 | C19: 24.95 | D19: 539 | E19: 5642
B20: 2003 | C20: 28.89 | D20: 691 | E20: 5206
B21: 2004 | C21: 38.16 | D21: 844 | E21: 5449
B22: 2005 | C22: 54.28 | D22: 896 | E22: 5706
B23: 2006 | C23: 64.99 | D23: 1140 | E23: 7733
B24: 2007 | C24: 72.95 | D24: 1304 | E24: 9184
B25: 2008 | C25: 97.77 | D25: 1571 | E25: 12582
B26: 2009 | C26: 61.59 | D26: 1206 | E26: 10057
B27: 2010 | C27: 79.54 | D27: 1611 | E27: 11777
B28: 2011 | C28: 111.19 | D28: 1716 | E28: 12397
B29: 2012 | C29: 111.8 | D29: 1550 | E29: 12721
B30: 2013 | C30: 108.79 | D30: 1484 | E30: 14283
B31: 2014 | C31: 99.24 | D31: 1380 | E31: 14953
B32: 2015 | C32: 52.5 | D32: 1052.62 | E32: 13309.62
B33: 2016 | C33: 44 | D33: 986 | E33: 14464
B34: 2017 | C34: 54 | D34: 948 | E34: 12619
B35: 2018 | C35: 71 | D35: 878 | E35: 11549
B36: 2019 | C36: 64 | D36: 863 | E36: 12485
B37: 2020 | C37: 42 | D37: 885 | E37: 14479
B38: 2021 | C38: 71 | D38: 1090 | E38: 16082
B39: 2022 | C39: 100 | D39: 959 | E39: 15660
B40: 2023 | C40: 83 | D40: 964 | E40: 17779
B41: Source: SARB, www.resbank.co.za, times series data, accessed 5 June 2024
B42: a Price per barrel.
B43: b Price per fine ounce.

Sheet Oil price,petrol price 2022-23
A2: Brent crude oil price, R/$ exchange rate, and petrol price trends, 2022-23a
A4: Year | B4: Brent crude oil $ | C4: Value of $ in Rands | D4: Petrol price | E4: Year | F4: Brent crude oil $ | G4: Value of $ in Rands | H4: Petrol price
A5: 2022 | E5: 2023
A6: January | B6: 86.22 | C6: 15.49 | D6: 19.61 | E6: January | F6: 82.8 | G6: 17.0875 | H6: 21.4
A7: February | B7: 97.01 | C7: 15.21 | D7: 20.14 | E7: February | F7: 82.66 | G7: 17.8856 | H7: 21.68
A8: March | B8: 112.7 | C8: 14.98 | D8: 21.6 | E8: March | F8: 78.21 | G8: 18.2693 | H8: 22.95
A9: April | B9: 104.28 | C9: 14.95 | D9: 21.96 | E9: April | F9: 84.53 | G9: 18.1764 | H9: 22.97
A10: May | B10: 113.12 | C10: 15.9 | D10: 21.84 | E10: May | F10: 76.08 | G10: 19.0527 | H10: 23.34
A11: June | B11: 122.78 | C11: 15.77 | D11: 24.17 | E11: June | F11: 74.79 | G11: 18.756 | H11: 22.63
A12: July | B12: 111.63 | C12: 16.84 | D12: 26.74 | E12: July | F12: 79.81 | G12: 18.1841 | H12: 22.46
A13: August | B13: 100.59 | C13: 16.68 | D13: 25.42 | E13: August | F13: 86.02 | G13: 18.7538 | H13: 22.83
A14: September | B14: 90.43 | C14: 17.55 | D14: 23.38 | E14: September | F14: 93.43 | G14: 18.9784 | H14: 24.54
A15: October | B15: 93.19 | C15: 18.12 | D15: 22.36 | E15: October | F15: 91.25 | G15: 19.05 | H15: 25.68
A16: November | B16: 91.9 | C16: 17.48 | D16: 22.87 | E16: November | F16: 83.26 | G16: 18.54 | H16: 23.9
A17: December | B17: 81.54 | C17: 17.28 | D17: 23.46 | E17: December | F17: 77.8 | G17: 18.67 | H17: 23.25
A18: Source: SARB, www.resbank.co.za, time series data; Department of Energy, www.energy.za, accessed 5 June 2024
A19: a Data for 2011-21 is available in previous Surveys.

Sheet LG Crude oil price.1861-2023
A1: LG | B1: May we please put labels on top as at the graph below!
B2: Real crude oil pricea, 1861–2023
B3: $ 2023
A4: 1861 | B4: 17.48614
A5: 1862 | B5: 32.82013969
A6: 1863 | B6: 78.88160114
A7: 1864 | B7: 161.2838494
A8: 1865 | B8: 127.1917745
A9: 1866 | B9: 74.06085546
A10: 1867 | B10: 51.21811997
A11: 1868 | B11: 80.28106945
A12: 1869 | B12: 83.97583054
A13: 1870 | B13: 92.99348445
A14: 1871 | B14: 111.7104417
A15: 1872 | B15: 93.6926285
A16: 1873 | B16: 48.07827113
A17: 1874 | B17: 32.29776945
A18: 1875 | B18: 38.66765921
A19: 1876 | B19: 75.08966375
A20: 1877 | B20: 72.6616182
A21: 1878 | B21: 37.50388248
A22: 1879 | B22: 27.10364616
A23: 1880 | B23: 29.21498668
A24: 1881 | B24: 26.4472511
A25: 1882 | B25: 23.98704169
A26: 1883 | B26: 31.38603913 | E26: 1861-69 | F26: Pennsylvanian oil boom
A27: 1884 | B27: 26.91872656 | E27: 1870-79
A28: 1885 | B28: 28.77547502 | E28: 1880-89 | F28: Russian oil exports began
A29: 1886 | B29: 23.72571188 | E29: 1890-99 | F29: Sumatra production began
A30: 1887 | B30: 22.14622069 | E30: 1900-09 | F30: Discovery of Spindletop, Texas
A31: 1888 | B31: 29.08757345 | E31: 1910-19
A32: 1889 | B32: 32.11579973 | E32: 1920-29 | F32: Fears of shortage in US. Growth of Venezuelan production
A33: 1890 | B33: 30.06120666 | E33: 1930-39 | F33: East Texas field discovered
A34: 1891 | B34: 23.15058444 | E34: 1940-49 | F34: Post war reconstruction
A35: 1892 | B35: 19.34974222 | E35: 1950-59 | F35: Loss of Iranian supplies. Suez crisis
A36: 1893 | B36: 22.36759192 | E36: 1970-79 | F36: Yom Kippur war. Iranian revolution
A37: 1894 | B37: 30.69509467 | E37: 1980-89 | F37: Netback pricing introduced
A38: 1895 | B38: 50.91787203 | E38: 1990-99 | F38: Iraq invaded Kuwait
A39: 1896 | B39: 44.17874191 | E39: 2000-09 | F39: Invasion of Iraq
A40: 1897 | B40: 29.9451701 | E40: 2010-19 | F40: Arab spring
A41: 1898 | B41: 34.49380353
A42: 1899 | B42: 48.8978094
A43: 1900 | B43: 44.55313803
A44: 1901 | B44: 35.50583767
A45: 1902 | B45: 29.2334235
A46: 1903 | B46: 33.58416572
A47: 1904 | B47: 30.36990248
A48: 1905 | B48: 22.15125824
A49: 1906 | B49: 25.51303454
A50: 1907 | B50: 24.08628724
A51: 1908 | B51: 24.59933596
A52: 1909 | B52: 24.18717778
A53: 1910 | B53: 20.18486953
A54: 1911 | B54: 20.18486953
A55: 1912 | B55: 23.99162187
A56: 1913 | B56: 30.15838729
A57: 1914 | B57: 25.47516371
A58: 1915 | B58: 20.02519523
A59: 1916 | B59: 31.50698158
A60: 1917 | B60: 37.08449036
A61: 1918 | B61: 40.06784271
A62: 1919 | B62: 35.40835054
A63: 1920 | B63: 46.68704644
A64: 1921 | B64: 29.45430733
A65: 1922 | B65: 29.25826406
A66: 1923 | B66: 23.9236268
A67: 1924 | B67: 25.48564732
A68: 1925 | B68: 29.20674154
A69: 1926 | B69: 32.369823
A70: 1927 | B70: 22.80863396
A71: 1928 | B71: 20.81537506
A72: 1929 | B72: 22.59446694
A73: 1930 | B73: 21.71631997
A74: 1931 | B74: 13.00676205
A75: 1932 | B75: 19.40994457
A76: 1933 | B76: 15.75525886
A77: 1934 | B77: 22.76015235
A78: 1935 | B78: 21.53063997
A79: 1936 | B79: 23.96729434
A80: 1937 | B80: 25.04282445
A81: 1938 | B81: 24.44123756
A82: 1939 | B82: 22.37966946
A83: 1940 | B83: 22.1563513
A84: 1941 | B84: 23.58619291
A85: 1942 | B85: 22.2492358
A86: 1943 | B86: 21.13931376
A87: 1944 | B87: 20.95214275
A88: 1945 | B88: 17.77757566
A89: 1946 | B89: 17.46824221
A90: 1947 | B90: 25.91947341
A91: 1948 | B91: 25.18560197
A92: 1949 | B92: 22.74507435
A93: 1950 | B93: 21.64189918
A94: 1951 | B94: 20.05915829
A95: 1952 | B95: 19.62850969
A96: 1953 | B96: 21.98817903
A97: 1954 | B97: 21.88183739
A98: 1955 | B98: 21.96354702
A99: 1956 | B99: 21.63362259
A100: 1957 | B100: 20.60870707
A101: 1958 | B101: 21.96173966
A102: 1959 | B102: 21.74199678
A103: 1960 | B103: 19.57507789
A104: 1961 | B104: 18.34835044
A105: 1962 | B105: 18.1310009
A106: 1963 | B106: 17.90898872
A107: 1964 | B107: 17.68284074
A108: 1965 | B108: 17.40691178
A109: 1966 | B109: 16.89744125
A110: 1967 | B110: 16.44155219
A111: 1968 | B111: 15.76797641
A112: 1969 | B112: 14.95127979
A113: 1970 | B113: 14.12653656
A114: 1971 | B114: 16.85609698
A115: 1972 | B115: 18.07078117
A116: 1973 | B116: 22.57811002
A117: 1974 | B117: 71.55877744
A118: 1975 | B118: 65.28105857
A119: 1976 | B119: 68.5344262
A120: 1977 | B120: 69.98123006
A121: 1978 | B121: 65.48670212
A122: 1979 | B122: 132.7125925
A123: 1980 | B123: 136.177475
A124: 1981 | B124: 120.4061355
A125: 1982 | B125: 104.1037429
A126: 1983 | B126: 90.40092164
A127: 1984 | B127: 84.41499951
A128: 1985 | B128: 78.06856784
A129: 1986 | B129: 40.11413813
A130: 1987 | B130: 49.43617748
A131: 1988 | B131: 38.45241225
A132: 1989 | B132: 44.7985391
A133: 1990 | B133: 55.32976617
A134: 1991 | B134: 44.74804109
A135: 1992 | B135: 41.95573932
A136: 1993 | B136: 35.79775356
A137: 1994 | B137: 32.51580907
A138: 1995 | B138: 34.02609121
A139: 1996 | B139: 40.15123424
A140: 1997 | B140: 36.24260169
A141: 1998 | B141: 23.76861405
A142: 1999 | B142: 32.87114598
A143: 2000 | B143: 50.42165203
A144: 2001 | B144: 42.06377429
A145: 2002 | B145: 42.38846774
A146: 2003 | B146: 47.75407937
A147: 2004 | B147: 61.72808259
A148: 2005 | B148: 85.06590388
A149: 2006 | B149: 98.46388572
A150: 2007 | B150: 106.3799047
A151: 2008 | B151: 137.6391291
A152: 2009 | B152: 87.59016791
A153: 2010 | B153: 111.0837141
A154: 2011 | B154: 150.7063306
A155: 2012 | B155: 148.2005071
A156: 2013 | B156: 142.1224098
A157: 2014 | B157: 127.3527631
A158: 2015 | B158: 67.34676507
A159: 2016 | B159: 55.52280337
A160: 2017 | B160: 67.36516951
A161: 2018 | B161: 86.5300546
A162: 2019 | B162: 76.52843974
A163: 2020 | B163: 49.25680203
A164: 2021 | B164: 79.73940752
A165: 2022 | B165: 105.4906737
A166: 2023 | B166: 82.64229084
A167: Source: BP, Statistical Review of World Energy 2024, June 2023
A169: a At constant 2023 prices.

Sheet SA coal prices 1984-2023
A2: South Africana coal prices, 1984-2023
B3: Year | C3: Nominal $/mtc | D3: Realb $/mtc
B4: 1984 | C4: 32.87 | D4: 54.5
B5: 1985 | C5: 34.92 | D5: 58.5
B6: 1986 | C6: 30.37 | D6: 44.24
B7: 1987 | C7: 26.5 | D7: 35.22
B8: 1988 | C8: 28.1 | D8: 35.08
B9: 1989 | C9: 31 | D9: 38.93
B10: 1990 | C10: 32.88 | D10: 39.77
B11: 1991 | C11: 31.5 | D11: 38.46
B12: 1992 | C12: 28.83 | D12: 34.55
B13: 1993 | C13: 26.96 | D13: 31.23
B14: 1994 | C14: 28.56 | D14: 34.11
B15: 1995 | C15: 35.23 | D15: 38.33
B16: 1996 | C16: 33.52 | D16: 37.17
B17: 1997 | C17: 31.35 | D17: 36.49
B18: 1998 | C18: 26.84 | D18: 32.66
B19: 1999 | C19: 24.27 | D19: 30.12
B20: 2000 | C20: 26.57 | D20: 33.4
B21: 2001 | C21: 33.86 | D21: 44.22
B22: 2002 | C22: 26.02 | D22: 34.39
B23: 2003 | C23: 30.24 | D23: 37.98
B24: 2004 | C24: 54.68 | D24: 64.31
B25: 2005 | C25: 46.2 | D25: 52.67
B26: 2006 | C26: 50.69 | D26: 56.37
B27: 2007 | C27: 62.65 | D27: 65.65
B28: 2008 | C28: 120.6 | D28: 117.27
B29: 2009 | C29: 64.68 | D29: 67.06
B30: 2010 | C30: 91.62 | D30: 91.62
B31: 2011 | C31: 116.3 | D31: 104.7
B32: 2012 | C32: 92.92 | D32: 84.3
B33: 2013 | C33: 80.24 | D33: 73.1
B34: 2014 | C34: 72.34 | D34: 66.8
B35: 2015 | C35: 56.7 | D35: 57.9
B36: 2016 | C36: 64 | D36: 68
B37: 2017 | C37: 85.2 | D37: 87.5
B38: 2018 | C38: 97.6 | D38: 95.9
B39: 2019 | C39: 71.9 | D39: 72.3
B40: 2020 | C40: 65.7 | D40: 67.1
B41: 2021 | C41: 119.8 | D41: 109.5
B42: 2022 | C42: 240.6 | D42: 217.9
B43: 2023 | C43: 119.1 | D43: 107
A44: Source: World Bank, www.econ.worldbank.org, Commodity price data, accessed 5 June 2024
A45: a Coal South Africa, thermal, f.o.b. Richards Bay, 90 days forward delivery; 6 000 kcal/kg, during 2002–05, 6 200 kcal/kg (11 200 btu/lb); during 1990–2001 6 390 kcal/kg (11 500 btu/lb).
A46: b At real 2010 US Dollar prices.
A47: c US dollars per metric ton.

Sheet LG.Real coal price 84-23
A1: LG
B2: Real coal price, 1984–2023
A3: 1984 | B3: 54.5
A4: 1985 | B4: 58.5
A5: 1986 | B5: 44.24
A6: 1987 | B6: 35.22
A7: 1988 | B7: 35.08
A8: 1989 | B8: 38.93
A9: 1990 | B9: 39.77
A10: 1991 | B10: 38.46
A11: 1992 | B11: 34.55
A12: 1993 | B12: 31.23
A13: 1994 | B13: 34.11
A14: 1995 | B14: 38.33
A15: 1996 | B15: 37.17
A16: 1997 | B16: 36.49
A17: 1998 | B17: 32.66
A18: 1999 | B18: 30.12
A19: 2000 | B19: 33.4
A20: 2001 | B20: 44.22
A21: 2002 | B21: 34.39
A22: 2003 | B22: 37.98
A23: 2004 | B23: 64.31
A24: 2005 | B24: 52.67
A25: 2006 | B25: 56.37
A26: 2007 | B26: 65.65
A27: 2008 | B27: 117.27
A28: 2009 | B28: 67.06
A29: 2010 | B29: 91.62
A30: 2011 | B30: 104.7
A31: 2012 | B31: 84.3
A32: 2013 | B32: 73.1
A33: 2014 | B33: 66.8
A34: 2015 | B34: 57.9
A35: 2016 | B35: 68
A36: 2017 | B36: 87.5
A37: 2018 | B37: 95.9
A38: 2019 | B38: 72.3
A39: 2020 | B39: 67.1
A40: 2021 | B40: 109.5
A41: 2022 | B41: 217.9
A42: 2023 | B42: 107

Sheet Iron ore, alumin.copper 60-23
A2: Iron ore, aluminium, and copper prices, 1960-2023
B4: —Iron ore— | D4: —Aluminium— | F4: —Copper—
B5: Nominal | C5: Reala | D5: Nominal | E5: Reala | F5: Nominal | G5: Reala
A6: Year | B6: —$/dmt— | D6: —$/mt— | F6: —$/mt—
A7: 1963 | B7: 11.02 | C7: 56.46890003 | D7: 498.7952652 | E7: 2555.936476 | F7: 645.9508333 | G7: 3309.993923
A8: 1964 | B8: 10.24 | C8: 51.74780285 | D8: 525.9856313 | E8: 2658.066479 | F8: 969.7533333 | G8: 4900.644952
A9: 1965 | B9: 10.66166667 | C9: 53.36535084 | D9: 540.1318359 | E9: 2703.547749 | F9: 1292.844167 | G9: 6471.134832
A10: 1966 | B10: 9.52 | C10: 45.95657273 | D10: 540.1318359 | E10: 2607.416807 | F10: 1531.513333 | G10: 7393.2
A11: 1967 | B11: 8.86 | C11: 42.39785388 | D11: 540.1318359 | E11: 2584.69872 | F11: 1134.7725 | G11: 5430.239125
A12: 1968 | B12: 8.77 | C12: 42.33604441 | D12: 552.9920858 | E12: 2669.498005 | F12: 1241.9525 | G12: 5995.365587
A13: 1969 | B13: 9.84 | C13: 45.08753609 | D13: 588.4498698 | E13: 2696.316539 | F13: 1467.34 | G13: 6723.449717
A14: 1970 | B14: 9.84 | C14: 42.38710612 | D14: 614.1704508 | E14: 2645.62074 | F14: 1415.7 | G14: 6098.315665
A15: 1971 | B15: 10.33 | C15: 42.3106639 | D15: 627.9493205 | E15: 2572.018649 | F15: 1081.416667 | G15: 4429.376294
A16: 1972 | B16: 10.33 | C16: 38.78696659 | D16: 590.1033122 | E16: 2215.71321 | F16: 1057.675 | G16: 3971.346069
A17: 1973 | B17: 10.33 | C17: 33.44492457 | D17: 599.1054891 | E17: 1939.693891 | F17: 1785.358333 | G17: 5780.36542
A18: 1974 | B18: 13.38 | C18: 35.54734685 | D18: 764.8194377 | E18: 2031.935861 | F18: 2058.5 | G18: 5468.924775
A19: 1975 | B19: 17.3 | C19: 41.38474361 | D19: 868.4365641 | E19: 2077.458066 | F19: 1234.75 | G19: 2953.746368
A20: 1976 | B20: 22.72 | C20: 53.69131845 | D20: 889.9316406 | E20: 2103.063517 | F20: 1400.75 | G20: 3310.216299
A21: 1977 | B21: 23.06 | C21: 50.41286422 | D21: 1143.830343 | E21: 2500.596867 | F21: 1308.75 | G21: 2861.13773
A22: 1978 | B22: 21.45 | C22: 40.35161385 | D22: 1324.921509 | E22: 2492.43455 | F22: 1364.833333 | G22: 2567.51644
A23: 1979 | B23: 23.5 | C23: 39.62992057 | D23: 1602.868225 | E23: 2703.044274 | F23: 1985.258333 | G23: 3347.899152
A24: 1980 | B24: 28.09 | C24: 43.0667348 | D24: 1774.912842 | E24: 2721.242458 | F24: 2182.091667 | G24: 3345.516665
A25: 1981 | B25: 28.09 | C25: 43.01760925 | D25: 1262.730286 | E25: 1933.771378 | F25: 1741.95 | G25: 2667.658399
A26: 1982 | B26: 32.5 | C26: 51.29909462 | D26: 991.5666667 | E26: 1565.122223 | F26: 1480.441667 | G26: 2336.778989
A27: 1983 | B27: 29 | C27: 47.0215224 | D27: 1438.433333 | E27: 2332.321559 | F27: 1591.925 | G27: 2581.197829
A28: 1984 | B28: 26.15 | C28: 43.35456805 | D28: 1251.325 | E28: 2074.594832 | F28: 1377.316667 | G28: 2283.478744
A29: 1985 | B29: 26.56 | C29: 44.49834789 | D29: 1040.725 | E29: 1743.619846 | F29: 1417.383333 | G29: 2374.669302
A30: 1986 | B30: 26.26 | C30: 38.25162291 | D30: 1149.935 | E30: 1675.052551 | F30: 1373.781667 | G30: 2001.118746
A31: 1987 | B31: 25.3 | C31: 33.63010105 | D31: 1565.360833 | E31: 2080.760593 | F31: 1782.503333 | G31: 2369.397914
A32: 1988 | B32: 24.3 | C32: 30.33209801 | D32: 2550.455833 | E32: 3183.566926 | F32: 2601.671667 | G32: 3247.496296
A33: 1989 | B33: 27.83 | C33: 34.9477635 | D33: 1951.256667 | E33: 2450.307457 | F33: 2848.41 | G33: 3576.915524
A34: 1990 | B34: 32.5 | C34: 39.31181031 | D34: 1639.445 | E34: 1983.063103 | F34: 2661.4825 | G34: 3219.313698
A35: 1991 | B35: 34.76 | C35: 42.43571871 | D35: 1302.188333 | E35: 1589.738142 | F35: 2338.7825 | G35: 2855.233495
A36: 1992 | B36: 33.1 | C36: 39.66772812 | D36: 1254.283333 | E36: 1503.159222 | F36: 2281.1575 | G36: 2733.786571
A37: 1993 | B37: 29.09 | C37: 33.69916651 | D37: 1139.049167 | E37: 1319.525869 | F37: 1913.076667 | G37: 2216.194195
A38: 1994 | B38: 26.47 | C38: 31.61355216 | D38: 1476.7825 | E38: 1763.745395 | F38: 2307.4175 | G38: 2755.786305
A39: 1995 | B39: 28.38 | C39: 30.87466123 | D39: 1805.6575 | E39: 1964.378563 | F39: 2935.605833 | G39: 3193.651713
A40: 1996 | B40: 30 | C40: 33.27099761 | D40: 1505.660833 | E40: 1669.827933 | F40: 2294.856667 | G40: 2545.072356
A41: 1997 | B41: 30.15 | C41: 35.08991186 | D41: 1599.33 | E41: 1861.371434 | F41: 2276.766667 | G41: 2649.802377
A42: 1998 | B42: 31 | C42: 37.7262373 | D42: 1357.469167 | E42: 1652.006578 | F42: 1654.058333 | G42: 2012.948297
A43: 1999 | B43: 27.59 | C43: 34.23442713 | D43: 1361.09 | E43: 1688.877725 | F43: 1572.860833 | G43: 1951.648771
A44: 2000 | B44: 28.79 | C44: 36.18669517 | D44: 1549.140833 | E44: 1947.144394 | F44: 1813.469167 | G44: 2279.383672
A45: 2001 | B45: 30.03 | C45: 39.21549274 | D45: 1443.634167 | E45: 1885.208964 | F45: 1578.288333 | G45: 2061.050772
A46: 2002 | B46: 29.31 | C46: 38.72742112 | D46: 1349.915 | E46: 1783.64813 | F46: 1559.4775 | G46: 2060.543905
A47: 2003 | B47: 31.95 | C47: 40.12913179 | D47: 1431.29375 | E47: 1797.701894 | F47: 1779.144833 | G47: 2234.602113
A48: 2004 | B48: 37.9 | C48: 44.57456182 | D48: 1715.541 | E48: 2017.664601 | F48: 2865.884917 | G48: 3370.595366
A49: 2005 | B49: 65 | C49: 74.11265159 | D49: 1898.308083 | E49: 2164.440701 | F49: 3678.876417 | G49: 4194.635171
A50: 2006 | B50: 69.33333333 | C50: 77.10029769 | D50: 2569.89875 | E50: 2857.787865 | F50: 6722.1345 | G50: 7475.171698
A51: 2007 | B51: 122.9875 | C51: 128.877573 | D51: 2638.179167 | E51: 2764.525893 | F51: 7118.226 | G51: 7459.129515
A52: 2008 | B52: 155.9933333 | C52: 151.6944575 | D52: 2572.789167 | E52: 2501.888053 | F52: 6955.879833 | G52: 6764.189183
A53: 2009 | B53: 79.97916667 | C53: 82.91252214 | D53: 1664.8295 | E53: 1725.88961 | F53: 5149.738583 | G53: 5338.612943
A54: 2010 | B54: 145.8631854 | C54: 145.8631854 | D54: 2173.117 | E54: 2173.117 | F54: 7534.779583 | G54: 7534.779583
A55: 2011 | B55: 167.7541667 | C55: 151.1 | D55: 2401.386667 | E55: 2163.5 | F55: 8828.1875 | G55: 7953.6
A56: 2012 | B56: 128.4959259 | C56: 116.6 | D56: 2023.283193 | E56: 1836.4 | F56: 7962.4 | G56: 7227
A57: 2013 | B57: 135.3611885 | C57: 123.4 | D57: 1846.668968 | E57: 1683.5 | F57: 7332.100477 | G57: 6684.1
A58: 2014 | B58: 97 | C58: 89.6 | D58: 1867.42 | E58: 1725.6 | F58: 6863.3975 | G58: 6342.2
A59: 2015 | B59: 55.9 | C59: 57.1 | D59: 1664.680833 | E59: 1701.1 | F59: 5510.456667 | G59: 5631.1
A60: 2016 | B60: 58.4 | C60: 62.1 | D60: 1604.18 | E60: 1706 | F60: 4867.9 | G60: 5176.84
A61: 2017 | B61: 71.8 | C61: 73.7 | D61: 1967.7 | E61: 2021.8 | F61: 6169.9 | G61: 6339.8
A62: 2018 | B62: 69.8 | C62: 68.5 | D62: 2108.5 | E62: 2071.6 | F62: 6529.8 | G62: 6415.6
A63: 2019 | B63: 93.85 | C63: 94.3 | D63: 1794.5 | E63: 1803.9 | F63: 6010.1 | G63: 6041.7
A64: 2020 | B64: 108.9 | C64: 111.2 | D64: 1704 | E64: 1740.5 | F64: 6173.8 | G64: 6306.2
